Workbook

Sheet Flowchart
A1: Indicatie financieel rendement per businesscase; voor verschillende projectperiodes
A2: Case | B2: 10 jaar | C2: 15 jaar | D2: 20 jaar | E2: Complexiteit | F2: Snelheid uitvoer | G2: Bruikbaar | H2: ID#
A3: PCR Algemeen | B3: =Totaal!A147 -> -0.02997710227 | C3: =Totaal!A148 -> 0.05363584923 | D3: =Totaal!A149 -> 0.03395754913 | E3: =IF($G$44>=1,1,0) -> 1 | F3: 1 | G3: 1 | H3: M
A4: SDE Algemeen - Fase 4 | B4: =Totaal!A88 -> -0.01256558575 | C4: =Totaal!A89 -> 0.06574032057 | D4: =Totaal!A90 -> 0.05612896967 | E4: =IF($G$44>=0,1,0) -> 1 | F4: =IF(DAYS360(TODAY(),DATE(2016,9,19))+90<$G$45*365,1,0) -> 1 | G4: =IF($G$33<15000,0,1) -> 1 | H4: D
A5: SDE Algemeen - Fase 3 | B5: =Totaal!A82 -> -0.01256558575 | C5: =Totaal!A83 -> 0.06574032057 | D5: =Totaal!A84 -> 0.05612896967 | E5: =IF($G$44>=0,1,0) -> 1 | F5: =IF(DAYS360(TODAY(),DATE(2016,9,12))+90<$G$45*365,1,0) -> 1 | G5: =IF($G$33<15000,0,1) -> 1 | H5: C
A6: SDE met verkoop systeem - Fase 4 | B6: =Totaal!A138 -> 0.05556425225 | C6: =Totaal!A139 -> 0.05556425225 | D6: =Totaal!A140 -> 0.05556425225 | E6: =IF($G$44>=1,1,0) -> 1 | F6: =IF(DAYS360(TODAY(),DATE(2016,9,19))+90<$G$45*365,1,0) -> 1 | G6: =IF($G$33<15000,0,1) -> 1 | H6: L
A7: SDE met verkoop systeem - Fase 3 | B7: =Totaal!A132 -> 0.05556425225 | C7: =Totaal!A133 -> 0.05556425225 | D7: =Totaal!A134 -> 0.05556425225 | E7: =IF($G$44>=1,1,0) -> 1 | F7: =IF(DAYS360(TODAY(),DATE(2016,9,12))+90<$G$45*365,1,0) -> 1 | G7: =IF($G$33<15000,0,1) -> 1 | H7: K
A8: PCR met verkoop systeem | B8: =Totaal!A165 -> 0.03348956732 | C8: =Totaal!A166 -> 0.03348956732 | D8: =Totaal!A167 -> 0.03348956732 | E8: =IF($G$44>=1,1,0) -> 1 | F8: 1 | G8: 1 | H8: O
A9: SDE Algemeen - Fase 2 | B9: =Totaal!A76 -> -0.04930458672 | C9: =Totaal!A77 -> 0.04239816071 | D9: =Totaal!A78 -> 0.03037201978 | E9: =IF($G$44>=0,1,0) -> 1 | F9: =IF(DAYS360(TODAY(),DATE(2016,9,5))+90<$G$45*365,1,0) -> 1 | G9: =IF($G$33<15000,0,1) -> 1 | H9: B
A10: SDE met verkoop systeem - Fase 2 | B10: =Totaal!A126 -> 0.03288751852 | C10: =Totaal!A127 -> 0.03288751852 | D10: =Totaal!A128 -> 0.03288751852 | E10: =IF($G$44>=1,1,0) -> 1 | F10: =IF(DAYS360(TODAY(),DATE(2016,9,5))+90<$G$45*365,1,0) -> 1 | G10: =IF($G$33<15000,0,1) -> 1 | H10: J
A11: SDE Algemeen - Fase 1 | B11: =Totaal!A70 -> -0.1139929148 | C11: =Totaal!A71 -> 0.006934043174 | D11: =Totaal!A72 -> -0.009770185424 | E11: =IF($G$44>=0,1,0) -> 1 | F11: =IF(DAYS360(TODAY(),DATE(2016,8,30))+90<$G$45*365,1,0) -> 1 | G11: =IF($G$33<15000,0,1) -> 1 | H11: A
A12: SDE met verkoop systeem - Fase 1 | B12: =Totaal!A120 -> -0.001115271852 | C12: =Totaal!A121 -> -0.001115271852 | D12: =Totaal!A122 -> -0.001115271852 | E12: =IF($G$44>=1,1,0) -> 1 | F12: =IF(DAYS360(TODAY(),DATE(2016,8,30))+90<$G$45*365,1,0) -> 1 | G12: =IF($G$33<15000,0,1) -> 1 | H12: I
A13: PCR met saldering | B13: =Totaal!A156 -> 0.02172645306 | C13: =Totaal!A157 -> 0.08960332961 | D13: =Totaal!A158 -> 0.07713836484 | E13: =IF($G$44>=2,1,0) -> 0 | F13: 1 | G13: 1 | H13: N
A14: Salderen | B14: =Totaal!A172 -> 0 | C14: =Totaal!A173 -> 0 | D14: =Totaal!A174 -> 0 | E14: =IF($G$44>=0,1,0) -> 1 | F14: 1 | G14: =IF($G$33>Datatabellen!$B$10,0,1)*IF($G$35="nee",0,1) -> 0 | H14: P
A15: salderen met verkoop systeem | B15: =Totaal!A179 -> -0.1647523798 | C15: =Totaal!A180 -> -0.1647523798 | D15: =Totaal!A181 -> -0.1647523798 | E15: =IF($G$44>=1,1,0) -> 1 | F15: 1 | G15: =IF($G$33>Datatabellen!$B$10,0,1)*IF($G$35="nee",0,1) -> 0 | H15: Q
A16: SDE met zelflevering - Fase 4 | B16: =Totaal!A113 -> -0.01546065889 | C16: =Totaal!A114 -> 0.0636148218 | D16: =Totaal!A115 -> 0.05392416017 | E16: =IF($G$44>=2,1,0) -> 0 | F16: =IF(DAYS360(TODAY(),DATE(2016,9,19))+90<$G$45*365,1,0) -> 1 | G16: =IF($G$35="nee",0,1)*IF($G$33<15000,0,1)*IF($G$28="Veld",0,1) -> 0 | H16: H
A17: SDE met zelflevering - Fase 3 | B17: =Totaal!A107 -> -0.01546065889 | C17: =Totaal!A108 -> 0.0636148218 | D17: =Totaal!A109 -> 0.05392416017 | E17: =IF($G$44>=2,1,0) -> 0 | F17: =IF(DAYS360(TODAY(),DATE(2016,9,12))+90<$G$45*365,1,0) -> 1 | G17: =IF($G$35="nee",0,1)*IF($G$33<15000,0,1)*IF($G$28="Veld",0,1) -> 0 | H17: G
A18: SDE met zelflevering - Fase 2 | B18: =Totaal!A101 -> -0.05206085575 | C18: =Totaal!A102 -> 0.04043533929 | D18: =Totaal!A103 -> 0.02833269915 | E18: =IF($G$44>=2,1,0) -> 0 | F18: =IF(DAYS360(TODAY(),DATE(2016,9,5))+90<$G$45*365,1,0) -> 1 | G18: =IF($G$35="nee",0,1)*IF($G$33<15000,0,1)*IF($G$28="Veld",0,1) -> 0 | H18: F
A19: SDE met zelflevering - Fase 1 | B19: =Totaal!A95 -> -0.1165184224 | C19: =Totaal!A96 -> 0.005221008312 | D19: =Totaal!A97 -> -0.01153818713 | E19: =IF($G$44>=2,1,0) -> 0 | F19: =IF(DAYS360(TODAY(),DATE(2016,8,30))+90<$G$45*365,1,0) -> 1 | G19: =IF($G$35="nee",0,1)*IF($G$33<15000,0,1)*IF($G$28="Veld",0,1) -> 0 | H19: E
A25: Input | B25: Handmatig | E25: Vanuit | G25: in Berekening
B26: Aanpassen | E26: Flowchart | G26: Gebruikt
A27: Provincie | E27: Friesland | G27: =IF(B27>0,B27,E27) -> Friesland
A28: Wat voor Locatie | E28: Plat | G28: =IF(B28>0,B28,E28) -> Plat
A29: Welke Hellingshoek bij schuin | C29: graden | E29: 30 graden | G29: =IF(B29>0,B29,VALUE(LEFT(E29,2))) -> 30
A30: Orientatie | E30: Zuid | G30: Zuid
A31: Lengte | C31: meter | G31: 0
A32: Breedte | C32: meter | G32: 0
A33: Vermogen | C33: watt | E33: 174000 | G33: 174000
A34: is de locatie eigendom | E34: nee | G34: nee
A35: locatieigenaar actief betrokken | E35: nee | G35: nee
A36: verbruik op locatie | C36: kWh | E36: 50000 | G36: =IF(OR(G35="nee",G28="Veld"),0,1)*IF(B36>0,B36,E36) -> 0
A37: Netaansluting
A38: Is er al een Netaansluiting | E38: nee | G38: nee
A39: Is deze voldoende | E39: nee | G39: nee
A40: Wat is de afstand tot de weg | C40: meter | E40: 50 | G40: 50
A42: Uitvoering
A43: Aandeel financiering leden | C43: procent | E43: 0.6 | G43: 0.6
A44: Hoe Complex | E44: Gemiddeld | G44: =IF(IF(B44>0,B44,E44)="Eenvoudig",0,IF(IF(B44>0,B44,E44)="Gemiddeld",1,2)) -> 1
A45: Hoe Snel | C45: jaar | E45: 1 | G45: 1
A46: Hoeveelheid investeringssubsidie | C46: euro | G46: 0
A47: Welk scenario Salderen | E47: 4 | G47: 4
J58: FEEDBaCK | O58: actie:
J59: y | K59: schaduw | O59: in tekst
K60: orientatie dak/panelen | O60: toevoegen als pop-up
J61: y | K61: aansluiting voor enkel terugleveren | O61: icm netbeheer
J62: y | K62: rente van lening | O62: niks mee doen | Q62: x | R62: verwerken
K63: verduidelijking vraag eigenaar en constructie | Q63: y | R63: makkelijk te verwerken
J64: t | K64: rechtspersoon | O64: niet | Q64: t | R64: moeilijker te verwerken
K65: looptijd 25 jaar | Q65: ? | R65: onbekend
J66: ? | K66: model martijn messing? | O66: niet
J67: t | K67: doel berekening toevoegen? | O67: niet
J68: x | K68: ontwikkelkosten afhankelijk van complexiteit
J69: t | K69: meer informatie over aansluitingen | O69: icm netbeheer
J70: t | K70: peak shaving | O70: niet
J71: x | K71: salderen situatie kiezen (3 keuzes) | O71: doen we niet
J72: t | K72: VOF | O72: niet
J73: t | K73: KOR | O73: niet
J74: t | K74: mkb winstvrijstelling | O74: niet
J75: ? | K75: IVEE???? | O75: niet
J76: ? | K76: Salderen - verhuizing combiapxprijs | O76: niet
K77: eia en kia totaal naar jaar 1
K78: omvormer vervangen naar 1 bedrag

Sheet Samenvatting
I1: ID
A2: Selecteer Businescase | D2: Salderen | I2: =IF(D2>0,VLOOKUP(D2,Tabel_BuCas[],8,FALSE),Flowchart!H3) -> P
A4: Categorie | B4: Sub
A5: Jaar | C5: 0 | D5: 1 | E5: 2 | F5: 3 | G5: 4 | H5: 5 | I5: 6 | J5: 7 | K5: 8 | L5: 9 | M5: 10 | N5: 11 | O5: 12 | P5: 13 | Q5: 14 | R5: 15 | S5: 16 | T5: 17 | U5: 18 | V5: 19 | W5: 20 | X5: 21 | Y5: 22 | Z5: 23 | AA5: 24 | AB5: 25
A6: Productie | C6: =ROUND(Totaal!C3,0) -> 0 | D6: =ROUND(Totaal!D3,0) -> 152408 | E6: =ROUND(Totaal!E3,0) -> 151341 | F6: =ROUND(Totaal!F3,0) -> 150282 | G6: =ROUND(Totaal!G3,0) -> 149230 | H6: =ROUND(Totaal!H3,0) -> 148186 | I6: =ROUND(Totaal!I3,0) -> 147148 | J6: =ROUND(Totaal!J3,0) -> 146118 | K6: =ROUND(Totaal!K3,0) -> 145095 | L6: =ROUND(Totaal!L3,0) -> 144080 | M6: =ROUND(Totaal!M3,0) -> 143071 | N6: =ROUND(Totaal!N3,0) -> 142070 | O6: =ROUND(Totaal!O3,0) -> 141075 | P6: =ROUND(Totaal!P3,0) -> 140088 | Q6: =ROUND(Totaal!Q3,0) -> 139107 | R6: =ROUND(Totaal!R3,0) -> 138133 | S6: =ROUND(Totaal!S3,0) -> 137166 | T6: =ROUND(Totaal!T3,0) -> 136206 | U6: =ROUND(Totaal!U3,0) -> 135253 | V6: =ROUND(Totaal!V3,0) -> 134306 | W6: =ROUND(Totaal!W3,0) -> 133366 | X6: =ROUND(Totaal!X3,0) -> 132432 | Y6: =ROUND(Totaal!Y3,0) -> 131505 | Z6: =ROUND(Totaal!Z3,0) -> 130585 | AA6: =ROUND(Totaal!AA3,0) -> 129671 | AB6: =ROUND(Totaal!AB3,0) -> 128763
A8: Investering | C8: =ROUND(Totaal!C5,0) -> 191367 | D8: =ROUND(Totaal!D5,0) -> 0 | E8: =ROUND(Totaal!E5,0) -> 0 | F8: =ROUND(Totaal!F5,0) -> 0 | G8: =ROUND(Totaal!G5,0) -> 0 | H8: =ROUND(Totaal!H5,0) -> 0 | I8: =ROUND(Totaal!I5,0) -> 0 | J8: =ROUND(Totaal!J5,0) -> 0 | K8: =ROUND(Totaal!K5,0) -> 0 | L8: =ROUND(Totaal!L5,0) -> 0 | M8: =ROUND(Totaal!M5,0) -> 0 | N8: =ROUND(Totaal!N5,0) -> 0 | O8: =ROUND(Totaal!O5,0) -> 0 | P8: =ROUND(Totaal!P5,0) -> 0 | Q8: =ROUND(Totaal!Q5,0) -> 0 | R8: =ROUND(Totaal!R5,0) -> 0 | S8: =ROUND(Totaal!S5,0) -> 40806 | T8: =ROUND(Totaal!T5,0) -> 0 | U8: =ROUND(Totaal!U5,0) -> 0 | V8: =ROUND(Totaal!V5,0) -> 0 | W8: =ROUND(Totaal!W5,0) -> 0 | X8: =ROUND(Totaal!X5,0) -> 0 | Y8: =ROUND(Totaal!Y5,0) -> 0 | Z8: =ROUND(Totaal!Z5,0) -> 0 | AA8: =ROUND(Totaal!AA5,0) -> 0 | AB8: =ROUND(Totaal!AB5,0) -> 0
B9: Systeemkosten | C9: =ROUND(Totaal!C6,0) -> 163560 | D9: =ROUND(Totaal!D6,0) -> 0 | E9: =ROUND(Totaal!E6,0) -> 0 | F9: =ROUND(Totaal!F6,0) -> 0 | G9: =ROUND(Totaal!G6,0) -> 0 | H9: =ROUND(Totaal!H6,0) -> 0 | I9: =ROUND(Totaal!I6,0) -> 0 | J9: =ROUND(Totaal!J6,0) -> 0 | K9: =ROUND(Totaal!K6,0) -> 0 | L9: =ROUND(Totaal!L6,0) -> 0 | M9: =ROUND(Totaal!M6,0) -> 0 | N9: =ROUND(Totaal!N6,0) -> 0 | O9: =ROUND(Totaal!O6,0) -> 0 | P9: =ROUND(Totaal!P6,0) -> 0 | Q9: =ROUND(Totaal!Q6,0) -> 0 | R9: =ROUND(Totaal!R6,0) -> 0 | S9: =ROUND(Totaal!S6,0) -> 40806 | T9: =ROUND(Totaal!T6,0) -> 0 | U9: =ROUND(Totaal!U6,0) -> 0 | V9: =ROUND(Totaal!V6,0) -> 0 | W9: =ROUND(Totaal!W6,0) -> 0 | X9: =ROUND(Totaal!X6,0) -> 0 | Y9: =ROUND(Totaal!Y6,0) -> 0 | Z9: =ROUND(Totaal!Z6,0) -> 0 | AA9: =ROUND(Totaal!AA6,0) -> 0 | AB9: =ROUND(Totaal!AB6,0) -> 0
B10: Projectkosten | C10: =ROUND(Totaal!C7,0) -> 27807 | D10: =ROUND(Totaal!D7,0) -> 0 | E10: =ROUND(Totaal!E7,0) -> 0 | F10: =ROUND(Totaal!F7,0) -> 0 | G10: =ROUND(Totaal!G7,0) -> 0 | H10: =ROUND(Totaal!H7,0) -> 0 | I10: =ROUND(Totaal!I7,0) -> 0 | J10: =ROUND(Totaal!J7,0) -> 0 | K10: =ROUND(Totaal!K7,0) -> 0 | L10: =ROUND(Totaal!L7,0) -> 0 | M10: =ROUND(Totaal!M7,0) -> 0 | N10: =ROUND(Totaal!N7,0) -> 0 | O10: =ROUND(Totaal!O7,0) -> 0 | P10: =ROUND(Totaal!P7,0) -> 0 | Q10: =ROUND(Totaal!Q7,0) -> 0 | R10: =ROUND(Totaal!R7,0) -> 0 | S10: =ROUND(Totaal!S7,0) -> 0 | T10: =ROUND(Totaal!T7,0) -> 0 | U10: =ROUND(Totaal!U7,0) -> 0 | V10: =ROUND(Totaal!V7,0) -> 0 | W10: =ROUND(Totaal!W7,0) -> 0 | X10: =ROUND(Totaal!X7,0) -> 0 | Y10: =ROUND(Totaal!Y7,0) -> 0 | Z10: =ROUND(Totaal!Z7,0) -> 0 | AA10: =ROUND(Totaal!AA7,0) -> 0 | AB10: =ROUND(Totaal!AB7,0) -> 0
A12: Restwaarde | C12: =ROUND(Totaal!C10,0) -> 163560 | D12: =ROUND(Totaal!D10,0) -> 153746 | E12: =ROUND(Totaal!E10,0) -> 143933 | F12: =ROUND(Totaal!F10,0) -> 134119 | G12: =ROUND(Totaal!G10,0) -> 124306 | H12: =ROUND(Totaal!H10,0) -> 114492 | I12: =ROUND(Totaal!I10,0) -> 104678 | J12: =ROUND(Totaal!J10,0) -> 94865 | K12: =ROUND(Totaal!K10,0) -> 85051 | L12: =ROUND(Totaal!L10,0) -> 75238 | M12: =ROUND(Totaal!M10,0) -> 65424 | N12: =ROUND(Totaal!N10,0) -> 55610 | O12: =ROUND(Totaal!O10,0) -> 45797 | P12: =ROUND(Totaal!P10,0) -> 35983 | Q12: =ROUND(Totaal!Q10,0) -> 26170 | R12: =ROUND(Totaal!R10,0) -> 16356 | S12: =ROUND(Totaal!S10,0) -> 57162 | T12: =ROUND(Totaal!T10,0) -> 57162 | U12: =ROUND(Totaal!U10,0) -> 57162 | V12: =ROUND(Totaal!V10,0) -> 57162 | W12: =ROUND(Totaal!W10,0) -> 57162 | X12: =ROUND(Totaal!X10,0) -> 57162 | Y12: =ROUND(Totaal!Y10,0) -> 57162 | Z12: =ROUND(Totaal!Z10,0) -> 57162 | AA12: =ROUND(Totaal!AA10,0) -> 57162 | AB12: =ROUND(Totaal!AB10,0) -> 57162
B13: Afschrijving | C13: =ROUND(Totaal!C11,0) -> 0 | D13: =ROUND(Totaal!D11,0) -> 9814 | E13: =ROUND(Totaal!E11,0) -> 9814 | F13: =ROUND(Totaal!F11,0) -> 9814 | G13: =ROUND(Totaal!G11,0) -> 9814 | H13: =ROUND(Totaal!H11,0) -> 9814 | I13: =ROUND(Totaal!I11,0) -> 9814 | J13: =ROUND(Totaal!J11,0) -> 9814 | K13: =ROUND(Totaal!K11,0) -> 9814 | L13: =ROUND(Totaal!L11,0) -> 9814 | M13: =ROUND(Totaal!M11,0) -> 9814 | N13: =ROUND(Totaal!N11,0) -> 9814 | O13: =ROUND(Totaal!O11,0) -> 9814 | P13: =ROUND(Totaal!P11,0) -> 9814 | Q13: =ROUND(Totaal!Q11,0) -> 9814 | R13: =ROUND(Totaal!R11,0) -> 9814 | S13: =ROUND(Totaal!S11,0) -> 0 | T13: =ROUND(Totaal!T11,0) -> 0 | U13: =ROUND(Totaal!U11,0) -> 0 | V13: =ROUND(Totaal!V11,0) -> 0 | W13: =ROUND(Totaal!W11,0) -> 0 | X13: =ROUND(Totaal!X11,0) -> 0 | Y13: =ROUND(Totaal!Y11,0) -> 0 | Z13: =ROUND(Totaal!Z11,0) -> 0 | AA13: =ROUND(Totaal!AA11,0) -> 0 | AB13: =ROUND(Totaal!AB11,0) -> 0
A15: Financiering | B15: Principal | C15: =ROUND(Totaal!C61,0) -> 76547 | D15: =ROUND(Totaal!D61,0) -> 69870 | E15: =ROUND(Totaal!E61,0) -> 62992 | F15: =ROUND(Totaal!F61,0) -> 55908 | G15: =ROUND(Totaal!G61,0) -> 48612 | H15: =ROUND(Totaal!H61,0) -> 41097 | I15: =ROUND(Totaal!I61,0) -> 33356 | J15: =ROUND(Totaal!J61,0) -> 25383 | K15: =ROUND(Totaal!K61,0) -> 17171 | L15: =ROUND(Totaal!L61,0) -> 8712 | M15: =ROUND(Totaal!M61,0) -> 0 | N15: =ROUND(Totaal!N61,0) -> 0 | O15: =ROUND(Totaal!O61,0) -> 0 | P15: =ROUND(Totaal!P61,0) -> 0 | Q15: =ROUND(Totaal!Q61,0) -> 0 | R15: =ROUND(Totaal!R61,0) -> 0 | S15: =ROUND(Totaal!S61,0) -> 0 | T15: =ROUND(Totaal!T61,0) -> 0 | U15: =ROUND(Totaal!U61,0) -> 0 | V15: =ROUND(Totaal!V61,0) -> 0 | W15: =ROUND(Totaal!W61,0) -> 0 | X15: =ROUND(Totaal!X61,0) -> 0 | Y15: =ROUND(Totaal!Y61,0) -> 0 | Z15: =ROUND(Totaal!Z61,0) -> 0 | AA15: =ROUND(Totaal!AA61,0) -> 0 | AB15: =ROUND(Totaal!AB61,0) -> 0
B16: Aflossing | C16: =ROUND(Totaal!C62,0) -> -76547 | D16: =ROUND(Totaal!D62,0) -> 6677 | E16: =ROUND(Totaal!E62,0) -> 6878 | F16: =ROUND(Totaal!F62,0) -> 7084 | G16: =ROUND(Totaal!G62,0) -> 7296 | H16: =ROUND(Totaal!H62,0) -> 7515 | I16: =ROUND(Totaal!I62,0) -> 7741 | J16: =ROUND(Totaal!J62,0) -> 7973 | K16: =ROUND(Totaal!K62,0) -> 8212 | L16: =ROUND(Totaal!L62,0) -> 8459 | M16: =ROUND(Totaal!M62,0) -> 8712 | N16: =ROUND(Totaal!N62,0) -> 0 | O16: =ROUND(Totaal!O62,0) -> 0 | P16: =ROUND(Totaal!P62,0) -> 0 | Q16: =ROUND(Totaal!Q62,0) -> 0 | R16: =ROUND(Totaal!R62,0) -> 0 | S16: =ROUND(Totaal!S62,0) -> 0 | T16: =ROUND(Totaal!T62,0) -> 0 | U16: =ROUND(Totaal!U62,0) -> 0 | V16: =ROUND(Totaal!V62,0) -> 0 | W16: =ROUND(Totaal!W62,0) -> 0 | X16: =ROUND(Totaal!X62,0) -> 0 | Y16: =ROUND(Totaal!Y62,0) -> 0 | Z16: =ROUND(Totaal!Z62,0) -> 0 | AA16: =ROUND(Totaal!AA62,0) -> 0 | AB16: =ROUND(Totaal!AB62,0) -> 0
B17: Rente | C17: =ROUND(Totaal!C63,0) -> 0 | D17: =ROUND(Totaal!D63,0) -> 2296 | E17: =ROUND(Totaal!E63,0) -> 2096 | F17: =ROUND(Totaal!F63,0) -> 1890 | G17: =ROUND(Totaal!G63,0) -> 1677 | H17: =ROUND(Totaal!H63,0) -> 1458 | I17: =ROUND(Totaal!I63,0) -> 1233 | J17: =ROUND(Totaal!J63,0) -> 1001 | K17: =ROUND(Totaal!K63,0) -> 761 | L17: =ROUND(Totaal!L63,0) -> 515 | M17: =ROUND(Totaal!M63,0) -> 261 | N17: =ROUND(Totaal!N63,0) -> 0 | O17: =ROUND(Totaal!O63,0) -> 0 | P17: =ROUND(Totaal!P63,0) -> 0 | Q17: =ROUND(Totaal!Q63,0) -> 0 | R17: =ROUND(Totaal!R63,0) -> 0 | S17: =ROUND(Totaal!S63,0) -> 0 | T17: =ROUND(Totaal!T63,0) -> 0 | U17: =ROUND(Totaal!U63,0) -> 0 | V17: =ROUND(Totaal!V63,0) -> 0 | W17: =ROUND(Totaal!W63,0) -> 0 | X17: =ROUND(Totaal!X63,0) -> 0 | Y17: =ROUND(Totaal!Y63,0) -> 0 | Z17: =ROUND(Totaal!Z63,0) -> 0 | AA17: =ROUND(Totaal!AA63,0) -> 0 | AB17: =ROUND(Totaal!AB63,0) -> 0
A19: kosten | B19: netwerkkosten | C19: =-ROUND(Totaal!C53,0) -> 0 | D19: =-ROUND(Totaal!D53,0) -> -68 | E19: =-ROUND(Totaal!E53,0) -> -68 | F19: =-ROUND(Totaal!F53,0) -> -69 | G19: =-ROUND(Totaal!G53,0) -> -70 | H19: =-ROUND(Totaal!H53,0) -> -70 | I19: =-ROUND(Totaal!I53,0) -> -71 | J19: =-ROUND(Totaal!J53,0) -> -72 | K19: =-ROUND(Totaal!K53,0) -> -73 | L19: =-ROUND(Totaal!L53,0) -> -73 | M19: =-ROUND(Totaal!M53,0) -> -74 | N19: =-ROUND(Totaal!N53,0) -> -75 | O19: =-ROUND(Totaal!O53,0) -> -75 | P19: =-ROUND(Totaal!P53,0) -> -76 | Q19: =-ROUND(Totaal!Q53,0) -> -77 | R19: =-ROUND(Totaal!R53,0) -> -78 | S19: =-ROUND(Totaal!S53,0) -> -79 | T19: =-ROUND(Totaal!T53,0) -> -79 | U19: =-ROUND(Totaal!U53,0) -> -80 | V19: =-ROUND(Totaal!V53,0) -> -81 | W19: =-ROUND(Totaal!W53,0) -> -82 | X19: =-ROUND(Totaal!X53,0) -> -83 | Y19: =-ROUND(Totaal!Y53,0) -> -83 | Z19: =-ROUND(Totaal!Z53,0) -> -84 | AA19: =-ROUND(Totaal!AA53,0) -> -85 | AB19: =-ROUND(Totaal!AB53,0) -> -86
B20: onderhoud | C20: =-ROUND(Totaal!C54,0) -> 0 | D20: =-ROUND(Totaal!D54,0) -> -870 | E20: =-ROUND(Totaal!E54,0) -> -879 | F20: =-ROUND(Totaal!F54,0) -> -887 | G20: =-ROUND(Totaal!G54,0) -> -896 | H20: =-ROUND(Totaal!H54,0) -> -905 | I20: =-ROUND(Totaal!I54,0) -> -914 | J20: =-ROUND(Totaal!J54,0) -> -924 | K20: =-ROUND(Totaal!K54,0) -> -933 | L20: =-ROUND(Totaal!L54,0) -> -942 | M20: =-ROUND(Totaal!M54,0) -> -952 | N20: =-ROUND(Totaal!N54,0) -> -961 | O20: =-ROUND(Totaal!O54,0) -> -971 | P20: =-ROUND(Totaal!P54,0) -> -980 | Q20: =-ROUND(Totaal!Q54,0) -> -990 | R20: =-ROUND(Totaal!R54,0) -> -1000 | S20: =-ROUND(Totaal!S54,0) -> -1010 | T20: =-ROUND(Totaal!T54,0) -> -1020 | U20: =-ROUND(Totaal!U54,0) -> -1030 | V20: =-ROUND(Totaal!V54,0) -> -1041 | W20: =-ROUND(Totaal!W54,0) -> -1051 | X20: =-ROUND(Totaal!X54,0) -> -1062 | Y20: =-ROUND(Totaal!Y54,0) -> -1072 | Z20: =-ROUND(Totaal!Z54,0) -> -1083 | AA20: =-ROUND(Totaal!AA54,0) -> -1094 | AB20: =-ROUND(Totaal!AB54,0) -> -1105
B21: vervanging | C21: =-ROUND(Totaal!C55,0) -> 0 | D21: =-ROUND(Totaal!D55,0) -> -870 | E21: =-ROUND(Totaal!E55,0) -> -879 | F21: =-ROUND(Totaal!F55,0) -> -887 | G21: =-ROUND(Totaal!G55,0) -> -896 | H21: =-ROUND(Totaal!H55,0) -> -905 | I21: =-ROUND(Totaal!I55,0) -> -914 | J21: =-ROUND(Totaal!J55,0) -> -924 | K21: =-ROUND(Totaal!K55,0) -> -933 | L21: =-ROUND(Totaal!L55,0) -> -942 | M21: =-ROUND(Totaal!M55,0) -> -952 | N21: =-ROUND(Totaal!N55,0) -> -961 | O21: =-ROUND(Totaal!O55,0) -> -971 | P21: =-ROUND(Totaal!P55,0) -> -980 | Q21: =-ROUND(Totaal!Q55,0) -> -990 | R21: =-ROUND(Totaal!R55,0) -> -1000 | S21: =-ROUND(Totaal!S55,0) -> -1010 | T21: =-ROUND(Totaal!T55,0) -> -1020 | U21: =-ROUND(Totaal!U55,0) -> -1030 | V21: =-ROUND(Totaal!V55,0) -> -1041 | W21: =-ROUND(Totaal!W55,0) -> -1051 | X21: =-ROUND(Totaal!X55,0) -> -1062 | Y21: =-ROUND(Totaal!Y55,0) -> -1072 | Z21: =-ROUND(Totaal!Z55,0) -> -1083 | AA21: =-ROUND(Totaal!AA55,0) -> -1094 | AB21: =-ROUND(Totaal!AB55,0) -> -1105
B22: huur locatie | C22: =-ROUND(Totaal!C56,0) -> 0 | D22: =-ROUND(Totaal!D56,0) -> -522 | E22: =-ROUND(Totaal!E56,0) -> -527 | F22: =-ROUND(Totaal!F56,0) -> -532 | G22: =-ROUND(Totaal!G56,0) -> -538 | H22: =-ROUND(Totaal!H56,0) -> -543 | I22: =-ROUND(Totaal!I56,0) -> -549 | J22: =-ROUND(Totaal!J56,0) -> -554 | K22: =-ROUND(Totaal!K56,0) -> -560 | L22: =-ROUND(Totaal!L56,0) -> -565 | M22: =-ROUND(Totaal!M56,0) -> -571 | N22: =-ROUND(Totaal!N56,0) -> -577 | O22: =-ROUND(Totaal!O56,0) -> -582 | P22: =-ROUND(Totaal!P56,0) -> -588 | Q22: =-ROUND(Totaal!Q56,0) -> -594 | R22: =-ROUND(Totaal!R56,0) -> -600 | S22: =-ROUND(Totaal!S56,0) -> -606 | T22: =-ROUND(Totaal!T56,0) -> -612 | U22: =-ROUND(Totaal!U56,0) -> -618 | V22: =-ROUND(Totaal!V56,0) -> -624 | W22: =-ROUND(Totaal!W56,0) -> -631 | X22: =-ROUND(Totaal!X56,0) -> -637 | Y22: =-ROUND(Totaal!Y56,0) -> -643 | Z22: =-ROUND(Totaal!Z56,0) -> -650 | AA22: =-ROUND(Totaal!AA56,0) -> -656 | AB22: =-ROUND(Totaal!AB56,0) -> -663
B23: verzekering | C23: =-ROUND(Totaal!C57,0) -> 0 | D23: =-ROUND(Totaal!D57,0) -> -435 | E23: =-ROUND(Totaal!E57,0) -> -439 | F23: =-ROUND(Totaal!F57,0) -> -444 | G23: =-ROUND(Totaal!G57,0) -> -448 | H23: =-ROUND(Totaal!H57,0) -> -453 | I23: =-ROUND(Totaal!I57,0) -> -457 | J23: =-ROUND(Totaal!J57,0) -> -462 | K23: =-ROUND(Totaal!K57,0) -> -466 | L23: =-ROUND(Totaal!L57,0) -> -471 | M23: =-ROUND(Totaal!M57,0) -> -476 | N23: =-ROUND(Totaal!N57,0) -> -481 | O23: =-ROUND(Totaal!O57,0) -> -485 | P23: =-ROUND(Totaal!P57,0) -> -490 | Q23: =-ROUND(Totaal!Q57,0) -> -495 | R23: =-ROUND(Totaal!R57,0) -> -500 | S23: =-ROUND(Totaal!S57,0) -> -505 | T23: =-ROUND(Totaal!T57,0) -> -510 | U23: =-ROUND(Totaal!U57,0) -> -515 | V23: =-ROUND(Totaal!V57,0) -> -520 | W23: =-ROUND(Totaal!W57,0) -> -526 | X23: =-ROUND(Totaal!X57,0) -> -531 | Y23: =-ROUND(Totaal!Y57,0) -> -536 | Z23: =-ROUND(Totaal!Z57,0) -> -541 | AA23: =-ROUND(Totaal!AA57,0) -> -547 | AB23: =-ROUND(Totaal!AB57,0) -> -552
B24: Administratie | C24: =-ROUND(Totaal!C58,0) -> 0 | D24: =-ROUND(Totaal!D58,0) -> -522 | E24: =-ROUND(Totaal!E58,0) -> -527 | F24: =-ROUND(Totaal!F58,0) -> -532 | G24: =-ROUND(Totaal!G58,0) -> -538 | H24: =-ROUND(Totaal!H58,0) -> -543 | I24: =-ROUND(Totaal!I58,0) -> -549 | J24: =-ROUND(Totaal!J58,0) -> -554 | K24: =-ROUND(Totaal!K58,0) -> -560 | L24: =-ROUND(Totaal!L58,0) -> -565 | M24: =-ROUND(Totaal!M58,0) -> -571 | N24: =-ROUND(Totaal!N58,0) -> -577 | O24: =-ROUND(Totaal!O58,0) -> -582 | P24: =-ROUND(Totaal!P58,0) -> -588 | Q24: =-ROUND(Totaal!Q58,0) -> -594 | R24: =-ROUND(Totaal!R58,0) -> -600 | S24: =-ROUND(Totaal!S58,0) -> -606 | T24: =-ROUND(Totaal!T58,0) -> -612 | U24: =-ROUND(Totaal!U58,0) -> -618 | V24: =-ROUND(Totaal!V58,0) -> -624 | W24: =-ROUND(Totaal!W58,0) -> -631 | X24: =-ROUND(Totaal!X58,0) -> -637 | Y24: =-ROUND(Totaal!Y58,0) -> -643 | Z24: =-ROUND(Totaal!Z58,0) -> -650 | AA24: =-ROUND(Totaal!AA58,0) -> -656 | AB24: =-ROUND(Totaal!AB58,0) -> -663
B25: Vervangen omvormer | C25: =-ROUND(Totaal!C59,0) -> 0 | D25: =-ROUND(Totaal!D59,0) -> 0 | E25: =-ROUND(Totaal!E59,0) -> 0 | F25: =-ROUND(Totaal!F59,0) -> 0 | G25: =-ROUND(Totaal!G59,0) -> 0 | H25: =-ROUND(Totaal!H59,0) -> 0 | I25: =-ROUND(Totaal!I59,0) -> 0 | J25: =-ROUND(Totaal!J59,0) -> 0 | K25: =-ROUND(Totaal!K59,0) -> 0 | L25: =-ROUND(Totaal!L59,0) -> 0 | M25: =-ROUND(Totaal!M59,0) -> 0 | N25: =-ROUND(Totaal!N59,0) -> 0 | O25: =-ROUND(Totaal!O59,0) -> 0 | P25: =-ROUND(Totaal!P59,0) -> 0 | Q25: =-ROUND(Totaal!Q59,0) -> 0 | R25: =-ROUND(Totaal!R59,0) -> 0 | S25: =-ROUND(Totaal!S59,0) -> 0 | T25: =-ROUND(Totaal!T59,0) -> 0 | U25: =-ROUND(Totaal!U59,0) -> 0 | V25: =-ROUND(Totaal!V59,0) -> 0 | W25: =-ROUND(Totaal!W59,0) -> 0 | X25: =-ROUND(Totaal!X59,0) -> 0 | Y25: =-ROUND(Totaal!Y59,0) -> 0 | Z25: =-ROUND(Totaal!Z59,0) -> 0 | AA25: =-ROUND(Totaal!AA59,0) -> 0 | AB25: =-ROUND(Totaal!AB59,0) -> 0
A27: inkomsten | B27: =IFERROR(OFFSET(Totaal!$B$13,HLOOKUP($I$2,Totaal!$BR$10:$CH$30,ROW(A27)-25,FALSE),COLUMN(B26)-2),"") -> Besparing levering saldering | C27: =ROUND(IFERROR(OFFSET(Totaal!$B$13,HLOOKUP($I$2,Totaal!$BR$10:$CH$30,ROW(B27)-25,FALSE),COLUMN(C26)-2),0),0) -> 0 | D27: =ROUND(IFERROR(OFFSET(Totaal!$B$13,HLOOKUP($I$2,Totaal!$BR$10:$CH$30,ROW(C27)-25,FALSE),COLUMN(D26)-2),0),0) -> 0 | E27: =ROUND(IFERROR(OFFSET(Totaal!$B$13,HLOOKUP($I$2,Totaal!$BR$10:$CH$30,ROW(D27)-25,FALSE),COLUMN(E26)-2),0),0) -> 0 | F27: =ROUND(IFERROR(OFFSET(Totaal!$B$13,HLOOKUP($I$2,Totaal!$BR$10:$CH$30,ROW(E27)-25,FALSE),COLUMN(F26)-2),0),0) -> 0 | G27: =ROUND(IFERROR(OFFSET(Totaal!$B$13,HLOOKUP($I$2,Totaal!$BR$10:$CH$30,ROW(F27)-25,FALSE),COLUMN(G26)-2),0),0) -> 0 | H27: =ROUND(IFERROR(OFFSET(Totaal!$B$13,HLOOKUP($I$2,Totaal!$BR$10:$CH$30,ROW(G27)-25,FALSE),COLUMN(H26)-2),0),0) -> 0 | I27: =ROUND(IFERROR(OFFSET(Totaal!$B$13,HLOOKUP($I$2,Totaal!$BR$10:$CH$30,ROW(H27)-25,FALSE),COLUMN(I26)-2),0),0) -> 0 | J27: =ROUND(IFERROR(OFFSET(Totaal!$B$13,HLOOKUP($I$2,Totaal!$BR$10:$CH$30,ROW(I27)-25,FALSE),COLUMN(J26)-2),0),0) -> 0 | K27: =ROUND(IFERROR(OFFSET(Totaal!$B$13,HLOOKUP($I$2,Totaal!$BR$10:$CH$30,ROW(J27)-25,FALSE),COLUMN(K26)-2),0),0) -> 0 | L27: =ROUND(IFERROR(OFFSET(Totaal!$B$13,HLOOKUP($I$2,Totaal!$BR$10:$CH$30,ROW(K27)-25,FALSE),COLUMN(L26)-2),0),0) -> 0 | M27: =ROUND(IFERROR(OFFSET(Totaal!$B$13,HLOOKUP($I$2,Totaal!$BR$10:$CH$30,ROW(L27)-25,FALSE),COLUMN(M26)-2),0),0) -> 0 | N27: =ROUND(IFERROR(OFFSET(Totaal!$B$13,HLOOKUP($I$2,Totaal!$BR$10:$CH$30,ROW(M27)-25,FALSE),COLUMN(N26)-2),0),0) -> 0 | O27: =ROUND(IFERROR(OFFSET(Totaal!$B$13,HLOOKUP($I$2,Totaal!$BR$10:$CH$30,ROW(N27)-25,FALSE),COLUMN(O26)-2),0),0) -> 0 | P27: =ROUND(IFERROR(OFFSET(Totaal!$B$13,HLOOKUP($I$2,Totaal!$BR$10:$CH$30,ROW(O27)-25,FALSE),COLUMN(P26)-2),0),0) -> 0 | Q27: =ROUND(IFERROR(OFFSET(Totaal!$B$13,HLOOKUP($I$2,Totaal!$BR$10:$CH$30,ROW(P27)-25,FALSE),COLUMN(Q26)-2),0),0) -> 0 | R27: =ROUND(IFERROR(OFFSET(Totaal!$B$13,HLOOKUP($I$2,Totaal!$BR$10:$CH$30,ROW(Q27)-25,FALSE),COLUMN(R26)-2),0),0) -> 0 | S27: =ROUND(IFERROR(OFFSET(Totaal!$B$13,HLOOKUP($I$2,Totaal!$BR$10:$CH$30,ROW(R27)-25,FALSE),COLUMN(S26)-2),0),0) -> 0 | T27: =ROUND(IFERROR(OFFSET(Totaal!$B$13,HLOOKUP($I$2,Totaal!$BR$10:$CH$30,ROW(S27)-25,FALSE),COLUMN(T26)-2),0),0) -> 0 | U27: =ROUND(IFERROR(OFFSET(Totaal!$B$13,HLOOKUP($I$2,Totaal!$BR$10:$CH$30,ROW(T27)-25,FALSE),COLUMN(U26)-2),0),0) -> 0 | V27: =ROUND(IFERROR(OFFSET(Totaal!$B$13,HLOOKUP($I$2,Totaal!$BR$10:$CH$30,ROW(U27)-25,FALSE),COLUMN(V26)-2),0),0) -> 0 | W27: =ROUND(IFERROR(OFFSET(Totaal!$B$13,HLOOKUP($I$2,Totaal!$BR$10:$CH$30,ROW(V27)-25,FALSE),COLUMN(W26)-2),0),0) -> 0 | X27: =ROUND(IFERROR(OFFSET(Totaal!$B$13,HLOOKUP($I$2,Totaal!$BR$10:$CH$30,ROW(W27)-25,FALSE),COLUMN(X26)-2),0),0) -> 0 | Y27: =ROUND(IFERROR(OFFSET(Totaal!$B$13,HLOOKUP($I$2,Totaal!$BR$10:$CH$30,ROW(X27)-25,FALSE),COLUMN(Y26)-2),0),0) -> 0 | Z27: =ROUND(IFERROR(OFFSET(Totaal!$B$13,HLOOKUP($I$2,Totaal!$BR$10:$CH$30,ROW(Y27)-25,FALSE),COLUMN(Z26)-2),0),0) -> 0 | AA27: =ROUND(IFERROR(OFFSET(Totaal!$B$13,HLOOKUP($I$2,Totaal!$BR$10:$CH$30,ROW(Z27)-25,FALSE),COLUMN(AA26)-2),0),0) -> 0 | AB27: =ROUND(IFERROR(OFFSET(Totaal!$B$13,HLOOKUP($I$2,Totaal!$BR$10:$CH$30,ROW(AA27)-25,FALSE),COLUMN(AB26)-2),0),0) -> 0
B28: =IFERROR(OFFSET(Totaal!$B$13,HLOOKUP($I$2,Totaal!$BR$10:$CH$30,ROW(A28)-25,FALSE),COLUMN(B27)-2),"") -> Besparing EB saldering | C28: =ROUND(IFERROR(OFFSET(Totaal!$B$13,HLOOKUP($I$2,Totaal!$BR$10:$CH$30,ROW(B28)-25,FALSE),COLUMN(C27)-2),0),0) -> 0 | D28: =ROUND(IFERROR(OFFSET(Totaal!$B$13,HLOOKUP($I$2,Totaal!$BR$10:$CH$30,ROW(C28)-25,FALSE),COLUMN(D27)-2),0),0) -> 0 | E28: =ROUND(IFERROR(OFFSET(Totaal!$B$13,HLOOKUP($I$2,Totaal!$BR$10:$CH$30,ROW(D28)-25,FALSE),COLUMN(E27)-2),0),0) -> 0 | F28: =ROUND(IFERROR(OFFSET(Totaal!$B$13,HLOOKUP($I$2,Totaal!$BR$10:$CH$30,ROW(E28)-25,FALSE),COLUMN(F27)-2),0),0) -> 0 | G28: =ROUND(IFERROR(OFFSET(Totaal!$B$13,HLOOKUP($I$2,Totaal!$BR$10:$CH$30,ROW(F28)-25,FALSE),COLUMN(G27)-2),0),0) -> 0 | H28: =ROUND(IFERROR(OFFSET(Totaal!$B$13,HLOOKUP($I$2,Totaal!$BR$10:$CH$30,ROW(G28)-25,FALSE),COLUMN(H27)-2),0),0) -> 0 | I28: =ROUND(IFERROR(OFFSET(Totaal!$B$13,HLOOKUP($I$2,Totaal!$BR$10:$CH$30,ROW(H28)-25,FALSE),COLUMN(I27)-2),0),0) -> 0 | J28: =ROUND(IFERROR(OFFSET(Totaal!$B$13,HLOOKUP($I$2,Totaal!$BR$10:$CH$30,ROW(I28)-25,FALSE),COLUMN(J27)-2),0),0) -> 0 | K28: =ROUND(IFERROR(OFFSET(Totaal!$B$13,HLOOKUP($I$2,Totaal!$BR$10:$CH$30,ROW(J28)-25,FALSE),COLUMN(K27)-2),0),0) -> 0 | L28: =ROUND(IFERROR(OFFSET(Totaal!$B$13,HLOOKUP($I$2,Totaal!$BR$10:$CH$30,ROW(K28)-25,FALSE),COLUMN(L27)-2),0),0) -> 0 | M28: =ROUND(IFERROR(OFFSET(Totaal!$B$13,HLOOKUP($I$2,Totaal!$BR$10:$CH$30,ROW(L28)-25,FALSE),COLUMN(M27)-2),0),0) -> 0 | N28: =ROUND(IFERROR(OFFSET(Totaal!$B$13,HLOOKUP($I$2,Totaal!$BR$10:$CH$30,ROW(M28)-25,FALSE),COLUMN(N27)-2),0),0) -> 0 | O28: =ROUND(IFERROR(OFFSET(Totaal!$B$13,HLOOKUP($I$2,Totaal!$BR$10:$CH$30,ROW(N28)-25,FALSE),COLUMN(O27)-2),0),0) -> 0 | P28: =ROUND(IFERROR(OFFSET(Totaal!$B$13,HLOOKUP($I$2,Totaal!$BR$10:$CH$30,ROW(O28)-25,FALSE),COLUMN(P27)-2),0),0) -> 0 | Q28: =ROUND(IFERROR(OFFSET(Totaal!$B$13,HLOOKUP($I$2,Totaal!$BR$10:$CH$30,ROW(P28)-25,FALSE),COLUMN(Q27)-2),0),0) -> 0 | R28: =ROUND(IFERROR(OFFSET(Totaal!$B$13,HLOOKUP($I$2,Totaal!$BR$10:$CH$30,ROW(Q28)-25,FALSE),COLUMN(R27)-2),0),0) -> 0 | S28: =ROUND(IFERROR(OFFSET(Totaal!$B$13,HLOOKUP($I$2,Totaal!$BR$10:$CH$30,ROW(R28)-25,FALSE),COLUMN(S27)-2),0),0) -> 0 | T28: =ROUND(IFERROR(OFFSET(Totaal!$B$13,HLOOKUP($I$2,Totaal!$BR$10:$CH$30,ROW(S28)-25,FALSE),COLUMN(T27)-2),0),0) -> 0 | U28: =ROUND(IFERROR(OFFSET(Totaal!$B$13,HLOOKUP($I$2,Totaal!$BR$10:$CH$30,ROW(T28)-25,FALSE),COLUMN(U27)-2),0),0) -> 0 | V28: =ROUND(IFERROR(OFFSET(Totaal!$B$13,HLOOKUP($I$2,Totaal!$BR$10:$CH$30,ROW(U28)-25,FALSE),COLUMN(V27)-2),0),0) -> 0 | W28: =ROUND(IFERROR(OFFSET(Totaal!$B$13,HLOOKUP($I$2,Totaal!$BR$10:$CH$30,ROW(V28)-25,FALSE),COLUMN(W27)-2),0),0) -> 0 | X28: =ROUND(IFERROR(OFFSET(Totaal!$B$13,HLOOKUP($I$2,Totaal!$BR$10:$CH$30,ROW(W28)-25,FALSE),COLUMN(X27)-2),0),0) -> 0 | Y28: =ROUND(IFERROR(OFFSET(Totaal!$B$13,HLOOKUP($I$2,Totaal!$BR$10:$CH$30,ROW(X28)-25,FALSE),COLUMN(Y27)-2),0),0) -> 0 | Z28: =ROUND(IFERROR(OFFSET(Totaal!$B$13,HLOOKUP($I$2,Totaal!$BR$10:$CH$30,ROW(Y28)-25,FALSE),COLUMN(Z27)-2),0),0) -> 0 | AA28: =ROUND(IFERROR(OFFSET(Totaal!$B$13,HLOOKUP($I$2,Totaal!$BR$10:$CH$30,ROW(Z28)-25,FALSE),COLUMN(AA27)-2),0),0) -> 0 | AB28: =ROUND(IFERROR(OFFSET(Totaal!$B$13,HLOOKUP($I$2,Totaal!$BR$10:$CH$30,ROW(AA28)-25,FALSE),COLUMN(AB27)-2),0),0) -> 0
B29: =IFERROR(OFFSET(Totaal!$B$13,HLOOKUP($I$2,Totaal!$BR$10:$CH$30,ROW(A29)-25,FALSE),COLUMN(B28)-2),"") -> Verkoop reststroom saldering | C29: =ROUND(IFERROR(OFFSET(Totaal!$B$13,HLOOKUP($I$2,Totaal!$BR$10:$CH$30,ROW(B29)-25,FALSE),COLUMN(C28)-2),0),0) -> 0 | D29: =ROUND(IFERROR(OFFSET(Totaal!$B$13,HLOOKUP($I$2,Totaal!$BR$10:$CH$30,ROW(C29)-25,FALSE),COLUMN(D28)-2),0),0) -> 5334 | E29: =ROUND(IFERROR(OFFSET(Totaal!$B$13,HLOOKUP($I$2,Totaal!$BR$10:$CH$30,ROW(D29)-25,FALSE),COLUMN(E28)-2),0),0) -> 5297 | F29: =ROUND(IFERROR(OFFSET(Totaal!$B$13,HLOOKUP($I$2,Totaal!$BR$10:$CH$30,ROW(E29)-25,FALSE),COLUMN(F28)-2),0),0) -> 5260 | G29: =ROUND(IFERROR(OFFSET(Totaal!$B$13,HLOOKUP($I$2,Totaal!$BR$10:$CH$30,ROW(F29)-25,FALSE),COLUMN(G28)-2),0),0) -> 5223 | H29: =ROUND(IFERROR(OFFSET(Totaal!$B$13,HLOOKUP($I$2,Totaal!$BR$10:$CH$30,ROW(G29)-25,FALSE),COLUMN(H28)-2),0),0) -> 5186 | I29: =ROUND(IFERROR(OFFSET(Totaal!$B$13,HLOOKUP($I$2,Totaal!$BR$10:$CH$30,ROW(H29)-25,FALSE),COLUMN(I28)-2),0),0) -> 5150 | J29: =ROUND(IFERROR(OFFSET(Totaal!$B$13,HLOOKUP($I$2,Totaal!$BR$10:$CH$30,ROW(I29)-25,FALSE),COLUMN(J28)-2),0),0) -> 5114 | K29: =ROUND(IFERROR(OFFSET(Totaal!$B$13,HLOOKUP($I$2,Totaal!$BR$10:$CH$30,ROW(J29)-25,FALSE),COLUMN(K28)-2),0),0) -> 5078 | L29: =ROUND(IFERROR(OFFSET(Totaal!$B$13,HLOOKUP($I$2,Totaal!$BR$10:$CH$30,ROW(K29)-25,FALSE),COLUMN(L28)-2),0),0) -> 5043 | M29: =ROUND(IFERROR(OFFSET(Totaal!$B$13,HLOOKUP($I$2,Totaal!$BR$10:$CH$30,ROW(L29)-25,FALSE),COLUMN(M28)-2),0),0) -> 5007 | N29: =ROUND(IFERROR(OFFSET(Totaal!$B$13,HLOOKUP($I$2,Totaal!$BR$10:$CH$30,ROW(M29)-25,FALSE),COLUMN(N28)-2),0),0) -> 4972 | O29: =ROUND(IFERROR(OFFSET(Totaal!$B$13,HLOOKUP($I$2,Totaal!$BR$10:$CH$30,ROW(N29)-25,FALSE),COLUMN(O28)-2),0),0) -> 4938 | P29: =ROUND(IFERROR(OFFSET(Totaal!$B$13,HLOOKUP($I$2,Totaal!$BR$10:$CH$30,ROW(O29)-25,FALSE),COLUMN(P28)-2),0),0) -> 4903 | Q29: =ROUND(IFERROR(OFFSET(Totaal!$B$13,HLOOKUP($I$2,Totaal!$BR$10:$CH$30,ROW(P29)-25,FALSE),COLUMN(Q28)-2),0),0) -> 4869 | R29: =ROUND(IFERROR(OFFSET(Totaal!$B$13,HLOOKUP($I$2,Totaal!$BR$10:$CH$30,ROW(Q29)-25,FALSE),COLUMN(R28)-2),0),0) -> 4835 | S29: =ROUND(IFERROR(OFFSET(Totaal!$B$13,HLOOKUP($I$2,Totaal!$BR$10:$CH$30,ROW(R29)-25,FALSE),COLUMN(S28)-2),0),0) -> 4801 | T29: =ROUND(IFERROR(OFFSET(Totaal!$B$13,HLOOKUP($I$2,Totaal!$BR$10:$CH$30,ROW(S29)-25,FALSE),COLUMN(T28)-2),0),0) -> 4767 | U29: =ROUND(IFERROR(OFFSET(Totaal!$B$13,HLOOKUP($I$2,Totaal!$BR$10:$CH$30,ROW(T29)-25,FALSE),COLUMN(U28)-2),0),0) -> 4734 | V29: =ROUND(IFERROR(OFFSET(Totaal!$B$13,HLOOKUP($I$2,Totaal!$BR$10:$CH$30,ROW(U29)-25,FALSE),COLUMN(V28)-2),0),0) -> 4701 | W29: =ROUND(IFERROR(OFFSET(Totaal!$B$13,HLOOKUP($I$2,Totaal!$BR$10:$CH$30,ROW(V29)-25,FALSE),COLUMN(W28)-2),0),0) -> 4668 | X29: =ROUND(IFERROR(OFFSET(Totaal!$B$13,HLOOKUP($I$2,Totaal!$BR$10:$CH$30,ROW(W29)-25,FALSE),COLUMN(X28)-2),0),0) -> 4635 | Y29: =ROUND(IFERROR(OFFSET(Totaal!$B$13,HLOOKUP($I$2,Totaal!$BR$10:$CH$30,ROW(X29)-25,FALSE),COLUMN(Y28)-2),0),0) -> 4603 | Z29: =ROUND(IFERROR(OFFSET(Totaal!$B$13,HLOOKUP($I$2,Totaal!$BR$10:$CH$30,ROW(Y29)-25,FALSE),COLUMN(Z28)-2),0),0) -> 4570 | AA29: =ROUND(IFERROR(OFFSET(Totaal!$B$13,HLOOKUP($I$2,Totaal!$BR$10:$CH$30,ROW(Z29)-25,FALSE),COLUMN(AA28)-2),0),0) -> 4538 | AB29: =ROUND(IFERROR(OFFSET(Totaal!$B$13,HLOOKUP($I$2,Totaal!$BR$10:$CH$30,ROW(AA29)-25,FALSE),COLUMN(AB28)-2),0),0) -> 4507
B30: =IFERROR(OFFSET(Totaal!$B$13,HLOOKUP($I$2,Totaal!$BR$10:$CH$30,ROW(A30)-25,FALSE),COLUMN(B29)-2),"") -> Zelflevering | C30: =ROUND(IFERROR(OFFSET(Totaal!$B$13,HLOOKUP($I$2,Totaal!$BR$10:$CH$30,ROW(B30)-25,FALSE),COLUMN(C29)-2),0),0) -> 0 | D30: =ROUND(IFERROR(OFFSET(Totaal!$B$13,HLOOKUP($I$2,Totaal!$BR$10:$CH$30,ROW(C30)-25,FALSE),COLUMN(D29)-2),0),0) -> 0 | E30: =ROUND(IFERROR(OFFSET(Totaal!$B$13,HLOOKUP($I$2,Totaal!$BR$10:$CH$30,ROW(D30)-25,FALSE),COLUMN(E29)-2),0),0) -> 0 | F30: =ROUND(IFERROR(OFFSET(Totaal!$B$13,HLOOKUP($I$2,Totaal!$BR$10:$CH$30,ROW(E30)-25,FALSE),COLUMN(F29)-2),0),0) -> 0 | G30: =ROUND(IFERROR(OFFSET(Totaal!$B$13,HLOOKUP($I$2,Totaal!$BR$10:$CH$30,ROW(F30)-25,FALSE),COLUMN(G29)-2),0),0) -> 0 | H30: =ROUND(IFERROR(OFFSET(Totaal!$B$13,HLOOKUP($I$2,Totaal!$BR$10:$CH$30,ROW(G30)-25,FALSE),COLUMN(H29)-2),0),0) -> 0 | I30: =ROUND(IFERROR(OFFSET(Totaal!$B$13,HLOOKUP($I$2,Totaal!$BR$10:$CH$30,ROW(H30)-25,FALSE),COLUMN(I29)-2),0),0) -> 0 | J30: =ROUND(IFERROR(OFFSET(Totaal!$B$13,HLOOKUP($I$2,Totaal!$BR$10:$CH$30,ROW(I30)-25,FALSE),COLUMN(J29)-2),0),0) -> 0 | K30: =ROUND(IFERROR(OFFSET(Totaal!$B$13,HLOOKUP($I$2,Totaal!$BR$10:$CH$30,ROW(J30)-25,FALSE),COLUMN(K29)-2),0),0) -> 0 | L30: =ROUND(IFERROR(OFFSET(Totaal!$B$13,HLOOKUP($I$2,Totaal!$BR$10:$CH$30,ROW(K30)-25,FALSE),COLUMN(L29)-2),0),0) -> 0 | M30: =ROUND(IFERROR(OFFSET(Totaal!$B$13,HLOOKUP($I$2,Totaal!$BR$10:$CH$30,ROW(L30)-25,FALSE),COLUMN(M29)-2),0),0) -> 0 | N30: =ROUND(IFERROR(OFFSET(Totaal!$B$13,HLOOKUP($I$2,Totaal!$BR$10:$CH$30,ROW(M30)-25,FALSE),COLUMN(N29)-2),0),0) -> 0 | O30: =ROUND(IFERROR(OFFSET(Totaal!$B$13,HLOOKUP($I$2,Totaal!$BR$10:$CH$30,ROW(N30)-25,FALSE),COLUMN(O29)-2),0),0) -> 0 | P30: =ROUND(IFERROR(OFFSET(Totaal!$B$13,HLOOKUP($I$2,Totaal!$BR$10:$CH$30,ROW(O30)-25,FALSE),COLUMN(P29)-2),0),0) -> 0 | Q30: =ROUND(IFERROR(OFFSET(Totaal!$B$13,HLOOKUP($I$2,Totaal!$BR$10:$CH$30,ROW(P30)-25,FALSE),COLUMN(Q29)-2),0),0) -> 0 | R30: =ROUND(IFERROR(OFFSET(Totaal!$B$13,HLOOKUP($I$2,Totaal!$BR$10:$CH$30,ROW(Q30)-25,FALSE),COLUMN(R29)-2),0),0) -> 0 | S30: =ROUND(IFERROR(OFFSET(Totaal!$B$13,HLOOKUP($I$2,Totaal!$BR$10:$CH$30,ROW(R30)-25,FALSE),COLUMN(S29)-2),0),0) -> 0 | T30: =ROUND(IFERROR(OFFSET(Totaal!$B$13,HLOOKUP($I$2,Totaal!$BR$10:$CH$30,ROW(S30)-25,FALSE),COLUMN(T29)-2),0),0) -> 0 | U30: =ROUND(IFERROR(OFFSET(Totaal!$B$13,HLOOKUP($I$2,Totaal!$BR$10:$CH$30,ROW(T30)-25,FALSE),COLUMN(U29)-2),0),0) -> 0 | V30: =ROUND(IFERROR(OFFSET(Totaal!$B$13,HLOOKUP($I$2,Totaal!$BR$10:$CH$30,ROW(U30)-25,FALSE),COLUMN(V29)-2),0),0) -> 0 | W30: =ROUND(IFERROR(OFFSET(Totaal!$B$13,HLOOKUP($I$2,Totaal!$BR$10:$CH$30,ROW(V30)-25,FALSE),COLUMN(W29)-2),0),0) -> 0 | X30: =ROUND(IFERROR(OFFSET(Totaal!$B$13,HLOOKUP($I$2,Totaal!$BR$10:$CH$30,ROW(W30)-25,FALSE),COLUMN(X29)-2),0),0) -> 0 | Y30: =ROUND(IFERROR(OFFSET(Totaal!$B$13,HLOOKUP($I$2,Totaal!$BR$10:$CH$30,ROW(X30)-25,FALSE),COLUMN(Y29)-2),0),0) -> 0 | Z30: =ROUND(IFERROR(OFFSET(Totaal!$B$13,HLOOKUP($I$2,Totaal!$BR$10:$CH$30,ROW(Y30)-25,FALSE),COLUMN(Z29)-2),0),0) -> 0 | AA30: =ROUND(IFERROR(OFFSET(Totaal!$B$13,HLOOKUP($I$2,Totaal!$BR$10:$CH$30,ROW(Z30)-25,FALSE),COLUMN(AA29)-2),0),0) -> 0 | AB30: =ROUND(IFERROR(OFFSET(Totaal!$B$13,HLOOKUP($I$2,Totaal!$BR$10:$CH$30,ROW(AA30)-25,FALSE),COLUMN(AB29)-2),0),0) -> 0
B31: =IFERROR(OFFSET(Totaal!$B$13,HLOOKUP($I$2,Totaal!$BR$10:$CH$30,ROW(A31)-25,FALSE),COLUMN(B30)-2),"") ->  | C31: =IFERROR(OFFSET(Totaal!$B$13,HLOOKUP($I$2,Totaal!$BR$10:$CH$30,ROW(B31)-25,FALSE),COLUMN(C30)-2),"") ->  | D31: =IFERROR(OFFSET(Totaal!$B$13,HLOOKUP($I$2,Totaal!$BR$10:$CH$30,ROW(C31)-25,FALSE),COLUMN(D30)-2),"") ->  | E31: =IFERROR(OFFSET(Totaal!$B$13,HLOOKUP($I$2,Totaal!$BR$10:$CH$30,ROW(D31)-25,FALSE),COLUMN(E30)-2),"") ->  | F31: =IFERROR(OFFSET(Totaal!$B$13,HLOOKUP($I$2,Totaal!$BR$10:$CH$30,ROW(E31)-25,FALSE),COLUMN(F30)-2),"") ->  | G31: =IFERROR(OFFSET(Totaal!$B$13,HLOOKUP($I$2,Totaal!$BR$10:$CH$30,ROW(F31)-25,FALSE),COLUMN(G30)-2),"") ->  | H31: =IFERROR(OFFSET(Totaal!$B$13,HLOOKUP($I$2,Totaal!$BR$10:$CH$30,ROW(G31)-25,FALSE),COLUMN(H30)-2),"") ->  | I31: =IFERROR(OFFSET(Totaal!$B$13,HLOOKUP($I$2,Totaal!$BR$10:$CH$30,ROW(H31)-25,FALSE),COLUMN(I30)-2),"") ->  | J31: =IFERROR(OFFSET(Totaal!$B$13,HLOOKUP($I$2,Totaal!$BR$10:$CH$30,ROW(I31)-25,FALSE),COLUMN(J30)-2),"") ->  | K31: =IFERROR(OFFSET(Totaal!$B$13,HLOOKUP($I$2,Totaal!$BR$10:$CH$30,ROW(J31)-25,FALSE),COLUMN(K30)-2),"") ->  | L31: =IFERROR(OFFSET(Totaal!$B$13,HLOOKUP($I$2,Totaal!$BR$10:$CH$30,ROW(K31)-25,FALSE),COLUMN(L30)-2),"") ->  | M31: =IFERROR(OFFSET(Totaal!$B$13,HLOOKUP($I$2,Totaal!$BR$10:$CH$30,ROW(L31)-25,FALSE),COLUMN(M30)-2),"") ->  | N31: =IFERROR(OFFSET(Totaal!$B$13,HLOOKUP($I$2,Totaal!$BR$10:$CH$30,ROW(M31)-25,FALSE),COLUMN(N30)-2),"") ->  | O31: =IFERROR(OFFSET(Totaal!$B$13,HLOOKUP($I$2,Totaal!$BR$10:$CH$30,ROW(N31)-25,FALSE),COLUMN(O30)-2),"") ->  | P31: =IFERROR(OFFSET(Totaal!$B$13,HLOOKUP($I$2,Totaal!$BR$10:$CH$30,ROW(O31)-25,FALSE),COLUMN(P30)-2),"") ->  | Q31: =IFERROR(OFFSET(Totaal!$B$13,HLOOKUP($I$2,Totaal!$BR$10:$CH$30,ROW(P31)-25,FALSE),COLUMN(Q30)-2),"") ->  | R31: =IFERROR(OFFSET(Totaal!$B$13,HLOOKUP($I$2,Totaal!$BR$10:$CH$30,ROW(Q31)-25,FALSE),COLUMN(R30)-2),"") ->  | S31: =IFERROR(OFFSET(Totaal!$B$13,HLOOKUP($I$2,Totaal!$BR$10:$CH$30,ROW(R31)-25,FALSE),COLUMN(S30)-2),"") ->  | T31: =IFERROR(OFFSET(Totaal!$B$13,HLOOKUP($I$2,Totaal!$BR$10:$CH$30,ROW(S31)-25,FALSE),COLUMN(T30)-2),"") ->  | U31: =IFERROR(OFFSET(Totaal!$B$13,HLOOKUP($I$2,Totaal!$BR$10:$CH$30,ROW(T31)-25,FALSE),COLUMN(U30)-2),"") ->  | V31: =IFERROR(OFFSET(Totaal!$B$13,HLOOKUP($I$2,Totaal!$BR$10:$CH$30,ROW(U31)-25,FALSE),COLUMN(V30)-2),"") ->  | W31: =IFERROR(OFFSET(Totaal!$B$13,HLOOKUP($I$2,Totaal!$BR$10:$CH$30,ROW(V31)-25,FALSE),COLUMN(W30)-2),"") ->  | X31: =IFERROR(OFFSET(Totaal!$B$13,HLOOKUP($I$2,Totaal!$BR$10:$CH$30,ROW(W31)-25,FALSE),COLUMN(X30)-2),"") -> 0 | Y31: =IFERROR(OFFSET(Totaal!$B$13,HLOOKUP($I$2,Totaal!$BR$10:$CH$30,ROW(X31)-25,FALSE),COLUMN(Y30)-2),"") -> 0 | Z31: =IFERROR(OFFSET(Totaal!$B$13,HLOOKUP($I$2,Totaal!$BR$10:$CH$30,ROW(Y31)-25,FALSE),COLUMN(Z30)-2),"") -> 0 | AA31: =IFERROR(OFFSET(Totaal!$B$13,HLOOKUP($I$2,Totaal!$BR$10:$CH$30,ROW(Z31)-25,FALSE),COLUMN(AA30)-2),"") -> 0 | AB31: =IFERROR(OFFSET(Totaal!$B$13,HLOOKUP($I$2,Totaal!$BR$10:$CH$30,ROW(AA31)-25,FALSE),COLUMN(AB30)-2),"") -> 0
B32: =IFERROR(OFFSET(Totaal!$B$13,HLOOKUP($I$2,Totaal!$BR$10:$CH$30,ROW(A32)-25,FALSE),COLUMN(B31)-2),"") ->  | C32: =IFERROR(OFFSET(Totaal!$B$13,HLOOKUP($I$2,Totaal!$BR$10:$CH$30,ROW(B32)-25,FALSE),COLUMN(C31)-2),"") ->  | D32: =IFERROR(OFFSET(Totaal!$B$13,HLOOKUP($I$2,Totaal!$BR$10:$CH$30,ROW(C32)-25,FALSE),COLUMN(D31)-2),"") ->  | E32: =IFERROR(OFFSET(Totaal!$B$13,HLOOKUP($I$2,Totaal!$BR$10:$CH$30,ROW(D32)-25,FALSE),COLUMN(E31)-2),"") ->  | F32: =IFERROR(OFFSET(Totaal!$B$13,HLOOKUP($I$2,Totaal!$BR$10:$CH$30,ROW(E32)-25,FALSE),COLUMN(F31)-2),"") ->  | G32: =IFERROR(OFFSET(Totaal!$B$13,HLOOKUP($I$2,Totaal!$BR$10:$CH$30,ROW(F32)-25,FALSE),COLUMN(G31)-2),"") ->  | H32: =IFERROR(OFFSET(Totaal!$B$13,HLOOKUP($I$2,Totaal!$BR$10:$CH$30,ROW(G32)-25,FALSE),COLUMN(H31)-2),"") ->  | I32: =IFERROR(OFFSET(Totaal!$B$13,HLOOKUP($I$2,Totaal!$BR$10:$CH$30,ROW(H32)-25,FALSE),COLUMN(I31)-2),"") ->  | J32: =IFERROR(OFFSET(Totaal!$B$13,HLOOKUP($I$2,Totaal!$BR$10:$CH$30,ROW(I32)-25,FALSE),COLUMN(J31)-2),"") ->  | K32: =IFERROR(OFFSET(Totaal!$B$13,HLOOKUP($I$2,Totaal!$BR$10:$CH$30,ROW(J32)-25,FALSE),COLUMN(K31)-2),"") ->  | L32: =IFERROR(OFFSET(Totaal!$B$13,HLOOKUP($I$2,Totaal!$BR$10:$CH$30,ROW(K32)-25,FALSE),COLUMN(L31)-2),"") ->  | M32: =IFERROR(OFFSET(Totaal!$B$13,HLOOKUP($I$2,Totaal!$BR$10:$CH$30,ROW(L32)-25,FALSE),COLUMN(M31)-2),"") ->  | N32: =IFERROR(OFFSET(Totaal!$B$13,HLOOKUP($I$2,Totaal!$BR$10:$CH$30,ROW(M32)-25,FALSE),COLUMN(N31)-2),"") ->  | O32: =IFERROR(OFFSET(Totaal!$B$13,HLOOKUP($I$2,Totaal!$BR$10:$CH$30,ROW(N32)-25,FALSE),COLUMN(O31)-2),"") ->  | P32: =IFERROR(OFFSET(Totaal!$B$13,HLOOKUP($I$2,Totaal!$BR$10:$CH$30,ROW(O32)-25,FALSE),COLUMN(P31)-2),"") ->  | Q32: =IFERROR(OFFSET(Totaal!$B$13,HLOOKUP($I$2,Totaal!$BR$10:$CH$30,ROW(P32)-25,FALSE),COLUMN(Q31)-2),"") ->  | R32: =IFERROR(OFFSET(Totaal!$B$13,HLOOKUP($I$2,Totaal!$BR$10:$CH$30,ROW(Q32)-25,FALSE),COLUMN(R31)-2),"") ->  | S32: =IFERROR(OFFSET(Totaal!$B$13,HLOOKUP($I$2,Totaal!$BR$10:$CH$30,ROW(R32)-25,FALSE),COLUMN(S31)-2),"") ->  | T32: =IFERROR(OFFSET(Totaal!$B$13,HLOOKUP($I$2,Totaal!$BR$10:$CH$30,ROW(S32)-25,FALSE),COLUMN(T31)-2),"") ->  | U32: =IFERROR(OFFSET(Totaal!$B$13,HLOOKUP($I$2,Totaal!$BR$10:$CH$30,ROW(T32)-25,FALSE),COLUMN(U31)-2),"") ->  | V32: =IFERROR(OFFSET(Totaal!$B$13,HLOOKUP($I$2,Totaal!$BR$10:$CH$30,ROW(U32)-25,FALSE),COLUMN(V31)-2),"") ->  | W32: =IFERROR(OFFSET(Totaal!$B$13,HLOOKUP($I$2,Totaal!$BR$10:$CH$30,ROW(V32)-25,FALSE),COLUMN(W31)-2),"") ->  | X32: =IFERROR(OFFSET(Totaal!$B$13,HLOOKUP($I$2,Totaal!$BR$10:$CH$30,ROW(W32)-25,FALSE),COLUMN(X31)-2),"") ->  | Y32: =IFERROR(OFFSET(Totaal!$B$13,HLOOKUP($I$2,Totaal!$BR$10:$CH$30,ROW(X32)-25,FALSE),COLUMN(Y31)-2),"") ->  | Z32: =IFERROR(OFFSET(Totaal!$B$13,HLOOKUP($I$2,Totaal!$BR$10:$CH$30,ROW(Y32)-25,FALSE),COLUMN(Z31)-2),"") ->  | AA32: =IFERROR(OFFSET(Totaal!$B$13,HLOOKUP($I$2,Totaal!$BR$10:$CH$30,ROW(Z32)-25,FALSE),COLUMN(AA31)-2),"") ->  | AB32: =IFERROR(OFFSET(Totaal!$B$13,HLOOKUP($I$2,Totaal!$BR$10:$CH$30,ROW(AA32)-25,FALSE),COLUMN(AB31)-2),"") -> 
B33: =IFERROR(OFFSET(Totaal!$B$13,HLOOKUP($I$2,Totaal!$BR$10:$CH$30,ROW(A33)-25,FALSE),COLUMN(B32)-2),"") -> Saldo | C33: =ROUND(IFERROR(OFFSET(Totaal!$B$13,HLOOKUP($I$2,Totaal!$BR$10:$CH$30,ROW(B33)-25,FALSE),COLUMN(C32)-2),0),0) -> -114820 | D33: =ROUND(IFERROR(OFFSET(Totaal!$B$13,HLOOKUP($I$2,Totaal!$BR$10:$CH$30,ROW(C33)-25,FALSE),COLUMN(D32)-2),0),0) -> -6926 | E33: =ROUND(IFERROR(OFFSET(Totaal!$B$13,HLOOKUP($I$2,Totaal!$BR$10:$CH$30,ROW(D33)-25,FALSE),COLUMN(E32)-2),0),0) -> -6996 | F33: =ROUND(IFERROR(OFFSET(Totaal!$B$13,HLOOKUP($I$2,Totaal!$BR$10:$CH$30,ROW(E33)-25,FALSE),COLUMN(F32)-2),0),0) -> -7066 | G33: =ROUND(IFERROR(OFFSET(Totaal!$B$13,HLOOKUP($I$2,Totaal!$BR$10:$CH$30,ROW(F33)-25,FALSE),COLUMN(G32)-2),0),0) -> -7137 | H33: =ROUND(IFERROR(OFFSET(Totaal!$B$13,HLOOKUP($I$2,Totaal!$BR$10:$CH$30,ROW(G33)-25,FALSE),COLUMN(H32)-2),0),0) -> -7207 | I33: =ROUND(IFERROR(OFFSET(Totaal!$B$13,HLOOKUP($I$2,Totaal!$BR$10:$CH$30,ROW(H33)-25,FALSE),COLUMN(I32)-2),0),0) -> -7278 | J33: =ROUND(IFERROR(OFFSET(Totaal!$B$13,HLOOKUP($I$2,Totaal!$BR$10:$CH$30,ROW(I33)-25,FALSE),COLUMN(J32)-2),0),0) -> -7348 | K33: =ROUND(IFERROR(OFFSET(Totaal!$B$13,HLOOKUP($I$2,Totaal!$BR$10:$CH$30,ROW(J33)-25,FALSE),COLUMN(K32)-2),0),0) -> -7419 | L33: =ROUND(IFERROR(OFFSET(Totaal!$B$13,HLOOKUP($I$2,Totaal!$BR$10:$CH$30,ROW(K33)-25,FALSE),COLUMN(L32)-2),0),0) -> -7490 | M33: =ROUND(IFERROR(OFFSET(Totaal!$B$13,HLOOKUP($I$2,Totaal!$BR$10:$CH$30,ROW(L33)-25,FALSE),COLUMN(M32)-2),0),0) -> -7561 | N33: =ROUND(IFERROR(OFFSET(Totaal!$B$13,HLOOKUP($I$2,Totaal!$BR$10:$CH$30,ROW(M33)-25,FALSE),COLUMN(N32)-2),0),0) -> 1342 | O33: =ROUND(IFERROR(OFFSET(Totaal!$B$13,HLOOKUP($I$2,Totaal!$BR$10:$CH$30,ROW(N33)-25,FALSE),COLUMN(O32)-2),0),0) -> 1271 | P33: =ROUND(IFERROR(OFFSET(Totaal!$B$13,HLOOKUP($I$2,Totaal!$BR$10:$CH$30,ROW(O33)-25,FALSE),COLUMN(P32)-2),0),0) -> 1200 | Q33: =ROUND(IFERROR(OFFSET(Totaal!$B$13,HLOOKUP($I$2,Totaal!$BR$10:$CH$30,ROW(P33)-25,FALSE),COLUMN(Q32)-2),0),0) -> 1128 | R33: =ROUND(IFERROR(OFFSET(Totaal!$B$13,HLOOKUP($I$2,Totaal!$BR$10:$CH$30,ROW(Q33)-25,FALSE),COLUMN(R32)-2),0),0) -> 1057 | S33: =ROUND(IFERROR(OFFSET(Totaal!$B$13,HLOOKUP($I$2,Totaal!$BR$10:$CH$30,ROW(R33)-25,FALSE),COLUMN(S32)-2),0),0) -> -39821 | T33: =ROUND(IFERROR(OFFSET(Totaal!$B$13,HLOOKUP($I$2,Totaal!$BR$10:$CH$30,ROW(S33)-25,FALSE),COLUMN(T32)-2),0),0) -> 913 | U33: =ROUND(IFERROR(OFFSET(Totaal!$B$13,HLOOKUP($I$2,Totaal!$BR$10:$CH$30,ROW(T33)-25,FALSE),COLUMN(U32)-2),0),0) -> 841 | V33: =ROUND(IFERROR(OFFSET(Totaal!$B$13,HLOOKUP($I$2,Totaal!$BR$10:$CH$30,ROW(U33)-25,FALSE),COLUMN(V32)-2),0),0) -> 769 | W33: =ROUND(IFERROR(OFFSET(Totaal!$B$13,HLOOKUP($I$2,Totaal!$BR$10:$CH$30,ROW(V33)-25,FALSE),COLUMN(W32)-2),0),0) -> 697 | X33: =ROUND(IFERROR(OFFSET(Totaal!$B$13,HLOOKUP($I$2,Totaal!$BR$10:$CH$30,ROW(W33)-25,FALSE),COLUMN(X32)-2),0),0) -> 625 | Y33: =ROUND(IFERROR(OFFSET(Totaal!$B$13,HLOOKUP($I$2,Totaal!$BR$10:$CH$30,ROW(X33)-25,FALSE),COLUMN(Y32)-2),0),0) -> 552 | Z33: =ROUND(IFERROR(OFFSET(Totaal!$B$13,HLOOKUP($I$2,Totaal!$BR$10:$CH$30,ROW(Y33)-25,FALSE),COLUMN(Z32)-2),0),0) -> 480 | AA33: =ROUND(IFERROR(OFFSET(Totaal!$B$13,HLOOKUP($I$2,Totaal!$BR$10:$CH$30,ROW(Z33)-25,FALSE),COLUMN(AA32)-2),0),0) -> 407 | AB33: =ROUND(IFERROR(OFFSET(Totaal!$B$13,HLOOKUP($I$2,Totaal!$BR$10:$CH$30,ROW(AA33)-25,FALSE),COLUMN(AB32)-2),0),0) -> 334
B34: =IFERROR(OFFSET(Totaal!$B$13,HLOOKUP($I$2,Totaal!$BR$10:$CH$30,ROW(A34)-25,FALSE),COLUMN(B33)-2),"") -> KIA | C34: =ROUND(IFERROR(OFFSET(Totaal!$B$13,HLOOKUP($I$2,Totaal!$BR$10:$CH$30,ROW(B34)-25,FALSE),COLUMN(C33)-2),0),0) -> 0 | D34: =ROUND(IFERROR(OFFSET(Totaal!$B$13,HLOOKUP($I$2,Totaal!$BR$10:$CH$30,ROW(C34)-25,FALSE),COLUMN(D33)-2),0),0) -> 1827 | E34: =ROUND(IFERROR(OFFSET(Totaal!$B$13,HLOOKUP($I$2,Totaal!$BR$10:$CH$30,ROW(D34)-25,FALSE),COLUMN(E33)-2),0),0) -> 0 | F34: =ROUND(IFERROR(OFFSET(Totaal!$B$13,HLOOKUP($I$2,Totaal!$BR$10:$CH$30,ROW(E34)-25,FALSE),COLUMN(F33)-2),0),0) -> 0 | G34: =ROUND(IFERROR(OFFSET(Totaal!$B$13,HLOOKUP($I$2,Totaal!$BR$10:$CH$30,ROW(F34)-25,FALSE),COLUMN(G33)-2),0),0) -> 0 | H34: =ROUND(IFERROR(OFFSET(Totaal!$B$13,HLOOKUP($I$2,Totaal!$BR$10:$CH$30,ROW(G34)-25,FALSE),COLUMN(H33)-2),0),0) -> 0 | I34: =ROUND(IFERROR(OFFSET(Totaal!$B$13,HLOOKUP($I$2,Totaal!$BR$10:$CH$30,ROW(H34)-25,FALSE),COLUMN(I33)-2),0),0) -> 0 | J34: =ROUND(IFERROR(OFFSET(Totaal!$B$13,HLOOKUP($I$2,Totaal!$BR$10:$CH$30,ROW(I34)-25,FALSE),COLUMN(J33)-2),0),0) -> 0 | K34: =ROUND(IFERROR(OFFSET(Totaal!$B$13,HLOOKUP($I$2,Totaal!$BR$10:$CH$30,ROW(J34)-25,FALSE),COLUMN(K33)-2),0),0) -> 0 | L34: =ROUND(IFERROR(OFFSET(Totaal!$B$13,HLOOKUP($I$2,Totaal!$BR$10:$CH$30,ROW(K34)-25,FALSE),COLUMN(L33)-2),0),0) -> 0 | M34: =ROUND(IFERROR(OFFSET(Totaal!$B$13,HLOOKUP($I$2,Totaal!$BR$10:$CH$30,ROW(L34)-25,FALSE),COLUMN(M33)-2),0),0) -> 0 | N34: =ROUND(IFERROR(OFFSET(Totaal!$B$13,HLOOKUP($I$2,Totaal!$BR$10:$CH$30,ROW(M34)-25,FALSE),COLUMN(N33)-2),0),0) -> 0 | O34: =ROUND(IFERROR(OFFSET(Totaal!$B$13,HLOOKUP($I$2,Totaal!$BR$10:$CH$30,ROW(N34)-25,FALSE),COLUMN(O33)-2),0),0) -> 0 | P34: =ROUND(IFERROR(OFFSET(Totaal!$B$13,HLOOKUP($I$2,Totaal!$BR$10:$CH$30,ROW(O34)-25,FALSE),COLUMN(P33)-2),0),0) -> 0 | Q34: =ROUND(IFERROR(OFFSET(Totaal!$B$13,HLOOKUP($I$2,Totaal!$BR$10:$CH$30,ROW(P34)-25,FALSE),COLUMN(Q33)-2),0),0) -> 0 | R34: =ROUND(IFERROR(OFFSET(Totaal!$B$13,HLOOKUP($I$2,Totaal!$BR$10:$CH$30,ROW(Q34)-25,FALSE),COLUMN(R33)-2),0),0) -> 0 | S34: =ROUND(IFERROR(OFFSET(Totaal!$B$13,HLOOKUP($I$2,Totaal!$BR$10:$CH$30,ROW(R34)-25,FALSE),COLUMN(S33)-2),0),0) -> 0 | T34: =ROUND(IFERROR(OFFSET(Totaal!$B$13,HLOOKUP($I$2,Totaal!$BR$10:$CH$30,ROW(S34)-25,FALSE),COLUMN(T33)-2),0),0) -> 0 | U34: =ROUND(IFERROR(OFFSET(Totaal!$B$13,HLOOKUP($I$2,Totaal!$BR$10:$CH$30,ROW(T34)-25,FALSE),COLUMN(U33)-2),0),0) -> 0 | V34: =ROUND(IFERROR(OFFSET(Totaal!$B$13,HLOOKUP($I$2,Totaal!$BR$10:$CH$30,ROW(U34)-25,FALSE),COLUMN(V33)-2),0),0) -> 0 | W34: =ROUND(IFERROR(OFFSET(Totaal!$B$13,HLOOKUP($I$2,Totaal!$BR$10:$CH$30,ROW(V34)-25,FALSE),COLUMN(W33)-2),0),0) -> 0 | X34: =ROUND(IFERROR(OFFSET(Totaal!$B$13,HLOOKUP($I$2,Totaal!$BR$10:$CH$30,ROW(W34)-25,FALSE),COLUMN(X33)-2),0),0) -> 0 | Y34: =ROUND(IFERROR(OFFSET(Totaal!$B$13,HLOOKUP($I$2,Totaal!$BR$10:$CH$30,ROW(X34)-25,FALSE),COLUMN(Y33)-2),0),0) -> 0 | Z34: =ROUND(IFERROR(OFFSET(Totaal!$B$13,HLOOKUP($I$2,Totaal!$BR$10:$CH$30,ROW(Y34)-25,FALSE),COLUMN(Z33)-2),0),0) -> 0 | AA34: =ROUND(IFERROR(OFFSET(Totaal!$B$13,HLOOKUP($I$2,Totaal!$BR$10:$CH$30,ROW(Z34)-25,FALSE),COLUMN(AA33)-2),0),0) -> 0 | AB34: =ROUND(IFERROR(OFFSET(Totaal!$B$13,HLOOKUP($I$2,Totaal!$BR$10:$CH$30,ROW(AA34)-25,FALSE),COLUMN(AB33)-2),0),0) -> 0
B35: =IFERROR(OFFSET(Totaal!$B$13,HLOOKUP($I$2,Totaal!$BR$10:$CH$30,ROW(A35)-25,FALSE),COLUMN(B34)-2),"") -> EIA | C35: =ROUND(IFERROR(OFFSET(Totaal!$B$13,HLOOKUP($I$2,Totaal!$BR$10:$CH$30,ROW(B35)-25,FALSE),COLUMN(C34)-2),0),0) -> 0 | D35: =ROUND(IFERROR(OFFSET(Totaal!$B$13,HLOOKUP($I$2,Totaal!$BR$10:$CH$30,ROW(C35)-25,FALSE),COLUMN(D34)-2),0),0) -> 0 | E35: =ROUND(IFERROR(OFFSET(Totaal!$B$13,HLOOKUP($I$2,Totaal!$BR$10:$CH$30,ROW(D35)-25,FALSE),COLUMN(E34)-2),0),0) -> 0 | F35: =ROUND(IFERROR(OFFSET(Totaal!$B$13,HLOOKUP($I$2,Totaal!$BR$10:$CH$30,ROW(E35)-25,FALSE),COLUMN(F34)-2),0),0) -> 0 | G35: =ROUND(IFERROR(OFFSET(Totaal!$B$13,HLOOKUP($I$2,Totaal!$BR$10:$CH$30,ROW(F35)-25,FALSE),COLUMN(G34)-2),0),0) -> 0 | H35: =ROUND(IFERROR(OFFSET(Totaal!$B$13,HLOOKUP($I$2,Totaal!$BR$10:$CH$30,ROW(G35)-25,FALSE),COLUMN(H34)-2),0),0) -> 0 | I35: =ROUND(IFERROR(OFFSET(Totaal!$B$13,HLOOKUP($I$2,Totaal!$BR$10:$CH$30,ROW(H35)-25,FALSE),COLUMN(I34)-2),0),0) -> 0 | J35: =ROUND(IFERROR(OFFSET(Totaal!$B$13,HLOOKUP($I$2,Totaal!$BR$10:$CH$30,ROW(I35)-25,FALSE),COLUMN(J34)-2),0),0) -> 0 | K35: =ROUND(IFERROR(OFFSET(Totaal!$B$13,HLOOKUP($I$2,Totaal!$BR$10:$CH$30,ROW(J35)-25,FALSE),COLUMN(K34)-2),0),0) -> 0 | L35: =ROUND(IFERROR(OFFSET(Totaal!$B$13,HLOOKUP($I$2,Totaal!$BR$10:$CH$30,ROW(K35)-25,FALSE),COLUMN(L34)-2),0),0) -> 0 | M35: =ROUND(IFERROR(OFFSET(Totaal!$B$13,HLOOKUP($I$2,Totaal!$BR$10:$CH$30,ROW(L35)-25,FALSE),COLUMN(M34)-2),0),0) -> 0 | N35: =ROUND(IFERROR(OFFSET(Totaal!$B$13,HLOOKUP($I$2,Totaal!$BR$10:$CH$30,ROW(M35)-25,FALSE),COLUMN(N34)-2),0),0) -> 0 | O35: =ROUND(IFERROR(OFFSET(Totaal!$B$13,HLOOKUP($I$2,Totaal!$BR$10:$CH$30,ROW(N35)-25,FALSE),COLUMN(O34)-2),0),0) -> 0 | P35: =ROUND(IFERROR(OFFSET(Totaal!$B$13,HLOOKUP($I$2,Totaal!$BR$10:$CH$30,ROW(O35)-25,FALSE),COLUMN(P34)-2),0),0) -> 0 | Q35: =ROUND(IFERROR(OFFSET(Totaal!$B$13,HLOOKUP($I$2,Totaal!$BR$10:$CH$30,ROW(P35)-25,FALSE),COLUMN(Q34)-2),0),0) -> 0 | R35: =ROUND(IFERROR(OFFSET(Totaal!$B$13,HLOOKUP($I$2,Totaal!$BR$10:$CH$30,ROW(Q35)-25,FALSE),COLUMN(R34)-2),0),0) -> 0 | S35: =ROUND(IFERROR(OFFSET(Totaal!$B$13,HLOOKUP($I$2,Totaal!$BR$10:$CH$30,ROW(R35)-25,FALSE),COLUMN(S34)-2),0),0) -> 0 | T35: =ROUND(IFERROR(OFFSET(Totaal!$B$13,HLOOKUP($I$2,Totaal!$BR$10:$CH$30,ROW(S35)-25,FALSE),COLUMN(T34)-2),0),0) -> 0 | U35: =ROUND(IFERROR(OFFSET(Totaal!$B$13,HLOOKUP($I$2,Totaal!$BR$10:$CH$30,ROW(T35)-25,FALSE),COLUMN(U34)-2),0),0) -> 0 | V35: =ROUND(IFERROR(OFFSET(Totaal!$B$13,HLOOKUP($I$2,Totaal!$BR$10:$CH$30,ROW(U35)-25,FALSE),COLUMN(V34)-2),0),0) -> 0 | W35: =ROUND(IFERROR(OFFSET(Totaal!$B$13,HLOOKUP($I$2,Totaal!$BR$10:$CH$30,ROW(V35)-25,FALSE),COLUMN(W34)-2),0),0) -> 0 | X35: =ROUND(IFERROR(OFFSET(Totaal!$B$13,HLOOKUP($I$2,Totaal!$BR$10:$CH$30,ROW(W35)-25,FALSE),COLUMN(X34)-2),0),0) -> 0 | Y35: =ROUND(IFERROR(OFFSET(Totaal!$B$13,HLOOKUP($I$2,Totaal!$BR$10:$CH$30,ROW(X35)-25,FALSE),COLUMN(Y34)-2),0),0) -> 0 | Z35: =ROUND(IFERROR(OFFSET(Totaal!$B$13,HLOOKUP($I$2,Totaal!$BR$10:$CH$30,ROW(Y35)-25,FALSE),COLUMN(Z34)-2),0),0) -> 0 | AA35: =ROUND(IFERROR(OFFSET(Totaal!$B$13,HLOOKUP($I$2,Totaal!$BR$10:$CH$30,ROW(Z35)-25,FALSE),COLUMN(AA34)-2),0),0) -> 0 | AB35: =ROUND(IFERROR(OFFSET(Totaal!$B$13,HLOOKUP($I$2,Totaal!$BR$10:$CH$30,ROW(AA35)-25,FALSE),COLUMN(AB34)-2),0),0) -> 0
B36: =IFERROR(OFFSET(Totaal!$B$13,HLOOKUP($I$2,Totaal!$BR$10:$CH$30,ROW(A36)-25,FALSE),COLUMN(B35)-2),"") -> VPB | C36: =ROUND(IFERROR(OFFSET(Totaal!$B$13,HLOOKUP($I$2,Totaal!$BR$10:$CH$30,ROW(B36)-25,FALSE),COLUMN(C35)-2),0),0) -> 0 | D36: =ROUND(IFERROR(OFFSET(Totaal!$B$13,HLOOKUP($I$2,Totaal!$BR$10:$CH$30,ROW(C36)-25,FALSE),COLUMN(D35)-2),0),0) -> 0 | E36: =ROUND(IFERROR(OFFSET(Totaal!$B$13,HLOOKUP($I$2,Totaal!$BR$10:$CH$30,ROW(D36)-25,FALSE),COLUMN(E35)-2),0),0) -> 0 | F36: =ROUND(IFERROR(OFFSET(Totaal!$B$13,HLOOKUP($I$2,Totaal!$BR$10:$CH$30,ROW(E36)-25,FALSE),COLUMN(F35)-2),0),0) -> 0 | G36: =ROUND(IFERROR(OFFSET(Totaal!$B$13,HLOOKUP($I$2,Totaal!$BR$10:$CH$30,ROW(F36)-25,FALSE),COLUMN(G35)-2),0),0) -> 0 | H36: =ROUND(IFERROR(OFFSET(Totaal!$B$13,HLOOKUP($I$2,Totaal!$BR$10:$CH$30,ROW(G36)-25,FALSE),COLUMN(H35)-2),0),0) -> 0 | I36: =ROUND(IFERROR(OFFSET(Totaal!$B$13,HLOOKUP($I$2,Totaal!$BR$10:$CH$30,ROW(H36)-25,FALSE),COLUMN(I35)-2),0),0) -> 0 | J36: =ROUND(IFERROR(OFFSET(Totaal!$B$13,HLOOKUP($I$2,Totaal!$BR$10:$CH$30,ROW(I36)-25,FALSE),COLUMN(J35)-2),0),0) -> 0 | K36: =ROUND(IFERROR(OFFSET(Totaal!$B$13,HLOOKUP($I$2,Totaal!$BR$10:$CH$30,ROW(J36)-25,FALSE),COLUMN(K35)-2),0),0) -> 0 | L36: =ROUND(IFERROR(OFFSET(Totaal!$B$13,HLOOKUP($I$2,Totaal!$BR$10:$CH$30,ROW(K36)-25,FALSE),COLUMN(L35)-2),0),0) -> 0 | M36: =ROUND(IFERROR(OFFSET(Totaal!$B$13,HLOOKUP($I$2,Totaal!$BR$10:$CH$30,ROW(L36)-25,FALSE),COLUMN(M35)-2),0),0) -> 0 | N36: =ROUND(IFERROR(OFFSET(Totaal!$B$13,HLOOKUP($I$2,Totaal!$BR$10:$CH$30,ROW(M36)-25,FALSE),COLUMN(N35)-2),0),0) -> 0 | O36: =ROUND(IFERROR(OFFSET(Totaal!$B$13,HLOOKUP($I$2,Totaal!$BR$10:$CH$30,ROW(N36)-25,FALSE),COLUMN(O35)-2),0),0) -> 0 | P36: =ROUND(IFERROR(OFFSET(Totaal!$B$13,HLOOKUP($I$2,Totaal!$BR$10:$CH$30,ROW(O36)-25,FALSE),COLUMN(P35)-2),0),0) -> 0 | Q36: =ROUND(IFERROR(OFFSET(Totaal!$B$13,HLOOKUP($I$2,Totaal!$BR$10:$CH$30,ROW(P36)-25,FALSE),COLUMN(Q35)-2),0),0) -> 0 | R36: =ROUND(IFERROR(OFFSET(Totaal!$B$13,HLOOKUP($I$2,Totaal!$BR$10:$CH$30,ROW(Q36)-25,FALSE),COLUMN(R35)-2),0),0) -> 0 | S36: =ROUND(IFERROR(OFFSET(Totaal!$B$13,HLOOKUP($I$2,Totaal!$BR$10:$CH$30,ROW(R36)-25,FALSE),COLUMN(S35)-2),0),0) -> 0 | T36: =ROUND(IFERROR(OFFSET(Totaal!$B$13,HLOOKUP($I$2,Totaal!$BR$10:$CH$30,ROW(S36)-25,FALSE),COLUMN(T35)-2),0),0) -> 183 | U36: =ROUND(IFERROR(OFFSET(Totaal!$B$13,HLOOKUP($I$2,Totaal!$BR$10:$CH$30,ROW(T36)-25,FALSE),COLUMN(U35)-2),0),0) -> 168 | V36: =ROUND(IFERROR(OFFSET(Totaal!$B$13,HLOOKUP($I$2,Totaal!$BR$10:$CH$30,ROW(U36)-25,FALSE),COLUMN(V35)-2),0),0) -> 154 | W36: =ROUND(IFERROR(OFFSET(Totaal!$B$13,HLOOKUP($I$2,Totaal!$BR$10:$CH$30,ROW(V36)-25,FALSE),COLUMN(W35)-2),0),0) -> 139 | X36: =ROUND(IFERROR(OFFSET(Totaal!$B$13,HLOOKUP($I$2,Totaal!$BR$10:$CH$30,ROW(W36)-25,FALSE),COLUMN(X35)-2),0),0) -> 125 | Y36: =ROUND(IFERROR(OFFSET(Totaal!$B$13,HLOOKUP($I$2,Totaal!$BR$10:$CH$30,ROW(X36)-25,FALSE),COLUMN(Y35)-2),0),0) -> 110 | Z36: =ROUND(IFERROR(OFFSET(Totaal!$B$13,HLOOKUP($I$2,Totaal!$BR$10:$CH$30,ROW(Y36)-25,FALSE),COLUMN(Z35)-2),0),0) -> 96 | AA36: =ROUND(IFERROR(OFFSET(Totaal!$B$13,HLOOKUP($I$2,Totaal!$BR$10:$CH$30,ROW(Z36)-25,FALSE),COLUMN(AA35)-2),0),0) -> 81 | AB36: =ROUND(IFERROR(OFFSET(Totaal!$B$13,HLOOKUP($I$2,Totaal!$BR$10:$CH$30,ROW(AA36)-25,FALSE),COLUMN(AB35)-2),0),0) -> 67
B37: =IFERROR(OFFSET(Totaal!$B$13,HLOOKUP($I$2,Totaal!$BR$10:$CH$30,ROW(A37)-25,FALSE),COLUMN(B36)-2),"") -> Balans | C37: =ROUND(IFERROR(OFFSET(Totaal!$B$13,HLOOKUP($I$2,Totaal!$BR$10:$CH$30,ROW(B37)-25,FALSE),COLUMN(C36)-2),0),0) -> -114820 | D37: =ROUND(IFERROR(OFFSET(Totaal!$B$13,HLOOKUP($I$2,Totaal!$BR$10:$CH$30,ROW(C37)-25,FALSE),COLUMN(D36)-2),0),0) -> -5099 | E37: =ROUND(IFERROR(OFFSET(Totaal!$B$13,HLOOKUP($I$2,Totaal!$BR$10:$CH$30,ROW(D37)-25,FALSE),COLUMN(E36)-2),0),0) -> -6996 | F37: =ROUND(IFERROR(OFFSET(Totaal!$B$13,HLOOKUP($I$2,Totaal!$BR$10:$CH$30,ROW(E37)-25,FALSE),COLUMN(F36)-2),0),0) -> -7066 | G37: =ROUND(IFERROR(OFFSET(Totaal!$B$13,HLOOKUP($I$2,Totaal!$BR$10:$CH$30,ROW(F37)-25,FALSE),COLUMN(G36)-2),0),0) -> -7137 | H37: =ROUND(IFERROR(OFFSET(Totaal!$B$13,HLOOKUP($I$2,Totaal!$BR$10:$CH$30,ROW(G37)-25,FALSE),COLUMN(H36)-2),0),0) -> -7207 | I37: =ROUND(IFERROR(OFFSET(Totaal!$B$13,HLOOKUP($I$2,Totaal!$BR$10:$CH$30,ROW(H37)-25,FALSE),COLUMN(I36)-2),0),0) -> -7278 | J37: =ROUND(IFERROR(OFFSET(Totaal!$B$13,HLOOKUP($I$2,Totaal!$BR$10:$CH$30,ROW(I37)-25,FALSE),COLUMN(J36)-2),0),0) -> -7348 | K37: =ROUND(IFERROR(OFFSET(Totaal!$B$13,HLOOKUP($I$2,Totaal!$BR$10:$CH$30,ROW(J37)-25,FALSE),COLUMN(K36)-2),0),0) -> -7419 | L37: =ROUND(IFERROR(OFFSET(Totaal!$B$13,HLOOKUP($I$2,Totaal!$BR$10:$CH$30,ROW(K37)-25,FALSE),COLUMN(L36)-2),0),0) -> -7490 | M37: =ROUND(IFERROR(OFFSET(Totaal!$B$13,HLOOKUP($I$2,Totaal!$BR$10:$CH$30,ROW(L37)-25,FALSE),COLUMN(M36)-2),0),0) -> -7561 | N37: =ROUND(IFERROR(OFFSET(Totaal!$B$13,HLOOKUP($I$2,Totaal!$BR$10:$CH$30,ROW(M37)-25,FALSE),COLUMN(N36)-2),0),0) -> 1342 | O37: =ROUND(IFERROR(OFFSET(Totaal!$B$13,HLOOKUP($I$2,Totaal!$BR$10:$CH$30,ROW(N37)-25,FALSE),COLUMN(O36)-2),0),0) -> 1271 | P37: =ROUND(IFERROR(OFFSET(Totaal!$B$13,HLOOKUP($I$2,Totaal!$BR$10:$CH$30,ROW(O37)-25,FALSE),COLUMN(P36)-2),0),0) -> 1200 | Q37: =ROUND(IFERROR(OFFSET(Totaal!$B$13,HLOOKUP($I$2,Totaal!$BR$10:$CH$30,ROW(P37)-25,FALSE),COLUMN(Q36)-2),0),0) -> 1128 | R37: =ROUND(IFERROR(OFFSET(Totaal!$B$13,HLOOKUP($I$2,Totaal!$BR$10:$CH$30,ROW(Q37)-25,FALSE),COLUMN(R36)-2),0),0) -> 1057 | S37: =ROUND(IFERROR(OFFSET(Totaal!$B$13,HLOOKUP($I$2,Totaal!$BR$10:$CH$30,ROW(R37)-25,FALSE),COLUMN(S36)-2),0),0) -> -39821 | T37: =ROUND(IFERROR(OFFSET(Totaal!$B$13,HLOOKUP($I$2,Totaal!$BR$10:$CH$30,ROW(S37)-25,FALSE),COLUMN(T36)-2),0),0) -> 731 | U37: =ROUND(IFERROR(OFFSET(Totaal!$B$13,HLOOKUP($I$2,Totaal!$BR$10:$CH$30,ROW(T37)-25,FALSE),COLUMN(U36)-2),0),0) -> 673 | V37: =ROUND(IFERROR(OFFSET(Totaal!$B$13,HLOOKUP($I$2,Totaal!$BR$10:$CH$30,ROW(U37)-25,FALSE),COLUMN(V36)-2),0),0) -> 616 | W37: =ROUND(IFERROR(OFFSET(Totaal!$B$13,HLOOKUP($I$2,Totaal!$BR$10:$CH$30,ROW(V37)-25,FALSE),COLUMN(W36)-2),0),0) -> 558 | X37: =ROUND(IFERROR(OFFSET(Totaal!$B$13,HLOOKUP($I$2,Totaal!$BR$10:$CH$30,ROW(W37)-25,FALSE),COLUMN(X36)-2),0),0) -> 500 | Y37: =ROUND(IFERROR(OFFSET(Totaal!$B$13,HLOOKUP($I$2,Totaal!$BR$10:$CH$30,ROW(X37)-25,FALSE),COLUMN(Y36)-2),0),0) -> 442 | Z37: =ROUND(IFERROR(OFFSET(Totaal!$B$13,HLOOKUP($I$2,Totaal!$BR$10:$CH$30,ROW(Y37)-25,FALSE),COLUMN(Z36)-2),0),0) -> 384 | AA37: =ROUND(IFERROR(OFFSET(Totaal!$B$13,HLOOKUP($I$2,Totaal!$BR$10:$CH$30,ROW(Z37)-25,FALSE),COLUMN(AA36)-2),0),0) -> 325 | AB37: =ROUND(IFERROR(OFFSET(Totaal!$B$13,HLOOKUP($I$2,Totaal!$BR$10:$CH$30,ROW(AA37)-25,FALSE),COLUMN(AB36)-2),0),0) -> 267
B38: =IFERROR(OFFSET(Totaal!$B$13,HLOOKUP($I$2,Totaal!$BR$10:$CH$30,ROW(A38)-25,FALSE),COLUMN(B37)-2),"") ->  | C38: =ROUND(IFERROR(OFFSET(Totaal!$B$13,HLOOKUP($I$2,Totaal!$BR$10:$CH$30,ROW(B38)-25,FALSE),COLUMN(C37)-2),0),0) -> 0 | D38: =ROUND(IFERROR(OFFSET(Totaal!$B$13,HLOOKUP($I$2,Totaal!$BR$10:$CH$30,ROW(C38)-25,FALSE),COLUMN(D37)-2),0),0) -> 0 | E38: =ROUND(IFERROR(OFFSET(Totaal!$B$13,HLOOKUP($I$2,Totaal!$BR$10:$CH$30,ROW(D38)-25,FALSE),COLUMN(E37)-2),0),0) -> 0 | F38: =ROUND(IFERROR(OFFSET(Totaal!$B$13,HLOOKUP($I$2,Totaal!$BR$10:$CH$30,ROW(E38)-25,FALSE),COLUMN(F37)-2),0),0) -> 0 | G38: =ROUND(IFERROR(OFFSET(Totaal!$B$13,HLOOKUP($I$2,Totaal!$BR$10:$CH$30,ROW(F38)-25,FALSE),COLUMN(G37)-2),0),0) -> 0 | H38: =ROUND(IFERROR(OFFSET(Totaal!$B$13,HLOOKUP($I$2,Totaal!$BR$10:$CH$30,ROW(G38)-25,FALSE),COLUMN(H37)-2),0),0) -> 0 | I38: =ROUND(IFERROR(OFFSET(Totaal!$B$13,HLOOKUP($I$2,Totaal!$BR$10:$CH$30,ROW(H38)-25,FALSE),COLUMN(I37)-2),0),0) -> 0 | J38: =ROUND(IFERROR(OFFSET(Totaal!$B$13,HLOOKUP($I$2,Totaal!$BR$10:$CH$30,ROW(I38)-25,FALSE),COLUMN(J37)-2),0),0) -> 0 | K38: =ROUND(IFERROR(OFFSET(Totaal!$B$13,HLOOKUP($I$2,Totaal!$BR$10:$CH$30,ROW(J38)-25,FALSE),COLUMN(K37)-2),0),0) -> 0 | L38: =ROUND(IFERROR(OFFSET(Totaal!$B$13,HLOOKUP($I$2,Totaal!$BR$10:$CH$30,ROW(K38)-25,FALSE),COLUMN(L37)-2),0),0) -> 0 | M38: =ROUND(IFERROR(OFFSET(Totaal!$B$13,HLOOKUP($I$2,Totaal!$BR$10:$CH$30,ROW(L38)-25,FALSE),COLUMN(M37)-2),0),0) -> 0 | N38: =ROUND(IFERROR(OFFSET(Totaal!$B$13,HLOOKUP($I$2,Totaal!$BR$10:$CH$30,ROW(M38)-25,FALSE),COLUMN(N37)-2),0),0) -> 0 | O38: =ROUND(IFERROR(OFFSET(Totaal!$B$13,HLOOKUP($I$2,Totaal!$BR$10:$CH$30,ROW(N38)-25,FALSE),COLUMN(O37)-2),0),0) -> 0 | P38: =ROUND(IFERROR(OFFSET(Totaal!$B$13,HLOOKUP($I$2,Totaal!$BR$10:$CH$30,ROW(O38)-25,FALSE),COLUMN(P37)-2),0),0) -> 0 | Q38: =ROUND(IFERROR(OFFSET(Totaal!$B$13,HLOOKUP($I$2,Totaal!$BR$10:$CH$30,ROW(P38)-25,FALSE),COLUMN(Q37)-2),0),0) -> 0 | R38: =ROUND(IFERROR(OFFSET(Totaal!$B$13,HLOOKUP($I$2,Totaal!$BR$10:$CH$30,ROW(Q38)-25,FALSE),COLUMN(R37)-2),0),0) -> 0 | S38: =ROUND(IFERROR(OFFSET(Totaal!$B$13,HLOOKUP($I$2,Totaal!$BR$10:$CH$30,ROW(R38)-25,FALSE),COLUMN(S37)-2),0),0) -> 0 | T38: =ROUND(IFERROR(OFFSET(Totaal!$B$13,HLOOKUP($I$2,Totaal!$BR$10:$CH$30,ROW(S38)-25,FALSE),COLUMN(T37)-2),0),0) -> 0 | U38: =ROUND(IFERROR(OFFSET(Totaal!$B$13,HLOOKUP($I$2,Totaal!$BR$10:$CH$30,ROW(T38)-25,FALSE),COLUMN(U37)-2),0),0) -> 0 | V38: =ROUND(IFERROR(OFFSET(Totaal!$B$13,HLOOKUP($I$2,Totaal!$BR$10:$CH$30,ROW(U38)-25,FALSE),COLUMN(V37)-2),0),0) -> 0 | W38: =ROUND(IFERROR(OFFSET(Totaal!$B$13,HLOOKUP($I$2,Totaal!$BR$10:$CH$30,ROW(V38)-25,FALSE),COLUMN(W37)-2),0),0) -> 0 | X38: =ROUND(IFERROR(OFFSET(Totaal!$B$13,HLOOKUP($I$2,Totaal!$BR$10:$CH$30,ROW(W38)-25,FALSE),COLUMN(X37)-2),0),0) -> 0 | Y38: =ROUND(IFERROR(OFFSET(Totaal!$B$13,HLOOKUP($I$2,Totaal!$BR$10:$CH$30,ROW(X38)-25,FALSE),COLUMN(Y37)-2),0),0) -> 0 | Z38: =ROUND(IFERROR(OFFSET(Totaal!$B$13,HLOOKUP($I$2,Totaal!$BR$10:$CH$30,ROW(Y38)-25,FALSE),COLUMN(Z37)-2),0),0) -> 0 | AA38: =ROUND(IFERROR(OFFSET(Totaal!$B$13,HLOOKUP($I$2,Totaal!$BR$10:$CH$30,ROW(Z38)-25,FALSE),COLUMN(AA37)-2),0),0) -> 0 | AB38: =ROUND(IFERROR(OFFSET(Totaal!$B$13,HLOOKUP($I$2,Totaal!$BR$10:$CH$30,ROW(AA38)-25,FALSE),COLUMN(AB37)-2),0),0) -> 0
B39: =IFERROR(OFFSET(Totaal!$B$13,HLOOKUP($I$2,Totaal!$BR$10:$CH$30,ROW(A39)-25,FALSE),COLUMN(B38)-2),"") ->  | C39: =ROUND(IFERROR(OFFSET(Totaal!$B$13,HLOOKUP($I$2,Totaal!$BR$10:$CH$30,ROW(B39)-25,FALSE),COLUMN(C38)-2),0),0) -> 0 | D39: =ROUND(IFERROR(OFFSET(Totaal!$B$13,HLOOKUP($I$2,Totaal!$BR$10:$CH$30,ROW(C39)-25,FALSE),COLUMN(D38)-2),0),0) -> 0 | E39: =ROUND(IFERROR(OFFSET(Totaal!$B$13,HLOOKUP($I$2,Totaal!$BR$10:$CH$30,ROW(D39)-25,FALSE),COLUMN(E38)-2),0),0) -> 0 | F39: =ROUND(IFERROR(OFFSET(Totaal!$B$13,HLOOKUP($I$2,Totaal!$BR$10:$CH$30,ROW(E39)-25,FALSE),COLUMN(F38)-2),0),0) -> 0 | G39: =ROUND(IFERROR(OFFSET(Totaal!$B$13,HLOOKUP($I$2,Totaal!$BR$10:$CH$30,ROW(F39)-25,FALSE),COLUMN(G38)-2),0),0) -> 0 | H39: =ROUND(IFERROR(OFFSET(Totaal!$B$13,HLOOKUP($I$2,Totaal!$BR$10:$CH$30,ROW(G39)-25,FALSE),COLUMN(H38)-2),0),0) -> 0 | I39: =ROUND(IFERROR(OFFSET(Totaal!$B$13,HLOOKUP($I$2,Totaal!$BR$10:$CH$30,ROW(H39)-25,FALSE),COLUMN(I38)-2),0),0) -> 0 | J39: =ROUND(IFERROR(OFFSET(Totaal!$B$13,HLOOKUP($I$2,Totaal!$BR$10:$CH$30,ROW(I39)-25,FALSE),COLUMN(J38)-2),0),0) -> 0 | K39: =ROUND(IFERROR(OFFSET(Totaal!$B$13,HLOOKUP($I$2,Totaal!$BR$10:$CH$30,ROW(J39)-25,FALSE),COLUMN(K38)-2),0),0) -> 0 | L39: =ROUND(IFERROR(OFFSET(Totaal!$B$13,HLOOKUP($I$2,Totaal!$BR$10:$CH$30,ROW(K39)-25,FALSE),COLUMN(L38)-2),0),0) -> 0 | M39: =ROUND(IFERROR(OFFSET(Totaal!$B$13,HLOOKUP($I$2,Totaal!$BR$10:$CH$30,ROW(L39)-25,FALSE),COLUMN(M38)-2),0),0) -> 0 | N39: =ROUND(IFERROR(OFFSET(Totaal!$B$13,HLOOKUP($I$2,Totaal!$BR$10:$CH$30,ROW(M39)-25,FALSE),COLUMN(N38)-2),0),0) -> 0 | O39: =ROUND(IFERROR(OFFSET(Totaal!$B$13,HLOOKUP($I$2,Totaal!$BR$10:$CH$30,ROW(N39)-25,FALSE),COLUMN(O38)-2),0),0) -> 0 | P39: =ROUND(IFERROR(OFFSET(Totaal!$B$13,HLOOKUP($I$2,Totaal!$BR$10:$CH$30,ROW(O39)-25,FALSE),COLUMN(P38)-2),0),0) -> 0 | Q39: =ROUND(IFERROR(OFFSET(Totaal!$B$13,HLOOKUP($I$2,Totaal!$BR$10:$CH$30,ROW(P39)-25,FALSE),COLUMN(Q38)-2),0),0) -> 0 | R39: =ROUND(IFERROR(OFFSET(Totaal!$B$13,HLOOKUP($I$2,Totaal!$BR$10:$CH$30,ROW(Q39)-25,FALSE),COLUMN(R38)-2),0),0) -> 0 | S39: =ROUND(IFERROR(OFFSET(Totaal!$B$13,HLOOKUP($I$2,Totaal!$BR$10:$CH$30,ROW(R39)-25,FALSE),COLUMN(S38)-2),0),0) -> 0 | T39: =ROUND(IFERROR(OFFSET(Totaal!$B$13,HLOOKUP($I$2,Totaal!$BR$10:$CH$30,ROW(S39)-25,FALSE),COLUMN(T38)-2),0),0) -> 0 | U39: =ROUND(IFERROR(OFFSET(Totaal!$B$13,HLOOKUP($I$2,Totaal!$BR$10:$CH$30,ROW(T39)-25,FALSE),COLUMN(U38)-2),0),0) -> 0 | V39: =ROUND(IFERROR(OFFSET(Totaal!$B$13,HLOOKUP($I$2,Totaal!$BR$10:$CH$30,ROW(U39)-25,FALSE),COLUMN(V38)-2),0),0) -> 0 | W39: =ROUND(IFERROR(OFFSET(Totaal!$B$13,HLOOKUP($I$2,Totaal!$BR$10:$CH$30,ROW(V39)-25,FALSE),COLUMN(W38)-2),0),0) -> 0 | X39: =ROUND(IFERROR(OFFSET(Totaal!$B$13,HLOOKUP($I$2,Totaal!$BR$10:$CH$30,ROW(W39)-25,FALSE),COLUMN(X38)-2),0),0) -> 0 | Y39: =ROUND(IFERROR(OFFSET(Totaal!$B$13,HLOOKUP($I$2,Totaal!$BR$10:$CH$30,ROW(X39)-25,FALSE),COLUMN(Y38)-2),0),0) -> 0 | Z39: =ROUND(IFERROR(OFFSET(Totaal!$B$13,HLOOKUP($I$2,Totaal!$BR$10:$CH$30,ROW(Y39)-25,FALSE),COLUMN(Z38)-2),0),0) -> 0 | AA39: =ROUND(IFERROR(OFFSET(Totaal!$B$13,HLOOKUP($I$2,Totaal!$BR$10:$CH$30,ROW(Z39)-25,FALSE),COLUMN(AA38)-2),0),0) -> 0 | AB39: =ROUND(IFERROR(OFFSET(Totaal!$B$13,HLOOKUP($I$2,Totaal!$BR$10:$CH$30,ROW(AA39)-25,FALSE),COLUMN(AB38)-2),0),0) -> 0
B40: =IFERROR(OFFSET(Totaal!$B$13,HLOOKUP($I$2,Totaal!$BR$10:$CH$30,ROW(A40)-25,FALSE),COLUMN(B39)-2),"") ->  | C40: =ROUND(IFERROR(OFFSET(Totaal!$B$13,HLOOKUP($I$2,Totaal!$BR$10:$CH$30,ROW(B40)-25,FALSE),COLUMN(C39)-2),0),0) -> 0 | D40: =ROUND(IFERROR(OFFSET(Totaal!$B$13,HLOOKUP($I$2,Totaal!$BR$10:$CH$30,ROW(C40)-25,FALSE),COLUMN(D39)-2),0),0) -> 0 | E40: =ROUND(IFERROR(OFFSET(Totaal!$B$13,HLOOKUP($I$2,Totaal!$BR$10:$CH$30,ROW(D40)-25,FALSE),COLUMN(E39)-2),0),0) -> 0 | F40: =ROUND(IFERROR(OFFSET(Totaal!$B$13,HLOOKUP($I$2,Totaal!$BR$10:$CH$30,ROW(E40)-25,FALSE),COLUMN(F39)-2),0),0) -> 0 | G40: =ROUND(IFERROR(OFFSET(Totaal!$B$13,HLOOKUP($I$2,Totaal!$BR$10:$CH$30,ROW(F40)-25,FALSE),COLUMN(G39)-2),0),0) -> 0 | H40: =ROUND(IFERROR(OFFSET(Totaal!$B$13,HLOOKUP($I$2,Totaal!$BR$10:$CH$30,ROW(G40)-25,FALSE),COLUMN(H39)-2),0),0) -> 0 | I40: =ROUND(IFERROR(OFFSET(Totaal!$B$13,HLOOKUP($I$2,Totaal!$BR$10:$CH$30,ROW(H40)-25,FALSE),COLUMN(I39)-2),0),0) -> 0 | J40: =ROUND(IFERROR(OFFSET(Totaal!$B$13,HLOOKUP($I$2,Totaal!$BR$10:$CH$30,ROW(I40)-25,FALSE),COLUMN(J39)-2),0),0) -> 0 | K40: =ROUND(IFERROR(OFFSET(Totaal!$B$13,HLOOKUP($I$2,Totaal!$BR$10:$CH$30,ROW(J40)-25,FALSE),COLUMN(K39)-2),0),0) -> 0 | L40: =ROUND(IFERROR(OFFSET(Totaal!$B$13,HLOOKUP($I$2,Totaal!$BR$10:$CH$30,ROW(K40)-25,FALSE),COLUMN(L39)-2),0),0) -> 0 | M40: =ROUND(IFERROR(OFFSET(Totaal!$B$13,HLOOKUP($I$2,Totaal!$BR$10:$CH$30,ROW(L40)-25,FALSE),COLUMN(M39)-2),0),0) -> 0 | N40: =ROUND(IFERROR(OFFSET(Totaal!$B$13,HLOOKUP($I$2,Totaal!$BR$10:$CH$30,ROW(M40)-25,FALSE),COLUMN(N39)-2),0),0) -> 0 | O40: =ROUND(IFERROR(OFFSET(Totaal!$B$13,HLOOKUP($I$2,Totaal!$BR$10:$CH$30,ROW(N40)-25,FALSE),COLUMN(O39)-2),0),0) -> 0 | P40: =ROUND(IFERROR(OFFSET(Totaal!$B$13,HLOOKUP($I$2,Totaal!$BR$10:$CH$30,ROW(O40)-25,FALSE),COLUMN(P39)-2),0),0) -> 0 | Q40: =ROUND(IFERROR(OFFSET(Totaal!$B$13,HLOOKUP($I$2,Totaal!$BR$10:$CH$30,ROW(P40)-25,FALSE),COLUMN(Q39)-2),0),0) -> 0 | R40: =ROUND(IFERROR(OFFSET(Totaal!$B$13,HLOOKUP($I$2,Totaal!$BR$10:$CH$30,ROW(Q40)-25,FALSE),COLUMN(R39)-2),0),0) -> 0 | S40: =ROUND(IFERROR(OFFSET(Totaal!$B$13,HLOOKUP($I$2,Totaal!$BR$10:$CH$30,ROW(R40)-25,FALSE),COLUMN(S39)-2),0),0) -> 0 | T40: =ROUND(IFERROR(OFFSET(Totaal!$B$13,HLOOKUP($I$2,Totaal!$BR$10:$CH$30,ROW(S40)-25,FALSE),COLUMN(T39)-2),0),0) -> 0 | U40: =ROUND(IFERROR(OFFSET(Totaal!$B$13,HLOOKUP($I$2,Totaal!$BR$10:$CH$30,ROW(T40)-25,FALSE),COLUMN(U39)-2),0),0) -> 0 | V40: =ROUND(IFERROR(OFFSET(Totaal!$B$13,HLOOKUP($I$2,Totaal!$BR$10:$CH$30,ROW(U40)-25,FALSE),COLUMN(V39)-2),0),0) -> 0 | W40: =ROUND(IFERROR(OFFSET(Totaal!$B$13,HLOOKUP($I$2,Totaal!$BR$10:$CH$30,ROW(V40)-25,FALSE),COLUMN(W39)-2),0),0) -> 0 | X40: =ROUND(IFERROR(OFFSET(Totaal!$B$13,HLOOKUP($I$2,Totaal!$BR$10:$CH$30,ROW(W40)-25,FALSE),COLUMN(X39)-2),0),0) -> 0 | Y40: =ROUND(IFERROR(OFFSET(Totaal!$B$13,HLOOKUP($I$2,Totaal!$BR$10:$CH$30,ROW(X40)-25,FALSE),COLUMN(Y39)-2),0),0) -> 0 | Z40: =ROUND(IFERROR(OFFSET(Totaal!$B$13,HLOOKUP($I$2,Totaal!$BR$10:$CH$30,ROW(Y40)-25,FALSE),COLUMN(Z39)-2),0),0) -> 0 | AA40: =ROUND(IFERROR(OFFSET(Totaal!$B$13,HLOOKUP($I$2,Totaal!$BR$10:$CH$30,ROW(Z40)-25,FALSE),COLUMN(AA39)-2),0),0) -> 0 | AB40: =ROUND(IFERROR(OFFSET(Totaal!$B$13,HLOOKUP($I$2,Totaal!$BR$10:$CH$30,ROW(AA40)-25,FALSE),COLUMN(AB39)-2),0),0) -> 0
B41: =IFERROR(OFFSET(Totaal!$B$13,HLOOKUP($I$2,Totaal!$BR$10:$CH$30,ROW(A41)-25,FALSE),COLUMN(B40)-2),"") ->  | C41: =ROUND(IFERROR(OFFSET(Totaal!$B$13,HLOOKUP($I$2,Totaal!$BR$10:$CH$30,ROW(B41)-25,FALSE),COLUMN(C40)-2),0),0) -> 0 | D41: =ROUND(IFERROR(OFFSET(Totaal!$B$13,HLOOKUP($I$2,Totaal!$BR$10:$CH$30,ROW(C41)-25,FALSE),COLUMN(D40)-2),0),0) -> 0 | E41: =ROUND(IFERROR(OFFSET(Totaal!$B$13,HLOOKUP($I$2,Totaal!$BR$10:$CH$30,ROW(D41)-25,FALSE),COLUMN(E40)-2),0),0) -> 0 | F41: =ROUND(IFERROR(OFFSET(Totaal!$B$13,HLOOKUP($I$2,Totaal!$BR$10:$CH$30,ROW(E41)-25,FALSE),COLUMN(F40)-2),0),0) -> 0 | G41: =ROUND(IFERROR(OFFSET(Totaal!$B$13,HLOOKUP($I$2,Totaal!$BR$10:$CH$30,ROW(F41)-25,FALSE),COLUMN(G40)-2),0),0) -> 0 | H41: =ROUND(IFERROR(OFFSET(Totaal!$B$13,HLOOKUP($I$2,Totaal!$BR$10:$CH$30,ROW(G41)-25,FALSE),COLUMN(H40)-2),0),0) -> 0 | I41: =ROUND(IFERROR(OFFSET(Totaal!$B$13,HLOOKUP($I$2,Totaal!$BR$10:$CH$30,ROW(H41)-25,FALSE),COLUMN(I40)-2),0),0) -> 0 | J41: =ROUND(IFERROR(OFFSET(Totaal!$B$13,HLOOKUP($I$2,Totaal!$BR$10:$CH$30,ROW(I41)-25,FALSE),COLUMN(J40)-2),0),0) -> 0 | K41: =ROUND(IFERROR(OFFSET(Totaal!$B$13,HLOOKUP($I$2,Totaal!$BR$10:$CH$30,ROW(J41)-25,FALSE),COLUMN(K40)-2),0),0) -> 0 | L41: =ROUND(IFERROR(OFFSET(Totaal!$B$13,HLOOKUP($I$2,Totaal!$BR$10:$CH$30,ROW(K41)-25,FALSE),COLUMN(L40)-2),0),0) -> 0 | M41: =ROUND(IFERROR(OFFSET(Totaal!$B$13,HLOOKUP($I$2,Totaal!$BR$10:$CH$30,ROW(L41)-25,FALSE),COLUMN(M40)-2),0),0) -> 0 | N41: =ROUND(IFERROR(OFFSET(Totaal!$B$13,HLOOKUP($I$2,Totaal!$BR$10:$CH$30,ROW(M41)-25,FALSE),COLUMN(N40)-2),0),0) -> 0 | O41: =ROUND(IFERROR(OFFSET(Totaal!$B$13,HLOOKUP($I$2,Totaal!$BR$10:$CH$30,ROW(N41)-25,FALSE),COLUMN(O40)-2),0),0) -> 0 | P41: =ROUND(IFERROR(OFFSET(Totaal!$B$13,HLOOKUP($I$2,Totaal!$BR$10:$CH$30,ROW(O41)-25,FALSE),COLUMN(P40)-2),0),0) -> 0 | Q41: =ROUND(IFERROR(OFFSET(Totaal!$B$13,HLOOKUP($I$2,Totaal!$BR$10:$CH$30,ROW(P41)-25,FALSE),COLUMN(Q40)-2),0),0) -> 0 | R41: =ROUND(IFERROR(OFFSET(Totaal!$B$13,HLOOKUP($I$2,Totaal!$BR$10:$CH$30,ROW(Q41)-25,FALSE),COLUMN(R40)-2),0),0) -> 0 | S41: =ROUND(IFERROR(OFFSET(Totaal!$B$13,HLOOKUP($I$2,Totaal!$BR$10:$CH$30,ROW(R41)-25,FALSE),COLUMN(S40)-2),0),0) -> 0 | T41: =ROUND(IFERROR(OFFSET(Totaal!$B$13,HLOOKUP($I$2,Totaal!$BR$10:$CH$30,ROW(S41)-25,FALSE),COLUMN(T40)-2),0),0) -> 0 | U41: =ROUND(IFERROR(OFFSET(Totaal!$B$13,HLOOKUP($I$2,Totaal!$BR$10:$CH$30,ROW(T41)-25,FALSE),COLUMN(U40)-2),0),0) -> 0 | V41: =ROUND(IFERROR(OFFSET(Totaal!$B$13,HLOOKUP($I$2,Totaal!$BR$10:$CH$30,ROW(U41)-25,FALSE),COLUMN(V40)-2),0),0) -> 0 | W41: =ROUND(IFERROR(OFFSET(Totaal!$B$13,HLOOKUP($I$2,Totaal!$BR$10:$CH$30,ROW(V41)-25,FALSE),COLUMN(W40)-2),0),0) -> 0 | X41: =ROUND(IFERROR(OFFSET(Totaal!$B$13,HLOOKUP($I$2,Totaal!$BR$10:$CH$30,ROW(W41)-25,FALSE),COLUMN(X40)-2),0),0) -> 0 | Y41: =ROUND(IFERROR(OFFSET(Totaal!$B$13,HLOOKUP($I$2,Totaal!$BR$10:$CH$30,ROW(X41)-25,FALSE),COLUMN(Y40)-2),0),0) -> 0 | Z41: =ROUND(IFERROR(OFFSET(Totaal!$B$13,HLOOKUP($I$2,Totaal!$BR$10:$CH$30,ROW(Y41)-25,FALSE),COLUMN(Z40)-2),0),0) -> 0 | AA41: =ROUND(IFERROR(OFFSET(Totaal!$B$13,HLOOKUP($I$2,Totaal!$BR$10:$CH$30,ROW(Z41)-25,FALSE),COLUMN(AA40)-2),0),0) -> 0 | AB41: =ROUND(IFERROR(OFFSET(Totaal!$B$13,HLOOKUP($I$2,Totaal!$BR$10:$CH$30,ROW(AA41)-25,FALSE),COLUMN(AB40)-2),0),0) -> 0
B42: =IFERROR(OFFSET(Totaal!$B$13,HLOOKUP($I$2,Totaal!$BR$10:$CH$30,ROW(A42)-25,FALSE),COLUMN(B41)-2),"") ->  | C42: =ROUND(IFERROR(OFFSET(Totaal!$B$13,HLOOKUP($I$2,Totaal!$BR$10:$CH$30,ROW(B42)-25,FALSE),COLUMN(C41)-2),0),0) -> 0 | D42: =ROUND(IFERROR(OFFSET(Totaal!$B$13,HLOOKUP($I$2,Totaal!$BR$10:$CH$30,ROW(C42)-25,FALSE),COLUMN(D41)-2),0),0) -> 0 | E42: =ROUND(IFERROR(OFFSET(Totaal!$B$13,HLOOKUP($I$2,Totaal!$BR$10:$CH$30,ROW(D42)-25,FALSE),COLUMN(E41)-2),0),0) -> 0 | F42: =ROUND(IFERROR(OFFSET(Totaal!$B$13,HLOOKUP($I$2,Totaal!$BR$10:$CH$30,ROW(E42)-25,FALSE),COLUMN(F41)-2),0),0) -> 0 | G42: =ROUND(IFERROR(OFFSET(Totaal!$B$13,HLOOKUP($I$2,Totaal!$BR$10:$CH$30,ROW(F42)-25,FALSE),COLUMN(G41)-2),0),0) -> 0 | H42: =ROUND(IFERROR(OFFSET(Totaal!$B$13,HLOOKUP($I$2,Totaal!$BR$10:$CH$30,ROW(G42)-25,FALSE),COLUMN(H41)-2),0),0) -> 0 | I42: =ROUND(IFERROR(OFFSET(Totaal!$B$13,HLOOKUP($I$2,Totaal!$BR$10:$CH$30,ROW(H42)-25,FALSE),COLUMN(I41)-2),0),0) -> 0 | J42: =ROUND(IFERROR(OFFSET(Totaal!$B$13,HLOOKUP($I$2,Totaal!$BR$10:$CH$30,ROW(I42)-25,FALSE),COLUMN(J41)-2),0),0) -> 0 | K42: =ROUND(IFERROR(OFFSET(Totaal!$B$13,HLOOKUP($I$2,Totaal!$BR$10:$CH$30,ROW(J42)-25,FALSE),COLUMN(K41)-2),0),0) -> 0 | L42: =ROUND(IFERROR(OFFSET(Totaal!$B$13,HLOOKUP($I$2,Totaal!$BR$10:$CH$30,ROW(K42)-25,FALSE),COLUMN(L41)-2),0),0) -> 0 | M42: =ROUND(IFERROR(OFFSET(Totaal!$B$13,HLOOKUP($I$2,Totaal!$BR$10:$CH$30,ROW(L42)-25,FALSE),COLUMN(M41)-2),0),0) -> 0 | N42: =ROUND(IFERROR(OFFSET(Totaal!$B$13,HLOOKUP($I$2,Totaal!$BR$10:$CH$30,ROW(M42)-25,FALSE),COLUMN(N41)-2),0),0) -> 0 | O42: =ROUND(IFERROR(OFFSET(Totaal!$B$13,HLOOKUP($I$2,Totaal!$BR$10:$CH$30,ROW(N42)-25,FALSE),COLUMN(O41)-2),0),0) -> 0 | P42: =ROUND(IFERROR(OFFSET(Totaal!$B$13,HLOOKUP($I$2,Totaal!$BR$10:$CH$30,ROW(O42)-25,FALSE),COLUMN(P41)-2),0),0) -> 0 | Q42: =ROUND(IFERROR(OFFSET(Totaal!$B$13,HLOOKUP($I$2,Totaal!$BR$10:$CH$30,ROW(P42)-25,FALSE),COLUMN(Q41)-2),0),0) -> 0 | R42: =ROUND(IFERROR(OFFSET(Totaal!$B$13,HLOOKUP($I$2,Totaal!$BR$10:$CH$30,ROW(Q42)-25,FALSE),COLUMN(R41)-2),0),0) -> 0 | S42: =ROUND(IFERROR(OFFSET(Totaal!$B$13,HLOOKUP($I$2,Totaal!$BR$10:$CH$30,ROW(R42)-25,FALSE),COLUMN(S41)-2),0),0) -> 0 | T42: =ROUND(IFERROR(OFFSET(Totaal!$B$13,HLOOKUP($I$2,Totaal!$BR$10:$CH$30,ROW(S42)-25,FALSE),COLUMN(T41)-2),0),0) -> 0 | U42: =ROUND(IFERROR(OFFSET(Totaal!$B$13,HLOOKUP($I$2,Totaal!$BR$10:$CH$30,ROW(T42)-25,FALSE),COLUMN(U41)-2),0),0) -> 0 | V42: =ROUND(IFERROR(OFFSET(Totaal!$B$13,HLOOKUP($I$2,Totaal!$BR$10:$CH$30,ROW(U42)-25,FALSE),COLUMN(V41)-2),0),0) -> 0 | W42: =ROUND(IFERROR(OFFSET(Totaal!$B$13,HLOOKUP($I$2,Totaal!$BR$10:$CH$30,ROW(V42)-25,FALSE),COLUMN(W41)-2),0),0) -> 0 | X42: =ROUND(IFERROR(OFFSET(Totaal!$B$13,HLOOKUP($I$2,Totaal!$BR$10:$CH$30,ROW(W42)-25,FALSE),COLUMN(X41)-2),0),0) -> 0 | Y42: =ROUND(IFERROR(OFFSET(Totaal!$B$13,HLOOKUP($I$2,Totaal!$BR$10:$CH$30,ROW(X42)-25,FALSE),COLUMN(Y41)-2),0),0) -> 0 | Z42: =ROUND(IFERROR(OFFSET(Totaal!$B$13,HLOOKUP($I$2,Totaal!$BR$10:$CH$30,ROW(Y42)-25,FALSE),COLUMN(Z41)-2),0),0) -> 0 | AA42: =ROUND(IFERROR(OFFSET(Totaal!$B$13,HLOOKUP($I$2,Totaal!$BR$10:$CH$30,ROW(Z42)-25,FALSE),COLUMN(AA41)-2),0),0) -> 0 | AB42: =ROUND(IFERROR(OFFSET(Totaal!$B$13,HLOOKUP($I$2,Totaal!$BR$10:$CH$30,ROW(AA42)-25,FALSE),COLUMN(AB41)-2),0),0) -> 0
B45: Cumulatieve Balans | C45: =C37 -> -114820 | D45: =D37+C45 -> -119919 | E45: =E37+D45 -> -126915 | F45: -133981 | G45: -141118 | H45: -148325 | I45: -155603 | J45: -162951 | K45: -170370 | L45: -177860 | M45: -185421 | N45: -184079 | O45: -182808 | P45: -181608 | Q45: -180480 | R45: -179423 | S45: -219244 | T45: -218513 | U45: -217840 | V45: -217224 | W45: -216666 | X45: =X37+W45 -> -216166 | Y45: =Y37+X45 -> -215724 | Z45: =Z37+Y45 -> -215340 | AA45: =AA37+Z45 -> -215015 | AB45: =AB37+AA45 -> -214748

Sheet Colofoon - Disclaimer
B2: Flowchartmodel Zonneparken
B4: Op basis van modellen door:
C5: Hans Rikze - Morgen Groene Energie
C6: Floris Bruning - Soft Energy
B8: Rekenmodel:
C9: Floris Bruning - Soft Energy
B11: Vragen en opmerkingen naar:
C12: via HIER Opgewekt:
C13: URL
B15: Disclaimer
C16: Dit model is in opdracht van HIER Opgewekt samengesteld om energiecoöperaties te helpen bij het ontwikkelen van een geschikte businesscase voor hun Zonnepark. De Flowchart geeft inzicht voor (startende) projecten in de voor hen meest van toepassing zijnde businesscase gebaseerd op de verschillende beschikbare regelingen voor zonne-energie. Het model en de berekeningen gaan uit van gemiddeldes en standaardberekeningen en dient enkel om een richting te geven aan projecten. Voor een uiteindelijke businesscase zal altijd een eigen berekening opgesteld moeten worden, waar ook rekening gehouden wordt met eventuele unieke geldstromen en fiscale optimalisatie.
C25: Aan dit model of de berekeningen kunnen geen rechten worden ontleend.

Sheet Datatabellen (hidden)
A1: data tabel netaansluitingen (Stedin 2015) | J1: *schatting GV
A2: Max Cap. | B2: Max vermogen | C2: Euro/Aansluiting | D2: Euro/Meter | E2: Jaarkosten | G2: periodiek | H2: vast trans | I2: capaciteit | J2: meterhuur
A3: 10000 kVA | B3: 10000000 | C3: 258814.87 | D3: 140.3 | E3: 7000.0036 | G3: 7484 | H3: 2760 | J3: 800
A4: 3000 kVA | B4: 3000000 | C4: 189449.99 | D4: 123.44 | E4: 1352.271 | G4: 1448 | H4: 2760 | J4: 800
A5: 1750 kVA | B5: 1750000 | C5: 43891.84 | D5: 92 | E5: 1352.271 | G5: 634 | H5: 441 | J5: 800
A6: 1000 kVA | B6: 1000000 | C6: 36432.7 | D6: 86.63 | E6: 619.291 | G6: 634 | H6: 441 | J6: 800
A7: 630 kVA | B7: 630000 | C7: 34391.08 | D7: 76.44 | E7: 619.291 | G7: 634 | H7: 441 | J7: 400
A8: 175 kVA | B8: 175000 | C8: 3844.76 | D8: 46.79 | E8: 67.6379 | G8: 69 | H8: 441 | J8: 400
A9: 3 x 125 A | B9: =125*3*230 -> 86250 | C9: 3059.93 | D9: 45.14 | E9: 67.6379 | G9: 69 | H9: 441 | J9: 400
A10: 3 x 80 A | B10: =3*80*230 -> 55200 | C10: 1166.08 | D10: 34.4 | E10: 28.5104 | G10: 30 | H10: 18 | I10: 1650 | J10: 28
A11: 3 x 63 A | B11: =3*63*230 -> 43470 | C11: 873.02 | D11: 31.98 | E11: 28.5104 | G11: 30 | H11: 18 | I11: 1320 | J11: 28
A12: 3 x 35 A | B12: =3*35*230 -> 24150 | C12: 873.02 | D12: 31.98 | E12: 28.5104 | G12: 30 | H12: 18 | I12: 660 | J12: 28
A13: 3 x 25 A | B13: =3*25*230 -> 17250 | C13: 555.62 | D13: 25.85 | E13: 17.3842 | G13: 18 | H13: 18 | I13: 132 | J13: 28
A15: data tabel orientatie/prestatie
A16: Orientatie/Helling | B16: 0 | C16: 10 | D16: 20 | E16: 30 | F16: 40 | G16: 50 | H16: 60 | I16: 70 | J16: 80 | K16: 90
A17: NoordOost | B17: 0.87 | C17: 0.81 | D17: 0.74 | E17: 0.68 | F17: 0.61 | G17: 0.54 | H17: 0.48 | I17: 0.42 | J17: 0.35 | K17: 0.29
A18: Oost | B18: 0.87 | C18: 0.86 | D18: 0.85 | E18: 0.82 | F18: 0.79 | G18: 0.75 | H18: 0.7 | I18: 0.7 | J18: 0.56 | K18: 0.48
A19: ZuidOost | B19: 0.87 | C19: 0.92 | D19: 0.94 | E19: 0.95 | F19: 0.95 | G19: 0.92 | H19: 0.87 | I19: 0.81 | J19: 0.74 | K19: 0.64
A20: Zuid | B20: 0.87 | C20: 0.93 | D20: 0.97 | E20: 1 | F20: 1 | G20: 0.98 | H20: 0.94 | I20: 0.88 | J20: 0.8 | K20: 0.69
A21: ZuidWest | B21: 0.87 | C21: 0.92 | D21: 0.94 | E21: 0.95 | F21: 0.95 | G21: 0.92 | H21: 0.87 | I21: 0.81 | J21: 0.74 | K21: 0.64
A22: West | B22: 0.87 | C22: 0.86 | D22: 0.85 | E22: 0.82 | F22: 0.79 | G22: 0.75 | H22: 0.7 | I22: 0.7 | J22: 0.56 | K22: 0.48
A23: NoordWest | B23: 0.87 | C23: 0.81 | D23: 0.74 | E23: 0.68 | F23: 0.61 | G23: 0.54 | H23: 0.48 | I23: 0.42 | J23: 0.35 | K23: 0.29
A24: Noord | B24: 0.87 | C24: 0.79 | D24: 0.7 | E24: 0.61 | F24: 0.52 | G24: 0.43 | H24: 0.35 | I24: 0.28 | J24: 0.23 | K24: 0.18
A26: data tabel productie per provincie
A27: Provincie | B27: Zonlicht
A28: Drenthe | B28: 0.875
A29: Flevoland | B29: 0.875
A30: Friesland | B30: 0.903
A31: Gelderland | B31: 0.866
A32: Groningen | B32: 0.884
A33: Limburg | B33: 0.856
A34: Noord-Holland | B34: 0.912
A35: Noord-Brabant | B35: 0.866
A36: Overijssel | B36: 0.866
A37: Utrecht | B37: 0.875
A38: Zeeland | B38: 0.884
A39: Zuid-Holland | B39: 0.884
A41: data tabel ruimtebezetting zonnepanelen
A42: Locatie | B42: Ruimte per paneel | C42: Typische Helling
A43: Veld | B43: =1.7*1.5 -> 2.55 | C43: 30
A44: Plat | B44: =1.7*1.5 -> 2.55 | C44: 15
A45: Schuin | B45: =1.7*1 -> 1.7 | C45: ?
A47: data tabel kostprijs
A48: Max vermogen | B48: 15 | C48: 55 | D48: 175 | E48: 1750 | F48: 3000
A49: Zonnepanelen | B49: 0.54 | C49: 0.54 | D49: 0.54 | E49: 0.54 | F49: 0.54
A50: Omvormer | B50: 0.35 | C50: 0.25 | D50: 0.2 | E50: 0.18 | F50: 0.15
A51: Montage | B51: 0.2 | C51: 0.18 | D51: 0.16 | E51: 0.14 | F51: 0.12
A52: Elektrawerk | B52: 0.07 | C52: 0.05 | D52: 0.04 | E52: 0.03 | F52: 0.025
A53: Ontwikkelingskosten | B53: 0.05 | C53: 0.04 | D53: 0.02 | E53: 0.01 | F53: 0.01
A54: Communicatie en Marketing | B54: 0.05 | C54: 0.05 | D54: 0.05 | E54: 0.05 | F54: 0.05
A55: Beveiliging indien van toepassing | B55: 0 | C55: 0 | D55: 0.03 | E55: 0.05 | F55: 0.07
A56: Vergunning | B56: 0.03 | C56: 0.03 | D56: 0.03 | E56: 0.03 | F56: 0.03 | G56: van investering
A57: Notaris | B57: 1500 | C57: 1500 | D57: 1500 | E57: 1500 | F57: 1500 | G57: euro
A58: Totaal | B58: =(SUM(B49:B55)*B48*1000*(1+B56)+B57)/(B48*1000) -> 1.3978 | C58: =(SUM(C49:C55)*C48*1000*(1+C56)+C57)/(C48*1000) -> 1.170572727 | D58: =(SUM(D49:D55)*D48*1000*(1+D56)+D57)/(D48*1000) -> 1.079771429 | E58: =(SUM(E49:E55)*E48*1000*(1+E56)+E57)/(E48*1000) -> 1.030857143 | F58: =(SUM(F49:F55)*F48*1000*(1+F56)+F57)/(F48*1000) -> 0.99445

Sheet Variabelen (hidden)
A1: Installatie | D1: Inkomsten | G1: Uitgaven | J1: Ledendelen
A2: Wp per paneel | B2: 270 | C2: Wp | D2: Tarieven | G2: netwerkkosten | H2: =IF(AND(Flowchart!G38="ja",Flowchart!G39="ja"),0,INDEX(Datatabellen!E3:E13,MATCH(Variabelen!B3,Datatabellen!B3:B13,-1))) -> 67.6379 | I2: euro | J2: Zonnedeel euro | L2: euro
A3: Vermogen | B3: =IF(Flowchart!G33>0,Flowchart!G33,ROUND((Flowchart!G31*Flowchart!G32)*0.8/VLOOKUP(B8,Tabel_Oppervlak,2,FALSE),0)*B2) -> 174000 | C3: Wp | D3: kWh prijs markt | E3: 0.035 | F3: euro/kWh | G3: onderhoud | H3: 0.005 | I3: euro/Wp | J3: Zonnedeel Wp | K3: 250 | L3: ?
A4: Productiefactor | B4: =VLOOKUP(Flowchart!G27,Tabel_Provincie,2,FALSE)*(VLOOKUP(Flowchart!G30,Tabel_Orientatie,ROUND(IF(Flowchart!G28="Schuin",Flowchart!G29,VLOOKUP(Flowchart!G28,Tabel_Oppervlak,3,FALSE))/10,0)+2,FALSE)) -> 0.87591 | C4: kWh/Wp | D4: kWh prijs levering | E4: 0.05 | F4: euro/kWh | G4: vervanging | H4: 0.005 | I4: euro/Wp | J4: Aantal zonnedelen | K4: =ROUNDUP(IF(K2>0,B24*B3/(K2),B3/K3),0) -> 696
A5: degradatie panelen | B5: 0.7 | C5: %/y | D5: GVO bedrag | E5: 0.005 | F5: euro/kWh | G5: huur locatie | H5: 0.003 | I5: euro/Wp | J5: euro per zonnedeel | K5: =ROUNDUP(IF(K2>0,K2,B3*B24*Aandeel_leden/K4),0) -> 165
A6: Zelfconsumptie | B6: 0.5 | C6: % | G6: verzekering | H6: 0.0025 | I6: euro/Wp
A7: CO2 reductie | B7: 0.355 | C7: kg/kWh | D7: Energiebelasting | G7: Administratie | H7: 0.003 | I7: euro/Wp | J7: Overige factoren
A8: Locatie | B8: =Flowchart!G28 -> Plat | D8: Energiebelasting 1 | E8: 0.1087 | F8: euro/kWh | G8: Vervangen omvormer | H8: 16 | I8: jaar | J8: BTW | K8: 0.21
A9: Verbruik locatie | B9: =Flowchart!G36 -> 0 | C9: kWh/yr | D9: Energiebelasting 2 | E9: 0.0613 | F9: euro/kWh | J9: VPB | K9: 0.2
A10: Netaansluiting nodig | B10: =INDEX(Datatabellen!A3:A13,MATCH(Variabelen!B3,Datatabellen!B3:B13,-1)) -> 175 kVA | D10: Energiebelasting 3 | E10: 0.0164 | F10: euro/kWh | G10: Financieel | J10: Stijging energiebelasting | K10: 0
A11: Capex | G11: Restwaarde | H11: 0.1 | I11: procent | J11: Stijging stroomtarieven | K11: 0
A12: Zonnepanelen | B12: =OFFSET(Datatabellen!B49,0,IF(B3<=15000,0,IF(B3<=55000,1,IF(B3<=175000,2,IF(B3<=1750000,3,4))))) -> 0.54 | D12: Postcoderoos | G12: Afschrijfperiode | H12: 15 | I12: jaar | J12: Stijging netbeheerkosten | K12: 0.01
A13: Omvormer | B13: =OFFSET(Datatabellen!B49,1,IF(B3<=15000,0,IF(B3<=55000,1,IF(B3<=175000,2,IF(B3<=1750000,3,4))))) -> 0.2 | D13: Verlaagd Tarief | E13: 0.1013 | F13: euro/kWh | J13: Inflatie | K13: 0.01
A14: Montage | B14: =OFFSET(Datatabellen!B49,2,IF(B3<=15000,0,IF(B3<=55000,1,IF(B3<=175000,2,IF(B3<=1750000,3,4))))) -> 0.16 | D14: Looptijd tarief | E14: 15 | F14: jaar | G14: Aandeel leden | H14: =Flowchart!G43 -> 0.6 | I14: procent
A15: Elektrawerk | B15: =OFFSET(Datatabellen!B49,3,IF(B3<=15000,0,IF(B3<=55000,1,IF(B3<=175000,2,IF(B3<=1750000,3,4))))) -> 0.04 | J15: EIA | K15: alleen kleinverbruikers, geen PCR
A16: Ontwikkelingskosten | B16: =OFFSET(Datatabellen!B49,4,IF(B3<=15000,0,IF(B3<=55000,1,IF(B3<=175000,2,IF(B3<=1750000,3,4))))) -> 0.02 | D16: SDE + 2015 | J16: percentage | K16: 0.555
A17: Communicatie/Marketing | B17: =IF(Aandeel_leden>0,OFFSET(Datatabellen!B49,5,IF(B3<=15000,0,IF(B3<=55000,1,IF(B3<=175000,2,IF(B3<=1750000,3,4))))),0) -> 0.05 | D17: SDE bedrag fase 1 | E17: 0.09 | F17: euro/kWh | J17: maximum investering | K17: 0.75 | L17: euro/Wp
A18: Netaansluiting | B18: =IF(OR(Flowchart!G38="Nee",Flowchart!G39="Nee"),INDEX(Datatabellen!C3:C13,MATCH(Variabelen!B3,Datatabellen!B3:B13,-1))+(MAX(0,Flowchart!G40-25)*INDEX(Datatabellen!D3:D13,MATCH(Variabelen!B3,Datatabellen!B3:B13,-1))),0) -> 5014.51 | D18: SDE bedrag fase 2 | E18: 0.11 | F18: euro/kWh | G18: Aandeel financiers | H18: =1-Aandeel_leden -> 0.4 | I18: procent | J18: grensvermogen | K18: 25000 | L18: Wp
A19: Beveiliging | B19: =IF(B8="Veld",OFFSET(Datatabellen!B49,6,IF(B3<=15000,0,IF(B3<=55000,1,IF(B3<=175000,2,IF(B3<=1750000,3,4))))),0) -> 0 | D19: SDE bedrag fase 3 | E19: 0.125 | F19: euro/kWh | G19: Rente financiers | H19: 0.03 | I19: procent | J19: aantal jaar | K19: 9 | L19: jaar
A20: Vergunning | B20: =IF(B8="Veld",OFFSET(Datatabellen!B49,7,IF(B3<=15000,0,IF(B3<=55000,1,IF(B3<=175000,2,IF(B3<=1750000,3,4))))),0) -> 0 | D20: SDE bedrag fase 4 | E20: 0.125 | F20: euro/kWh | G20: looptijd financieers | H20: 10 | I20: jaar | J20: totaal fisc voordeel | K20: =IF(Flowchart!G33<Datatabellen!B10,1,0)*MAX(0,MIN(K17*B3,B25)*((B3-K18)/B3))*K16 -> 0 | L20: euro
A21: Notaris | B21: =OFFSET(Datatabellen!B49,8,IF(B3<=15000,0,IF(B3<=55000,1,IF(B3<=175000,2,IF(B3<=1750000,3,4))))) -> 1500 | D21: SDE correctiebedrag | E21: 0.033 | F21: euro/kWh
A22: Startvermogen | B22: =((SUM(B12:B17,B19)*B3*(1+B20)+B18+B21))*0.05 -> 9112.7255 | G22: Overig | J22: KIA | K22: alleen eigen gebruik
A23: Subsidie | B23: =-Flowchart!G46 -> 0 | D23: Overig | G23: Scenario Salderen | H23: 1 | I23: jaar | J23: grens 1 | K23: 56192 | L23: 0.28
A24: Totaal | B24: =SUM(B18:B23)/Vermogen+SUM(B12:B17) -> 1.099811698 | D24: Abonnement leden | E24: 5 | F24: euro/jaar | J24: grens 2 | K24: 104060 | L24: 15734
A25: Systeem | B25: =SUM(B18:B23)+SUM(B12:B17)*Vermogen -> 191367.2355 | D25: Verkoop systeem | E25: 10 | F25: jaar | J25: grens 3 | K25: 312176 | L25: 0.0756
J26: totaal fisc voordeel | K26: =IF(B25<K23,B25*L23,IF(B25<K24,L24,IF(B25<K25,L24-(B25-K24)*L25,0))) -> 9133.572996 | L26: euro

Sheet Totaal (hidden)
A1: Categorie | B1: Sub
A2: Jaar | C2: 0 | D2: 1 | E2: 2 | F2: 3 | G2: 4 | H2: 5 | I2: 6 | J2: 7 | K2: 8 | L2: 9 | M2: 10 | N2: 11 | O2: 12 | P2: 13 | Q2: 14 | R2: 15 | S2: 16 | T2: 17 | U2: 18 | V2: 19 | W2: 20 | X2: 21 | Y2: 22 | Z2: 23 | AA2: 24 | AB2: 25
A3: Productie | C3: 0 | D3: =Variabelen!$B$3*Variabelen!$B$4*((1-(Variabelen!$B$5/100))^C2) -> 152408.34 | E3: =Variabelen!$B$3*Variabelen!$B$4*((1-(Variabelen!$B$5/100))^D2) -> 151341.4816 | F3: =Variabelen!$B$3*Variabelen!$B$4*((1-(Variabelen!$B$5/100))^E2) -> 150282.0912 | G3: =Variabelen!$B$3*Variabelen!$B$4*((1-(Variabelen!$B$5/100))^F2) -> 149230.1166 | H3: =Variabelen!$B$3*Variabelen!$B$4*((1-(Variabelen!$B$5/100))^G2) -> 148185.5058 | I3: =Variabelen!$B$3*Variabelen!$B$4*((1-(Variabelen!$B$5/100))^H2) -> 147148.2073 | J3: =Variabelen!$B$3*Variabelen!$B$4*((1-(Variabelen!$B$5/100))^I2) -> 146118.1698 | K3: =Variabelen!$B$3*Variabelen!$B$4*((1-(Variabelen!$B$5/100))^J2) -> 145095.3426 | L3: =Variabelen!$B$3*Variabelen!$B$4*((1-(Variabelen!$B$5/100))^K2) -> 144079.6752 | M3: =Variabelen!$B$3*Variabelen!$B$4*((1-(Variabelen!$B$5/100))^L2) -> 143071.1175 | N3: =Variabelen!$B$3*Variabelen!$B$4*((1-(Variabelen!$B$5/100))^M2) -> 142069.6197 | O3: =Variabelen!$B$3*Variabelen!$B$4*((1-(Variabelen!$B$5/100))^N2) -> 141075.1323 | P3: =Variabelen!$B$3*Variabelen!$B$4*((1-(Variabelen!$B$5/100))^O2) -> 140087.6064 | Q3: =Variabelen!$B$3*Variabelen!$B$4*((1-(Variabelen!$B$5/100))^P2) -> 139106.9932 | R3: =Variabelen!$B$3*Variabelen!$B$4*((1-(Variabelen!$B$5/100))^Q2) -> 138133.2442 | S3: =Variabelen!$B$3*Variabelen!$B$4*((1-(Variabelen!$B$5/100))^R2) -> 137166.3115 | T3: =Variabelen!$B$3*Variabelen!$B$4*((1-(Variabelen!$B$5/100))^S2) -> 136206.1473 | U3: =Variabelen!$B$3*Variabelen!$B$4*((1-(Variabelen!$B$5/100))^T2) -> 135252.7043 | V3: =Variabelen!$B$3*Variabelen!$B$4*((1-(Variabelen!$B$5/100))^U2) -> 134305.9354 | W3: =Variabelen!$B$3*Variabelen!$B$4*((1-(Variabelen!$B$5/100))^V2) -> 133365.7938 | X3: =Variabelen!$B$3*Variabelen!$B$4*((1-(Variabelen!$B$5/100))^W2) -> 132432.2333 | Y3: =Variabelen!$B$3*Variabelen!$B$4*((1-(Variabelen!$B$5/100))^X2) -> 131505.2076 | Z3: =Variabelen!$B$3*Variabelen!$B$4*((1-(Variabelen!$B$5/100))^Y2) -> 130584.6712 | AA3: =Variabelen!$B$3*Variabelen!$B$4*((1-(Variabelen!$B$5/100))^Z2) -> 129670.5785 | AB3: =Variabelen!$B$3*Variabelen!$B$4*((1-(Variabelen!$B$5/100))^AA2) -> 128762.8844
A5: Investering | C5: =IF(C2=0,Variabelen!$B$24*Variabelen!$B$3,0)+IF(C2=Variabelen!$H$8,Variabelen!$B$13*Variabelen!$B$3*(1+Variabelen!$K$13)^C2) -> 191367.2355 | D5: =IF(D2=0,Variabelen!$B$24*Variabelen!$B$3,0)+IF(D2=Variabelen!$H$8,Variabelen!$B$13*Variabelen!$B$3*(1+Variabelen!$K$13)^D2) -> 0 | E5: =IF(E2=0,Variabelen!$B$24*Variabelen!$B$3,0)+IF(E2=Variabelen!$H$8,Variabelen!$B$13*Variabelen!$B$3*(1+Variabelen!$K$13)^E2) -> 0 | F5: =IF(F2=0,Variabelen!$B$24*Variabelen!$B$3,0)+IF(F2=Variabelen!$H$8,Variabelen!$B$13*Variabelen!$B$3*(1+Variabelen!$K$13)^F2) -> 0 | G5: =IF(G2=0,Variabelen!$B$24*Variabelen!$B$3,0)+IF(G2=Variabelen!$H$8,Variabelen!$B$13*Variabelen!$B$3*(1+Variabelen!$K$13)^G2) -> 0 | H5: =IF(H2=0,Variabelen!$B$24*Variabelen!$B$3,0)+IF(H2=Variabelen!$H$8,Variabelen!$B$13*Variabelen!$B$3*(1+Variabelen!$K$13)^H2) -> 0 | I5: =IF(I2=0,Variabelen!$B$24*Variabelen!$B$3,0)+IF(I2=Variabelen!$H$8,Variabelen!$B$13*Variabelen!$B$3*(1+Variabelen!$K$13)^I2) -> 0 | J5: =IF(J2=0,Variabelen!$B$24*Variabelen!$B$3,0)+IF(J2=Variabelen!$H$8,Variabelen!$B$13*Variabelen!$B$3*(1+Variabelen!$K$13)^J2) -> 0 | K5: =IF(K2=0,Variabelen!$B$24*Variabelen!$B$3,0)+IF(K2=Variabelen!$H$8,Variabelen!$B$13*Variabelen!$B$3*(1+Variabelen!$K$13)^K2) -> 0 | L5: =IF(L2=0,Variabelen!$B$24*Variabelen!$B$3,0)+IF(L2=Variabelen!$H$8,Variabelen!$B$13*Variabelen!$B$3*(1+Variabelen!$K$13)^L2) -> 0 | M5: =IF(M2=0,Variabelen!$B$24*Variabelen!$B$3,0)+IF(M2=Variabelen!$H$8,Variabelen!$B$13*Variabelen!$B$3*(1+Variabelen!$K$13)^M2) -> 0 | N5: =IF(N2=0,Variabelen!$B$24*Variabelen!$B$3,0)+IF(N2=Variabelen!$H$8,Variabelen!$B$13*Variabelen!$B$3*(1+Variabelen!$K$13)^N2) -> 0 | O5: =IF(O2=0,Variabelen!$B$24*Variabelen!$B$3,0)+IF(O2=Variabelen!$H$8,Variabelen!$B$13*Variabelen!$B$3*(1+Variabelen!$K$13)^O2) -> 0 | P5: =IF(P2=0,Variabelen!$B$24*Variabelen!$B$3,0)+IF(P2=Variabelen!$H$8,Variabelen!$B$13*Variabelen!$B$3*(1+Variabelen!$K$13)^P2) -> 0 | Q5: =IF(Q2=0,Variabelen!$B$24*Variabelen!$B$3,0)+IF(Q2=Variabelen!$H$8,Variabelen!$B$13*Variabelen!$B$3*(1+Variabelen!$K$13)^Q2) -> 0 | R5: =IF(R2=0,Variabelen!$B$24*Variabelen!$B$3,0)+IF(R2=Variabelen!$H$8,Variabelen!$B$13*Variabelen!$B$3*(1+Variabelen!$K$13)^R2) -> 0 | S5: =IF(S2=0,Variabelen!$B$24*Variabelen!$B$3,0)+IF(S2=Variabelen!$H$8,Variabelen!$B$13*Variabelen!$B$3*(1+Variabelen!$K$13)^S2) -> 40805.73684 | T5: =IF(T2=0,Variabelen!$B$24*Variabelen!$B$3,0)+IF(T2=Variabelen!$H$8,Variabelen!$B$13*Variabelen!$B$3*(1+Variabelen!$K$13)^T2) -> 0 | U5: =IF(U2=0,Variabelen!$B$24*Variabelen!$B$3,0)+IF(U2=Variabelen!$H$8,Variabelen!$B$13*Variabelen!$B$3*(1+Variabelen!$K$13)^U2) -> 0 | V5: =IF(V2=0,Variabelen!$B$24*Variabelen!$B$3,0)+IF(V2=Variabelen!$H$8,Variabelen!$B$13*Variabelen!$B$3*(1+Variabelen!$K$13)^V2) -> 0 | W5: =IF(W2=0,Variabelen!$B$24*Variabelen!$B$3,0)+IF(W2=Variabelen!$H$8,Variabelen!$B$13*Variabelen!$B$3*(1+Variabelen!$K$13)^W2) -> 0 | X5: =IF(X2=0,Variabelen!$B$24*Variabelen!$B$3,0)+IF(X2=Variabelen!$H$8,Variabelen!$B$13*Variabelen!$B$3*(1+Variabelen!$K$13)^X2) -> 0 | Y5: =IF(Y2=0,Variabelen!$B$24*Variabelen!$B$3,0)+IF(Y2=Variabelen!$H$8,Variabelen!$B$13*Variabelen!$B$3*(1+Variabelen!$K$13)^Y2) -> 0 | Z5: =IF(Z2=0,Variabelen!$B$24*Variabelen!$B$3,0)+IF(Z2=Variabelen!$H$8,Variabelen!$B$13*Variabelen!$B$3*(1+Variabelen!$K$13)^Z2) -> 0 | AA5: =IF(AA2=0,Variabelen!$B$24*Variabelen!$B$3,0)+IF(AA2=Variabelen!$H$8,Variabelen!$B$13*Variabelen!$B$3*(1+Variabelen!$K$13)^AA2) -> 0 | AB5: =IF(AB2=0,Variabelen!$B$24*Variabelen!$B$3,0)+IF(AB2=Variabelen!$H$8,Variabelen!$B$13*Variabelen!$B$3*(1+Variabelen!$K$13)^AB2) -> 0
B6: Systeemkosten | C6: =IF(C2=0,SUM(Variabelen!$B$12:$B$15)*Variabelen!$B$3,0)+IF(C2=Variabelen!$H$8,Variabelen!$B$13*Variabelen!$B$3*(1+Variabelen!$K$13)^C2) -> 163560 | D6: =IF(D2=0,SUM(Variabelen!$B$12:$B$15)*Variabelen!$B$3,0)+IF(D2=Variabelen!$H$8,Variabelen!$B$13*Variabelen!$B$3*(1+Variabelen!$K$13)^D2) -> 0 | E6: =IF(E2=0,SUM(Variabelen!$B$12:$B$15)*Variabelen!$B$3,0)+IF(E2=Variabelen!$H$8,Variabelen!$B$13*Variabelen!$B$3*(1+Variabelen!$K$13)^E2) -> 0 | F6: =IF(F2=0,SUM(Variabelen!$B$12:$B$15)*Variabelen!$B$3,0)+IF(F2=Variabelen!$H$8,Variabelen!$B$13*Variabelen!$B$3*(1+Variabelen!$K$13)^F2) -> 0 | G6: =IF(G2=0,SUM(Variabelen!$B$12:$B$15)*Variabelen!$B$3,0)+IF(G2=Variabelen!$H$8,Variabelen!$B$13*Variabelen!$B$3*(1+Variabelen!$K$13)^G2) -> 0 | H6: =IF(H2=0,SUM(Variabelen!$B$12:$B$15)*Variabelen!$B$3,0)+IF(H2=Variabelen!$H$8,Variabelen!$B$13*Variabelen!$B$3*(1+Variabelen!$K$13)^H2) -> 0 | I6: =IF(I2=0,SUM(Variabelen!$B$12:$B$15)*Variabelen!$B$3,0)+IF(I2=Variabelen!$H$8,Variabelen!$B$13*Variabelen!$B$3*(1+Variabelen!$K$13)^I2) -> 0 | J6: =IF(J2=0,SUM(Variabelen!$B$12:$B$15)*Variabelen!$B$3,0)+IF(J2=Variabelen!$H$8,Variabelen!$B$13*Variabelen!$B$3*(1+Variabelen!$K$13)^J2) -> 0 | K6: =IF(K2=0,SUM(Variabelen!$B$12:$B$15)*Variabelen!$B$3,0)+IF(K2=Variabelen!$H$8,Variabelen!$B$13*Variabelen!$B$3*(1+Variabelen!$K$13)^K2) -> 0 | L6: =IF(L2=0,SUM(Variabelen!$B$12:$B$15)*Variabelen!$B$3,0)+IF(L2=Variabelen!$H$8,Variabelen!$B$13*Variabelen!$B$3*(1+Variabelen!$K$13)^L2) -> 0 | M6: =IF(M2=0,SUM(Variabelen!$B$12:$B$15)*Variabelen!$B$3,0)+IF(M2=Variabelen!$H$8,Variabelen!$B$13*Variabelen!$B$3*(1+Variabelen!$K$13)^M2) -> 0 | N6: =IF(N2=0,SUM(Variabelen!$B$12:$B$15)*Variabelen!$B$3,0)+IF(N2=Variabelen!$H$8,Variabelen!$B$13*Variabelen!$B$3*(1+Variabelen!$K$13)^N2) -> 0 | O6: =IF(O2=0,SUM(Variabelen!$B$12:$B$15)*Variabelen!$B$3,0)+IF(O2=Variabelen!$H$8,Variabelen!$B$13*Variabelen!$B$3*(1+Variabelen!$K$13)^O2) -> 0 | P6: =IF(P2=0,SUM(Variabelen!$B$12:$B$15)*Variabelen!$B$3,0)+IF(P2=Variabelen!$H$8,Variabelen!$B$13*Variabelen!$B$3*(1+Variabelen!$K$13)^P2) -> 0 | Q6: =IF(Q2=0,SUM(Variabelen!$B$12:$B$15)*Variabelen!$B$3,0)+IF(Q2=Variabelen!$H$8,Variabelen!$B$13*Variabelen!$B$3*(1+Variabelen!$K$13)^Q2) -> 0 | R6: =IF(R2=0,SUM(Variabelen!$B$12:$B$15)*Variabelen!$B$3,0)+IF(R2=Variabelen!$H$8,Variabelen!$B$13*Variabelen!$B$3*(1+Variabelen!$K$13)^R2) -> 0 | S6: =IF(S2=0,SUM(Variabelen!$B$12:$B$15)*Variabelen!$B$3,0)+IF(S2=Variabelen!$H$8,Variabelen!$B$13*Variabelen!$B$3*(1+Variabelen!$K$13)^S2) -> 40805.73684 | T6: =IF(T2=0,SUM(Variabelen!$B$12:$B$15)*Variabelen!$B$3,0)+IF(T2=Variabelen!$H$8,Variabelen!$B$13*Variabelen!$B$3*(1+Variabelen!$K$13)^T2) -> 0 | U6: =IF(U2=0,SUM(Variabelen!$B$12:$B$15)*Variabelen!$B$3,0)+IF(U2=Variabelen!$H$8,Variabelen!$B$13*Variabelen!$B$3*(1+Variabelen!$K$13)^U2) -> 0 | V6: =IF(V2=0,SUM(Variabelen!$B$12:$B$15)*Variabelen!$B$3,0)+IF(V2=Variabelen!$H$8,Variabelen!$B$13*Variabelen!$B$3*(1+Variabelen!$K$13)^V2) -> 0 | W6: =IF(W2=0,SUM(Variabelen!$B$12:$B$15)*Variabelen!$B$3,0)+IF(W2=Variabelen!$H$8,Variabelen!$B$13*Variabelen!$B$3*(1+Variabelen!$K$13)^W2) -> 0 | X6: =IF(X2=0,SUM(Variabelen!$B$12:$B$15)*Variabelen!$B$3,0)+IF(X2=Variabelen!$H$8,Variabelen!$B$13*Variabelen!$B$3*(1+Variabelen!$K$13)^X2) -> 0 | Y6: =IF(Y2=0,SUM(Variabelen!$B$12:$B$15)*Variabelen!$B$3,0)+IF(Y2=Variabelen!$H$8,Variabelen!$B$13*Variabelen!$B$3*(1+Variabelen!$K$13)^Y2) -> 0 | Z6: =IF(Z2=0,SUM(Variabelen!$B$12:$B$15)*Variabelen!$B$3,0)+IF(Z2=Variabelen!$H$8,Variabelen!$B$13*Variabelen!$B$3*(1+Variabelen!$K$13)^Z2) -> 0 | AA6: =IF(AA2=0,SUM(Variabelen!$B$12:$B$15)*Variabelen!$B$3,0)+IF(AA2=Variabelen!$H$8,Variabelen!$B$13*Variabelen!$B$3*(1+Variabelen!$K$13)^AA2) -> 0 | AB6: =IF(AB2=0,SUM(Variabelen!$B$12:$B$15)*Variabelen!$B$3,0)+IF(AB2=Variabelen!$H$8,Variabelen!$B$13*Variabelen!$B$3*(1+Variabelen!$K$13)^AB2) -> 0
B7: Projectkosten | C7: =C5-C6 -> 27807.2355 | D7: =D5-D6 -> 0 | E7: 0 | F7: 0 | G7: 0 | H7: 0 | I7: 0 | J7: 0 | K7: 0 | L7: 0 | M7: 0 | N7: 0 | O7: 0 | P7: 0 | Q7: 0 | R7: 0 | S7: 0 | T7: 0 | U7: 0 | V7: 0 | W7: 0 | X7: =X5-X6 -> 0 | Y7: 0 | Z7: 0 | AA7: 0 | AB7: 0
BR9: CasesPlace
A10: Restwaarde | C10: =SUM($C$6:C6)-SUM($C$11:C11) -> 163560 | D10: =SUM($C$6:D6)-SUM($C$11:D11) -> 153746.4 | E10: =SUM($C$6:E6)-SUM($C$11:E11) -> 143932.8 | F10: =SUM($C$6:F6)-SUM($C$11:F11) -> 134119.2 | G10: =SUM($C$6:G6)-SUM($C$11:G11) -> 124305.6 | H10: =SUM($C$6:H6)-SUM($C$11:H11) -> 114492 | I10: =SUM($C$6:I6)-SUM($C$11:I11) -> 104678.4 | J10: =SUM($C$6:J6)-SUM($C$11:J11) -> 94864.8 | K10: =SUM($C$6:K6)-SUM($C$11:K11) -> 85051.2 | L10: =SUM($C$6:L6)-SUM($C$11:L11) -> 75237.6 | M10: =SUM($C$6:M6)-SUM($C$11:M11) -> 65424 | N10: =SUM($C$6:N6)-SUM($C$11:N11) -> 55610.4 | O10: =SUM($C$6:O6)-SUM($C$11:O11) -> 45796.8 | P10: =SUM($C$6:P6)-SUM($C$11:P11) -> 35983.2 | Q10: =SUM($C$6:Q6)-SUM($C$11:Q11) -> 26169.6 | R10: =SUM($C$6:R6)-SUM($C$11:R11) -> 16356 | S10: =SUM($C$6:S6)-SUM($C$11:S11) -> 57161.73684 | T10: =SUM($C$6:T6)-SUM($C$11:T11) -> 57161.73684 | U10: =SUM($C$6:U6)-SUM($C$11:U11) -> 57161.73684 | V10: =SUM($C$6:V6)-SUM($C$11:V11) -> 57161.73684 | W10: =SUM($C$6:W6)-SUM($C$11:W11) -> 57161.73684 | X10: =SUM($C$6:X6)-SUM($C$11:X11) -> 57161.73684 | Y10: =SUM($C$6:Y6)-SUM($C$11:Y11) -> 57161.73684 | Z10: =SUM($C$6:Z6)-SUM($C$11:Z11) -> 57161.73684 | AA10: =SUM($C$6:AA6)-SUM($C$11:AA11) -> 57161.73684 | AB10: =SUM($C$6:AB6)-SUM($C$11:AB11) -> 57161.73684 | BQ10: k | BR10: A | BS10: B | BT10: C | BU10: D | BV10: E | BW10: F | BX10: G | BY10: H | BZ10: I | CA10: J | CB10: K | CC10: L | CD10: M | CE10: N | CF10: O | CG10: P | CH10: Q
B11: Afschrijving | C11: 0 | D11: =IF(D2<=Variabelen!$H$12,SUM($C$6:C6)*(1-Variabelen!$H$11)/Variabelen!$H$12,0) -> 9813.6 | E11: =IF(E2<=Variabelen!$H$12,SUM($C$6:D6)*(1-Variabelen!$H$11)/Variabelen!$H$12,0) -> 9813.6 | F11: =IF(F2<=Variabelen!$H$12,SUM($C$6:E6)*(1-Variabelen!$H$11)/Variabelen!$H$12,0) -> 9813.6 | G11: =IF(G2<=Variabelen!$H$12,SUM($C$6:F6)*(1-Variabelen!$H$11)/Variabelen!$H$12,0) -> 9813.6 | H11: =IF(H2<=Variabelen!$H$12,SUM($C$6:G6)*(1-Variabelen!$H$11)/Variabelen!$H$12,0) -> 9813.6 | I11: =IF(I2<=Variabelen!$H$12,SUM($C$6:H6)*(1-Variabelen!$H$11)/Variabelen!$H$12,0) -> 9813.6 | J11: =IF(J2<=Variabelen!$H$12,SUM($C$6:I6)*(1-Variabelen!$H$11)/Variabelen!$H$12,0) -> 9813.6 | K11: =IF(K2<=Variabelen!$H$12,SUM($C$6:J6)*(1-Variabelen!$H$11)/Variabelen!$H$12,0) -> 9813.6 | L11: =IF(L2<=Variabelen!$H$12,SUM($C$6:K6)*(1-Variabelen!$H$11)/Variabelen!$H$12,0) -> 9813.6 | M11: =IF(M2<=Variabelen!$H$12,SUM($C$6:L6)*(1-Variabelen!$H$11)/Variabelen!$H$12,0) -> 9813.6 | N11: =IF(N2<=Variabelen!$H$12,SUM($C$6:M6)*(1-Variabelen!$H$11)/Variabelen!$H$12,0) -> 9813.6 | O11: =IF(O2<=Variabelen!$H$12,SUM($C$6:N6)*(1-Variabelen!$H$11)/Variabelen!$H$12,0) -> 9813.6 | P11: =IF(P2<=Variabelen!$H$12,SUM($C$6:O6)*(1-Variabelen!$H$11)/Variabelen!$H$12,0) -> 9813.6 | Q11: =IF(Q2<=Variabelen!$H$12,SUM($C$6:P6)*(1-Variabelen!$H$11)/Variabelen!$H$12,0) -> 9813.6 | R11: =IF(R2<=Variabelen!$H$12,SUM($C$6:Q6)*(1-Variabelen!$H$11)/Variabelen!$H$12,0) -> 9813.6 | S11: =IF(S2<=Variabelen!$H$12,SUM($C$6:R6)*(1-Variabelen!$H$11)/Variabelen!$H$12,0) -> 0 | T11: =IF(T2<=Variabelen!$H$12,SUM($C$6:S6)*(1-Variabelen!$H$11)/Variabelen!$H$12,0) -> 0 | U11: =IF(U2<=Variabelen!$H$12,SUM($C$6:T6)*(1-Variabelen!$H$11)/Variabelen!$H$12,0) -> 0 | V11: =IF(V2<=Variabelen!$H$12,SUM($C$6:U6)*(1-Variabelen!$H$11)/Variabelen!$H$12,0) -> 0 | W11: =IF(W2<=Variabelen!$H$12,SUM($C$6:V6)*(1-Variabelen!$H$11)/Variabelen!$H$12,0) -> 0 | X11: =IF(X2<=Variabelen!$H$12,SUM($C$6:W6)*(1-Variabelen!$H$11)/Variabelen!$H$12,0) -> 0 | Y11: =IF(Y2<=Variabelen!$H$12,SUM($C$6:X6)*(1-Variabelen!$H$11)/Variabelen!$H$12,0) -> 0 | Z11: =IF(Z2<=Variabelen!$H$12,SUM($C$6:Y6)*(1-Variabelen!$H$11)/Variabelen!$H$12,0) -> 0 | AA11: =IF(AA2<=Variabelen!$H$12,SUM($C$6:Z6)*(1-Variabelen!$H$11)/Variabelen!$H$12,0) -> 0 | AB11: =IF(AB2<=Variabelen!$H$12,SUM($C$6:AA6)*(1-Variabelen!$H$11)/Variabelen!$H$12,0) -> 0 | AF11: Cases | AX11: CasesCount | BQ11: 1 | BR11: =SMALL(AX$13:AX$181,$BQ11) -> 0 | BS11: =SMALL(AY$13:AY$181,$BQ11) -> 0 | BT11: =SMALL(AZ$13:AZ$181,$BQ11) -> 0 | BU11: =SMALL(BA$13:BA$181,$BQ11) -> 0 | BV11: =SMALL(BB$13:BB$181,$BQ11) -> 1 | BW11: =SMALL(BC$13:BC$181,$BQ11) -> 2 | BX11: =SMALL(BD$13:BD$181,$BQ11) -> 3 | BY11: =SMALL(BE$13:BE$181,$BQ11) -> 4 | BZ11: =SMALL(BF$13:BF$181,$BQ11) -> 0 | CA11: =SMALL(BG$13:BG$181,$BQ11) -> 0 | CB11: =SMALL(BH$13:BH$181,$BQ11) -> 0 | CC11: =SMALL(BI$13:BI$181,$BQ11) -> 0 | CD11: =SMALL(BJ$13:BJ$181,$BQ11) -> 0 | CE11: =SMALL(BK$13:BK$181,$BQ11) -> 0 | CF11: =SMALL(BL$13:BL$181,$BQ11) -> 0 | CG11: =SMALL(BM$13:BM$181,$BQ11) -> 15 | CH11: =SMALL(BN$13:BN$181,$BQ11) -> 10
AF12: A | AG12: B | AH12: C | AI12: D | AJ12: E | AK12: F | AL12: G | AM12: H | AN12: I | AO12: J | AP12: K | AQ12: L | AR12: M | AS12: N | AT12: O | AU12: P | AV12: Q | AX12: A | AY12: B | AZ12: C | BA12: D | BB12: E | BC12: F | BD12: G | BE12: H | BF12: I | BG12: J | BH12: K | BI12: L | BJ12: M | BK12: N | BL12: O | BM12: P | BN12: Q | BQ12: 2 | BR12: 1 | BS12: 2 | BT12: 3 | BU12: 4 | BV12: 5 | BW12: 5 | BX12: 5 | BY12: 5 | BZ12: 1 | CA12: 2 | CB12: 3 | CC12: 4 | CD12: 5 | CE12: 5 | CF12: 5 | CG12: 16 | CH12: 15
A13: Inkomsten | B13: verkoop stroom | C13: 0 | D13: =D3*Variabelen!$E$3*(1+Variabelen!$K$11)^C2 -> 5334.2919 | E13: =E3*Variabelen!$E$3*(1+Variabelen!$K$11)^D2 -> 5296.951857 | F13: =F3*Variabelen!$E$3*(1+Variabelen!$K$11)^E2 -> 5259.873194 | G13: =G3*Variabelen!$E$3*(1+Variabelen!$K$11)^F2 -> 5223.054081 | H13: =H3*Variabelen!$E$3*(1+Variabelen!$K$11)^G2 -> 5186.492703 | I13: =I3*Variabelen!$E$3*(1+Variabelen!$K$11)^H2 -> 5150.187254 | J13: =J3*Variabelen!$E$3*(1+Variabelen!$K$11)^I2 -> 5114.135943 | K13: =K3*Variabelen!$E$3*(1+Variabelen!$K$11)^J2 -> 5078.336991 | L13: =L3*Variabelen!$E$3*(1+Variabelen!$K$11)^K2 -> 5042.788633 | M13: =M3*Variabelen!$E$3*(1+Variabelen!$K$11)^L2 -> 5007.489112 | N13: =N3*Variabelen!$E$3*(1+Variabelen!$K$11)^M2 -> 4972.436688 | O13: =O3*Variabelen!$E$3*(1+Variabelen!$K$11)^N2 -> 4937.629632 | P13: =P3*Variabelen!$E$3*(1+Variabelen!$K$11)^O2 -> 4903.066224 | Q13: =Q3*Variabelen!$E$3*(1+Variabelen!$K$11)^P2 -> 4868.744761 | R13: =R3*Variabelen!$E$3*(1+Variabelen!$K$11)^Q2 -> 4834.663547 | S13: =S3*Variabelen!$E$3*(1+Variabelen!$K$11)^R2 -> 4800.820902 | T13: =T3*Variabelen!$E$3*(1+Variabelen!$K$11)^S2 -> 4767.215156 | U13: =U3*Variabelen!$E$3*(1+Variabelen!$K$11)^T2 -> 4733.84465 | V13: =V3*Variabelen!$E$3*(1+Variabelen!$K$11)^U2 -> 4700.707737 | W13: =W3*Variabelen!$E$3*(1+Variabelen!$K$11)^V2 -> 4667.802783 | X13: =X3*Variabelen!$E$3*(1+Variabelen!$K$11)^W2 -> 4635.128164 | Y13: =Y3*Variabelen!$E$3*(1+Variabelen!$K$11)^X2 -> 4602.682267 | Z13: =Z3*Variabelen!$E$3*(1+Variabelen!$K$11)^Y2 -> 4570.463491 | AA13: =AA3*Variabelen!$E$3*(1+Variabelen!$K$11)^Z2 -> 4538.470246 | AB13: =AB3*Variabelen!$E$3*(1+Variabelen!$K$11)^AA2 -> 4506.700955 | AF13: A | AG13: B | AH13: C | AI13: D | AN13: I | AO13: J | AP13: K | AQ13: L | AR13: M | AS13: N | AT13: O | AX13: =IF(AF13=AX$12,ROW(AF13)-13,"x") -> 0 | AY13: 0 | AZ13: 0 | BA13: 0 | BB13: x | BC13: x | BD13: x | BE13: x | BF13: 0 | BG13: 0 | BH13: 0 | BI13: 0 | BJ13: 0 | BK13: 0 | BL13: 0 | BM13: x | BN13: x | BQ13: 3 | BR13: 5 | BS13: 5 | BT13: 5 | BU13: 5 | BV13: 6 | BW13: 6 | BX13: 6 | BY13: 6 | BZ13: 5 | CA13: 5 | CB13: 5 | CC13: 5 | CD13: 11 | CE13: 11 | CF13: 10 | CG13: 17 | CH13: 16
B14: SDE fase 1 | C14: 0 | D14: =IF(D2<=15,D3*(Variabelen!$E$17-(Variabelen!$E$21*(1+Variabelen!$K$11)^C2)),0) -> 8687.27538 | E14: =IF(E2<=15,E3*(Variabelen!$E$17-(Variabelen!$E$21*(1+Variabelen!$K$11)^D2)),0) -> 8626.464452 | F14: =IF(F2<=15,F3*(Variabelen!$E$17-(Variabelen!$E$21*(1+Variabelen!$K$11)^E2)),0) -> 8566.079201 | G14: =IF(G2<=15,G3*(Variabelen!$E$17-(Variabelen!$E$21*(1+Variabelen!$K$11)^F2)),0) -> 8506.116647 | H14: =IF(H2<=15,H3*(Variabelen!$E$17-(Variabelen!$E$21*(1+Variabelen!$K$11)^G2)),0) -> 8446.57383 | I14: =IF(I2<=15,I3*(Variabelen!$E$17-(Variabelen!$E$21*(1+Variabelen!$K$11)^H2)),0) -> 8387.447813 | J14: =IF(J2<=15,J3*(Variabelen!$E$17-(Variabelen!$E$21*(1+Variabelen!$K$11)^I2)),0) -> 8328.735679 | K14: =IF(K2<=15,K3*(Variabelen!$E$17-(Variabelen!$E$21*(1+Variabelen!$K$11)^J2)),0) -> 8270.434529 | L14: =IF(L2<=15,L3*(Variabelen!$E$17-(Variabelen!$E$21*(1+Variabelen!$K$11)^K2)),0) -> 8212.541487 | M14: =IF(M2<=15,M3*(Variabelen!$E$17-(Variabelen!$E$21*(1+Variabelen!$K$11)^L2)),0) -> 8155.053697 | N14: =IF(N2<=15,N3*(Variabelen!$E$17-(Variabelen!$E$21*(1+Variabelen!$K$11)^M2)),0) -> 8097.968321 | O14: =IF(O2<=15,O3*(Variabelen!$E$17-(Variabelen!$E$21*(1+Variabelen!$K$11)^N2)),0) -> 8041.282543 | P14: =IF(P2<=15,P3*(Variabelen!$E$17-(Variabelen!$E$21*(1+Variabelen!$K$11)^O2)),0) -> 7984.993565 | Q14: =IF(Q2<=15,Q3*(Variabelen!$E$17-(Variabelen!$E$21*(1+Variabelen!$K$11)^P2)),0) -> 7929.09861 | R14: =IF(R2<=15,R3*(Variabelen!$E$17-(Variabelen!$E$21*(1+Variabelen!$K$11)^Q2)),0) -> 7873.59492 | S14: =IF(S2<=15,S3*(Variabelen!$E$17-(Variabelen!$E$21*(1+Variabelen!$K$11)^R2)),0) -> 0 | T14: =IF(T2<=15,T3*(Variabelen!$E$17-(Variabelen!$E$21*(1+Variabelen!$K$11)^S2)),0) -> 0 | U14: =IF(U2<=15,U3*(Variabelen!$E$17-(Variabelen!$E$21*(1+Variabelen!$K$11)^T2)),0) -> 0 | V14: =IF(V2<=15,V3*(Variabelen!$E$17-(Variabelen!$E$21*(1+Variabelen!$K$11)^U2)),0) -> 0 | W14: =IF(W2<=15,W3*(Variabelen!$E$17-(Variabelen!$E$21*(1+Variabelen!$K$11)^V2)),0) -> 0 | X14: =IF(X2<=15,X3*(Variabelen!$E$17-(Variabelen!$E$21*(1+Variabelen!$K$11)^W2)),0) -> 0 | Y14: =IF(Y2<=15,Y3*(Variabelen!$E$17-(Variabelen!$E$21*(1+Variabelen!$K$11)^X2)),0) -> 0 | Z14: =IF(Z2<=15,Z3*(Variabelen!$E$17-(Variabelen!$E$21*(1+Variabelen!$K$11)^Y2)),0) -> 0 | AA14: =IF(AA2<=15,AA3*(Variabelen!$E$17-(Variabelen!$E$21*(1+Variabelen!$K$11)^Z2)),0) -> 0 | AB14: =IF(AB2<=15,AB3*(Variabelen!$E$17-(Variabelen!$E$21*(1+Variabelen!$K$11)^AA2)),0) -> 0 | AF14: A | AJ14: E | AN14: I | AX14: =IF(AF14=AX$12,ROW(AF14)-13,"x") -> 1 | AY14: =IF(AG14=AY$12,ROW(AG14)-13,"x") -> x | AZ14: =IF(AH14=AZ$12,ROW(AH14)-13,"x") -> x | BA14: =IF(AI14=BA$12,ROW(AI14)-13,"x") -> x | BB14: =IF(AJ14=BB$12,ROW(AJ14)-13,"x") -> 1 | BC14: =IF(AK14=BC$12,ROW(AK14)-13,"x") -> x | BD14: =IF(AL14=BD$12,ROW(AL14)-13,"x") -> x | BE14: =IF(AM14=BE$12,ROW(AM14)-13,"x") -> x | BF14: =IF(AN14=BF$12,ROW(AN14)-13,"x") -> 1 | BG14: =IF(AO14=BG$12,ROW(AO14)-13,"x") -> x | BH14: =IF(AP14=BH$12,ROW(AP14)-13,"x") -> x | BI14: =IF(AQ14=BI$12,ROW(AQ14)-13,"x") -> x | BJ14: =IF(AR14=BJ$12,ROW(AR14)-13,"x") -> x | BK14: =IF(AS14=BK$12,ROW(AS14)-13,"x") -> x | BL14: =IF(AT14=BL$12,ROW(AT14)-13,"x") -> x | BM14: =IF(AU14=BM$12,ROW(AU14)-13,"x") -> x | BN14: =IF(AV14=BN$12,ROW(AV14)-13,"x") -> x | BQ14: 4 | BR14: 9 | BS14: 9 | BT14: 9 | BU14: 9 | BV14: 7 | BW14: 7 | BX14: 7 | BY14: 7 | BZ14: 9 | CA14: 9 | CB14: 9 | CC14: 9 | CD14: 13 | CE14: 12 | CF14: 11 | CG14: 18 | CH14: 17
B15: SDE fase 2 | C15: 0 | D15: =IF(D2<=15,D3*(Variabelen!$E$18-(Variabelen!$E$21*(1+Variabelen!$K$11)^C2)),0) -> 11735.44218 | E15: =IF(E2<=15,E3*(Variabelen!$E$18-(Variabelen!$E$21*(1+Variabelen!$K$11)^D2)),0) -> 11653.29408 | F15: =IF(F2<=15,F3*(Variabelen!$E$18-(Variabelen!$E$21*(1+Variabelen!$K$11)^E2)),0) -> 11571.72103 | G15: =IF(G2<=15,G3*(Variabelen!$E$18-(Variabelen!$E$21*(1+Variabelen!$K$11)^F2)),0) -> 11490.71898 | H15: =IF(H2<=15,H3*(Variabelen!$E$18-(Variabelen!$E$21*(1+Variabelen!$K$11)^G2)),0) -> 11410.28395 | I15: =IF(I2<=15,I3*(Variabelen!$E$18-(Variabelen!$E$21*(1+Variabelen!$K$11)^H2)),0) -> 11330.41196 | J15: =IF(J2<=15,J3*(Variabelen!$E$18-(Variabelen!$E$21*(1+Variabelen!$K$11)^I2)),0) -> 11251.09907 | K15: =IF(K2<=15,K3*(Variabelen!$E$18-(Variabelen!$E$21*(1+Variabelen!$K$11)^J2)),0) -> 11172.34138 | L15: =IF(L2<=15,L3*(Variabelen!$E$18-(Variabelen!$E$21*(1+Variabelen!$K$11)^K2)),0) -> 11094.13499 | M15: =IF(M2<=15,M3*(Variabelen!$E$18-(Variabelen!$E$21*(1+Variabelen!$K$11)^L2)),0) -> 11016.47605 | N15: =IF(N2<=15,N3*(Variabelen!$E$18-(Variabelen!$E$21*(1+Variabelen!$K$11)^M2)),0) -> 10939.36071 | O15: =IF(O2<=15,O3*(Variabelen!$E$18-(Variabelen!$E$21*(1+Variabelen!$K$11)^N2)),0) -> 10862.78519 | P15: =IF(P2<=15,P3*(Variabelen!$E$18-(Variabelen!$E$21*(1+Variabelen!$K$11)^O2)),0) -> 10786.74569 | Q15: =IF(Q2<=15,Q3*(Variabelen!$E$18-(Variabelen!$E$21*(1+Variabelen!$K$11)^P2)),0) -> 10711.23847 | R15: =IF(R2<=15,R3*(Variabelen!$E$18-(Variabelen!$E$21*(1+Variabelen!$K$11)^Q2)),0) -> 10636.2598 | S15: =IF(S2<=15,S3*(Variabelen!$E$18-(Variabelen!$E$21*(1+Variabelen!$K$11)^R2)),0) -> 0 | T15: =IF(T2<=15,T3*(Variabelen!$E$18-(Variabelen!$E$21*(1+Variabelen!$K$11)^S2)),0) -> 0 | U15: =IF(U2<=15,U3*(Variabelen!$E$18-(Variabelen!$E$21*(1+Variabelen!$K$11)^T2)),0) -> 0 | V15: =IF(V2<=15,V3*(Variabelen!$E$18-(Variabelen!$E$21*(1+Variabelen!$K$11)^U2)),0) -> 0 | W15: =IF(W2<=15,W3*(Variabelen!$E$18-(Variabelen!$E$21*(1+Variabelen!$K$11)^V2)),0) -> 0 | X15: =IF(X2<=15,X3*(Variabelen!$E$18-(Variabelen!$E$21*(1+Variabelen!$K$11)^W2)),0) -> 0 | Y15: =IF(Y2<=15,Y3*(Variabelen!$E$18-(Variabelen!$E$21*(1+Variabelen!$K$11)^X2)),0) -> 0 | Z15: =IF(Z2<=15,Z3*(Variabelen!$E$18-(Variabelen!$E$21*(1+Variabelen!$K$11)^Y2)),0) -> 0 | AA15: =IF(AA2<=15,AA3*(Variabelen!$E$18-(Variabelen!$E$21*(1+Variabelen!$K$11)^Z2)),0) -> 0 | AB15: =IF(AB2<=15,AB3*(Variabelen!$E$18-(Variabelen!$E$21*(1+Variabelen!$K$11)^AA2)),0) -> 0 | AG15: B | AK15: F | AO15: J | AX15: x | AY15: 2 | AZ15: x | BA15: x | BB15: x | BC15: 2 | BD15: x | BE15: x | BF15: x | BG15: 2 | BH15: x | BI15: x | BJ15: x | BK15: x | BL15: x | BM15: x | BN15: x | BQ15: 5 | BR15: 53 | BS15: 53 | BT15: 53 | BU15: 53 | BV15: 8 | BW15: 8 | BX15: 8 | BY15: 8 | BZ15: 10 | CA15: 10 | CB15: 10 | CC15: 10 | CD15: 53 | CE15: 13 | CF15: 13 | CG15: 53 | CH15: 18
B16: SDE fase 3 | C16: 0 | D16: =IF(D2<=15,D3*(Variabelen!$E$19-(Variabelen!$E$21*(1+Variabelen!$K$11)^C2)),0) -> 14021.56728 | E16: =IF(E2<=15,E3*(Variabelen!$E$19-(Variabelen!$E$21*(1+Variabelen!$K$11)^D2)),0) -> 13923.41631 | F16: =IF(F2<=15,F3*(Variabelen!$E$19-(Variabelen!$E$21*(1+Variabelen!$K$11)^E2)),0) -> 13825.95239 | G16: =IF(G2<=15,G3*(Variabelen!$E$19-(Variabelen!$E$21*(1+Variabelen!$K$11)^F2)),0) -> 13729.17073 | H16: =IF(H2<=15,H3*(Variabelen!$E$19-(Variabelen!$E$21*(1+Variabelen!$K$11)^G2)),0) -> 13633.06653 | I16: =IF(I2<=15,I3*(Variabelen!$E$19-(Variabelen!$E$21*(1+Variabelen!$K$11)^H2)),0) -> 13537.63507 | J16: =IF(J2<=15,J3*(Variabelen!$E$19-(Variabelen!$E$21*(1+Variabelen!$K$11)^I2)),0) -> 13442.87162 | K16: =IF(K2<=15,K3*(Variabelen!$E$19-(Variabelen!$E$21*(1+Variabelen!$K$11)^J2)),0) -> 13348.77152 | L16: =IF(L2<=15,L3*(Variabelen!$E$19-(Variabelen!$E$21*(1+Variabelen!$K$11)^K2)),0) -> 13255.33012 | M16: =IF(M2<=15,M3*(Variabelen!$E$19-(Variabelen!$E$21*(1+Variabelen!$K$11)^L2)),0) -> 13162.54281 | N16: =IF(N2<=15,N3*(Variabelen!$E$19-(Variabelen!$E$21*(1+Variabelen!$K$11)^M2)),0) -> 13070.40501 | O16: =IF(O2<=15,O3*(Variabelen!$E$19-(Variabelen!$E$21*(1+Variabelen!$K$11)^N2)),0) -> 12978.91217 | P16: =IF(P2<=15,P3*(Variabelen!$E$19-(Variabelen!$E$21*(1+Variabelen!$K$11)^O2)),0) -> 12888.05979 | Q16: =IF(Q2<=15,Q3*(Variabelen!$E$19-(Variabelen!$E$21*(1+Variabelen!$K$11)^P2)),0) -> 12797.84337 | R16: =IF(R2<=15,R3*(Variabelen!$E$19-(Variabelen!$E$21*(1+Variabelen!$K$11)^Q2)),0) -> 12708.25847 | S16: =IF(S2<=15,S3*(Variabelen!$E$19-(Variabelen!$E$21*(1+Variabelen!$K$11)^R2)),0) -> 0 | T16: =IF(T2<=15,T3*(Variabelen!$E$19-(Variabelen!$E$21*(1+Variabelen!$K$11)^S2)),0) -> 0 | U16: =IF(U2<=15,U3*(Variabelen!$E$19-(Variabelen!$E$21*(1+Variabelen!$K$11)^T2)),0) -> 0 | V16: =IF(V2<=15,V3*(Variabelen!$E$19-(Variabelen!$E$21*(1+Variabelen!$K$11)^U2)),0) -> 0 | W16: =IF(W2<=15,W3*(Variabelen!$E$19-(Variabelen!$E$21*(1+Variabelen!$K$11)^V2)),0) -> 0 | X16: =IF(X2<=15,X3*(Variabelen!$E$19-(Variabelen!$E$21*(1+Variabelen!$K$11)^W2)),0) -> 0 | Y16: =IF(Y2<=15,Y3*(Variabelen!$E$19-(Variabelen!$E$21*(1+Variabelen!$K$11)^X2)),0) -> 0 | Z16: =IF(Z2<=15,Z3*(Variabelen!$E$19-(Variabelen!$E$21*(1+Variabelen!$K$11)^Y2)),0) -> 0 | AA16: =IF(AA2<=15,AA3*(Variabelen!$E$19-(Variabelen!$E$21*(1+Variabelen!$K$11)^Z2)),0) -> 0 | AB16: =IF(AB2<=15,AB3*(Variabelen!$E$19-(Variabelen!$E$21*(1+Variabelen!$K$11)^AA2)),0) -> 0 | AH16: C | AL16: G | AP16: K | AX16: x | AY16: x | AZ16: 3 | BA16: x | BB16: x | BC16: x | BD16: 3 | BE16: x | BF16: x | BG16: x | BH16: 3 | BI16: x | BJ16: x | BK16: x | BL16: x | BM16: x | BN16: x | BQ16: 6 | BR16: 54 | BS16: 54 | BT16: 54 | BU16: 54 | BV16: 9 | BW16: 9 | BX16: 9 | BY16: 9 | BZ16: 53 | CA16: 53 | CB16: 53 | CC16: 53 | CD16: 54 | CE16: 14 | CF16: 53 | CG16: 54 | CH16: 53
B17: SDE fase 4 | C17: 0 | D17: =IF(D2<=15,D3*(Variabelen!$E$20-(Variabelen!$E$21*(1+Variabelen!$K$11)^C2)),0) -> 14021.56728 | E17: =IF(E2<=15,E3*(Variabelen!$E$20-(Variabelen!$E$21*(1+Variabelen!$K$11)^D2)),0) -> 13923.41631 | F17: =IF(F2<=15,F3*(Variabelen!$E$20-(Variabelen!$E$21*(1+Variabelen!$K$11)^E2)),0) -> 13825.95239 | G17: =IF(G2<=15,G3*(Variabelen!$E$20-(Variabelen!$E$21*(1+Variabelen!$K$11)^F2)),0) -> 13729.17073 | H17: =IF(H2<=15,H3*(Variabelen!$E$20-(Variabelen!$E$21*(1+Variabelen!$K$11)^G2)),0) -> 13633.06653 | I17: =IF(I2<=15,I3*(Variabelen!$E$20-(Variabelen!$E$21*(1+Variabelen!$K$11)^H2)),0) -> 13537.63507 | J17: =IF(J2<=15,J3*(Variabelen!$E$20-(Variabelen!$E$21*(1+Variabelen!$K$11)^I2)),0) -> 13442.87162 | K17: =IF(K2<=15,K3*(Variabelen!$E$20-(Variabelen!$E$21*(1+Variabelen!$K$11)^J2)),0) -> 13348.77152 | L17: =IF(L2<=15,L3*(Variabelen!$E$20-(Variabelen!$E$21*(1+Variabelen!$K$11)^K2)),0) -> 13255.33012 | M17: =IF(M2<=15,M3*(Variabelen!$E$20-(Variabelen!$E$21*(1+Variabelen!$K$11)^L2)),0) -> 13162.54281 | N17: =IF(N2<=15,N3*(Variabelen!$E$20-(Variabelen!$E$21*(1+Variabelen!$K$11)^M2)),0) -> 13070.40501 | O17: =IF(O2<=15,O3*(Variabelen!$E$20-(Variabelen!$E$21*(1+Variabelen!$K$11)^N2)),0) -> 12978.91217 | P17: =IF(P2<=15,P3*(Variabelen!$E$20-(Variabelen!$E$21*(1+Variabelen!$K$11)^O2)),0) -> 12888.05979 | Q17: =IF(Q2<=15,Q3*(Variabelen!$E$20-(Variabelen!$E$21*(1+Variabelen!$K$11)^P2)),0) -> 12797.84337 | R17: =IF(R2<=15,R3*(Variabelen!$E$20-(Variabelen!$E$21*(1+Variabelen!$K$11)^Q2)),0) -> 12708.25847 | S17: =IF(S2<=15,S3*(Variabelen!$E$20-(Variabelen!$E$21*(1+Variabelen!$K$11)^R2)),0) -> 0 | T17: =IF(T2<=15,T3*(Variabelen!$E$20-(Variabelen!$E$21*(1+Variabelen!$K$11)^S2)),0) -> 0 | U17: =IF(U2<=15,U3*(Variabelen!$E$20-(Variabelen!$E$21*(1+Variabelen!$K$11)^T2)),0) -> 0 | V17: =IF(V2<=15,V3*(Variabelen!$E$20-(Variabelen!$E$21*(1+Variabelen!$K$11)^U2)),0) -> 0 | W17: =IF(W2<=15,W3*(Variabelen!$E$20-(Variabelen!$E$21*(1+Variabelen!$K$11)^V2)),0) -> 0 | X17: =IF(X2<=15,X3*(Variabelen!$E$20-(Variabelen!$E$21*(1+Variabelen!$K$11)^W2)),0) -> 0 | Y17: =IF(Y2<=15,Y3*(Variabelen!$E$20-(Variabelen!$E$21*(1+Variabelen!$K$11)^X2)),0) -> 0 | Z17: =IF(Z2<=15,Z3*(Variabelen!$E$20-(Variabelen!$E$21*(1+Variabelen!$K$11)^Y2)),0) -> 0 | AA17: =IF(AA2<=15,AA3*(Variabelen!$E$20-(Variabelen!$E$21*(1+Variabelen!$K$11)^Z2)),0) -> 0 | AB17: =IF(AB2<=15,AB3*(Variabelen!$E$20-(Variabelen!$E$21*(1+Variabelen!$K$11)^AA2)),0) -> 0 | AI17: D | AM17: H | AQ17: L | AX17: x | AY17: x | AZ17: x | BA17: 4 | BB17: x | BC17: x | BD17: x | BE17: 4 | BF17: x | BG17: x | BH17: x | BI17: 4 | BJ17: x | BK17: x | BL17: x | BM17: x | BN17: x | BQ17: 7 | BR17: 55 | BS17: 61 | BT17: 67 | BU17: 73 | BV17: 53 | BW17: 53 | BX17: 53 | BY17: 53 | BZ17: 54 | CA17: 54 | CB17: 54 | CC17: 54 | CD17: 130 | CE17: 53 | CF17: 54 | CG17: 157 | CH17: 54
B18: GVO | C18: 0 | D18: =D3*Variabelen!$E$5*(1+Variabelen!$K$11)^C2 -> 762.0417 | E18: =E3*Variabelen!$E$5*(1+Variabelen!$K$11)^D2 -> 756.7074081 | F18: =F3*Variabelen!$E$5*(1+Variabelen!$K$11)^E2 -> 751.4104562 | G18: =G3*Variabelen!$E$5*(1+Variabelen!$K$11)^F2 -> 746.150583 | H18: =H3*Variabelen!$E$5*(1+Variabelen!$K$11)^G2 -> 740.927529 | I18: =I3*Variabelen!$E$5*(1+Variabelen!$K$11)^H2 -> 735.7410363 | J18: =J3*Variabelen!$E$5*(1+Variabelen!$K$11)^I2 -> 730.590849 | K18: =K3*Variabelen!$E$5*(1+Variabelen!$K$11)^J2 -> 725.4767131 | L18: =L3*Variabelen!$E$5*(1+Variabelen!$K$11)^K2 -> 720.3983761 | M18: =M3*Variabelen!$E$5*(1+Variabelen!$K$11)^L2 -> 715.3555874 | N18: =N3*Variabelen!$E$5*(1+Variabelen!$K$11)^M2 -> 710.3480983 | O18: =O3*Variabelen!$E$5*(1+Variabelen!$K$11)^N2 -> 705.3756616 | P18: =P3*Variabelen!$E$5*(1+Variabelen!$K$11)^O2 -> 700.438032 | Q18: =Q3*Variabelen!$E$5*(1+Variabelen!$K$11)^P2 -> 695.5349658 | R18: =R3*Variabelen!$E$5*(1+Variabelen!$K$11)^Q2 -> 690.666221 | S18: =S3*Variabelen!$E$5*(1+Variabelen!$K$11)^R2 -> 685.8315575 | T18: =T3*Variabelen!$E$5*(1+Variabelen!$K$11)^S2 -> 681.0307366 | U18: =U3*Variabelen!$E$5*(1+Variabelen!$K$11)^T2 -> 676.2635214 | V18: =V3*Variabelen!$E$5*(1+Variabelen!$K$11)^U2 -> 671.5296768 | W18: =W3*Variabelen!$E$5*(1+Variabelen!$K$11)^V2 -> 666.828969 | X18: =X3*Variabelen!$E$5*(1+Variabelen!$K$11)^W2 -> 662.1611663 | Y18: =Y3*Variabelen!$E$5*(1+Variabelen!$K$11)^X2 -> 657.5260381 | Z18: =Z3*Variabelen!$E$5*(1+Variabelen!$K$11)^Y2 -> 652.9233558 | AA18: =AA3*Variabelen!$E$5*(1+Variabelen!$K$11)^Z2 -> 648.3528923 | AB18: =AB3*Variabelen!$E$5*(1+Variabelen!$K$11)^AA2 -> 643.8144221 | AF18: A | AG18: B | AH18: C | AI18: D | AJ18: E | AK18: F | AL18: G | AM18: H | AN18: I | AO18: J | AP18: K | AQ18: L | AR18: M | AS18: N | AT18: O | AX18: 5 | AY18: 5 | AZ18: 5 | BA18: 5 | BB18: 5 | BC18: 5 | BD18: 5 | BE18: 5 | BF18: 5 | BG18: 5 | BH18: 5 | BI18: 5 | BJ18: 5 | BK18: 5 | BL18: 5 | BM18: x | BN18: x | BQ18: 8 | BR18: 56 | BS18: 62 | BT18: 68 | BU18: 74 | BV18: 54 | BW18: 54 | BX18: 54 | BY18: 54 | BZ18: 105 | CA18: 111 | CB18: 117 | CC18: 123 | CD18: 131 | CE18: 54 | CF18: 148 | CG18: 158 | CH18: 164
B19: Besparing levering zelflevering | C19: 0 | D19: =MIN(Variabelen!$B$9,D3)*Variabelen!$B$6*Variabelen!$E$4*(1+Variabelen!$K$11)^C2 -> 0 | E19: =MIN(Variabelen!$B$9,E3)*Variabelen!$B$6*Variabelen!$E$4*(1+Variabelen!$K$11)^D2 -> 0 | F19: =MIN(Variabelen!$B$9,F3)*Variabelen!$B$6*Variabelen!$E$4*(1+Variabelen!$K$11)^E2 -> 0 | G19: =MIN(Variabelen!$B$9,G3)*Variabelen!$B$6*Variabelen!$E$4*(1+Variabelen!$K$11)^F2 -> 0 | H19: =MIN(Variabelen!$B$9,H3)*Variabelen!$B$6*Variabelen!$E$4*(1+Variabelen!$K$11)^G2 -> 0 | I19: =MIN(Variabelen!$B$9,I3)*Variabelen!$B$6*Variabelen!$E$4*(1+Variabelen!$K$11)^H2 -> 0 | J19: =MIN(Variabelen!$B$9,J3)*Variabelen!$B$6*Variabelen!$E$4*(1+Variabelen!$K$11)^I2 -> 0 | K19: =MIN(Variabelen!$B$9,K3)*Variabelen!$B$6*Variabelen!$E$4*(1+Variabelen!$K$11)^J2 -> 0 | L19: =MIN(Variabelen!$B$9,L3)*Variabelen!$B$6*Variabelen!$E$4*(1+Variabelen!$K$11)^K2 -> 0 | M19: =MIN(Variabelen!$B$9,M3)*Variabelen!$B$6*Variabelen!$E$4*(1+Variabelen!$K$11)^L2 -> 0 | N19: =MIN(Variabelen!$B$9,N3)*Variabelen!$B$6*Variabelen!$E$4*(1+Variabelen!$K$11)^M2 -> 0 | O19: =MIN(Variabelen!$B$9,O3)*Variabelen!$B$6*Variabelen!$E$4*(1+Variabelen!$K$11)^N2 -> 0 | P19: =MIN(Variabelen!$B$9,P3)*Variabelen!$B$6*Variabelen!$E$4*(1+Variabelen!$K$11)^O2 -> 0 | Q19: =MIN(Variabelen!$B$9,Q3)*Variabelen!$B$6*Variabelen!$E$4*(1+Variabelen!$K$11)^P2 -> 0 | R19: =MIN(Variabelen!$B$9,R3)*Variabelen!$B$6*Variabelen!$E$4*(1+Variabelen!$K$11)^Q2 -> 0 | S19: =MIN(Variabelen!$B$9,S3)*Variabelen!$B$6*Variabelen!$E$4*(1+Variabelen!$K$11)^R2 -> 0 | T19: =MIN(Variabelen!$B$9,T3)*Variabelen!$B$6*Variabelen!$E$4*(1+Variabelen!$K$11)^S2 -> 0 | U19: =MIN(Variabelen!$B$9,U3)*Variabelen!$B$6*Variabelen!$E$4*(1+Variabelen!$K$11)^T2 -> 0 | V19: =MIN(Variabelen!$B$9,V3)*Variabelen!$B$6*Variabelen!$E$4*(1+Variabelen!$K$11)^U2 -> 0 | W19: =MIN(Variabelen!$B$9,W3)*Variabelen!$B$6*Variabelen!$E$4*(1+Variabelen!$K$11)^V2 -> 0 | X19: =MIN(Variabelen!$B$9,X3)*Variabelen!$B$6*Variabelen!$E$4*(1+Variabelen!$K$11)^W2 -> 0 | Y19: =MIN(Variabelen!$B$9,Y3)*Variabelen!$B$6*Variabelen!$E$4*(1+Variabelen!$K$11)^X2 -> 0 | Z19: =MIN(Variabelen!$B$9,Z3)*Variabelen!$B$6*Variabelen!$E$4*(1+Variabelen!$K$11)^Y2 -> 0 | AA19: =MIN(Variabelen!$B$9,AA3)*Variabelen!$B$6*Variabelen!$E$4*(1+Variabelen!$K$11)^Z2 -> 0 | AB19: =MIN(Variabelen!$B$9,AB3)*Variabelen!$B$6*Variabelen!$E$4*(1+Variabelen!$K$11)^AA2 -> 0 | AJ19: E | AK19: F | AL19: G | AM19: H | AX19: x | AY19: x | AZ19: x | BA19: x | BB19: 6 | BC19: 6 | BD19: 6 | BE19: 6 | BF19: x | BG19: x | BH19: x | BI19: x | BJ19: x | BK19: x | BL19: x | BM19: x | BN19: x | BQ19: 9 | BR19: 57 | BS19: 63 | BT19: 69 | BU19: 75 | BV19: 80 | BW19: 86 | BX19: 92 | BY19: 98 | BZ19: 106 | CA19: 112 | CB19: 118 | CC19: 124 | CD19: 132 | CE19: 139 | CF19: 149 | CG19: 159 | CH19: 165
B20: Besparing EB zelflevering | C20: 0 | D20: =(IF(Variabelen!$B$9>50000,10000*Variabelen!$E$8+40000*Variabelen!$E$9+(Variabelen!$B$9-50000)*Variabelen!$E$10,IF(Variabelen!$B$9>10000,10000*Variabelen!$E$8+(Variabelen!$B$9-10000)*Variabelen!$E$9,Variabelen!$B$9*Variabelen!$E$8))-MAX(0,IF((Variabelen!$B$9-D3*Variabelen!$B$6)>50000,10000*Variabelen!$E$8+40000*Variabelen!$E$9+((Variabelen!$B$9-D3*Variabelen!$B$6)-50000)*Variabelen!$E$10,IF((Variabelen!$B$9-D3*Variabelen!$B$6)>10000,10000*Variabelen!$E$8+((Variabelen!$B$9-D3*Variabelen!$B$6)-10000)*Variabelen!$E$9,(Variabelen!$B$9-D3*Variabelen!$B$6)*Variabelen!$E$8))))*(1+Variabelen!$K$10)^C2 -> 0 | E20: =(IF(Variabelen!$B$9>50000,10000*Variabelen!$E$8+40000*Variabelen!$E$9+(Variabelen!$B$9-50000)*Variabelen!$E$10,IF(Variabelen!$B$9>10000,10000*Variabelen!$E$8+(Variabelen!$B$9-10000)*Variabelen!$E$9,Variabelen!$B$9*Variabelen!$E$8))-MAX(0,IF((Variabelen!$B$9-E3*Variabelen!$B$6)>50000,10000*Variabelen!$E$8+40000*Variabelen!$E$9+((Variabelen!$B$9-E3*Variabelen!$B$6)-50000)*Variabelen!$E$10,IF((Variabelen!$B$9-E3*Variabelen!$B$6)>10000,10000*Variabelen!$E$8+((Variabelen!$B$9-E3*Variabelen!$B$6)-10000)*Variabelen!$E$9,(Variabelen!$B$9-E3*Variabelen!$B$6)*Variabelen!$E$8))))*(1+Variabelen!$K$10)^D2 -> 0 | F20: =(IF(Variabelen!$B$9>50000,10000*Variabelen!$E$8+40000*Variabelen!$E$9+(Variabelen!$B$9-50000)*Variabelen!$E$10,IF(Variabelen!$B$9>10000,10000*Variabelen!$E$8+(Variabelen!$B$9-10000)*Variabelen!$E$9,Variabelen!$B$9*Variabelen!$E$8))-MAX(0,IF((Variabelen!$B$9-F3*Variabelen!$B$6)>50000,10000*Variabelen!$E$8+40000*Variabelen!$E$9+((Variabelen!$B$9-F3*Variabelen!$B$6)-50000)*Variabelen!$E$10,IF((Variabelen!$B$9-F3*Variabelen!$B$6)>10000,10000*Variabelen!$E$8+((Variabelen!$B$9-F3*Variabelen!$B$6)-10000)*Variabelen!$E$9,(Variabelen!$B$9-F3*Variabelen!$B$6)*Variabelen!$E$8))))*(1+Variabelen!$K$10)^E2 -> 0 | G20: =(IF(Variabelen!$B$9>50000,10000*Variabelen!$E$8+40000*Variabelen!$E$9+(Variabelen!$B$9-50000)*Variabelen!$E$10,IF(Variabelen!$B$9>10000,10000*Variabelen!$E$8+(Variabelen!$B$9-10000)*Variabelen!$E$9,Variabelen!$B$9*Variabelen!$E$8))-MAX(0,IF((Variabelen!$B$9-G3*Variabelen!$B$6)>50000,10000*Variabelen!$E$8+40000*Variabelen!$E$9+((Variabelen!$B$9-G3*Variabelen!$B$6)-50000)*Variabelen!$E$10,IF((Variabelen!$B$9-G3*Variabelen!$B$6)>10000,10000*Variabelen!$E$8+((Variabelen!$B$9-G3*Variabelen!$B$6)-10000)*Variabelen!$E$9,(Variabelen!$B$9-G3*Variabelen!$B$6)*Variabelen!$E$8))))*(1+Variabelen!$K$10)^F2 -> 0 | H20: =(IF(Variabelen!$B$9>50000,10000*Variabelen!$E$8+40000*Variabelen!$E$9+(Variabelen!$B$9-50000)*Variabelen!$E$10,IF(Variabelen!$B$9>10000,10000*Variabelen!$E$8+(Variabelen!$B$9-10000)*Variabelen!$E$9,Variabelen!$B$9*Variabelen!$E$8))-MAX(0,IF((Variabelen!$B$9-H3*Variabelen!$B$6)>50000,10000*Variabelen!$E$8+40000*Variabelen!$E$9+((Variabelen!$B$9-H3*Variabelen!$B$6)-50000)*Variabelen!$E$10,IF((Variabelen!$B$9-H3*Variabelen!$B$6)>10000,10000*Variabelen!$E$8+((Variabelen!$B$9-H3*Variabelen!$B$6)-10000)*Variabelen!$E$9,(Variabelen!$B$9-H3*Variabelen!$B$6)*Variabelen!$E$8))))*(1+Variabelen!$K$10)^G2 -> 0 | I20: =(IF(Variabelen!$B$9>50000,10000*Variabelen!$E$8+40000*Variabelen!$E$9+(Variabelen!$B$9-50000)*Variabelen!$E$10,IF(Variabelen!$B$9>10000,10000*Variabelen!$E$8+(Variabelen!$B$9-10000)*Variabelen!$E$9,Variabelen!$B$9*Variabelen!$E$8))-MAX(0,IF((Variabelen!$B$9-I3*Variabelen!$B$6)>50000,10000*Variabelen!$E$8+40000*Variabelen!$E$9+((Variabelen!$B$9-I3*Variabelen!$B$6)-50000)*Variabelen!$E$10,IF((Variabelen!$B$9-I3*Variabelen!$B$6)>10000,10000*Variabelen!$E$8+((Variabelen!$B$9-I3*Variabelen!$B$6)-10000)*Variabelen!$E$9,(Variabelen!$B$9-I3*Variabelen!$B$6)*Variabelen!$E$8))))*(1+Variabelen!$K$10)^H2 -> 0 | J20: =(IF(Variabelen!$B$9>50000,10000*Variabelen!$E$8+40000*Variabelen!$E$9+(Variabelen!$B$9-50000)*Variabelen!$E$10,IF(Variabelen!$B$9>10000,10000*Variabelen!$E$8+(Variabelen!$B$9-10000)*Variabelen!$E$9,Variabelen!$B$9*Variabelen!$E$8))-MAX(0,IF((Variabelen!$B$9-J3*Variabelen!$B$6)>50000,10000*Variabelen!$E$8+40000*Variabelen!$E$9+((Variabelen!$B$9-J3*Variabelen!$B$6)-50000)*Variabelen!$E$10,IF((Variabelen!$B$9-J3*Variabelen!$B$6)>10000,10000*Variabelen!$E$8+((Variabelen!$B$9-J3*Variabelen!$B$6)-10000)*Variabelen!$E$9,(Variabelen!$B$9-J3*Variabelen!$B$6)*Variabelen!$E$8))))*(1+Variabelen!$K$10)^I2 -> 0 | K20: =(IF(Variabelen!$B$9>50000,10000*Variabelen!$E$8+40000*Variabelen!$E$9+(Variabelen!$B$9-50000)*Variabelen!$E$10,IF(Variabelen!$B$9>10000,10000*Variabelen!$E$8+(Variabelen!$B$9-10000)*Variabelen!$E$9,Variabelen!$B$9*Variabelen!$E$8))-MAX(0,IF((Variabelen!$B$9-K3*Variabelen!$B$6)>50000,10000*Variabelen!$E$8+40000*Variabelen!$E$9+((Variabelen!$B$9-K3*Variabelen!$B$6)-50000)*Variabelen!$E$10,IF((Variabelen!$B$9-K3*Variabelen!$B$6)>10000,10000*Variabelen!$E$8+((Variabelen!$B$9-K3*Variabelen!$B$6)-10000)*Variabelen!$E$9,(Variabelen!$B$9-K3*Variabelen!$B$6)*Variabelen!$E$8))))*(1+Variabelen!$K$10)^J2 -> 0 | L20: =(IF(Variabelen!$B$9>50000,10000*Variabelen!$E$8+40000*Variabelen!$E$9+(Variabelen!$B$9-50000)*Variabelen!$E$10,IF(Variabelen!$B$9>10000,10000*Variabelen!$E$8+(Variabelen!$B$9-10000)*Variabelen!$E$9,Variabelen!$B$9*Variabelen!$E$8))-MAX(0,IF((Variabelen!$B$9-L3*Variabelen!$B$6)>50000,10000*Variabelen!$E$8+40000*Variabelen!$E$9+((Variabelen!$B$9-L3*Variabelen!$B$6)-50000)*Variabelen!$E$10,IF((Variabelen!$B$9-L3*Variabelen!$B$6)>10000,10000*Variabelen!$E$8+((Variabelen!$B$9-L3*Variabelen!$B$6)-10000)*Variabelen!$E$9,(Variabelen!$B$9-L3*Variabelen!$B$6)*Variabelen!$E$8))))*(1+Variabelen!$K$10)^K2 -> 0 | M20: =(IF(Variabelen!$B$9>50000,10000*Variabelen!$E$8+40000*Variabelen!$E$9+(Variabelen!$B$9-50000)*Variabelen!$E$10,IF(Variabelen!$B$9>10000,10000*Variabelen!$E$8+(Variabelen!$B$9-10000)*Variabelen!$E$9,Variabelen!$B$9*Variabelen!$E$8))-MAX(0,IF((Variabelen!$B$9-M3*Variabelen!$B$6)>50000,10000*Variabelen!$E$8+40000*Variabelen!$E$9+((Variabelen!$B$9-M3*Variabelen!$B$6)-50000)*Variabelen!$E$10,IF((Variabelen!$B$9-M3*Variabelen!$B$6)>10000,10000*Variabelen!$E$8+((Variabelen!$B$9-M3*Variabelen!$B$6)-10000)*Variabelen!$E$9,(Variabelen!$B$9-M3*Variabelen!$B$6)*Variabelen!$E$8))))*(1+Variabelen!$K$10)^L2 -> 0 | N20: =(IF(Variabelen!$B$9>50000,10000*Variabelen!$E$8+40000*Variabelen!$E$9+(Variabelen!$B$9-50000)*Variabelen!$E$10,IF(Variabelen!$B$9>10000,10000*Variabelen!$E$8+(Variabelen!$B$9-10000)*Variabelen!$E$9,Variabelen!$B$9*Variabelen!$E$8))-MAX(0,IF((Variabelen!$B$9-N3*Variabelen!$B$6)>50000,10000*Variabelen!$E$8+40000*Variabelen!$E$9+((Variabelen!$B$9-N3*Variabelen!$B$6)-50000)*Variabelen!$E$10,IF((Variabelen!$B$9-N3*Variabelen!$B$6)>10000,10000*Variabelen!$E$8+((Variabelen!$B$9-N3*Variabelen!$B$6)-10000)*Variabelen!$E$9,(Variabelen!$B$9-N3*Variabelen!$B$6)*Variabelen!$E$8))))*(1+Variabelen!$K$10)^M2 -> 0 | O20: =(IF(Variabelen!$B$9>50000,10000*Variabelen!$E$8+40000*Variabelen!$E$9+(Variabelen!$B$9-50000)*Variabelen!$E$10,IF(Variabelen!$B$9>10000,10000*Variabelen!$E$8+(Variabelen!$B$9-10000)*Variabelen!$E$9,Variabelen!$B$9*Variabelen!$E$8))-MAX(0,IF((Variabelen!$B$9-O3*Variabelen!$B$6)>50000,10000*Variabelen!$E$8+40000*Variabelen!$E$9+((Variabelen!$B$9-O3*Variabelen!$B$6)-50000)*Variabelen!$E$10,IF((Variabelen!$B$9-O3*Variabelen!$B$6)>10000,10000*Variabelen!$E$8+((Variabelen!$B$9-O3*Variabelen!$B$6)-10000)*Variabelen!$E$9,(Variabelen!$B$9-O3*Variabelen!$B$6)*Variabelen!$E$8))))*(1+Variabelen!$K$10)^N2 -> 0 | P20: =(IF(Variabelen!$B$9>50000,10000*Variabelen!$E$8+40000*Variabelen!$E$9+(Variabelen!$B$9-50000)*Variabelen!$E$10,IF(Variabelen!$B$9>10000,10000*Variabelen!$E$8+(Variabelen!$B$9-10000)*Variabelen!$E$9,Variabelen!$B$9*Variabelen!$E$8))-MAX(0,IF((Variabelen!$B$9-P3*Variabelen!$B$6)>50000,10000*Variabelen!$E$8+40000*Variabelen!$E$9+((Variabelen!$B$9-P3*Variabelen!$B$6)-50000)*Variabelen!$E$10,IF((Variabelen!$B$9-P3*Variabelen!$B$6)>10000,10000*Variabelen!$E$8+((Variabelen!$B$9-P3*Variabelen!$B$6)-10000)*Variabelen!$E$9,(Variabelen!$B$9-P3*Variabelen!$B$6)*Variabelen!$E$8))))*(1+Variabelen!$K$10)^O2 -> 0 | Q20: =(IF(Variabelen!$B$9>50000,10000*Variabelen!$E$8+40000*Variabelen!$E$9+(Variabelen!$B$9-50000)*Variabelen!$E$10,IF(Variabelen!$B$9>10000,10000*Variabelen!$E$8+(Variabelen!$B$9-10000)*Variabelen!$E$9,Variabelen!$B$9*Variabelen!$E$8))-MAX(0,IF((Variabelen!$B$9-Q3*Variabelen!$B$6)>50000,10000*Variabelen!$E$8+40000*Variabelen!$E$9+((Variabelen!$B$9-Q3*Variabelen!$B$6)-50000)*Variabelen!$E$10,IF((Variabelen!$B$9-Q3*Variabelen!$B$6)>10000,10000*Variabelen!$E$8+((Variabelen!$B$9-Q3*Variabelen!$B$6)-10000)*Variabelen!$E$9,(Variabelen!$B$9-Q3*Variabelen!$B$6)*Variabelen!$E$8))))*(1+Variabelen!$K$10)^P2 -> 0 | R20: =(IF(Variabelen!$B$9>50000,10000*Variabelen!$E$8+40000*Variabelen!$E$9+(Variabelen!$B$9-50000)*Variabelen!$E$10,IF(Variabelen!$B$9>10000,10000*Variabelen!$E$8+(Variabelen!$B$9-10000)*Variabelen!$E$9,Variabelen!$B$9*Variabelen!$E$8))-MAX(0,IF((Variabelen!$B$9-R3*Variabelen!$B$6)>50000,10000*Variabelen!$E$8+40000*Variabelen!$E$9+((Variabelen!$B$9-R3*Variabelen!$B$6)-50000)*Variabelen!$E$10,IF((Variabelen!$B$9-R3*Variabelen!$B$6)>10000,10000*Variabelen!$E$8+((Variabelen!$B$9-R3*Variabelen!$B$6)-10000)*Variabelen!$E$9,(Variabelen!$B$9-R3*Variabelen!$B$6)*Variabelen!$E$8))))*(1+Variabelen!$K$10)^Q2 -> 0 | S20: =(IF(Variabelen!$B$9>50000,10000*Variabelen!$E$8+40000*Variabelen!$E$9+(Variabelen!$B$9-50000)*Variabelen!$E$10,IF(Variabelen!$B$9>10000,10000*Variabelen!$E$8+(Variabelen!$B$9-10000)*Variabelen!$E$9,Variabelen!$B$9*Variabelen!$E$8))-MAX(0,IF((Variabelen!$B$9-S3*Variabelen!$B$6)>50000,10000*Variabelen!$E$8+40000*Variabelen!$E$9+((Variabelen!$B$9-S3*Variabelen!$B$6)-50000)*Variabelen!$E$10,IF((Variabelen!$B$9-S3*Variabelen!$B$6)>10000,10000*Variabelen!$E$8+((Variabelen!$B$9-S3*Variabelen!$B$6)-10000)*Variabelen!$E$9,(Variabelen!$B$9-S3*Variabelen!$B$6)*Variabelen!$E$8))))*(1+Variabelen!$K$10)^R2 -> 0 | T20: =(IF(Variabelen!$B$9>50000,10000*Variabelen!$E$8+40000*Variabelen!$E$9+(Variabelen!$B$9-50000)*Variabelen!$E$10,IF(Variabelen!$B$9>10000,10000*Variabelen!$E$8+(Variabelen!$B$9-10000)*Variabelen!$E$9,Variabelen!$B$9*Variabelen!$E$8))-MAX(0,IF((Variabelen!$B$9-T3*Variabelen!$B$6)>50000,10000*Variabelen!$E$8+40000*Variabelen!$E$9+((Variabelen!$B$9-T3*Variabelen!$B$6)-50000)*Variabelen!$E$10,IF((Variabelen!$B$9-T3*Variabelen!$B$6)>10000,10000*Variabelen!$E$8+((Variabelen!$B$9-T3*Variabelen!$B$6)-10000)*Variabelen!$E$9,(Variabelen!$B$9-T3*Variabelen!$B$6)*Variabelen!$E$8))))*(1+Variabelen!$K$10)^S2 -> 0 | U20: =(IF(Variabelen!$B$9>50000,10000*Variabelen!$E$8+40000*Variabelen!$E$9+(Variabelen!$B$9-50000)*Variabelen!$E$10,IF(Variabelen!$B$9>10000,10000*Variabelen!$E$8+(Variabelen!$B$9-10000)*Variabelen!$E$9,Variabelen!$B$9*Variabelen!$E$8))-MAX(0,IF((Variabelen!$B$9-U3*Variabelen!$B$6)>50000,10000*Variabelen!$E$8+40000*Variabelen!$E$9+((Variabelen!$B$9-U3*Variabelen!$B$6)-50000)*Variabelen!$E$10,IF((Variabelen!$B$9-U3*Variabelen!$B$6)>10000,10000*Variabelen!$E$8+((Variabelen!$B$9-U3*Variabelen!$B$6)-10000)*Variabelen!$E$9,(Variabelen!$B$9-U3*Variabelen!$B$6)*Variabelen!$E$8))))*(1+Variabelen!$K$10)^T2 -> 0 | V20: =(IF(Variabelen!$B$9>50000,10000*Variabelen!$E$8+40000*Variabelen!$E$9+(Variabelen!$B$9-50000)*Variabelen!$E$10,IF(Variabelen!$B$9>10000,10000*Variabelen!$E$8+(Variabelen!$B$9-10000)*Variabelen!$E$9,Variabelen!$B$9*Variabelen!$E$8))-MAX(0,IF((Variabelen!$B$9-V3*Variabelen!$B$6)>50000,10000*Variabelen!$E$8+40000*Variabelen!$E$9+((Variabelen!$B$9-V3*Variabelen!$B$6)-50000)*Variabelen!$E$10,IF((Variabelen!$B$9-V3*Variabelen!$B$6)>10000,10000*Variabelen!$E$8+((Variabelen!$B$9-V3*Variabelen!$B$6)-10000)*Variabelen!$E$9,(Variabelen!$B$9-V3*Variabelen!$B$6)*Variabelen!$E$8))))*(1+Variabelen!$K$10)^U2 -> 0 | W20: =(IF(Variabelen!$B$9>50000,10000*Variabelen!$E$8+40000*Variabelen!$E$9+(Variabelen!$B$9-50000)*Variabelen!$E$10,IF(Variabelen!$B$9>10000,10000*Variabelen!$E$8+(Variabelen!$B$9-10000)*Variabelen!$E$9,Variabelen!$B$9*Variabelen!$E$8))-MAX(0,IF((Variabelen!$B$9-W3*Variabelen!$B$6)>50000,10000*Variabelen!$E$8+40000*Variabelen!$E$9+((Variabelen!$B$9-W3*Variabelen!$B$6)-50000)*Variabelen!$E$10,IF((Variabelen!$B$9-W3*Variabelen!$B$6)>10000,10000*Variabelen!$E$8+((Variabelen!$B$9-W3*Variabelen!$B$6)-10000)*Variabelen!$E$9,(Variabelen!$B$9-W3*Variabelen!$B$6)*Variabelen!$E$8))))*(1+Variabelen!$K$10)^V2 -> 0 | X20: =(IF(Variabelen!$B$9>50000,10000*Variabelen!$E$8+40000*Variabelen!$E$9+(Variabelen!$B$9-50000)*Variabelen!$E$10,IF(Variabelen!$B$9>10000,10000*Variabelen!$E$8+(Variabelen!$B$9-10000)*Variabelen!$E$9,Variabelen!$B$9*Variabelen!$E$8))-MAX(0,IF((Variabelen!$B$9-X3*Variabelen!$B$6)>50000,10000*Variabelen!$E$8+40000*Variabelen!$E$9+((Variabelen!$B$9-X3*Variabelen!$B$6)-50000)*Variabelen!$E$10,IF((Variabelen!$B$9-X3*Variabelen!$B$6)>10000,10000*Variabelen!$E$8+((Variabelen!$B$9-X3*Variabelen!$B$6)-10000)*Variabelen!$E$9,(Variabelen!$B$9-X3*Variabelen!$B$6)*Variabelen!$E$8))))*(1+Variabelen!$K$10)^W2 -> 0 | Y20: =(IF(Variabelen!$B$9>50000,10000*Variabelen!$E$8+40000*Variabelen!$E$9+(Variabelen!$B$9-50000)*Variabelen!$E$10,IF(Variabelen!$B$9>10000,10000*Variabelen!$E$8+(Variabelen!$B$9-10000)*Variabelen!$E$9,Variabelen!$B$9*Variabelen!$E$8))-MAX(0,IF((Variabelen!$B$9-Y3*Variabelen!$B$6)>50000,10000*Variabelen!$E$8+40000*Variabelen!$E$9+((Variabelen!$B$9-Y3*Variabelen!$B$6)-50000)*Variabelen!$E$10,IF((Variabelen!$B$9-Y3*Variabelen!$B$6)>10000,10000*Variabelen!$E$8+((Variabelen!$B$9-Y3*Variabelen!$B$6)-10000)*Variabelen!$E$9,(Variabelen!$B$9-Y3*Variabelen!$B$6)*Variabelen!$E$8))))*(1+Variabelen!$K$10)^X2 -> 0 | Z20: =(IF(Variabelen!$B$9>50000,10000*Variabelen!$E$8+40000*Variabelen!$E$9+(Variabelen!$B$9-50000)*Variabelen!$E$10,IF(Variabelen!$B$9>10000,10000*Variabelen!$E$8+(Variabelen!$B$9-10000)*Variabelen!$E$9,Variabelen!$B$9*Variabelen!$E$8))-MAX(0,IF((Variabelen!$B$9-Z3*Variabelen!$B$6)>50000,10000*Variabelen!$E$8+40000*Variabelen!$E$9+((Variabelen!$B$9-Z3*Variabelen!$B$6)-50000)*Variabelen!$E$10,IF((Variabelen!$B$9-Z3*Variabelen!$B$6)>10000,10000*Variabelen!$E$8+((Variabelen!$B$9-Z3*Variabelen!$B$6)-10000)*Variabelen!$E$9,(Variabelen!$B$9-Z3*Variabelen!$B$6)*Variabelen!$E$8))))*(1+Variabelen!$K$10)^Y2 -> 0 | AA20: =(IF(Variabelen!$B$9>50000,10000*Variabelen!$E$8+40000*Variabelen!$E$9+(Variabelen!$B$9-50000)*Variabelen!$E$10,IF(Variabelen!$B$9>10000,10000*Variabelen!$E$8+(Variabelen!$B$9-10000)*Variabelen!$E$9,Variabelen!$B$9*Variabelen!$E$8))-MAX(0,IF((Variabelen!$B$9-AA3*Variabelen!$B$6)>50000,10000*Variabelen!$E$8+40000*Variabelen!$E$9+((Variabelen!$B$9-AA3*Variabelen!$B$6)-50000)*Variabelen!$E$10,IF((Variabelen!$B$9-AA3*Variabelen!$B$6)>10000,10000*Variabelen!$E$8+((Variabelen!$B$9-AA3*Variabelen!$B$6)-10000)*Variabelen!$E$9,(Variabelen!$B$9-AA3*Variabelen!$B$6)*Variabelen!$E$8))))*(1+Variabelen!$K$10)^Z2 -> 0 | AB20: =(IF(Variabelen!$B$9>50000,10000*Variabelen!$E$8+40000*Variabelen!$E$9+(Variabelen!$B$9-50000)*Variabelen!$E$10,IF(Variabelen!$B$9>10000,10000*Variabelen!$E$8+(Variabelen!$B$9-10000)*Variabelen!$E$9,Variabelen!$B$9*Variabelen!$E$8))-MAX(0,IF((Variabelen!$B$9-AB3*Variabelen!$B$6)>50000,10000*Variabelen!$E$8+40000*Variabelen!$E$9+((Variabelen!$B$9-AB3*Variabelen!$B$6)-50000)*Variabelen!$E$10,IF((Variabelen!$B$9-AB3*Variabelen!$B$6)>10000,10000*Variabelen!$E$8+((Variabelen!$B$9-AB3*Variabelen!$B$6)-10000)*Variabelen!$E$9,(Variabelen!$B$9-AB3*Variabelen!$B$6)*Variabelen!$E$8))))*(1+Variabelen!$K$10)^AA2 -> 0 | AJ20: E | AK20: F | AL20: G | AM20: H | AX20: x | AY20: x | AZ20: x | BA20: x | BB20: 7 | BC20: 7 | BD20: 7 | BE20: 7 | BF20: x | BG20: x | BH20: x | BI20: x | BJ20: x | BK20: x | BL20: x | BM20: x | BN20: x | BQ20: 10 | BR20: 58 | BS20: 64 | BT20: 70 | BU20: 76 | BV20: 81 | BW20: 87 | BX20: 93 | BY20: 99 | BZ20: 107 | CA20: 113 | CB20: 119 | CC20: 125 | CD20: 133 | CE20: 140 | CF20: 150 | CG20: 160 | CH20: 166
B21: Verkoop reststroom zelflevering | C21: 0 | D21: =((D3*(1-Variabelen!$B$6))+(MAX(0,D3*Variabelen!$B$6-Variabelen!$B$9)))*Variabelen!$E$3*(1+Variabelen!$K$11)^C2 -> 5334.2919 | E21: =((E3*(1-Variabelen!$B$6))+(MAX(0,E3*Variabelen!$B$6-Variabelen!$B$9)))*Variabelen!$E$3*(1+Variabelen!$K$11)^D2 -> 5296.951857 | F21: =((F3*(1-Variabelen!$B$6))+(MAX(0,F3*Variabelen!$B$6-Variabelen!$B$9)))*Variabelen!$E$3*(1+Variabelen!$K$11)^E2 -> 5259.873194 | G21: =((G3*(1-Variabelen!$B$6))+(MAX(0,G3*Variabelen!$B$6-Variabelen!$B$9)))*Variabelen!$E$3*(1+Variabelen!$K$11)^F2 -> 5223.054081 | H21: =((H3*(1-Variabelen!$B$6))+(MAX(0,H3*Variabelen!$B$6-Variabelen!$B$9)))*Variabelen!$E$3*(1+Variabelen!$K$11)^G2 -> 5186.492703 | I21: =((I3*(1-Variabelen!$B$6))+(MAX(0,I3*Variabelen!$B$6-Variabelen!$B$9)))*Variabelen!$E$3*(1+Variabelen!$K$11)^H2 -> 5150.187254 | J21: =((J3*(1-Variabelen!$B$6))+(MAX(0,J3*Variabelen!$B$6-Variabelen!$B$9)))*Variabelen!$E$3*(1+Variabelen!$K$11)^I2 -> 5114.135943 | K21: =((K3*(1-Variabelen!$B$6))+(MAX(0,K3*Variabelen!$B$6-Variabelen!$B$9)))*Variabelen!$E$3*(1+Variabelen!$K$11)^J2 -> 5078.336991 | L21: =((L3*(1-Variabelen!$B$6))+(MAX(0,L3*Variabelen!$B$6-Variabelen!$B$9)))*Variabelen!$E$3*(1+Variabelen!$K$11)^K2 -> 5042.788633 | M21: =((M3*(1-Variabelen!$B$6))+(MAX(0,M3*Variabelen!$B$6-Variabelen!$B$9)))*Variabelen!$E$3*(1+Variabelen!$K$11)^L2 -> 5007.489112 | N21: =((N3*(1-Variabelen!$B$6))+(MAX(0,N3*Variabelen!$B$6-Variabelen!$B$9)))*Variabelen!$E$3*(1+Variabelen!$K$11)^M2 -> 4972.436688 | O21: =((O3*(1-Variabelen!$B$6))+(MAX(0,O3*Variabelen!$B$6-Variabelen!$B$9)))*Variabelen!$E$3*(1+Variabelen!$K$11)^N2 -> 4937.629632 | P21: =((P3*(1-Variabelen!$B$6))+(MAX(0,P3*Variabelen!$B$6-Variabelen!$B$9)))*Variabelen!$E$3*(1+Variabelen!$K$11)^O2 -> 4903.066224 | Q21: =((Q3*(1-Variabelen!$B$6))+(MAX(0,Q3*Variabelen!$B$6-Variabelen!$B$9)))*Variabelen!$E$3*(1+Variabelen!$K$11)^P2 -> 4868.744761 | R21: =((R3*(1-Variabelen!$B$6))+(MAX(0,R3*Variabelen!$B$6-Variabelen!$B$9)))*Variabelen!$E$3*(1+Variabelen!$K$11)^Q2 -> 4834.663547 | S21: =((S3*(1-Variabelen!$B$6))+(MAX(0,S3*Variabelen!$B$6-Variabelen!$B$9)))*Variabelen!$E$3*(1+Variabelen!$K$11)^R2 -> 4800.820902 | T21: =((T3*(1-Variabelen!$B$6))+(MAX(0,T3*Variabelen!$B$6-Variabelen!$B$9)))*Variabelen!$E$3*(1+Variabelen!$K$11)^S2 -> 4767.215156 | U21: =((U3*(1-Variabelen!$B$6))+(MAX(0,U3*Variabelen!$B$6-Variabelen!$B$9)))*Variabelen!$E$3*(1+Variabelen!$K$11)^T2 -> 4733.84465 | V21: =((V3*(1-Variabelen!$B$6))+(MAX(0,V3*Variabelen!$B$6-Variabelen!$B$9)))*Variabelen!$E$3*(1+Variabelen!$K$11)^U2 -> 4700.707737 | W21: =((W3*(1-Variabelen!$B$6))+(MAX(0,W3*Variabelen!$B$6-Variabelen!$B$9)))*Variabelen!$E$3*(1+Variabelen!$K$11)^V2 -> 4667.802783 | X21: =((X3*(1-Variabelen!$B$6))+(MAX(0,X3*Variabelen!$B$6-Variabelen!$B$9)))*Variabelen!$E$3*(1+Variabelen!$K$11)^W2 -> 4635.128164 | Y21: =((Y3*(1-Variabelen!$B$6))+(MAX(0,Y3*Variabelen!$B$6-Variabelen!$B$9)))*Variabelen!$E$3*(1+Variabelen!$K$11)^X2 -> 4602.682267 | Z21: =((Z3*(1-Variabelen!$B$6))+(MAX(0,Z3*Variabelen!$B$6-Variabelen!$B$9)))*Variabelen!$E$3*(1+Variabelen!$K$11)^Y2 -> 4570.463491 | AA21: =((AA3*(1-Variabelen!$B$6))+(MAX(0,AA3*Variabelen!$B$6-Variabelen!$B$9)))*Variabelen!$E$3*(1+Variabelen!$K$11)^Z2 -> 4538.470246 | AB21: =((AB3*(1-Variabelen!$B$6))+(MAX(0,AB3*Variabelen!$B$6-Variabelen!$B$9)))*Variabelen!$E$3*(1+Variabelen!$K$11)^AA2 -> 4506.700955 | AJ21: E | AK21: F | AL21: G | AM21: H | AX21: x | AY21: x | AZ21: x | BA21: x | BB21: 8 | BC21: 8 | BD21: 8 | BE21: 8 | BF21: x | BG21: x | BH21: x | BI21: x | BJ21: x | BK21: x | BL21: x | BM21: x | BN21: x | BQ21: 11 | BR21: 59 | BS21: 65 | BT21: 71 | BU21: 77 | BV21: 82 | BW21: 88 | BX21: 94 | BY21: 100 | BZ21: 108 | CA21: 114 | CB21: 120 | CC21: 126 | CD21: 134 | CE21: 141 | CF21: 151 | CG21: 161 | CH21: 167
B22: Abo Leden | C22: 0 | D22: =Abonnement_leden*Variabelen!$K$4*(1+Variabelen!$K$13)^C2 -> 3480 | E22: =Abonnement_leden*Variabelen!$K$4*(1+Variabelen!$K$13)^D2 -> 3514.8 | F22: =Abonnement_leden*Variabelen!$K$4*(1+Variabelen!$K$13)^E2 -> 3549.948 | G22: =Abonnement_leden*Variabelen!$K$4*(1+Variabelen!$K$13)^F2 -> 3585.44748 | H22: =Abonnement_leden*Variabelen!$K$4*(1+Variabelen!$K$13)^G2 -> 3621.301955 | I22: =Abonnement_leden*Variabelen!$K$4*(1+Variabelen!$K$13)^H2 -> 3657.514974 | J22: =Abonnement_leden*Variabelen!$K$4*(1+Variabelen!$K$13)^I2 -> 3694.090124 | K22: =Abonnement_leden*Variabelen!$K$4*(1+Variabelen!$K$13)^J2 -> 3731.031025 | L22: =Abonnement_leden*Variabelen!$K$4*(1+Variabelen!$K$13)^K2 -> 3768.341336 | M22: =Abonnement_leden*Variabelen!$K$4*(1+Variabelen!$K$13)^L2 -> 3806.024749 | N22: =Abonnement_leden*Variabelen!$K$4*(1+Variabelen!$K$13)^M2 -> 3844.084996 | O22: =Abonnement_leden*Variabelen!$K$4*(1+Variabelen!$K$13)^N2 -> 3882.525846 | P22: =Abonnement_leden*Variabelen!$K$4*(1+Variabelen!$K$13)^O2 -> 3921.351105 | Q22: =Abonnement_leden*Variabelen!$K$4*(1+Variabelen!$K$13)^P2 -> 3960.564616 | R22: =Abonnement_leden*Variabelen!$K$4*(1+Variabelen!$K$13)^Q2 -> 4000.170262 | S22: =Abonnement_leden*Variabelen!$K$4*(1+Variabelen!$K$13)^R2 -> 4040.171965 | T22: =Abonnement_leden*Variabelen!$K$4*(1+Variabelen!$K$13)^S2 -> 4080.573684 | U22: =Abonnement_leden*Variabelen!$K$4*(1+Variabelen!$K$13)^T2 -> 4121.379421 | V22: =Abonnement_leden*Variabelen!$K$4*(1+Variabelen!$K$13)^U2 -> 4162.593215 | W22: =Abonnement_leden*Variabelen!$K$4*(1+Variabelen!$K$13)^V2 -> 4204.219148 | X22: =Abonnement_leden*Variabelen!$K$4*(1+Variabelen!$K$13)^W2 -> 4246.261339 | Y22: =Abonnement_leden*Variabelen!$K$4*(1+Variabelen!$K$13)^X2 -> 4288.723952 | Z22: =Abonnement_leden*Variabelen!$K$4*(1+Variabelen!$K$13)^Y2 -> 4331.611192 | AA22: =Abonnement_leden*Variabelen!$K$4*(1+Variabelen!$K$13)^Z2 -> 4374.927304 | AB22: =Abonnement_leden*Variabelen!$K$4*(1+Variabelen!$K$13)^AA2 -> 4418.676577 | AF22: A | AG22: B | AH22: C | AI22: D | AJ22: E | AK22: F | AL22: G | AM22: H | AN22: I | AO22: J | AP22: K | AQ22: L | AX22: 9 | AY22: 9 | AZ22: 9 | BA22: 9 | BB22: 9 | BC22: 9 | BD22: 9 | BE22: 9 | BF22: 9 | BG22: 9 | BH22: 9 | BI22: 9 | BJ22: x | BK22: x | BL22: x | BM22: x | BN22: x | BQ22: 12 | BV22: 83 | BW22: 89 | BX22: 95 | BY22: 101 | BZ22: 109 | CA22: 115 | CC22: 127 | CD22: 135 | CE22: 142 | CF22: 152 | CH22: 168
B23: Verkoop systeem | C23: 0 | D23: =IF(D2=Variabelen!$E$25,Totaal!D10,0) -> 0 | E23: =IF(E2=Variabelen!$E$25,Totaal!E10,0) -> 0 | F23: =IF(F2=Variabelen!$E$25,Totaal!F10,0) -> 0 | G23: =IF(G2=Variabelen!$E$25,Totaal!G10,0) -> 0 | H23: =IF(H2=Variabelen!$E$25,Totaal!H10,0) -> 0 | I23: =IF(I2=Variabelen!$E$25,Totaal!I10,0) -> 0 | J23: =IF(J2=Variabelen!$E$25,Totaal!J10,0) -> 0 | K23: =IF(K2=Variabelen!$E$25,Totaal!K10,0) -> 0 | L23: =IF(L2=Variabelen!$E$25,Totaal!L10,0) -> 0 | M23: =IF(M2=Variabelen!$E$25,Totaal!M10,0) -> 65424 | N23: =IF(N2=Variabelen!$E$25,Totaal!N10,0) -> 0 | O23: =IF(O2=Variabelen!$E$25,Totaal!O10,0) -> 0 | P23: =IF(P2=Variabelen!$E$25,Totaal!P10,0) -> 0 | Q23: =IF(Q2=Variabelen!$E$25,Totaal!Q10,0) -> 0 | R23: =IF(R2=Variabelen!$E$25,Totaal!R10,0) -> 0 | S23: =IF(S2=Variabelen!$E$25,Totaal!S10,0) -> 0 | T23: =IF(T2=Variabelen!$E$25,Totaal!T10,0) -> 0 | U23: =IF(U2=Variabelen!$E$25,Totaal!U10,0) -> 0 | V23: =IF(V2=Variabelen!$E$25,Totaal!V10,0) -> 0 | W23: =IF(W2=Variabelen!$E$25,Totaal!W10,0) -> 0 | X23: =IF(X2=Variabelen!$E$25,Totaal!X10,0) -> 0 | Y23: =IF(Y2=Variabelen!$E$25,Totaal!Y10,0) -> 0 | Z23: =IF(Z2=Variabelen!$E$25,Totaal!Z10,0) -> 0 | AA23: =IF(AA2=Variabelen!$E$25,Totaal!AA10,0) -> 0 | AB23: =IF(AB2=Variabelen!$E$25,Totaal!AB10,0) -> 0 | AN23: I | AO23: J | AP23: K | AQ23: L | AT23: O | AV23: Q | AX23: x | AY23: x | AZ23: x | BA23: x | BB23: x | BC23: x | BD23: x | BE23: x | BF23: 10 | BG23: 10 | BH23: 10 | BI23: 10 | BJ23: x | BK23: x | BL23: 10 | BM23: x | BN23: 10 | BQ23: 13 | BV23: 84 | BW23: 90 | BX23: 96 | BY23: 102 | CD23: 136 | CE23: 143 | CF23: 153
B24: Besparing levering PCR | C24: 0 | D24: =IF(D2<=Variabelen!$E$14,D3*Variabelen!$E$4*(1+Variabelen!$K$11)^D2,0) -> 7620.417 | E24: =IF(E2<=Variabelen!$E$14,E3*Variabelen!$E$4*(1+Variabelen!$K$11)^E2,0) -> 7567.074081 | F24: =IF(F2<=Variabelen!$E$14,F3*Variabelen!$E$4*(1+Variabelen!$K$11)^F2,0) -> 7514.104562 | G24: =IF(G2<=Variabelen!$E$14,G3*Variabelen!$E$4*(1+Variabelen!$K$11)^G2,0) -> 7461.50583 | H24: =IF(H2<=Variabelen!$E$14,H3*Variabelen!$E$4*(1+Variabelen!$K$11)^H2,0) -> 7409.27529 | I24: =IF(I2<=Variabelen!$E$14,I3*Variabelen!$E$4*(1+Variabelen!$K$11)^I2,0) -> 7357.410363 | J24: =IF(J2<=Variabelen!$E$14,J3*Variabelen!$E$4*(1+Variabelen!$K$11)^J2,0) -> 7305.90849 | K24: =IF(K2<=Variabelen!$E$14,K3*Variabelen!$E$4*(1+Variabelen!$K$11)^K2,0) -> 7254.767131 | L24: =IF(L2<=Variabelen!$E$14,L3*Variabelen!$E$4*(1+Variabelen!$K$11)^L2,0) -> 7203.983761 | M24: =IF(M2<=Variabelen!$E$14,M3*Variabelen!$E$4*(1+Variabelen!$K$11)^M2,0) -> 7153.555874 | N24: =IF(N2<=Variabelen!$E$14,N3*Variabelen!$E$4*(1+Variabelen!$K$11)^N2,0) -> 7103.480983 | O24: =IF(O2<=Variabelen!$E$14,O3*Variabelen!$E$4*(1+Variabelen!$K$11)^O2,0) -> 7053.756616 | P24: =IF(P2<=Variabelen!$E$14,P3*Variabelen!$E$4*(1+Variabelen!$K$11)^P2,0) -> 7004.38032 | Q24: =IF(Q2<=Variabelen!$E$14,Q3*Variabelen!$E$4*(1+Variabelen!$K$11)^Q2,0) -> 6955.349658 | R24: =IF(R2<=Variabelen!$E$14,R3*Variabelen!$E$4*(1+Variabelen!$K$11)^R2,0) -> 6906.66221 | S24: =IF(S2<=Variabelen!$E$14,S3*Variabelen!$E$4*(1+Variabelen!$K$11)^S2,0) -> 0 | T24: =IF(T2<=Variabelen!$E$14,T3*Variabelen!$E$4*(1+Variabelen!$K$11)^T2,0) -> 0 | U24: =IF(U2<=Variabelen!$E$14,U3*Variabelen!$E$4*(1+Variabelen!$K$11)^U2,0) -> 0 | V24: =IF(V2<=Variabelen!$E$14,V3*Variabelen!$E$4*(1+Variabelen!$K$11)^V2,0) -> 0 | W24: =IF(W2<=Variabelen!$E$14,W3*Variabelen!$E$4*(1+Variabelen!$K$11)^W2,0) -> 0 | X24: =IF(X2<=Variabelen!$E$14,X3*Variabelen!$E$4*(1+Variabelen!$K$11)^X2,0) -> 0 | Y24: =IF(Y2<=Variabelen!$E$14,Y3*Variabelen!$E$4*(1+Variabelen!$K$11)^Y2,0) -> 0 | Z24: =IF(Z2<=Variabelen!$E$14,Z3*Variabelen!$E$4*(1+Variabelen!$K$11)^Z2,0) -> 0 | AA24: =IF(AA2<=Variabelen!$E$14,AA3*Variabelen!$E$4*(1+Variabelen!$K$11)^AA2,0) -> 0 | AB24: =IF(AB2<=Variabelen!$E$14,AB3*Variabelen!$E$4*(1+Variabelen!$K$11)^AB2,0) -> 0 | AR24: M | AS24: N | AT24: O | AX24: x | AY24: x | AZ24: x | BA24: x | BB24: x | BC24: x | BD24: x | BE24: x | BF24: x | BG24: x | BH24: x | BI24: x | BJ24: 11 | BK24: 11 | BL24: 11 | BM24: x | BN24: x | BQ24: 14 | CE24: 144 | CF24: 154
B25: Besparing EB PCR | C25: 0 | D25: =IF(D2<=Variabelen!$E$14,D3*Variabelen!$E$13,0) -> 15438.96484 | E25: =IF(E2<=Variabelen!$E$14,E3*Variabelen!$E$13,0) -> 15330.89209 | F25: =IF(F2<=Variabelen!$E$14,F3*Variabelen!$E$13,0) -> 15223.57584 | G25: =IF(G2<=Variabelen!$E$14,G3*Variabelen!$E$13,0) -> 15117.01081 | H25: =IF(H2<=Variabelen!$E$14,H3*Variabelen!$E$13,0) -> 15011.19174 | I25: =IF(I2<=Variabelen!$E$14,I3*Variabelen!$E$13,0) -> 14906.11339 | J25: =IF(J2<=Variabelen!$E$14,J3*Variabelen!$E$13,0) -> 14801.7706 | K25: =IF(K2<=Variabelen!$E$14,K3*Variabelen!$E$13,0) -> 14698.15821 | L25: =IF(L2<=Variabelen!$E$14,L3*Variabelen!$E$13,0) -> 14595.2711 | M25: =IF(M2<=Variabelen!$E$14,M3*Variabelen!$E$13,0) -> 14493.1042 | N25: =IF(N2<=Variabelen!$E$14,N3*Variabelen!$E$13,0) -> 14391.65247 | O25: =IF(O2<=Variabelen!$E$14,O3*Variabelen!$E$13,0) -> 14290.9109 | P25: =IF(P2<=Variabelen!$E$14,P3*Variabelen!$E$13,0) -> 14190.87453 | Q25: =IF(Q2<=Variabelen!$E$14,Q3*Variabelen!$E$13,0) -> 14091.53841 | R25: =IF(R2<=Variabelen!$E$14,R3*Variabelen!$E$13,0) -> 13992.89764 | S25: =IF(S2<=Variabelen!$E$14,S3*Variabelen!$E$13,0) -> 0 | T25: =IF(T2<=Variabelen!$E$14,T3*Variabelen!$E$13,0) -> 0 | U25: =IF(U2<=Variabelen!$E$14,U3*Variabelen!$E$13,0) -> 0 | V25: =IF(V2<=Variabelen!$E$14,V3*Variabelen!$E$13,0) -> 0 | W25: =IF(W2<=Variabelen!$E$14,W3*Variabelen!$E$13,0) -> 0 | X25: =IF(X2<=Variabelen!$E$14,X3*Variabelen!$E$13,0) -> 0 | Y25: =IF(Y2<=Variabelen!$E$14,Y3*Variabelen!$E$13,0) -> 0 | Z25: =IF(Z2<=Variabelen!$E$14,Z3*Variabelen!$E$13,0) -> 0 | AA25: =IF(AA2<=Variabelen!$E$14,AA3*Variabelen!$E$13,0) -> 0 | AB25: =IF(AB2<=Variabelen!$E$14,AB3*Variabelen!$E$13,0) -> 0 | AS25: N | AX25: x | AY25: x | AZ25: x | BA25: x | BB25: x | BC25: x | BD25: x | BE25: x | BF25: x | BG25: x | BH25: x | BI25: x | BJ25: x | BK25: 12 | BL25: x | BM25: x | BN25: x | BQ25: 15 | CE25: 145
B26: Besparing btw levering PCR | C26: 0 | D26: =(D24)*Variabelen!$K$8 -> 1600.28757 | E26: =(E24)*Variabelen!$K$8 -> 1589.085557 | F26: =(F24)*Variabelen!$K$8 -> 1577.961958 | G26: =(G24)*Variabelen!$K$8 -> 1566.916224 | H26: =(H24)*Variabelen!$K$8 -> 1555.947811 | I26: =(I24)*Variabelen!$K$8 -> 1545.056176 | J26: =(J24)*Variabelen!$K$8 -> 1534.240783 | K26: =(K24)*Variabelen!$K$8 -> 1523.501097 | L26: =(L24)*Variabelen!$K$8 -> 1512.83659 | M26: =(M24)*Variabelen!$K$8 -> 1502.246734 | N26: =(N24)*Variabelen!$K$8 -> 1491.731006 | O26: =(O24)*Variabelen!$K$8 -> 1481.288889 | P26: =(P24)*Variabelen!$K$8 -> 1470.919867 | Q26: =(Q24)*Variabelen!$K$8 -> 1460.623428 | R26: =(R24)*Variabelen!$K$8 -> 1450.399064 | S26: =(S24)*Variabelen!$K$8 -> 0 | T26: =(T24)*Variabelen!$K$8 -> 0 | U26: =(U24)*Variabelen!$K$8 -> 0 | V26: =(V24)*Variabelen!$K$8 -> 0 | W26: =(W24)*Variabelen!$K$8 -> 0 | X26: =(X24)*Variabelen!$K$8 -> 0 | Y26: =(Y24)*Variabelen!$K$8 -> 0 | Z26: =(Z24)*Variabelen!$K$8 -> 0 | AA26: =(AA24)*Variabelen!$K$8 -> 0 | AB26: =(AB24)*Variabelen!$K$8 -> 0 | AR26: M | AS26: N | AT26: O | AX26: x | AY26: x | AZ26: x | BA26: x | BB26: x | BC26: x | BD26: x | BE26: x | BF26: x | BG26: x | BH26: x | BI26: x | BJ26: 13 | BK26: 13 | BL26: 13 | BM26: x | BN26: x | BQ26: 16
B27: Besparing btw EB PCR | C27: 0 | D27: =(D25)*Variabelen!$K$8 -> 3242.182617 | E27: =(E25)*Variabelen!$K$8 -> 3219.487339 | F27: =(F25)*Variabelen!$K$8 -> 3196.950927 | G27: =(G25)*Variabelen!$K$8 -> 3174.572271 | H27: =(H25)*Variabelen!$K$8 -> 3152.350265 | I27: =(I25)*Variabelen!$K$8 -> 3130.283813 | J27: =(J25)*Variabelen!$K$8 -> 3108.371826 | K27: =(K25)*Variabelen!$K$8 -> 3086.613223 | L27: =(L25)*Variabelen!$K$8 -> 3065.006931 | M27: =(M25)*Variabelen!$K$8 -> 3043.551882 | N27: =(N25)*Variabelen!$K$8 -> 3022.247019 | O27: =(O25)*Variabelen!$K$8 -> 3001.09129 | P27: =(P25)*Variabelen!$K$8 -> 2980.083651 | Q27: =(Q25)*Variabelen!$K$8 -> 2959.223065 | R27: =(R25)*Variabelen!$K$8 -> 2938.508504 | S27: =(S25)*Variabelen!$K$8 -> 0 | T27: =(T25)*Variabelen!$K$8 -> 0 | U27: =(U25)*Variabelen!$K$8 -> 0 | V27: =(V25)*Variabelen!$K$8 -> 0 | W27: =(W25)*Variabelen!$K$8 -> 0 | X27: =(X25)*Variabelen!$K$8 -> 0 | Y27: =(Y25)*Variabelen!$K$8 -> 0 | Z27: =(Z25)*Variabelen!$K$8 -> 0 | AA27: =(AA25)*Variabelen!$K$8 -> 0 | AB27: =(AB25)*Variabelen!$K$8 -> 0 | AS27: N | AX27: x | AY27: x | AZ27: x | BA27: x | BB27: x | BC27: x | BD27: x | BE27: x | BF27: x | BG27: x | BH27: x | BI27: x | BJ27: x | BK27: 14 | BL27: x | BM27: x | BN27: x | BQ27: 17
B28: Besparing levering saldering | C28: 0 | D28: =IF(Scenario_Salderen=4,D48,IF(Scenario_Salderen=3,D44,IF(Scenario_Salderen=2,D40,D36))) -> 0 | E28: 0 | F28: 0 | G28: 0 | H28: 0 | I28: 0 | J28: 0 | K28: 0 | L28: 0 | M28: 0 | N28: 0 | O28: 0 | P28: 0 | Q28: 0 | R28: 0 | S28: 0 | T28: 0 | U28: 0 | V28: 0 | W28: 0 | X28: 0 | Y28: 0 | Z28: 0 | AA28: 0 | AB28: 0 | AU28: P | AV28: Q | AX28: x | AY28: x | AZ28: x | BA28: x | BB28: x | BC28: x | BD28: x | BE28: x | BF28: x | BG28: x | BH28: x | BI28: x | BJ28: x | BK28: x | BL28: x | BM28: 15 | BN28: 15 | BQ28: 18
B29: Besparing EB saldering | C29: 0 | D29: =IF(Scenario_Salderen=4,D49,IF(Scenario_Salderen=3,D45,IF(Scenario_Salderen=2,D41,D37))) -> 0 | E29: 0 | F29: 0 | G29: 0 | H29: 0 | I29: 0 | J29: 0 | K29: 0 | L29: 0 | M29: 0 | N29: 0 | O29: 0 | P29: 0 | Q29: 0 | R29: 0 | S29: 0 | T29: 0 | U29: 0 | V29: 0 | W29: 0 | X29: 0 | Y29: 0 | Z29: 0 | AA29: 0 | AB29: 0 | AU29: P | AV29: Q | AX29: x | AY29: x | AZ29: x | BA29: x | BB29: x | BC29: x | BD29: x | BE29: x | BF29: x | BG29: x | BH29: x | BI29: x | BJ29: x | BK29: x | BL29: x | BM29: 16 | BN29: 16 | BQ29: 19
B30: Verkoop reststroom saldering | C30: 0 | D30: =IF(Scenario_Salderen=4,D50,IF(Scenario_Salderen=3,D46,IF(Scenario_Salderen=2,D42,D38))) -> 5334.2919 | E30: 5296.951857 | F30: 5259.873194 | G30: 5223.054081 | H30: 5186.492703 | I30: 5150.187254 | J30: 5114.135943 | K30: 5078.336991 | L30: 5042.788633 | M30: 5007.489112 | N30: 4972.436688 | O30: 4937.629632 | P30: 4903.066224 | Q30: 4868.744761 | R30: 4834.663547 | S30: 4800.820902 | T30: 4767.215156 | U30: 4733.84465 | V30: 4700.707737 | W30: 4667.802783 | X30: 4635.128164 | Y30: 4602.682267 | Z30: 4570.463491 | AA30: 4538.470246 | AB30: 4506.700955 | AU30: P | AV30: Q | AX30: x | AY30: x | AZ30: x | BA30: x | BB30: x | BC30: x | BD30: x | BE30: x | BF30: x | BG30: x | BH30: x | BI30: x | BJ30: x | BK30: x | BL30: x | BM30: 17 | BN30: 17 | BQ30: 20
B31: Zelflevering | C31: 0 | D31: =IF(Scenario_Salderen=4,D51,IF(Scenario_Salderen=3,D47,IF(Scenario_Salderen=2,D43,D39))) -> 0 | E31: 0 | F31: 0 | G31: 0 | H31: 0 | I31: 0 | J31: 0 | K31: 0 | L31: 0 | M31: 0 | N31: 0 | O31: 0 | P31: 0 | Q31: 0 | R31: 0 | S31: 0 | T31: 0 | U31: 0 | V31: 0 | W31: 0 | X31: 0 | Y31: 0 | Z31: 0 | AA31: 0 | AB31: 0 | AU31: P | AV31: Q | BM31: 18 | BN31: 18
A33: versie 2016 | B33: Zelflevering | D33: =MIN(D3*(Zelfconsumptie),Verbruik_locatie) -> 0 | E33: 0 | F33: 0 | G33: 0 | H33: 0 | I33: 0 | J33: 0 | K33: 0 | L33: 0 | M33: 0 | N33: 0 | O33: 0 | P33: 0 | Q33: 0 | R33: 0 | S33: 0 | T33: 0 | U33: 0 | V33: 0 | W33: 0 | X33: 0 | Y33: 0 | Z33: 0 | AA33: 0 | AB33: 0
B34: Reststroom binnen verbruik (salderen) | D34: =MIN(D3*(1-Zelfconsumptie),Verbruik_locatie-D33) -> 0 | E34: 0 | F34: 0 | G34: 0 | H34: 0 | I34: 0 | J34: 0 | K34: 0 | L34: 0 | M34: 0 | N34: 0 | O34: 0 | P34: 0 | Q34: 0 | R34: 0 | S34: 0 | T34: 0 | U34: 0 | V34: 0 | W34: 0 | X34: 0 | Y34: 0 | Z34: 0 | AA34: 0 | AB34: 0
B35: Overproductie | D35: =D3-D33-D34 -> 152408.34 | E35: =E3-E33-E34 -> 151341.4816 | F35: 150282.0912 | G35: 149230.1166 | H35: 148185.5058 | I35: 147148.2073 | J35: 146118.1698 | K35: 145095.3426 | L35: 144079.6752 | M35: 143071.1175 | N35: 142069.6197 | O35: 141075.1323 | P35: 140087.6064 | Q35: 139106.9932 | R35: 138133.2442 | S35: 137166.3115 | T35: 136206.1473 | U35: 135252.7043 | V35: 134305.9354 | W35: 133365.7938 | X35: 132432.2333 | Y35: 131505.2076 | Z35: 130584.6712 | AA35: 129670.5785 | AB35: 128762.8844
A36: 1 | B36: Besparing levering saldering | C36: 0 | D36: =D34*kWh_prijs_levering*(1+Stijging_stroomtarieven)^C2 -> 0 | E36: 0 | F36: 0 | G36: 0 | H36: 0 | I36: 0 | J36: 0 | K36: 0 | L36: 0 | M36: 0 | N36: 0 | O36: 0 | P36: 0 | Q36: 0 | R36: 0 | S36: 0 | T36: 0 | U36: 0 | V36: 0 | W36: 0 | X36: 0 | Y36: 0 | Z36: 0 | AA36: 0 | AB36: 0
A37: 1 | B37: Besparing EB saldering | C37: 0 | D37: =(IF((Verbruik_locatie-D33)>50000,10000*Energiebelasting_1+40000*Energiebelasting_2+((Verbruik_locatie-D33)-50000)*Energiebelasting_3,IF((Verbruik_locatie-D33)>10000,10000*Energiebelasting_1+((Verbruik_locatie-D33)-10000)*Energiebelasting_2,(Verbruik_locatie-D33)*Energiebelasting_1))-IF((Verbruik_locatie-D33-D34)>50000,10000*Energiebelasting_1+40000*Energiebelasting_2+((Verbruik_locatie-D33-D34)-50000)*Energiebelasting_3,IF((Verbruik_locatie-D33-D34)>10000,10000*Energiebelasting_1+((Verbruik_locatie-D33-D34)-10000)*Energiebelasting_2,(Verbruik_locatie-D33-D34)*Energiebelasting_1)))*(1+Stijging_energiebelasting)^C2 -> 0 | E37: 0 | F37: 0 | G37: 0 | H37: 0 | I37: 0 | J37: 0 | K37: 0 | L37: 0 | M37: 0 | N37: 0 | O37: 0 | P37: 0 | Q37: 0 | R37: 0 | S37: 0 | T37: 0 | U37: 0 | V37: 0 | W37: 0 | X37: 0 | Y37: 0 | Z37: 0 | AA37: 0 | AB37: 0
A38: 1 | B38: Verkoop reststroom saldering | C38: 0 | D38: =D35*kWh__prijs_markt*(1+Stijging_stroomtarieven)^C2 -> 5334.2919 | E38: 5296.951857 | F38: 5259.873194 | G38: 5223.054081 | H38: 5186.492703 | I38: 5150.187254 | J38: 5114.135943 | K38: 5078.336991 | L38: 5042.788633 | M38: 5007.489112 | N38: 4972.436688 | O38: 4937.629632 | P38: 4903.066224 | Q38: 4868.744761 | R38: 4834.663547 | S38: 4800.820902 | T38: 4767.215156 | U38: 4733.84465 | V38: 4700.707737 | W38: 4667.802783 | X38: 4635.128164 | Y38: 4602.682267 | Z38: 4570.463491 | AA38: 4538.470246 | AB38: 4506.700955
A39: 1 | B39: Zelflevering | C39: 0 | D39: =((D33*kWh_prijs_levering)*(1+Stijging_stroomtarieven)^C2)+((IF((Verbruik_locatie)>50000,10000*Energiebelasting_1+40000*Energiebelasting_2+((Verbruik_locatie)-50000)*Energiebelasting_3,IF((Verbruik_locatie)>10000,10000*Energiebelasting_1+((Verbruik_locatie)-10000)*Energiebelasting_2,(Verbruik_locatie)*Energiebelasting_1))-IF((Verbruik_locatie-D33)>50000,10000*Energiebelasting_1+40000*Energiebelasting_2+((Verbruik_locatie-D33)-50000)*Energiebelasting_3,IF((Verbruik_locatie-D33)>10000,10000*Energiebelasting_1+((Verbruik_locatie-D33)-10000)*Energiebelasting_2,(Verbruik_locatie-D33)*Energiebelasting_1)))*(1+Stijging_energiebelasting)^C2) -> 0 | E39: 0 | F39: 0 | G39: 0 | H39: 0 | I39: 0 | J39: 0 | K39: 0 | L39: 0 | M39: 0 | N39: 0 | O39: 0 | P39: 0 | Q39: 0 | R39: 0 | S39: 0 | T39: 0 | U39: 0 | V39: 0 | W39: 0 | X39: 0 | Y39: 0 | Z39: 0 | AA39: 0 | AB39: 0
A40: 2 | B40: Besparing levering saldering | C40: 0 | D40: =MAX(0,MIN(1,1-0.1*(D2-5)))*D34*kWh_prijs_levering*(1+Stijging_stroomtarieven)^C2 -> 0 | E40: 0 | F40: 0 | G40: 0 | H40: 0 | I40: 0 | J40: 0 | K40: 0 | L40: 0 | M40: 0 | N40: 0 | O40: 0 | P40: 0 | Q40: 0 | R40: 0 | S40: 0 | T40: 0 | U40: 0 | V40: 0 | W40: 0 | X40: 0 | Y40: 0 | Z40: 0 | AA40: 0 | AB40: 0
A41: 2 | B41: Besparing EB saldering | C41: 0 | D41: =(IF((Verbruik_locatie-D33)>50000,10000*Energiebelasting_1+40000*Energiebelasting_2+((Verbruik_locatie-D33)-50000)*Energiebelasting_3,IF((Verbruik_locatie-D33)>10000,10000*Energiebelasting_1+((Verbruik_locatie-D33)-10000)*Energiebelasting_2,(Verbruik_locatie-D33)*Energiebelasting_1))-IF((Verbruik_locatie-D33-MAX(0,MIN(1,1-0.1*(D2-5)))*D34)>50000,10000*Energiebelasting_1+40000*Energiebelasting_2+((Verbruik_locatie-D33-MAX(0,MIN(1,1-0.1*(D2-5)))*D34)-50000)*Energiebelasting_3,IF((Verbruik_locatie-D33-MAX(0,MIN(1,1-0.1*(D2-5)))*D34)>10000,10000*Energiebelasting_1+((Verbruik_locatie-D33-MAX(0,MIN(1,1-0.1*(D2-5)))*D34)-10000)*Energiebelasting_2,(Verbruik_locatie-D33-MAX(0,MIN(1,1-0.1*(D2-5)))*D34)*Energiebelasting_1)))*(1+Stijging_energiebelasting)^C2 -> 0 | E41: 0 | F41: 0 | G41: 0 | H41: 0 | I41: 0 | J41: 0 | K41: 0 | L41: 0 | M41: 0 | N41: 0 | O41: 0 | P41: 0 | Q41: 0 | R41: 0 | S41: 0 | T41: 0 | U41: 0 | V41: 0 | W41: 0 | X41: 0 | Y41: 0 | Z41: 0 | AA41: 0 | AB41: 0
A42: 2 | B42: Verkoop reststroom saldering | C42: 0 | D42: =IF(D2>5,(D35+MAX(0,MIN(1,0.1*(D2-5)))*D34)*kWh__prijs_markt*(1+Stijging_stroomtarieven)^C2,D35*kWh__prijs_markt*(1+Stijging_stroomtarieven)^C2) -> 5334.2919 | E42: 5296.951857 | F42: 5259.873194 | G42: 5223.054081 | H42: 5186.492703 | I42: 5150.187254 | J42: 5114.135943 | K42: 5078.336991 | L42: 5042.788633 | M42: 5007.489112 | N42: 4972.436688 | O42: 4937.629632 | P42: 4903.066224 | Q42: 4868.744761 | R42: 4834.663547 | S42: 4800.820902 | T42: 4767.215156 | U42: 4733.84465 | V42: 4700.707737 | W42: 4667.802783 | X42: 4635.128164 | Y42: 4602.682267 | Z42: 4570.463491 | AA42: 4538.470246 | AB42: 4506.700955
A43: 2 | B43: Zelflevering | C43: 0 | D43: =((D33*kWh_prijs_levering)*(1+Stijging_stroomtarieven)^C2)+((IF((Verbruik_locatie)>50000,10000*Energiebelasting_1+40000*Energiebelasting_2+((Verbruik_locatie)-50000)*Energiebelasting_3,IF((Verbruik_locatie)>10000,10000*Energiebelasting_1+((Verbruik_locatie)-10000)*Energiebelasting_2,(Verbruik_locatie)*Energiebelasting_1))-IF((Verbruik_locatie-D33)>50000,10000*Energiebelasting_1+40000*Energiebelasting_2+((Verbruik_locatie-D33)-50000)*Energiebelasting_3,IF((Verbruik_locatie-D33)>10000,10000*Energiebelasting_1+((Verbruik_locatie-D33)-10000)*Energiebelasting_2,(Verbruik_locatie-D33)*Energiebelasting_1)))*(1+Stijging_energiebelasting)^C2) -> 0 | E43: 0 | F43: 0 | G43: 0 | H43: 0 | I43: 0 | J43: 0 | K43: 0 | L43: 0 | M43: 0 | N43: 0 | O43: 0 | P43: 0 | Q43: 0 | R43: 0 | S43: 0 | T43: 0 | U43: 0 | V43: 0 | W43: 0 | X43: 0 | Y43: 0 | Z43: 0 | AA43: 0 | AB43: 0
A44: 3 | B44: Besparing levering saldering | C44: 0 | D44: =IF(D2>5,0,D34*kWh_prijs_levering*(1+Stijging_stroomtarieven)^C2) -> 0 | E44: 0 | F44: 0 | G44: 0 | H44: 0 | I44: 0 | J44: 0 | K44: 0 | L44: 0 | M44: 0 | N44: 0 | O44: 0 | P44: 0 | Q44: 0 | R44: 0 | S44: 0 | T44: 0 | U44: 0 | V44: 0 | W44: 0 | X44: 0 | Y44: 0 | Z44: 0 | AA44: 0 | AB44: 0
A45: 3 | B45: Besparing EB saldering | C45: 0 | D45: =IF(D2>5,MIN(D34,10000)*Energiebelasting_1*(1+Stijging_energiebelasting)^C2,(IF((Verbruik_locatie-D33)>50000,10000*Energiebelasting_1+40000*Energiebelasting_2+((Verbruik_locatie-D33)-50000)*Energiebelasting_3,IF((Verbruik_locatie-D33)>10000,10000*Energiebelasting_1+((Verbruik_locatie-D33)-10000)*Energiebelasting_2,(Verbruik_locatie-D33)*Energiebelasting_1))-IF((Verbruik_locatie-D33-D34)>50000,10000*Energiebelasting_1+40000*Energiebelasting_2+((Verbruik_locatie-D33-D34)-50000)*Energiebelasting_3,IF((Verbruik_locatie-D33-D34)>10000,10000*Energiebelasting_1+((Verbruik_locatie-D33-D34)-10000)*Energiebelasting_2,(Verbruik_locatie-D33-D34)*Energiebelasting_1)))*(1+Stijging_energiebelasting)^C2) -> 0 | E45: 0 | F45: 0 | G45: 0 | H45: 0 | I45: 0 | J45: 0 | K45: 0 | L45: 0 | M45: 0 | N45: 0 | O45: 0 | P45: 0 | Q45: 0 | R45: 0 | S45: 0 | T45: 0 | U45: 0 | V45: 0 | W45: 0 | X45: 0 | Y45: 0 | Z45: 0 | AA45: 0 | AB45: 0
A46: 3 | B46: Verkoop reststroom saldering | C46: 0 | D46: =IF(D2>5,(D35+D34)*kWh__prijs_markt*(1+Stijging_stroomtarieven)^C2,D35*kWh__prijs_markt*(1+Stijging_stroomtarieven)^C2) -> 5334.2919 | E46: 5296.951857 | F46: 5259.873194 | G46: 5223.054081 | H46: 5186.492703 | I46: 5150.187254 | J46: 5114.135943 | K46: 5078.336991 | L46: 5042.788633 | M46: 5007.489112 | N46: 4972.436688 | O46: 4937.629632 | P46: 4903.066224 | Q46: 4868.744761 | R46: 4834.663547 | S46: 4800.820902 | T46: 4767.215156 | U46: 4733.84465 | V46: 4700.707737 | W46: 4667.802783 | X46: 4635.128164 | Y46: 4602.682267 | Z46: 4570.463491 | AA46: 4538.470246 | AB46: 4506.700955
A47: 3 | B47: Zelflevering | C47: 0 | D47: =((D33*kWh_prijs_levering)*(1+Stijging_stroomtarieven)^C2)+((IF((Verbruik_locatie)>50000,10000*Energiebelasting_1+40000*Energiebelasting_2+((Verbruik_locatie)-50000)*Energiebelasting_3,IF((Verbruik_locatie)>10000,10000*Energiebelasting_1+((Verbruik_locatie)-10000)*Energiebelasting_2,(Verbruik_locatie)*Energiebelasting_1))-IF((Verbruik_locatie-D33)>50000,10000*Energiebelasting_1+40000*Energiebelasting_2+((Verbruik_locatie-D33)-50000)*Energiebelasting_3,IF((Verbruik_locatie-D33)>10000,10000*Energiebelasting_1+((Verbruik_locatie-D33)-10000)*Energiebelasting_2,(Verbruik_locatie-D33)*Energiebelasting_1)))*(1+Stijging_energiebelasting)^C2) -> 0 | E47: 0 | F47: 0 | G47: 0 | H47: 0 | I47: 0 | J47: 0 | K47: 0 | L47: 0 | M47: 0 | N47: 0 | O47: 0 | P47: 0 | Q47: 0 | R47: 0 | S47: 0 | T47: 0 | U47: 0 | V47: 0 | W47: 0 | X47: 0 | Y47: 0 | Z47: 0 | AA47: 0 | AB47: 0
A48: 4 | B48: Besparing levering saldering | C48: 0 | D48: =IF(D2>5,0,D34*kWh_prijs_levering*(1+Stijging_stroomtarieven)^C2) -> 0 | E48: 0 | F48: 0 | G48: 0 | H48: 0 | I48: 0 | J48: 0 | K48: 0 | L48: 0 | M48: 0 | N48: 0 | O48: 0 | P48: 0 | Q48: 0 | R48: 0 | S48: 0 | T48: 0 | U48: 0 | V48: 0 | W48: 0 | X48: 0 | Y48: 0 | Z48: 0 | AA48: 0 | AB48: 0
A49: 4 | B49: Besparing EB saldering | C49: 0 | D49: =IF(D2>5,0,(IF((Verbruik_locatie-D33)>50000,10000*Energiebelasting_1+40000*Energiebelasting_2+((Verbruik_locatie-D33)-50000)*Energiebelasting_3,IF((Verbruik_locatie-D33)>10000,10000*Energiebelasting_1+((Verbruik_locatie-D33)-10000)*Energiebelasting_2,(Verbruik_locatie-D33)*Energiebelasting_1))-IF((Verbruik_locatie-D33-D34)>50000,10000*Energiebelasting_1+40000*Energiebelasting_2+((Verbruik_locatie-D33-D34)-50000)*Energiebelasting_3,IF((Verbruik_locatie-D33-D34)>10000,10000*Energiebelasting_1+((Verbruik_locatie-D33-D34)-10000)*Energiebelasting_2,(Verbruik_locatie-D33-D34)*Energiebelasting_1)))*(1+Stijging_energiebelasting)^C2) -> 0 | E49: 0 | F49: 0 | G49: 0 | H49: 0 | I49: 0 | J49: 0 | K49: 0 | L49: 0 | M49: 0 | N49: 0 | O49: 0 | P49: 0 | Q49: 0 | R49: 0 | S49: 0 | T49: 0 | U49: 0 | V49: 0 | W49: 0 | X49: 0 | Y49: 0 | Z49: 0 | AA49: 0 | AB49: 0
A50: 4 | B50: Verkoop reststroom | C50: 0 | D50: =IF(D2>5,(D35+D34)*kWh__prijs_markt*(1+Stijging_stroomtarieven)^C2,D35*kWh__prijs_markt*(1+Stijging_stroomtarieven)^C2) -> 5334.2919 | E50: 5296.951857 | F50: 5259.873194 | G50: 5223.054081 | H50: 5186.492703 | I50: 5150.187254 | J50: 5114.135943 | K50: 5078.336991 | L50: 5042.788633 | M50: 5007.489112 | N50: 4972.436688 | O50: 4937.629632 | P50: 4903.066224 | Q50: 4868.744761 | R50: 4834.663547 | S50: 4800.820902 | T50: 4767.215156 | U50: 4733.84465 | V50: 4700.707737 | W50: 4667.802783 | X50: 4635.128164 | Y50: 4602.682267 | Z50: 4570.463491 | AA50: 4538.470246 | AB50: 4506.700955
A51: 4 | B51: Zelflevering | C51: 0 | D51: =((D33*kWh_prijs_levering)*(1+Stijging_stroomtarieven)^C2)+((IF((Verbruik_locatie)>50000,10000*Energiebelasting_1+40000*Energiebelasting_2+((Verbruik_locatie)-50000)*Energiebelasting_3,IF((Verbruik_locatie)>10000,10000*Energiebelasting_1+((Verbruik_locatie)-10000)*Energiebelasting_2,(Verbruik_locatie)*Energiebelasting_1))-IF((Verbruik_locatie-D33)>50000,10000*Energiebelasting_1+40000*Energiebelasting_2+((Verbruik_locatie-D33)-50000)*Energiebelasting_3,IF((Verbruik_locatie-D33)>10000,10000*Energiebelasting_1+((Verbruik_locatie-D33)-10000)*Energiebelasting_2,(Verbruik_locatie-D33)*Energiebelasting_1)))*(1+Stijging_energiebelasting)^C2) -> 0 | E51: 0 | F51: 0 | G51: 0 | H51: 0 | I51: 0 | J51: 0 | K51: 0 | L51: 0 | M51: 0 | N51: 0 | O51: 0 | P51: 0 | Q51: 0 | R51: 0 | S51: 0 | T51: 0 | U51: 0 | V51: 0 | W51: 0 | X51: 0 | Y51: 0 | Z51: 0 | AA51: 0 | AB51: 0
AX52: x | AY52: x | AZ52: x | BA52: x | BB52: x | BC52: x | BD52: x | BE52: x | BF52: x | BG52: x | BH52: x | BI52: x | BJ52: x | BK52: x | BL52: x | BM52: x | BN52: x
A53: Kosten | B53: netwerkkosten | C53: 0 | D53: =Variabelen!$H$2*(1+Variabelen!$K$12)^C2 -> 67.6379 | E53: =Variabelen!$H$2*(1+Variabelen!$K$12)^D2 -> 68.314279 | F53: =Variabelen!$H$2*(1+Variabelen!$K$12)^E2 -> 68.99742179 | G53: =Variabelen!$H$2*(1+Variabelen!$K$12)^F2 -> 69.68739601 | H53: =Variabelen!$H$2*(1+Variabelen!$K$12)^G2 -> 70.38426997 | I53: =Variabelen!$H$2*(1+Variabelen!$K$12)^H2 -> 71.08811267 | J53: =Variabelen!$H$2*(1+Variabelen!$K$12)^I2 -> 71.79899379 | K53: =Variabelen!$H$2*(1+Variabelen!$K$12)^J2 -> 72.51698373 | L53: =Variabelen!$H$2*(1+Variabelen!$K$12)^K2 -> 73.24215357 | M53: =Variabelen!$H$2*(1+Variabelen!$K$12)^L2 -> 73.97457511 | N53: =Variabelen!$H$2*(1+Variabelen!$K$12)^M2 -> 74.71432086 | O53: =Variabelen!$H$2*(1+Variabelen!$K$12)^N2 -> 75.46146406 | P53: =Variabelen!$H$2*(1+Variabelen!$K$12)^O2 -> 76.21607871 | Q53: =Variabelen!$H$2*(1+Variabelen!$K$12)^P2 -> 76.97823949 | R53: =Variabelen!$H$2*(1+Variabelen!$K$12)^Q2 -> 77.74802189 | S53: =Variabelen!$H$2*(1+Variabelen!$K$12)^R2 -> 78.52550211 | T53: =Variabelen!$H$2*(1+Variabelen!$K$12)^S2 -> 79.31075713 | U53: =Variabelen!$H$2*(1+Variabelen!$K$12)^T2 -> 80.1038647 | V53: =Variabelen!$H$2*(1+Variabelen!$K$12)^U2 -> 80.90490335 | W53: =Variabelen!$H$2*(1+Variabelen!$K$12)^V2 -> 81.71395238 | X53: =Variabelen!$H$2*(1+Variabelen!$K$12)^W2 -> 82.5310919 | Y53: =Variabelen!$H$2*(1+Variabelen!$K$12)^X2 -> 83.35640282 | Z53: =Variabelen!$H$2*(1+Variabelen!$K$12)^Y2 -> 84.18996685 | AA53: =Variabelen!$H$2*(1+Variabelen!$K$12)^Z2 -> 85.03186652 | AB53: =Variabelen!$H$2*(1+Variabelen!$K$12)^AA2 -> 85.88218518 | AX53: x | AY53: x | AZ53: x | BA53: x | BB53: x | BC53: x | BD53: x | BE53: x | BF53: x | BG53: x | BH53: x | BI53: x | BJ53: x | BK53: x | BL53: x | BM53: x | BN53: x
B54: onderhoud | C54: 0 | D54: =Variabelen!$H$3*Variabelen!$B$3*(1+Variabelen!$K$13)^C2 -> 870 | E54: =Variabelen!$H$3*Variabelen!$B$3*(1+Variabelen!$K$13)^D2 -> 878.7 | F54: =Variabelen!$H$3*Variabelen!$B$3*(1+Variabelen!$K$13)^E2 -> 887.487 | G54: =Variabelen!$H$3*Variabelen!$B$3*(1+Variabelen!$K$13)^F2 -> 896.36187 | H54: =Variabelen!$H$3*Variabelen!$B$3*(1+Variabelen!$K$13)^G2 -> 905.3254887 | I54: =Variabelen!$H$3*Variabelen!$B$3*(1+Variabelen!$K$13)^H2 -> 914.3787436 | J54: =Variabelen!$H$3*Variabelen!$B$3*(1+Variabelen!$K$13)^I2 -> 923.522531 | K54: =Variabelen!$H$3*Variabelen!$B$3*(1+Variabelen!$K$13)^J2 -> 932.7577563 | L54: =Variabelen!$H$3*Variabelen!$B$3*(1+Variabelen!$K$13)^K2 -> 942.0853339 | M54: =Variabelen!$H$3*Variabelen!$B$3*(1+Variabelen!$K$13)^L2 -> 951.5061872 | N54: =Variabelen!$H$3*Variabelen!$B$3*(1+Variabelen!$K$13)^M2 -> 961.0212491 | O54: =Variabelen!$H$3*Variabelen!$B$3*(1+Variabelen!$K$13)^N2 -> 970.6314616 | P54: =Variabelen!$H$3*Variabelen!$B$3*(1+Variabelen!$K$13)^O2 -> 980.3377762 | Q54: =Variabelen!$H$3*Variabelen!$B$3*(1+Variabelen!$K$13)^P2 -> 990.141154 | R54: =Variabelen!$H$3*Variabelen!$B$3*(1+Variabelen!$K$13)^Q2 -> 1000.042566 | S54: =Variabelen!$H$3*Variabelen!$B$3*(1+Variabelen!$K$13)^R2 -> 1010.042991 | T54: =Variabelen!$H$3*Variabelen!$B$3*(1+Variabelen!$K$13)^S2 -> 1020.143421 | U54: =Variabelen!$H$3*Variabelen!$B$3*(1+Variabelen!$K$13)^T2 -> 1030.344855 | V54: =Variabelen!$H$3*Variabelen!$B$3*(1+Variabelen!$K$13)^U2 -> 1040.648304 | W54: =Variabelen!$H$3*Variabelen!$B$3*(1+Variabelen!$K$13)^V2 -> 1051.054787 | X54: =Variabelen!$H$3*Variabelen!$B$3*(1+Variabelen!$K$13)^W2 -> 1061.565335 | Y54: =Variabelen!$H$3*Variabelen!$B$3*(1+Variabelen!$K$13)^X2 -> 1072.180988 | Z54: =Variabelen!$H$3*Variabelen!$B$3*(1+Variabelen!$K$13)^Y2 -> 1082.902798 | AA54: =Variabelen!$H$3*Variabelen!$B$3*(1+Variabelen!$K$13)^Z2 -> 1093.731826 | AB54: =Variabelen!$H$3*Variabelen!$B$3*(1+Variabelen!$K$13)^AA2 -> 1104.669144 | AX54: x | AY54: x | AZ54: x | BA54: x | BB54: x | BC54: x | BD54: x | BE54: x | BF54: x | BG54: x | BH54: x | BI54: x | BJ54: x | BK54: x | BL54: x | BM54: x | BN54: x
B55: vervanging | C55: 0 | D55: =Variabelen!$H$4*Variabelen!$B$3*(1+Variabelen!$K$13)^C2 -> 870 | E55: =Variabelen!$H$4*Variabelen!$B$3*(1+Variabelen!$K$13)^D2 -> 878.7 | F55: =Variabelen!$H$4*Variabelen!$B$3*(1+Variabelen!$K$13)^E2 -> 887.487 | G55: =Variabelen!$H$4*Variabelen!$B$3*(1+Variabelen!$K$13)^F2 -> 896.36187 | H55: =Variabelen!$H$4*Variabelen!$B$3*(1+Variabelen!$K$13)^G2 -> 905.3254887 | I55: =Variabelen!$H$4*Variabelen!$B$3*(1+Variabelen!$K$13)^H2 -> 914.3787436 | J55: =Variabelen!$H$4*Variabelen!$B$3*(1+Variabelen!$K$13)^I2 -> 923.522531 | K55: =Variabelen!$H$4*Variabelen!$B$3*(1+Variabelen!$K$13)^J2 -> 932.7577563 | L55: =Variabelen!$H$4*Variabelen!$B$3*(1+Variabelen!$K$13)^K2 -> 942.0853339 | M55: =Variabelen!$H$4*Variabelen!$B$3*(1+Variabelen!$K$13)^L2 -> 951.5061872 | N55: =Variabelen!$H$4*Variabelen!$B$3*(1+Variabelen!$K$13)^M2 -> 961.0212491 | O55: =Variabelen!$H$4*Variabelen!$B$3*(1+Variabelen!$K$13)^N2 -> 970.6314616 | P55: =Variabelen!$H$4*Variabelen!$B$3*(1+Variabelen!$K$13)^O2 -> 980.3377762 | Q55: =Variabelen!$H$4*Variabelen!$B$3*(1+Variabelen!$K$13)^P2 -> 990.141154 | R55: =Variabelen!$H$4*Variabelen!$B$3*(1+Variabelen!$K$13)^Q2 -> 1000.042566 | S55: =Variabelen!$H$4*Variabelen!$B$3*(1+Variabelen!$K$13)^R2 -> 1010.042991 | T55: =Variabelen!$H$4*Variabelen!$B$3*(1+Variabelen!$K$13)^S2 -> 1020.143421 | U55: =Variabelen!$H$4*Variabelen!$B$3*(1+Variabelen!$K$13)^T2 -> 1030.344855 | V55: =Variabelen!$H$4*Variabelen!$B$3*(1+Variabelen!$K$13)^U2 -> 1040.648304 | W55: =Variabelen!$H$4*Variabelen!$B$3*(1+Variabelen!$K$13)^V2 -> 1051.054787 | X55: =Variabelen!$H$4*Variabelen!$B$3*(1+Variabelen!$K$13)^W2 -> 1061.565335 | Y55: =Variabelen!$H$4*Variabelen!$B$3*(1+Variabelen!$K$13)^X2 -> 1072.180988 | Z55: =Variabelen!$H$4*Variabelen!$B$3*(1+Variabelen!$K$13)^Y2 -> 1082.902798 | AA55: =Variabelen!$H$4*Variabelen!$B$3*(1+Variabelen!$K$13)^Z2 -> 1093.731826 | AB55: =Variabelen!$H$4*Variabelen!$B$3*(1+Variabelen!$K$13)^AA2 -> 1104.669144 | AX55: x | AY55: x | AZ55: x | BA55: x | BB55: x | BC55: x | BD55: x | BE55: x | BF55: x | BG55: x | BH55: x | BI55: x | BJ55: x | BK55: x | BL55: x | BM55: x | BN55: x
B56: huur locatie | C56: 0 | D56: =IF(Flowchart!$G$34="nee",Variabelen!$H$5*Variabelen!$B$3*(1+Variabelen!$K$13)^C2,0) -> 522 | E56: =IF(Flowchart!$G$34="nee",Variabelen!$H$5*Variabelen!$B$3*(1+Variabelen!$K$13)^D2,0) -> 527.22 | F56: =IF(Flowchart!$G$34="nee",Variabelen!$H$5*Variabelen!$B$3*(1+Variabelen!$K$13)^E2,0) -> 532.4922 | G56: =IF(Flowchart!$G$34="nee",Variabelen!$H$5*Variabelen!$B$3*(1+Variabelen!$K$13)^F2,0) -> 537.817122 | H56: =IF(Flowchart!$G$34="nee",Variabelen!$H$5*Variabelen!$B$3*(1+Variabelen!$K$13)^G2,0) -> 543.1952932 | I56: =IF(Flowchart!$G$34="nee",Variabelen!$H$5*Variabelen!$B$3*(1+Variabelen!$K$13)^H2,0) -> 548.6272462 | J56: =IF(Flowchart!$G$34="nee",Variabelen!$H$5*Variabelen!$B$3*(1+Variabelen!$K$13)^I2,0) -> 554.1135186 | K56: =IF(Flowchart!$G$34="nee",Variabelen!$H$5*Variabelen!$B$3*(1+Variabelen!$K$13)^J2,0) -> 559.6546538 | L56: =IF(Flowchart!$G$34="nee",Variabelen!$H$5*Variabelen!$B$3*(1+Variabelen!$K$13)^K2,0) -> 565.2512003 | M56: =IF(Flowchart!$G$34="nee",Variabelen!$H$5*Variabelen!$B$3*(1+Variabelen!$K$13)^L2,0) -> 570.9037123 | N56: =IF(Flowchart!$G$34="nee",Variabelen!$H$5*Variabelen!$B$3*(1+Variabelen!$K$13)^M2,0) -> 576.6127495 | O56: =IF(Flowchart!$G$34="nee",Variabelen!$H$5*Variabelen!$B$3*(1+Variabelen!$K$13)^N2,0) -> 582.378877 | P56: =IF(Flowchart!$G$34="nee",Variabelen!$H$5*Variabelen!$B$3*(1+Variabelen!$K$13)^O2,0) -> 588.2026657 | Q56: =IF(Flowchart!$G$34="nee",Variabelen!$H$5*Variabelen!$B$3*(1+Variabelen!$K$13)^P2,0) -> 594.0846924 | R56: =IF(Flowchart!$G$34="nee",Variabelen!$H$5*Variabelen!$B$3*(1+Variabelen!$K$13)^Q2,0) -> 600.0255393 | S56: =IF(Flowchart!$G$34="nee",Variabelen!$H$5*Variabelen!$B$3*(1+Variabelen!$K$13)^R2,0) -> 606.0257947 | T56: =IF(Flowchart!$G$34="nee",Variabelen!$H$5*Variabelen!$B$3*(1+Variabelen!$K$13)^S2,0) -> 612.0860527 | U56: =IF(Flowchart!$G$34="nee",Variabelen!$H$5*Variabelen!$B$3*(1+Variabelen!$K$13)^T2,0) -> 618.2069132 | V56: =IF(Flowchart!$G$34="nee",Variabelen!$H$5*Variabelen!$B$3*(1+Variabelen!$K$13)^U2,0) -> 624.3889823 | W56: =IF(Flowchart!$G$34="nee",Variabelen!$H$5*Variabelen!$B$3*(1+Variabelen!$K$13)^V2,0) -> 630.6328721 | X56: =IF(Flowchart!$G$34="nee",Variabelen!$H$5*Variabelen!$B$3*(1+Variabelen!$K$13)^W2,0) -> 636.9392009 | Y56: =IF(Flowchart!$G$34="nee",Variabelen!$H$5*Variabelen!$B$3*(1+Variabelen!$K$13)^X2,0) -> 643.3085929 | Z56: =IF(Flowchart!$G$34="nee",Variabelen!$H$5*Variabelen!$B$3*(1+Variabelen!$K$13)^Y2,0) -> 649.7416788 | AA56: =IF(Flowchart!$G$34="nee",Variabelen!$H$5*Variabelen!$B$3*(1+Variabelen!$K$13)^Z2,0) -> 656.2390956 | AB56: =IF(Flowchart!$G$34="nee",Variabelen!$H$5*Variabelen!$B$3*(1+Variabelen!$K$13)^AA2,0) -> 662.8014865 | AX56: x | AY56: x | AZ56: x | BA56: x | BB56: x | BC56: x | BD56: x | BE56: x | BF56: x | BG56: x | BH56: x | BI56: x | BJ56: x | BK56: x | BL56: x | BM56: x | BN56: x
B57: verzekering | C57: 0 | D57: =Variabelen!$H$6*Variabelen!$B$3*(1+Variabelen!$K$13)^C2 -> 435 | E57: =Variabelen!$H$6*Variabelen!$B$3*(1+Variabelen!$K$13)^D2 -> 439.35 | F57: =Variabelen!$H$6*Variabelen!$B$3*(1+Variabelen!$K$13)^E2 -> 443.7435 | G57: =Variabelen!$H$6*Variabelen!$B$3*(1+Variabelen!$K$13)^F2 -> 448.180935 | H57: =Variabelen!$H$6*Variabelen!$B$3*(1+Variabelen!$K$13)^G2 -> 452.6627444 | I57: =Variabelen!$H$6*Variabelen!$B$3*(1+Variabelen!$K$13)^H2 -> 457.1893718 | J57: =Variabelen!$H$6*Variabelen!$B$3*(1+Variabelen!$K$13)^I2 -> 461.7612655 | K57: =Variabelen!$H$6*Variabelen!$B$3*(1+Variabelen!$K$13)^J2 -> 466.3788782 | L57: =Variabelen!$H$6*Variabelen!$B$3*(1+Variabelen!$K$13)^K2 -> 471.0426669 | M57: =Variabelen!$H$6*Variabelen!$B$3*(1+Variabelen!$K$13)^L2 -> 475.7530936 | N57: =Variabelen!$H$6*Variabelen!$B$3*(1+Variabelen!$K$13)^M2 -> 480.5106246 | O57: =Variabelen!$H$6*Variabelen!$B$3*(1+Variabelen!$K$13)^N2 -> 485.3157308 | P57: =Variabelen!$H$6*Variabelen!$B$3*(1+Variabelen!$K$13)^O2 -> 490.1688881 | Q57: =Variabelen!$H$6*Variabelen!$B$3*(1+Variabelen!$K$13)^P2 -> 495.070577 | R57: =Variabelen!$H$6*Variabelen!$B$3*(1+Variabelen!$K$13)^Q2 -> 500.0212828 | S57: =Variabelen!$H$6*Variabelen!$B$3*(1+Variabelen!$K$13)^R2 -> 505.0214956 | T57: =Variabelen!$H$6*Variabelen!$B$3*(1+Variabelen!$K$13)^S2 -> 510.0717105 | U57: =Variabelen!$H$6*Variabelen!$B$3*(1+Variabelen!$K$13)^T2 -> 515.1724276 | V57: =Variabelen!$H$6*Variabelen!$B$3*(1+Variabelen!$K$13)^U2 -> 520.3241519 | W57: =Variabelen!$H$6*Variabelen!$B$3*(1+Variabelen!$K$13)^V2 -> 525.5273934 | X57: =Variabelen!$H$6*Variabelen!$B$3*(1+Variabelen!$K$13)^W2 -> 530.7826674 | Y57: =Variabelen!$H$6*Variabelen!$B$3*(1+Variabelen!$K$13)^X2 -> 536.0904941 | Z57: =Variabelen!$H$6*Variabelen!$B$3*(1+Variabelen!$K$13)^Y2 -> 541.451399 | AA57: =Variabelen!$H$6*Variabelen!$B$3*(1+Variabelen!$K$13)^Z2 -> 546.865913 | AB57: =Variabelen!$H$6*Variabelen!$B$3*(1+Variabelen!$K$13)^AA2 -> 552.3345721 | AX57: x | AY57: x | AZ57: x | BA57: x | BB57: x | BC57: x | BD57: x | BE57: x | BF57: x | BG57: x | BH57: x | BI57: x | BJ57: x | BK57: x | BL57: x | BM57: x | BN57: x
B58: Administratie | C58: 0 | D58: =Variabelen!$H$7*Variabelen!$B$3*(1+Variabelen!$K$13)^C2 -> 522 | E58: =Variabelen!$H$7*Variabelen!$B$3*(1+Variabelen!$K$13)^D2 -> 527.22 | F58: =Variabelen!$H$7*Variabelen!$B$3*(1+Variabelen!$K$13)^E2 -> 532.4922 | G58: =Variabelen!$H$7*Variabelen!$B$3*(1+Variabelen!$K$13)^F2 -> 537.817122 | H58: =Variabelen!$H$7*Variabelen!$B$3*(1+Variabelen!$K$13)^G2 -> 543.1952932 | I58: =Variabelen!$H$7*Variabelen!$B$3*(1+Variabelen!$K$13)^H2 -> 548.6272462 | J58: =Variabelen!$H$7*Variabelen!$B$3*(1+Variabelen!$K$13)^I2 -> 554.1135186 | K58: =Variabelen!$H$7*Variabelen!$B$3*(1+Variabelen!$K$13)^J2 -> 559.6546538 | L58: =Variabelen!$H$7*Variabelen!$B$3*(1+Variabelen!$K$13)^K2 -> 565.2512003 | M58: =Variabelen!$H$7*Variabelen!$B$3*(1+Variabelen!$K$13)^L2 -> 570.9037123 | N58: =Variabelen!$H$7*Variabelen!$B$3*(1+Variabelen!$K$13)^M2 -> 576.6127495 | O58: =Variabelen!$H$7*Variabelen!$B$3*(1+Variabelen!$K$13)^N2 -> 582.378877 | P58: =Variabelen!$H$7*Variabelen!$B$3*(1+Variabelen!$K$13)^O2 -> 588.2026657 | Q58: =Variabelen!$H$7*Variabelen!$B$3*(1+Variabelen!$K$13)^P2 -> 594.0846924 | R58: =Variabelen!$H$7*Variabelen!$B$3*(1+Variabelen!$K$13)^Q2 -> 600.0255393 | S58: =Variabelen!$H$7*Variabelen!$B$3*(1+Variabelen!$K$13)^R2 -> 606.0257947 | T58: =Variabelen!$H$7*Variabelen!$B$3*(1+Variabelen!$K$13)^S2 -> 612.0860527 | U58: =Variabelen!$H$7*Variabelen!$B$3*(1+Variabelen!$K$13)^T2 -> 618.2069132 | V58: =Variabelen!$H$7*Variabelen!$B$3*(1+Variabelen!$K$13)^U2 -> 624.3889823 | W58: =Variabelen!$H$7*Variabelen!$B$3*(1+Variabelen!$K$13)^V2 -> 630.6328721 | X58: =Variabelen!$H$7*Variabelen!$B$3*(1+Variabelen!$K$13)^W2 -> 636.9392009 | Y58: =Variabelen!$H$7*Variabelen!$B$3*(1+Variabelen!$K$13)^X2 -> 643.3085929 | Z58: =Variabelen!$H$7*Variabelen!$B$3*(1+Variabelen!$K$13)^Y2 -> 649.7416788 | AA58: =Variabelen!$H$7*Variabelen!$B$3*(1+Variabelen!$K$13)^Z2 -> 656.2390956 | AB58: =Variabelen!$H$7*Variabelen!$B$3*(1+Variabelen!$K$13)^AA2 -> 662.8014865 | AX58: x | AY58: x | AZ58: x | BA58: x | BB58: x | BC58: x | BD58: x | BE58: x | BF58: x | BG58: x | BH58: x | BI58: x | BJ58: x | BK58: x | BL58: x | BM58: x | BN58: x
B59: Vervangen omvormer | C59: =IF(C2=Variabelen!$H$8,Variabelen!$B$13*Variabelen!$B$3*(1+Variabelen!$K$13)^B2,0)*0 -> 0 | D59: =IF(D2=Variabelen!$H$8,Variabelen!$B$13*Variabelen!$B$3*(1+Variabelen!$K$13)^C2,0)*0 -> 0 | E59: =IF(E2=Variabelen!$H$8,Variabelen!$B$13*Variabelen!$B$3*(1+Variabelen!$K$13)^D2,0)*0 -> 0 | F59: =IF(F2=Variabelen!$H$8,Variabelen!$B$13*Variabelen!$B$3*(1+Variabelen!$K$13)^E2,0)*0 -> 0 | G59: =IF(G2=Variabelen!$H$8,Variabelen!$B$13*Variabelen!$B$3*(1+Variabelen!$K$13)^F2,0)*0 -> 0 | H59: =IF(H2=Variabelen!$H$8,Variabelen!$B$13*Variabelen!$B$3*(1+Variabelen!$K$13)^G2,0)*0 -> 0 | I59: =IF(I2=Variabelen!$H$8,Variabelen!$B$13*Variabelen!$B$3*(1+Variabelen!$K$13)^H2,0)*0 -> 0 | J59: =IF(J2=Variabelen!$H$8,Variabelen!$B$13*Variabelen!$B$3*(1+Variabelen!$K$13)^I2,0)*0 -> 0 | K59: =IF(K2=Variabelen!$H$8,Variabelen!$B$13*Variabelen!$B$3*(1+Variabelen!$K$13)^J2,0)*0 -> 0 | L59: =IF(L2=Variabelen!$H$8,Variabelen!$B$13*Variabelen!$B$3*(1+Variabelen!$K$13)^K2,0)*0 -> 0 | M59: =IF(M2=Variabelen!$H$8,Variabelen!$B$13*Variabelen!$B$3*(1+Variabelen!$K$13)^L2,0)*0 -> 0 | N59: =IF(N2=Variabelen!$H$8,Variabelen!$B$13*Variabelen!$B$3*(1+Variabelen!$K$13)^M2,0)*0 -> 0 | O59: =IF(O2=Variabelen!$H$8,Variabelen!$B$13*Variabelen!$B$3*(1+Variabelen!$K$13)^N2,0)*0 -> 0 | P59: =IF(P2=Variabelen!$H$8,Variabelen!$B$13*Variabelen!$B$3*(1+Variabelen!$K$13)^O2,0)*0 -> 0 | Q59: =IF(Q2=Variabelen!$H$8,Variabelen!$B$13*Variabelen!$B$3*(1+Variabelen!$K$13)^P2,0)*0 -> 0 | R59: =IF(R2=Variabelen!$H$8,Variabelen!$B$13*Variabelen!$B$3*(1+Variabelen!$K$13)^Q2,0)*0 -> 0 | S59: =IF(S2=Variabelen!$H$8,Variabelen!$B$13*Variabelen!$B$3*(1+Variabelen!$K$13)^R2,0)*0 -> 0 | T59: =IF(T2=Variabelen!$H$8,Variabelen!$B$13*Variabelen!$B$3*(1+Variabelen!$K$13)^S2,0)*0 -> 0 | U59: =IF(U2=Variabelen!$H$8,Variabelen!$B$13*Variabelen!$B$3*(1+Variabelen!$K$13)^T2,0)*0 -> 0 | V59: =IF(V2=Variabelen!$H$8,Variabelen!$B$13*Variabelen!$B$3*(1+Variabelen!$K$13)^U2,0)*0 -> 0 | W59: =IF(W2=Variabelen!$H$8,Variabelen!$B$13*Variabelen!$B$3*(1+Variabelen!$K$13)^V2,0)*0 -> 0 | X59: =IF(X2=Variabelen!$H$8,Variabelen!$B$13*Variabelen!$B$3*(1+Variabelen!$K$13)^W2,0)*0 -> 0 | Y59: =IF(Y2=Variabelen!$H$8,Variabelen!$B$13*Variabelen!$B$3*(1+Variabelen!$K$13)^X2,0)*0 -> 0 | Z59: =IF(Z2=Variabelen!$H$8,Variabelen!$B$13*Variabelen!$B$3*(1+Variabelen!$K$13)^Y2,0)*0 -> 0 | AA59: =IF(AA2=Variabelen!$H$8,Variabelen!$B$13*Variabelen!$B$3*(1+Variabelen!$K$13)^Z2,0)*0 -> 0 | AB59: =IF(AB2=Variabelen!$H$8,Variabelen!$B$13*Variabelen!$B$3*(1+Variabelen!$K$13)^AA2,0)*0 -> 0 | AX59: x | AY59: x | AZ59: x | BA59: x | BB59: x | BC59: x | BD59: x | BE59: x | BF59: x | BG59: x | BH59: x | BI59: x | BJ59: x | BK59: x | BL59: x | BM59: x | BN59: x
AX60: x | AY60: x | AZ60: x | BA60: x | BB60: x | BC60: x | BD60: x | BE60: x | BF60: x | BG60: x | BH60: x | BI60: x | BJ60: x | BK60: x | BL60: x | BM60: x | BN60: x
A61: Financiering | B61: Principal | C61: =C5*Variabelen!H18 -> 76546.8942 | D61: =C61-D62 -> 69869.66984 | E61: =D61-E62 -> 62992.12875 | F61: 55908.26143 | G61: 48611.87808 | H61: 41096.60324 | I61: 33355.87015 | J61: 25382.91507 | K61: 17170.77133 | L61: 8712.263287 | M61: 0 | N61: 0 | O61: 0 | P61: 0 | Q61: 0 | R61: 0 | S61: 0 | T61: 0 | U61: 0 | V61: 0 | W61: 0 | X61: =W61-X62 -> 0 | Y61: =X61-Y62 -> 0 | Z61: =Y61-Z62 -> 0 | AA61: =Z61-AA62 -> 0 | AB61: =AA61-AB62 -> 0 | AX61: x | AY61: x | AZ61: x | BA61: x | BB61: x | BC61: x | BD61: x | BE61: x | BF61: x | BG61: x | BH61: x | BI61: x | BJ61: x | BK61: x | BL61: x | BM61: x | BN61: x
B62: Aflossing | C62: =-C61 -> -76546.8942 | D62: =IF(D2<=Variabelen!$H$20,-PMT(Variabelen!$H$19,Variabelen!$H$20,$C$61)-D63,0) -> 6677.22436 | E62: =IF(E2<=Variabelen!$H$20,-PMT(Variabelen!$H$19,Variabelen!$H$20,$C$61)-E63,0) -> 6877.541091 | F62: =IF(F2<=Variabelen!$H$20,-PMT(Variabelen!$H$19,Variabelen!$H$20,$C$61)-F63,0) -> 7083.867324 | G62: =IF(G2<=Variabelen!$H$20,-PMT(Variabelen!$H$19,Variabelen!$H$20,$C$61)-G63,0) -> 7296.383343 | H62: =IF(H2<=Variabelen!$H$20,-PMT(Variabelen!$H$19,Variabelen!$H$20,$C$61)-H63,0) -> 7515.274844 | I62: =IF(I2<=Variabelen!$H$20,-PMT(Variabelen!$H$19,Variabelen!$H$20,$C$61)-I63,0) -> 7740.733089 | J62: =IF(J2<=Variabelen!$H$20,-PMT(Variabelen!$H$19,Variabelen!$H$20,$C$61)-J63,0) -> 7972.955082 | K62: =IF(K2<=Variabelen!$H$20,-PMT(Variabelen!$H$19,Variabelen!$H$20,$C$61)-K63,0) -> 8212.143734 | L62: =IF(L2<=Variabelen!$H$20,-PMT(Variabelen!$H$19,Variabelen!$H$20,$C$61)-L63,0) -> 8458.508046 | M62: =IF(M2<=Variabelen!$H$20,-PMT(Variabelen!$H$19,Variabelen!$H$20,$C$61)-M63,0) -> 8712.263287 | N62: =IF(N2<=Variabelen!$H$20,-PMT(Variabelen!$H$19,Variabelen!$H$20,$C$61)-N63,0) -> 0 | O62: =IF(O2<=Variabelen!$H$20,-PMT(Variabelen!$H$19,Variabelen!$H$20,$C$61)-O63,0) -> 0 | P62: =IF(P2<=Variabelen!$H$20,-PMT(Variabelen!$H$19,Variabelen!$H$20,$C$61)-P63,0) -> 0 | Q62: =IF(Q2<=Variabelen!$H$20,-PMT(Variabelen!$H$19,Variabelen!$H$20,$C$61)-Q63,0) -> 0 | R62: =IF(R2<=Variabelen!$H$20,-PMT(Variabelen!$H$19,Variabelen!$H$20,$C$61)-R63,0) -> 0 | S62: =IF(S2<=Variabelen!$H$20,-PMT(Variabelen!$H$19,Variabelen!$H$20,$C$61)-S63,0) -> 0 | T62: =IF(T2<=Variabelen!$H$20,-PMT(Variabelen!$H$19,Variabelen!$H$20,$C$61)-T63,0) -> 0 | U62: =IF(U2<=Variabelen!$H$20,-PMT(Variabelen!$H$19,Variabelen!$H$20,$C$61)-U63,0) -> 0 | V62: =IF(V2<=Variabelen!$H$20,-PMT(Variabelen!$H$19,Variabelen!$H$20,$C$61)-V63,0) -> 0 | W62: =IF(W2<=Variabelen!$H$20,-PMT(Variabelen!$H$19,Variabelen!$H$20,$C$61)-W63,0) -> 0 | X62: =IF(X2<=Variabelen!$H$20,-PMT(Variabelen!$H$19,Variabelen!$H$20,$C$61)-X63,0) -> 0 | Y62: =IF(Y2<=Variabelen!$H$20,-PMT(Variabelen!$H$19,Variabelen!$H$20,$C$61)-Y63,0) -> 0 | Z62: =IF(Z2<=Variabelen!$H$20,-PMT(Variabelen!$H$19,Variabelen!$H$20,$C$61)-Z63,0) -> 0 | AA62: =IF(AA2<=Variabelen!$H$20,-PMT(Variabelen!$H$19,Variabelen!$H$20,$C$61)-AA63,0) -> 0 | AB62: =IF(AB2<=Variabelen!$H$20,-PMT(Variabelen!$H$19,Variabelen!$H$20,$C$61)-AB63,0) -> 0 | AX62: x | AY62: x | AZ62: x | BA62: x | BB62: x | BC62: x | BD62: x | BE62: x | BF62: x | BG62: x | BH62: x | BI62: x | BJ62: x | BK62: x | BL62: x | BM62: x | BN62: x
B63: Rente | C63: 0 | D63: =C61*Variabelen!$H$19 -> 2296.406826 | E63: =D61*Variabelen!$H$19 -> 2096.090095 | F63: =E61*Variabelen!$H$19 -> 1889.763862 | G63: =F61*Variabelen!$H$19 -> 1677.247843 | H63: =G61*Variabelen!$H$19 -> 1458.356342 | I63: =H61*Variabelen!$H$19 -> 1232.898097 | J63: =I61*Variabelen!$H$19 -> 1000.676104 | K63: =J61*Variabelen!$H$19 -> 761.487452 | L63: =K61*Variabelen!$H$19 -> 515.12314 | M63: =L61*Variabelen!$H$19 -> 261.3678986 | N63: =M61*Variabelen!$H$19 -> 0 | O63: =N61*Variabelen!$H$19 -> 0 | P63: =O61*Variabelen!$H$19 -> 0 | Q63: =P61*Variabelen!$H$19 -> 0 | R63: =Q61*Variabelen!$H$19 -> 0 | S63: =R61*Variabelen!$H$19 -> 0 | T63: =S61*Variabelen!$H$19 -> 0 | U63: =T61*Variabelen!$H$19 -> 0 | V63: =U61*Variabelen!$H$19 -> 0 | W63: =V61*Variabelen!$H$19 -> 0 | X63: =W61*Variabelen!$H$19 -> 0 | Y63: =X61*Variabelen!$H$19 -> 0 | Z63: =Y61*Variabelen!$H$19 -> 0 | AA63: =Z61*Variabelen!$H$19 -> 0 | AB63: =AA61*Variabelen!$H$19 -> 0 | AX63: x | AY63: x | AZ63: x | BA63: x | BB63: x | BC63: x | BD63: x | BE63: x | BF63: x | BG63: x | BH63: x | BI63: x | BJ63: x | BK63: x | BL63: x | BM63: x | BN63: x
AX64: x | AY64: x | AZ64: x | BA64: x | BB64: x | BC64: x | BD64: x | BE64: x | BF64: x | BG64: x | BH64: x | BI64: x | BJ64: x | BK64: x | BL64: x | BM64: x | BN64: x
AX65: x | AY65: x | AZ65: x | BA65: x | BB65: x | BC65: x | BD65: x | BE65: x | BF65: x | BG65: x | BH65: x | BI65: x | BJ65: x | BK65: x | BL65: x | BM65: x | BN65: x
A66: Eindrekening Cooperatie | AF66: A | AG66: B | AH66: C | AI66: D | AJ66: E | AK66: F | AL66: G | AM66: H | AN66: I | AO66: J | AP66: K | AQ66: L | AR66: M | AS66: N | AT66: O | AU66: P | AV66: Q | AX66: 53 | AY66: 53 | AZ66: 53 | BA66: 53 | BB66: 53 | BC66: 53 | BD66: 53 | BE66: 53 | BF66: 53 | BG66: 53 | BH66: 53 | BI66: 53 | BJ66: 53 | BK66: 53 | BL66: 53 | BM66: 53 | BN66: 53
A67: SDE algemeen | AF67: A | AG67: B | AH67: C | AI67: D | AJ67: E | AK67: F | AL67: G | AM67: H | AN67: I | AO67: J | AP67: K | AQ67: L | AR67: M | AS67: N | AT67: O | AU67: P | AV67: Q | AX67: 54 | AY67: 54 | AZ67: 54 | BA67: 54 | BB67: 54 | BC67: 54 | BD67: 54 | BE67: 54 | BF67: 54 | BG67: 54 | BH67: 54 | BI67: 54 | BJ67: 54 | BK67: 54 | BL67: 54 | BM67: 54 | BN67: 54
A68: Fase 5 | B68: Saldo | C68: =-C5+SUM(C13,C14,C18,C22)-SUM(C53,C54,C55,C56,C57,C58,C59)-SUM(C62:C63) -> -114820.3413 | D68: =-D5+SUM(D13,D14,D18,D22)-SUM(D53,D54,D55,D56,D57,D58,D59)-SUM(D62:D63) -> 6003.339894 | E68: =-E5+SUM(E13,E14,E18,E22)-SUM(E53,E54,E55,E56,E57,E58,E59)-SUM(E62:E63) -> 5901.788252 | F68: 5800.980343 | G68: 5700.91129 | H68: 5601.576253 | I68: 5502.970428 | J68: 5405.08905 | K68: 5307.927391 | L68: 5211.480756 | M68: 5115.744491 | N68: 13994.34516 | O68: 13900.01581 | P68: 13806.38308 | Q68: 13713.44244 | R68: =-R5+SUM(R13,R14,R18,R22)-SUM(R53,R54,R55,R56,R57,R58,R59)-SUM(R62:R63) -> 13621.18944 | S68: -35094.59699 | T68: 5674.978162 | U68: 5639.107763 | V68: 5603.527002 | W68: 5568.234236 | X68: 5533.227839 | Y68: 5498.506198 | Z68: 5464.067719 | AA68: 5429.91082 | AB68: 5396.033935 | AF68: A | AX68: 55 | AY68: x | AZ68: x | BA68: x | BB68: x | BC68: x | BD68: x | BE68: x | BF68: x | BG68: x | BH68: x | BI68: x | BJ68: x | BK68: x | BL68: x | BM68: x | BN68: x
B69: KIA | C69: =IF(C$2=1,Totaal_KIA*VPB,0) -> 0 | D69: 1826.714599 | E69: 0 | F69: 0 | G69: 0 | H69: 0 | I69: 0 | J69: 0 | K69: 0 | L69: 0 | M69: 0 | N69: 0 | O69: 0 | P69: 0 | Q69: 0 | R69: 0 | S69: 0 | T69: 0 | U69: 0 | V69: 0 | W69: 0 | X69: 0 | Y69: 0 | Z69: 0 | AA69: 0 | AB69: 0 | AF69: A | AX69: 56 | AY69: x | AZ69: x | BA69: x | BB69: x | BC69: x | BD69: x | BE69: x | BF69: x | BG69: x | BH69: x | BI69: x | BJ69: x | BK69: x | BL69: x | BM69: x | BN69: x
A70: =IFERROR(IRR(C72:M72),0) -> -0.1139929148 | B70: EIA | C70: =IF(C$2=1,0,0) -> 0 | D70: =IF(D$2=1,0,0) -> 0 | E70: 0 | F70: 0 | G70: 0 | H70: 0 | I70: 0 | J70: 0 | K70: 0 | L70: 0 | M70: 0 | N70: 0 | O70: 0 | P70: 0 | Q70: 0 | R70: 0 | S70: 0 | T70: 0 | U70: 0 | V70: 0 | W70: 0 | X70: 0 | Y70: 0 | Z70: 0 | AA70: 0 | AB70: 0 | AF70: A | AX70: 57 | AY70: x | AZ70: x | BA70: x | BB70: x | BC70: x | BD70: x | BE70: x | BF70: x | BG70: x | BH70: x | BI70: x | BJ70: x | BK70: x | BL70: x | BM70: x | BN70: x
A71: =IFERROR(IRR(C72:R72),0) -> 0.006934043174 | B71: VPB | C71: 0 | D71: =MAX(0,(D68-D$11)*Variabelen!$K$9) -> 0 | E71: =MAX(0,(E68-E$11)*Variabelen!$K$9) -> 0 | F71: =MAX(0,(F68-F$11)*Variabelen!$K$9) -> 0 | G71: =MAX(0,(G68-G$11)*Variabelen!$K$9) -> 0 | H71: =MAX(0,(H68-H$11)*Variabelen!$K$9) -> 0 | I71: =MAX(0,(I68-I$11)*Variabelen!$K$9) -> 0 | J71: =MAX(0,(J68-J$11)*Variabelen!$K$9) -> 0 | K71: =MAX(0,(K68-K$11)*Variabelen!$K$9) -> 0 | L71: =MAX(0,(L68-L$11)*Variabelen!$K$9) -> 0 | M71: =MAX(0,(M68-M$11)*Variabelen!$K$9) -> 0 | N71: =MAX(0,(N68-N$11)*Variabelen!$K$9) -> 836.1490323 | O71: =MAX(0,(O68-O$11)*Variabelen!$K$9) -> 817.2831621 | P71: =MAX(0,(P68-P$11)*Variabelen!$K$9) -> 798.556615 | Q71: =MAX(0,(Q68-Q$11)*Variabelen!$K$9) -> 779.9684886 | R71: =MAX(0,(R68-R$11)*Variabelen!$K$9) -> 761.5178871 | S71: =MAX(0,(S68-S$11)*Variabelen!$K$9) -> 0 | T71: =MAX(0,(T68-T$11)*Variabelen!$K$9) -> 1134.995632 | U71: =MAX(0,(U68-U$11)*Variabelen!$K$9) -> 1127.821553 | V71: =MAX(0,(V68-V$11)*Variabelen!$K$9) -> 1120.7054 | W71: =MAX(0,(W68-W$11)*Variabelen!$K$9) -> 1113.646847 | X71: =MAX(0,(X68-X$11)*Variabelen!$K$9) -> 1106.645568 | Y71: =MAX(0,(Y68-Y$11)*Variabelen!$K$9) -> 1099.70124 | Z71: =MAX(0,(Z68-Z$11)*Variabelen!$K$9) -> 1092.813544 | AA71: =MAX(0,(AA68-AA$11)*Variabelen!$K$9) -> 1085.982164 | AB71: =MAX(0,(AB68-AB$11)*Variabelen!$K$9) -> 1079.206787 | AF71: A | AX71: 58 | AY71: x | AZ71: x | BA71: x | BB71: x | BC71: x | BD71: x | BE71: x | BF71: x | BG71: x | BH71: x | BI71: x | BJ71: x | BK71: x | BL71: x | BM71: x | BN71: x
A72: =IFERROR(IRR(C72:W72),0) -> -0.009770185424 | B72: Balans | C72: =C68-C71+C69+C70 -> -114820.3413 | D72: =D68-D71+D69+D70 -> 7830.054493 | E72: 5901.788252 | F72: 5800.980343 | G72: 5700.91129 | H72: 5601.576253 | I72: 5502.970428 | J72: 5405.08905 | K72: 5307.927391 | L72: 5211.480756 | M72: 5115.744491 | N72: 13158.19613 | O72: 13082.73265 | P72: 13007.82646 | Q72: 12933.47395 | R72: 12859.67155 | S72: -35094.59699 | T72: 4539.982529 | U72: 4511.286211 | V72: 4482.821602 | W72: 4454.587389 | X72: 4426.582271 | Y72: 4398.804959 | Z72: 4371.254175 | AA72: 4343.928656 | AB72: 4316.827148 | AF72: A | AX72: 59 | AY72: x | AZ72: x | BA72: x | BB72: x | BC72: x | BD72: x | BE72: x | BF72: x | BG72: x | BH72: x | BI72: x | BJ72: x | BK72: x | BL72: x | BM72: x | BN72: x
AX73: x | AY73: x | AZ73: x | BA73: x | BB73: x | BC73: x | BD73: x | BE73: x | BF73: x | BG73: x | BH73: x | BI73: x | BJ73: x | BK73: x | BL73: x | BM73: x | BN73: x
A74: Fase 6 | B74: Saldo | C74: =MIN((-C5+SUM($C$59:C59)),0)+SUM(C13,C15,C18,C22)-SUM(C53,C54,C55,C56,C57,C58,C59)-SUM(C62:C63) -> -114820.3413 | D74: =MIN((-D5+SUM($C$59:D59)),0)+SUM(D13,D15,D18,D22)-SUM(D53,D54,D55,D56,D57,D58,D59)-SUM(D62:D63) -> 9051.506694 | E74: =MIN((-E5+SUM($C$59:E59)),0)+SUM(E13,E15,E18,E22)-SUM(E53,E54,E55,E56,E57,E58,E59)-SUM(E62:E63) -> 8928.617884 | F74: =MIN((-F5+SUM($C$59:F59)),0)+SUM(F13,F15,F18,F22)-SUM(F53,F54,F55,F56,F57,F58,F59)-SUM(F62:F63) -> 8806.622168 | G74: =MIN((-G5+SUM($C$59:G59)),0)+SUM(G13,G15,G18,G22)-SUM(G53,G54,G55,G56,G57,G58,G59)-SUM(G62:G63) -> 8685.513622 | H74: =MIN((-H5+SUM($C$59:H59)),0)+SUM(H13,H15,H18,H22)-SUM(H53,H54,H55,H56,H57,H58,H59)-SUM(H62:H63) -> 8565.286368 | I74: =MIN((-I5+SUM($C$59:I59)),0)+SUM(I13,I15,I18,I22)-SUM(I53,I54,I55,I56,I57,I58,I59)-SUM(I62:I63) -> 8445.934573 | J74: =MIN((-J5+SUM($C$59:J59)),0)+SUM(J13,J15,J18,J22)-SUM(J53,J54,J55,J56,J57,J58,J59)-SUM(J62:J63) -> 8327.452446 | K74: =MIN((-K5+SUM($C$59:K59)),0)+SUM(K13,K15,K18,K22)-SUM(K53,K54,K55,K56,K57,K58,K59)-SUM(K62:K63) -> 8209.834243 | L74: =MIN((-L5+SUM($C$59:L59)),0)+SUM(L13,L15,L18,L22)-SUM(L53,L54,L55,L56,L57,L58,L59)-SUM(L62:L63) -> 8093.074261 | M74: =MIN((-M5+SUM($C$59:M59)),0)+SUM(M13,M15,M18,M22)-SUM(M53,M54,M55,M56,M57,M58,M59)-SUM(M62:M63) -> 7977.166841 | N74: =MIN((-N5+SUM($C$59:N59)),0)+SUM(N13,N15,N18,N22)-SUM(N53,N54,N55,N56,N57,N58,N59)-SUM(N62:N63) -> 16835.73755 | O74: =MIN((-O5+SUM($C$59:O59)),0)+SUM(O13,O15,O18,O22)-SUM(O53,O54,O55,O56,O57,O58,O59)-SUM(O62:O63) -> 16721.51846 | P74: =MIN((-P5+SUM($C$59:P59)),0)+SUM(P13,P15,P18,P22)-SUM(P53,P54,P55,P56,P57,P58,P59)-SUM(P62:P63) -> 16608.1352 | Q74: =MIN((-Q5+SUM($C$59:Q59)),0)+SUM(Q13,Q15,Q18,Q22)-SUM(Q53,Q54,Q55,Q56,Q57,Q58,Q59)-SUM(Q62:Q63) -> 16495.58231 | R74: =MIN((-R5+SUM($C$59:R59)),0)+SUM(R13,R15,R18,R22)-SUM(R53,R54,R55,R56,R57,R58,R59)-SUM(R62:R63) -> 16383.85432 | S74: =MIN((-S5+SUM($C$59:S59)),0)+SUM(S13,S15,S18,S22)-SUM(S53,S54,S55,S56,S57,S58,S59)-SUM(S62:S63) -> -35094.59699 | T74: =MIN((-T5+SUM($C$59:T59)),0)+SUM(T13,T15,T18,T22)-SUM(T53,T54,T55,T56,T57,T58,T59)-SUM(T62:T63) -> 5674.978162 | U74: =MIN((-U5+SUM($C$59:U59)),0)+SUM(U13,U15,U18,U22)-SUM(U53,U54,U55,U56,U57,U58,U59)-SUM(U62:U63) -> 5639.107763 | V74: =MIN((-V5+SUM($C$59:V59)),0)+SUM(V13,V15,V18,V22)-SUM(V53,V54,V55,V56,V57,V58,V59)-SUM(V62:V63) -> 5603.527002 | W74: =MIN((-W5+SUM($C$59:W59)),0)+SUM(W13,W15,W18,W22)-SUM(W53,W54,W55,W56,W57,W58,W59)-SUM(W62:W63) -> 5568.234236 | X74: =MIN((-X5+SUM($C$59:X59)),0)+SUM(X13,X15,X18,X22)-SUM(X53,X54,X55,X56,X57,X58,X59)-SUM(X62:X63) -> 5533.227839 | Y74: =MIN((-Y5+SUM($C$59:Y59)),0)+SUM(Y13,Y15,Y18,Y22)-SUM(Y53,Y54,Y55,Y56,Y57,Y58,Y59)-SUM(Y62:Y63) -> 5498.506198 | Z74: =MIN((-Z5+SUM($C$59:Z59)),0)+SUM(Z13,Z15,Z18,Z22)-SUM(Z53,Z54,Z55,Z56,Z57,Z58,Z59)-SUM(Z62:Z63) -> 5464.067719 | AA74: =MIN((-AA5+SUM($C$59:AA59)),0)+SUM(AA13,AA15,AA18,AA22)-SUM(AA53,AA54,AA55,AA56,AA57,AA58,AA59)-SUM(AA62:AA63) -> 5429.91082 | AB74: =MIN((-AB5+SUM($C$59:AB59)),0)+SUM(AB13,AB15,AB18,AB22)-SUM(AB53,AB54,AB55,AB56,AB57,AB58,AB59)-SUM(AB62:AB63) -> 5396.033935 | AG74: B | AX74: x | AY74: 61 | AZ74: x | BA74: x | BB74: x | BC74: x | BD74: x | BE74: x | BF74: x | BG74: x | BH74: x | BI74: x | BJ74: x | BK74: x | BL74: x | BM74: x | BN74: x
B75: KIA | C75: =IF(C$2=1,Totaal_KIA*VPB,0) -> 0 | D75: 1826.714599 | E75: 0 | F75: 0 | G75: 0 | H75: 0 | I75: 0 | J75: 0 | K75: 0 | L75: 0 | M75: 0 | N75: 0 | O75: 0 | P75: 0 | Q75: 0 | R75: 0 | S75: 0 | T75: 0 | U75: 0 | V75: 0 | W75: 0 | X75: 0 | Y75: 0 | Z75: 0 | AA75: 0 | AB75: 0 | AG75: B | AX75: x | AY75: 62 | AZ75: x | BA75: x | BB75: x | BC75: x | BD75: x | BE75: x | BF75: x | BG75: x | BH75: x | BI75: x | BJ75: x | BK75: x | BL75: x | BM75: x | BN75: x
A76: =IFERROR(IRR(C78:M78),0) -> -0.04930458672 | B76: EIA | C76: =IF(C$2=1,0,0) -> 0 | D76: =IF(D$2=1,0,0) -> 0 | E76: 0 | F76: 0 | G76: 0 | H76: 0 | I76: 0 | J76: 0 | K76: 0 | L76: 0 | M76: 0 | N76: 0 | O76: 0 | P76: 0 | Q76: 0 | R76: 0 | S76: 0 | T76: 0 | U76: 0 | V76: 0 | W76: 0 | X76: 0 | Y76: 0 | Z76: 0 | AA76: 0 | AB76: 0 | AG76: B | AX76: x | AY76: 63 | AZ76: x | BA76: x | BB76: x | BC76: x | BD76: x | BE76: x | BF76: x | BG76: x | BH76: x | BI76: x | BJ76: x | BK76: x | BL76: x | BM76: x | BN76: x
A77: =IFERROR(IRR(C78:R78),0) -> 0.04239816071 | B77: VPB | C77: 0 | D77: =MAX(0,(D74-D$11)*Variabelen!$K$9) -> 0 | E77: =MAX(0,(E74-E$11)*Variabelen!$K$9) -> 0 | F77: =MAX(0,(F74-F$11)*Variabelen!$K$9) -> 0 | G77: =MAX(0,(G74-G$11)*Variabelen!$K$9) -> 0 | H77: =MAX(0,(H74-H$11)*Variabelen!$K$9) -> 0 | I77: =MAX(0,(I74-I$11)*Variabelen!$K$9) -> 0 | J77: =MAX(0,(J74-J$11)*Variabelen!$K$9) -> 0 | K77: =MAX(0,(K74-K$11)*Variabelen!$K$9) -> 0 | L77: =MAX(0,(L74-L$11)*Variabelen!$K$9) -> 0 | M77: =MAX(0,(M74-M$11)*Variabelen!$K$9) -> 0 | N77: =MAX(0,(N74-N$11)*Variabelen!$K$9) -> 1404.427511 | O77: =MAX(0,(O74-O$11)*Variabelen!$K$9) -> 1381.583691 | P77: =MAX(0,(P74-P$11)*Variabelen!$K$9) -> 1358.907041 | Q77: =MAX(0,(Q74-Q$11)*Variabelen!$K$9) -> 1336.396461 | R77: =MAX(0,(R74-R$11)*Variabelen!$K$9) -> 1314.050864 | S77: =MAX(0,(S74-S$11)*Variabelen!$K$9) -> 0 | T77: =MAX(0,(T74-T$11)*Variabelen!$K$9) -> 1134.995632 | U77: =MAX(0,(U74-U$11)*Variabelen!$K$9) -> 1127.821553 | V77: =MAX(0,(V74-V$11)*Variabelen!$K$9) -> 1120.7054 | W77: =MAX(0,(W74-W$11)*Variabelen!$K$9) -> 1113.646847 | X77: =MAX(0,(X74-X$11)*Variabelen!$K$9) -> 1106.645568 | Y77: =MAX(0,(Y74-Y$11)*Variabelen!$K$9) -> 1099.70124 | Z77: =MAX(0,(Z74-Z$11)*Variabelen!$K$9) -> 1092.813544 | AA77: =MAX(0,(AA74-AA$11)*Variabelen!$K$9) -> 1085.982164 | AB77: =MAX(0,(AB74-AB$11)*Variabelen!$K$9) -> 1079.206787 | AG77: B | AX77: x | AY77: 64 | AZ77: x | BA77: x | BB77: x | BC77: x | BD77: x | BE77: x | BF77: x | BG77: x | BH77: x | BI77: x | BJ77: x | BK77: x | BL77: x | BM77: x | BN77: x
A78: =IFERROR(IRR(C78:W78),0) -> 0.03037201978 | B78: Balans | C78: =C74-C77+C75+C76 -> -114820.3413 | D78: =D74-D77+D75+D76 -> 10878.22129 | E78: =E74-E77+E75+E76 -> 8928.617884 | F78: 8806.622168 | G78: 8685.513622 | H78: 8565.286368 | I78: 8445.934573 | J78: 8327.452446 | K78: 8209.834243 | L78: 8093.074261 | M78: 7977.166841 | N78: 15431.31004 | O78: 15339.93477 | P78: 15249.22816 | Q78: 15159.18584 | R78: 15069.80346 | S78: -35094.59699 | T78: 4539.982529 | U78: 4511.286211 | V78: 4482.821602 | W78: 4454.587389 | X78: 4426.582271 | Y78: 4398.804959 | Z78: 4371.254175 | AA78: 4343.928656 | AB78: 4316.827148 | AG78: B | AX78: x | AY78: 65 | AZ78: x | BA78: x | BB78: x | BC78: x | BD78: x | BE78: x | BF78: x | BG78: x | BH78: x | BI78: x | BJ78: x | BK78: x | BL78: x | BM78: x | BN78: x
AX79: x | AY79: x | AZ79: x | BA79: x | BB79: x | BC79: x | BD79: x | BE79: x | BF79: x | BG79: x | BH79: x | BI79: x | BJ79: x | BK79: x | BL79: x | BM79: x | BN79: x
A80: Fase 7 | B80: Saldo | C80: =MIN((-C5+SUM($C$59:C59)),0)+SUM(C13,C16,C18,C22)-SUM(C53,C54,C55,C56,C57,C58,C59)-SUM(C62:C63) -> -114820.3413 | D80: =MIN((-D5+SUM($C$59:D59)),0)+SUM(D13,D16,D18,D22)-SUM(D53,D54,D55,D56,D57,D58,D59)-SUM(D62:D63) -> 11337.63179 | E80: =MIN((-E5+SUM($C$59:E59)),0)+SUM(E13,E16,E18,E22)-SUM(E53,E54,E55,E56,E57,E58,E59)-SUM(E62:E63) -> 11198.74011 | F80: =MIN((-F5+SUM($C$59:F59)),0)+SUM(F13,F16,F18,F22)-SUM(F53,F54,F55,F56,F57,F58,F59)-SUM(F62:F63) -> 11060.85354 | G80: =MIN((-G5+SUM($C$59:G59)),0)+SUM(G13,G16,G18,G22)-SUM(G53,G54,G55,G56,G57,G58,G59)-SUM(G62:G63) -> 10923.96537 | H80: =MIN((-H5+SUM($C$59:H59)),0)+SUM(H13,H16,H18,H22)-SUM(H53,H54,H55,H56,H57,H58,H59)-SUM(H62:H63) -> 10788.06896 | I80: =MIN((-I5+SUM($C$59:I59)),0)+SUM(I13,I16,I18,I22)-SUM(I53,I54,I55,I56,I57,I58,I59)-SUM(I62:I63) -> 10653.15768 | J80: =MIN((-J5+SUM($C$59:J59)),0)+SUM(J13,J16,J18,J22)-SUM(J53,J54,J55,J56,J57,J58,J59)-SUM(J62:J63) -> 10519.22499 | K80: =MIN((-K5+SUM($C$59:K59)),0)+SUM(K13,K16,K18,K22)-SUM(K53,K54,K55,K56,K57,K58,K59)-SUM(K62:K63) -> 10386.26438 | L80: =MIN((-L5+SUM($C$59:L59)),0)+SUM(L13,L16,L18,L22)-SUM(L53,L54,L55,L56,L57,L58,L59)-SUM(L62:L63) -> 10254.26939 | M80: =MIN((-M5+SUM($C$59:M59)),0)+SUM(M13,M16,M18,M22)-SUM(M53,M54,M55,M56,M57,M58,M59)-SUM(M62:M63) -> 10123.2336 | N80: =MIN((-N5+SUM($C$59:N59)),0)+SUM(N13,N16,N18,N22)-SUM(N53,N54,N55,N56,N57,N58,N59)-SUM(N62:N63) -> 18966.78185 | O80: =MIN((-O5+SUM($C$59:O59)),0)+SUM(O13,O16,O18,O22)-SUM(O53,O54,O55,O56,O57,O58,O59)-SUM(O62:O63) -> 18837.64544 | P80: =MIN((-P5+SUM($C$59:P59)),0)+SUM(P13,P16,P18,P22)-SUM(P53,P54,P55,P56,P57,P58,P59)-SUM(P62:P63) -> 18709.4493 | Q80: =MIN((-Q5+SUM($C$59:Q59)),0)+SUM(Q13,Q16,Q18,Q22)-SUM(Q53,Q54,Q55,Q56,Q57,Q58,Q59)-SUM(Q62:Q63) -> 18582.1872 | R80: =MIN((-R5+SUM($C$59:R59)),0)+SUM(R13,R16,R18,R22)-SUM(R53,R54,R55,R56,R57,R58,R59)-SUM(R62:R63) -> 18455.85298 | S80: =MIN((-S5+SUM($C$59:S59)),0)+SUM(S13,S16,S18,S22)-SUM(S53,S54,S55,S56,S57,S58,S59)-SUM(S62:S63) -> -35094.59699 | T80: =MIN((-T5+SUM($C$59:T59)),0)+SUM(T13,T16,T18,T22)-SUM(T53,T54,T55,T56,T57,T58,T59)-SUM(T62:T63) -> 5674.978162 | U80: =MIN((-U5+SUM($C$59:U59)),0)+SUM(U13,U16,U18,U22)-SUM(U53,U54,U55,U56,U57,U58,U59)-SUM(U62:U63) -> 5639.107763 | V80: =MIN((-V5+SUM($C$59:V59)),0)+SUM(V13,V16,V18,V22)-SUM(V53,V54,V55,V56,V57,V58,V59)-SUM(V62:V63) -> 5603.527002 | W80: =MIN((-W5+SUM($C$59:W59)),0)+SUM(W13,W16,W18,W22)-SUM(W53,W54,W55,W56,W57,W58,W59)-SUM(W62:W63) -> 5568.234236 | X80: =MIN((-X5+SUM($C$59:X59)),0)+SUM(X13,X16,X18,X22)-SUM(X53,X54,X55,X56,X57,X58,X59)-SUM(X62:X63) -> 5533.227839 | Y80: =MIN((-Y5+SUM($C$59:Y59)),0)+SUM(Y13,Y16,Y18,Y22)-SUM(Y53,Y54,Y55,Y56,Y57,Y58,Y59)-SUM(Y62:Y63) -> 5498.506198 | Z80: =MIN((-Z5+SUM($C$59:Z59)),0)+SUM(Z13,Z16,Z18,Z22)-SUM(Z53,Z54,Z55,Z56,Z57,Z58,Z59)-SUM(Z62:Z63) -> 5464.067719 | AA80: =MIN((-AA5+SUM($C$59:AA59)),0)+SUM(AA13,AA16,AA18,AA22)-SUM(AA53,AA54,AA55,AA56,AA57,AA58,AA59)-SUM(AA62:AA63) -> 5429.91082 | AB80: =MIN((-AB5+SUM($C$59:AB59)),0)+SUM(AB13,AB16,AB18,AB22)-SUM(AB53,AB54,AB55,AB56,AB57,AB58,AB59)-SUM(AB62:AB63) -> 5396.033935 | AH80: C | AX80: x | AY80: x | AZ80: 67 | BA80: x | BB80: x | BC80: x | BD80: x | BE80: x | BF80: x | BG80: x | BH80: x | BI80: x | BJ80: x | BK80: x | BL80: x | BM80: x | BN80: x
B81: KIA | C81: =IF(C$2=1,Totaal_KIA*VPB,0) -> 0 | D81: 1826.714599 | E81: 0 | F81: 0 | G81: 0 | H81: 0 | I81: 0 | J81: 0 | K81: 0 | L81: 0 | M81: 0 | N81: 0 | O81: 0 | P81: 0 | Q81: 0 | R81: 0 | S81: 0 | T81: 0 | U81: 0 | V81: 0 | W81: 0 | X81: 0 | Y81: 0 | Z81: 0 | AA81: 0 | AB81: 0 | AH81: C | AX81: x | AY81: x | AZ81: 68 | BA81: x | BB81: x | BC81: x | BD81: x | BE81: x | BF81: x | BG81: x | BH81: x | BI81: x | BJ81: x | BK81: x | BL81: x | BM81: x | BN81: x
A82: =IFERROR(IRR(C84:M84),0) -> -0.01256558575 | B82: EIA | C82: =IF(C$2=1,0,0) -> 0 | D82: =IF(D$2=1,0,0) -> 0 | E82: 0 | F82: 0 | G82: 0 | H82: 0 | I82: 0 | J82: 0 | K82: 0 | L82: 0 | M82: 0 | N82: 0 | O82: 0 | P82: 0 | Q82: 0 | R82: 0 | S82: 0 | T82: 0 | U82: 0 | V82: 0 | W82: 0 | X82: 0 | Y82: 0 | Z82: 0 | AA82: 0 | AB82: 0 | AH82: C | AX82: x | AY82: x | AZ82: 69 | BA82: x | BB82: x | BC82: x | BD82: x | BE82: x | BF82: x | BG82: x | BH82: x | BI82: x | BJ82: x | BK82: x | BL82: x | BM82: x | BN82: x
A83: =IFERROR(IRR(C84:R84),0) -> 0.06574032057 | B83: VPB | C83: 0 | D83: =MAX(0,(D80-D$11)*Variabelen!$K$9) -> 304.8063588 | E83: =MAX(0,(E80-E$11)*Variabelen!$K$9) -> 277.0280217 | F83: =MAX(0,(F80-F$11)*Variabelen!$K$9) -> 249.4507074 | G83: =MAX(0,(G80-G$11)*Variabelen!$K$9) -> 222.0730743 | H83: =MAX(0,(H80-H$11)*Variabelen!$K$9) -> 194.8937911 | I83: =MAX(0,(I80-I$11)*Variabelen!$K$9) -> 167.9115363 | J83: =MAX(0,(J80-J$11)*Variabelen!$K$9) -> 141.1249987 | K83: =MAX(0,(K80-K$11)*Variabelen!$K$9) -> 114.5328764 | L83: =MAX(0,(L80-L$11)*Variabelen!$K$9) -> 88.13387778 | M83: =MAX(0,(M80-M$11)*Variabelen!$K$9) -> 61.9267207 | N83: =MAX(0,(N80-N$11)*Variabelen!$K$9) -> 1830.63637 | O83: =MAX(0,(O80-O$11)*Variabelen!$K$9) -> 1804.809088 | P83: =MAX(0,(P80-P$11)*Variabelen!$K$9) -> 1779.16986 | Q83: =MAX(0,(Q80-Q$11)*Variabelen!$K$9) -> 1753.717441 | R83: =MAX(0,(R80-R$11)*Variabelen!$K$9) -> 1728.450597 | S83: =MAX(0,(S80-S$11)*Variabelen!$K$9) -> 0 | T83: =MAX(0,(T80-T$11)*Variabelen!$K$9) -> 1134.995632 | U83: =MAX(0,(U80-U$11)*Variabelen!$K$9) -> 1127.821553 | V83: =MAX(0,(V80-V$11)*Variabelen!$K$9) -> 1120.7054 | W83: =MAX(0,(W80-W$11)*Variabelen!$K$9) -> 1113.646847 | X83: =MAX(0,(X80-X$11)*Variabelen!$K$9) -> 1106.645568 | Y83: =MAX(0,(Y80-Y$11)*Variabelen!$K$9) -> 1099.70124 | Z83: =MAX(0,(Z80-Z$11)*Variabelen!$K$9) -> 1092.813544 | AA83: =MAX(0,(AA80-AA$11)*Variabelen!$K$9) -> 1085.982164 | AB83: =MAX(0,(AB80-AB$11)*Variabelen!$K$9) -> 1079.206787 | AH83: C | AX83: x | AY83: x | AZ83: 70 | BA83: x | BB83: x | BC83: x | BD83: x | BE83: x | BF83: x | BG83: x | BH83: x | BI83: x | BJ83: x | BK83: x | BL83: x | BM83: x | BN83: x
A84: =IFERROR(IRR(C84:W84),0) -> 0.05612896967 | B84: Balans | C84: =C80-C83+C81+C82 -> -114820.3413 | D84: =D80-D83+D81+D82 -> 12859.54003 | E84: =E80-E83+E81+E82 -> 10921.71209 | F84: 10811.40283 | G84: 10701.8923 | H84: 10593.17516 | I84: 10485.24615 | J84: 10378.09999 | K84: 10271.73151 | L84: 10166.13551 | M84: 10061.30688 | N84: 17136.14548 | O84: 17032.83635 | P84: 16930.27944 | Q84: 16828.46976 | R84: 16727.40239 | S84: -35094.59699 | T84: 4539.982529 | U84: 4511.286211 | V84: 4482.821602 | W84: 4454.587389 | X84: 4426.582271 | Y84: 4398.804959 | Z84: 4371.254175 | AA84: 4343.928656 | AB84: 4316.827148 | AH84: C | AX84: x | AY84: x | AZ84: 71 | BA84: x | BB84: x | BC84: x | BD84: x | BE84: x | BF84: x | BG84: x | BH84: x | BI84: x | BJ84: x | BK84: x | BL84: x | BM84: x | BN84: x
AX85: x | AY85: x | AZ85: x | BA85: x | BB85: x | BC85: x | BD85: x | BE85: x | BF85: x | BG85: x | BH85: x | BI85: x | BJ85: x | BK85: x | BL85: x | BM85: x | BN85: x
A86: Fase 8 | B86: Saldo | C86: =MIN((-C5+SUM($C$59:C59)),0)+SUM(C13,C17,C18,C22)-SUM(C53,C54,C55,C56,C57,C58,C59)-SUM(C62:C63) -> -114820.3413 | D86: =MIN((-D5+SUM($C$59:D59)),0)+SUM(D13,D17,D18,D22)-SUM(D53,D54,D55,D56,D57,D58,D59)-SUM(D62:D63) -> 11337.63179 | E86: =MIN((-E5+SUM($C$59:E59)),0)+SUM(E13,E17,E18,E22)-SUM(E53,E54,E55,E56,E57,E58,E59)-SUM(E62:E63) -> 11198.74011 | F86: =MIN((-F5+SUM($C$59:F59)),0)+SUM(F13,F17,F18,F22)-SUM(F53,F54,F55,F56,F57,F58,F59)-SUM(F62:F63) -> 11060.85354 | G86: =MIN((-G5+SUM($C$59:G59)),0)+SUM(G13,G17,G18,G22)-SUM(G53,G54,G55,G56,G57,G58,G59)-SUM(G62:G63) -> 10923.96537 | H86: =MIN((-H5+SUM($C$59:H59)),0)+SUM(H13,H17,H18,H22)-SUM(H53,H54,H55,H56,H57,H58,H59)-SUM(H62:H63) -> 10788.06896 | I86: =MIN((-I5+SUM($C$59:I59)),0)+SUM(I13,I17,I18,I22)-SUM(I53,I54,I55,I56,I57,I58,I59)-SUM(I62:I63) -> 10653.15768 | J86: =MIN((-J5+SUM($C$59:J59)),0)+SUM(J13,J17,J18,J22)-SUM(J53,J54,J55,J56,J57,J58,J59)-SUM(J62:J63) -> 10519.22499 | K86: =MIN((-K5+SUM($C$59:K59)),0)+SUM(K13,K17,K18,K22)-SUM(K53,K54,K55,K56,K57,K58,K59)-SUM(K62:K63) -> 10386.26438 | L86: =MIN((-L5+SUM($C$59:L59)),0)+SUM(L13,L17,L18,L22)-SUM(L53,L54,L55,L56,L57,L58,L59)-SUM(L62:L63) -> 10254.26939 | M86: =MIN((-M5+SUM($C$59:M59)),0)+SUM(M13,M17,M18,M22)-SUM(M53,M54,M55,M56,M57,M58,M59)-SUM(M62:M63) -> 10123.2336 | N86: =MIN((-N5+SUM($C$59:N59)),0)+SUM(N13,N17,N18,N22)-SUM(N53,N54,N55,N56,N57,N58,N59)-SUM(N62:N63) -> 18966.78185 | O86: =MIN((-O5+SUM($C$59:O59)),0)+SUM(O13,O17,O18,O22)-SUM(O53,O54,O55,O56,O57,O58,O59)-SUM(O62:O63) -> 18837.64544 | P86: =MIN((-P5+SUM($C$59:P59)),0)+SUM(P13,P17,P18,P22)-SUM(P53,P54,P55,P56,P57,P58,P59)-SUM(P62:P63) -> 18709.4493 | Q86: =MIN((-Q5+SUM($C$59:Q59)),0)+SUM(Q13,Q17,Q18,Q22)-SUM(Q53,Q54,Q55,Q56,Q57,Q58,Q59)-SUM(Q62:Q63) -> 18582.1872 | R86: =MIN((-R5+SUM($C$59:R59)),0)+SUM(R13,R17,R18,R22)-SUM(R53,R54,R55,R56,R57,R58,R59)-SUM(R62:R63) -> 18455.85298 | S86: =MIN((-S5+SUM($C$59:S59)),0)+SUM(S13,S17,S18,S22)-SUM(S53,S54,S55,S56,S57,S58,S59)-SUM(S62:S63) -> -35094.59699 | T86: =MIN((-T5+SUM($C$59:T59)),0)+SUM(T13,T17,T18,T22)-SUM(T53,T54,T55,T56,T57,T58,T59)-SUM(T62:T63) -> 5674.978162 | U86: =MIN((-U5+SUM($C$59:U59)),0)+SUM(U13,U17,U18,U22)-SUM(U53,U54,U55,U56,U57,U58,U59)-SUM(U62:U63) -> 5639.107763 | V86: =MIN((-V5+SUM($C$59:V59)),0)+SUM(V13,V17,V18,V22)-SUM(V53,V54,V55,V56,V57,V58,V59)-SUM(V62:V63) -> 5603.527002 | W86: =MIN((-W5+SUM($C$59:W59)),0)+SUM(W13,W17,W18,W22)-SUM(W53,W54,W55,W56,W57,W58,W59)-SUM(W62:W63) -> 5568.234236 | X86: =MIN((-X5+SUM($C$59:X59)),0)+SUM(X13,X17,X18,X22)-SUM(X53,X54,X55,X56,X57,X58,X59)-SUM(X62:X63) -> 5533.227839 | Y86: =MIN((-Y5+SUM($C$59:Y59)),0)+SUM(Y13,Y17,Y18,Y22)-SUM(Y53,Y54,Y55,Y56,Y57,Y58,Y59)-SUM(Y62:Y63) -> 5498.506198 | Z86: =MIN((-Z5+SUM($C$59:Z59)),0)+SUM(Z13,Z17,Z18,Z22)-SUM(Z53,Z54,Z55,Z56,Z57,Z58,Z59)-SUM(Z62:Z63) -> 5464.067719 | AA86: =MIN((-AA5+SUM($C$59:AA59)),0)+SUM(AA13,AA17,AA18,AA22)-SUM(AA53,AA54,AA55,AA56,AA57,AA58,AA59)-SUM(AA62:AA63) -> 5429.91082 | AB86: =MIN((-AB5+SUM($C$59:AB59)),0)+SUM(AB13,AB17,AB18,AB22)-SUM(AB53,AB54,AB55,AB56,AB57,AB58,AB59)-SUM(AB62:AB63) -> 5396.033935 | AI86: D | AX86: x | AY86: x | AZ86: x | BA86: 73 | BB86: x | BC86: x | BD86: x | BE86: x | BF86: x | BG86: x | BH86: x | BI86: x | BJ86: x | BK86: x | BL86: x | BM86: x | BN86: x
B87: KIA | C87: =IF(C$2=1,Totaal_KIA*VPB,0) -> 0 | D87: 1826.714599 | E87: 0 | F87: 0 | G87: 0 | H87: 0 | I87: 0 | J87: 0 | K87: 0 | L87: 0 | M87: 0 | N87: 0 | O87: 0 | P87: 0 | Q87: 0 | R87: 0 | S87: 0 | T87: 0 | U87: 0 | V87: 0 | W87: 0 | X87: 0 | Y87: 0 | Z87: 0 | AA87: 0 | AB87: 0 | AI87: D | AX87: x | AY87: x | AZ87: x | BA87: 74 | BB87: x | BC87: x | BD87: x | BE87: x | BF87: x | BG87: x | BH87: x | BI87: x | BJ87: x | BK87: x | BL87: x | BM87: x | BN87: x
A88: =IFERROR(IRR(C90:M90),0) -> -0.01256558575 | B88: EIA | C88: =IF(C$2=1,0,0) -> 0 | D88: =IF(D$2=1,0,0) -> 0 | E88: 0 | F88: 0 | G88: 0 | H88: 0 | I88: 0 | J88: 0 | K88: 0 | L88: 0 | M88: 0 | N88: 0 | O88: 0 | P88: 0 | Q88: 0 | R88: 0 | S88: 0 | T88: 0 | U88: 0 | V88: 0 | W88: 0 | X88: 0 | Y88: 0 | Z88: 0 | AA88: 0 | AB88: 0 | AI88: D | AX88: x | AY88: x | AZ88: x | BA88: 75 | BB88: x | BC88: x | BD88: x | BE88: x | BF88: x | BG88: x | BH88: x | BI88: x | BJ88: x | BK88: x | BL88: x | BM88: x | BN88: x
A89: =IFERROR(IRR(C90:R90),0) -> 0.06574032057 | B89: VPB | C89: 0 | D89: =MAX(0,(D86-D$11)*Variabelen!$K$9) -> 304.8063588 | E89: =MAX(0,(E86-E$11)*Variabelen!$K$9) -> 277.0280217 | F89: =MAX(0,(F86-F$11)*Variabelen!$K$9) -> 249.4507074 | G89: =MAX(0,(G86-G$11)*Variabelen!$K$9) -> 222.0730743 | H89: =MAX(0,(H86-H$11)*Variabelen!$K$9) -> 194.8937911 | I89: =MAX(0,(I86-I$11)*Variabelen!$K$9) -> 167.9115363 | J89: =MAX(0,(J86-J$11)*Variabelen!$K$9) -> 141.1249987 | K89: =MAX(0,(K86-K$11)*Variabelen!$K$9) -> 114.5328764 | L89: =MAX(0,(L86-L$11)*Variabelen!$K$9) -> 88.13387778 | M89: =MAX(0,(M86-M$11)*Variabelen!$K$9) -> 61.9267207 | N89: =MAX(0,(N86-N$11)*Variabelen!$K$9) -> 1830.63637 | O89: =MAX(0,(O86-O$11)*Variabelen!$K$9) -> 1804.809088 | P89: =MAX(0,(P86-P$11)*Variabelen!$K$9) -> 1779.16986 | Q89: =MAX(0,(Q86-Q$11)*Variabelen!$K$9) -> 1753.717441 | R89: =MAX(0,(R86-R$11)*Variabelen!$K$9) -> 1728.450597 | S89: =MAX(0,(S86-S$11)*Variabelen!$K$9) -> 0 | T89: =MAX(0,(T86-T$11)*Variabelen!$K$9) -> 1134.995632 | U89: =MAX(0,(U86-U$11)*Variabelen!$K$9) -> 1127.821553 | V89: =MAX(0,(V86-V$11)*Variabelen!$K$9) -> 1120.7054 | W89: =MAX(0,(W86-W$11)*Variabelen!$K$9) -> 1113.646847 | X89: =MAX(0,(X86-X$11)*Variabelen!$K$9) -> 1106.645568 | Y89: =MAX(0,(Y86-Y$11)*Variabelen!$K$9) -> 1099.70124 | Z89: =MAX(0,(Z86-Z$11)*Variabelen!$K$9) -> 1092.813544 | AA89: =MAX(0,(AA86-AA$11)*Variabelen!$K$9) -> 1085.982164 | AB89: =MAX(0,(AB86-AB$11)*Variabelen!$K$9) -> 1079.206787 | AI89: D | AX89: x | AY89: x | AZ89: x | BA89: 76 | BB89: x | BC89: x | BD89: x | BE89: x | BF89: x | BG89: x | BH89: x | BI89: x | BJ89: x | BK89: x | BL89: x | BM89: x | BN89: x
A90: =IFERROR(IRR(C90:W90),0) -> 0.05612896967 | B90: Balans | C90: =C86-C89+C87+C88 -> -114820.3413 | D90: =D86-D89+D87+D88 -> 12859.54003 | E90: =E86-E89+E87+E88 -> 10921.71209 | F90: 10811.40283 | G90: 10701.8923 | H90: 10593.17516 | I90: 10485.24615 | J90: 10378.09999 | K90: 10271.73151 | L90: 10166.13551 | M90: 10061.30688 | N90: 17136.14548 | O90: 17032.83635 | P90: 16930.27944 | Q90: 16828.46976 | R90: 16727.40239 | S90: -35094.59699 | T90: 4539.982529 | U90: 4511.286211 | V90: 4482.821602 | W90: 4454.587389 | X90: 4426.582271 | Y90: 4398.804959 | Z90: 4371.254175 | AA90: 4343.928656 | AB90: 4316.827148 | AI90: D | AX90: x | AY90: x | AZ90: x | BA90: 77 | BB90: x | BC90: x | BD90: x | BE90: x | BF90: x | BG90: x | BH90: x | BI90: x | BJ90: x | BK90: x | BL90: x | BM90: x | BN90: x
AX91: x | AY91: x | AZ91: x | BA91: x | BB91: x | BC91: x | BD91: x | BE91: x | BF91: x | BG91: x | BH91: x | BI91: x | BJ91: x | BK91: x | BL91: x | BM91: x | BN91: x
A92: SDE Alg+zelfconsumptie | AX92: x | AY92: x | AZ92: x | BA92: x | BB92: x | BC92: x | BD92: x | BE92: x | BF92: x | BG92: x | BH92: x | BI92: x | BJ92: x | BK92: x | BL92: x | BM92: x | BN92: x
A93: Fase 5 | B93: Saldo | C93: =MIN((-C5+SUM($C$59:C59)),0)+SUM(C14,C18,C19,C20,C21,C22)-SUM(C53,C54,C55,C56,C57,C58,C59)-SUM(C62:C63) -> -114820.3413 | D93: =MIN((-D5+SUM($C$59:D59)),0)+SUM(D14,D18,D19,D20,D21,D22)-SUM(D53,D54,D55,D56,D57,D58,D59)-SUM(D62:D63) -> 6003.339894 | E93: =MIN((-E5+SUM($C$59:E59)),0)+SUM(E14,E18,E19,E20,E21,E22)-SUM(E53,E54,E55,E56,E57,E58,E59)-SUM(E62:E63) -> 5901.788252 | F93: =MIN((-F5+SUM($C$59:F59)),0)+SUM(F14,F18,F19,F20,F21,F22)-SUM(F53,F54,F55,F56,F57,F58,F59)-SUM(F62:F63) -> 5800.980343 | G93: =MIN((-G5+SUM($C$59:G59)),0)+SUM(G14,G18,G19,G20,G21,G22)-SUM(G53,G54,G55,G56,G57,G58,G59)-SUM(G62:G63) -> 5700.91129 | H93: =MIN((-H5+SUM($C$59:H59)),0)+SUM(H14,H18,H19,H20,H21,H22)-SUM(H53,H54,H55,H56,H57,H58,H59)-SUM(H62:H63) -> 5601.576253 | I93: =MIN((-I5+SUM($C$59:I59)),0)+SUM(I14,I18,I19,I20,I21,I22)-SUM(I53,I54,I55,I56,I57,I58,I59)-SUM(I62:I63) -> 5502.970428 | J93: =MIN((-J5+SUM($C$59:J59)),0)+SUM(J14,J18,J19,J20,J21,J22)-SUM(J53,J54,J55,J56,J57,J58,J59)-SUM(J62:J63) -> 5405.08905 | K93: =MIN((-K5+SUM($C$59:K59)),0)+SUM(K14,K18,K19,K20,K21,K22)-SUM(K53,K54,K55,K56,K57,K58,K59)-SUM(K62:K63) -> 5307.927391 | L93: =MIN((-L5+SUM($C$59:L59)),0)+SUM(L14,L18,L19,L20,L21,L22)-SUM(L53,L54,L55,L56,L57,L58,L59)-SUM(L62:L63) -> 5211.480756 | M93: =MIN((-M5+SUM($C$59:M59)),0)+SUM(M14,M18,M19,M20,M21,M22)-SUM(M53,M54,M55,M56,M57,M58,M59)-SUM(M62:M63) -> 5115.744491 | N93: =MIN((-N5+SUM($C$59:N59)),0)+SUM(N14,N18,N19,N20,N21,N22)-SUM(N53,N54,N55,N56,N57,N58,N59)-SUM(N62:N63) -> 13994.34516 | O93: =MIN((-O5+SUM($C$59:O59)),0)+SUM(O14,O18,O19,O20,O21,O22)-SUM(O53,O54,O55,O56,O57,O58,O59)-SUM(O62:O63) -> 13900.01581 | P93: =MIN((-P5+SUM($C$59:P59)),0)+SUM(P14,P18,P19,P20,P21,P22)-SUM(P53,P54,P55,P56,P57,P58,P59)-SUM(P62:P63) -> 13806.38308 | Q93: =MIN((-Q5+SUM($C$59:Q59)),0)+SUM(Q14,Q18,Q19,Q20,Q21,Q22)-SUM(Q53,Q54,Q55,Q56,Q57,Q58,Q59)-SUM(Q62:Q63) -> 13713.44244 | R93: =MIN((-R5+SUM($C$59:R59)),0)+SUM(R14,R18,R19,R20,R21,R22)-SUM(R53,R54,R55,R56,R57,R58,R59)-SUM(R62:R63) -> 13621.18944 | S93: =MIN((-S5+SUM($C$59:S59)),0)+SUM(S14,S18,S19,S20,S21,S22)-SUM(S53,S54,S55,S56,S57,S58,S59)-SUM(S62:S63) -> -35094.59699 | T93: =MIN((-T5+SUM($C$59:T59)),0)+SUM(T14,T18,T19,T20,T21,T22)-SUM(T53,T54,T55,T56,T57,T58,T59)-SUM(T62:T63) -> 5674.978162 | U93: =MIN((-U5+SUM($C$59:U59)),0)+SUM(U14,U18,U19,U20,U21,U22)-SUM(U53,U54,U55,U56,U57,U58,U59)-SUM(U62:U63) -> 5639.107763 | V93: =MIN((-V5+SUM($C$59:V59)),0)+SUM(V14,V18,V19,V20,V21,V22)-SUM(V53,V54,V55,V56,V57,V58,V59)-SUM(V62:V63) -> 5603.527002 | W93: =MIN((-W5+SUM($C$59:W59)),0)+SUM(W14,W18,W19,W20,W21,W22)-SUM(W53,W54,W55,W56,W57,W58,W59)-SUM(W62:W63) -> 5568.234236 | X93: =MIN((-X5+SUM($C$59:X59)),0)+SUM(X14,X18,X19,X20,X21,X22)-SUM(X53,X54,X55,X56,X57,X58,X59)-SUM(X62:X63) -> 5533.227839 | Y93: =MIN((-Y5+SUM($C$59:Y59)),0)+SUM(Y14,Y18,Y19,Y20,Y21,Y22)-SUM(Y53,Y54,Y55,Y56,Y57,Y58,Y59)-SUM(Y62:Y63) -> 5498.506198 | Z93: =MIN((-Z5+SUM($C$59:Z59)),0)+SUM(Z14,Z18,Z19,Z20,Z21,Z22)-SUM(Z53,Z54,Z55,Z56,Z57,Z58,Z59)-SUM(Z62:Z63) -> 5464.067719 | AA93: =MIN((-AA5+SUM($C$59:AA59)),0)+SUM(AA14,AA18,AA19,AA20,AA21,AA22)-SUM(AA53,AA54,AA55,AA56,AA57,AA58,AA59)-SUM(AA62:AA63) -> 5429.91082 | AB93: =MIN((-AB5+SUM($C$59:AB59)),0)+SUM(AB14,AB18,AB19,AB20,AB21,AB22)-SUM(AB53,AB54,AB55,AB56,AB57,AB58,AB59)-SUM(AB62:AB63) -> 5396.033935 | AJ93: E | AX93: x | AY93: x | AZ93: x | BA93: x | BB93: 80 | BC93: x | BD93: x | BE93: x | BF93: x | BG93: x | BH93: x | BI93: x | BJ93: x | BK93: x | BL93: x | BM93: x | BN93: x
B94: KIA | C94: =IF(C$2=1,0,0) -> 0 | D94: =IF(D$2=1,0,0) -> 0 | E94: 0 | F94: 0 | G94: 0 | H94: 0 | I94: 0 | J94: 0 | K94: 0 | L94: 0 | M94: 0 | N94: 0 | O94: 0 | P94: 0 | Q94: 0 | R94: 0 | S94: 0 | T94: 0 | U94: 0 | V94: 0 | W94: 0 | X94: 0 | Y94: 0 | Z94: 0 | AA94: 0 | AB94: 0 | AJ94: E | AX94: x | AY94: x | AZ94: x | BA94: x | BB94: 81 | BC94: x | BD94: x | BE94: x | BF94: x | BG94: x | BH94: x | BI94: x | BJ94: x | BK94: x | BL94: x | BM94: x | BN94: x
A95: =IFERROR(IRR(C97:M97),0) -> -0.1165184224 | B95: EIA | C95: =IF(C$2=1,0,0) -> 0 | D95: 0 | E95: 0 | F95: 0 | G95: 0 | H95: 0 | I95: 0 | J95: 0 | K95: 0 | L95: 0 | M95: 0 | N95: 0 | O95: 0 | P95: 0 | Q95: 0 | R95: 0 | S95: 0 | T95: 0 | U95: 0 | V95: 0 | W95: 0 | X95: 0 | Y95: 0 | Z95: 0 | AA95: 0 | AB95: 0 | AJ95: E | AX95: x | AY95: x | AZ95: x | BA95: x | BB95: 82 | BC95: x | BD95: x | BE95: x | BF95: x | BG95: x | BH95: x | BI95: x | BJ95: x | BK95: x | BL95: x | BM95: x | BN95: x
A96: =IFERROR(IRR(C97:R97),0) -> 0.005221008312 | B96: VPB | C96: 0 | D96: =MAX(0,(D93-D$11)*Variabelen!$K$9) -> 0 | E96: =MAX(0,(E93-E$11)*Variabelen!$K$9) -> 0 | F96: =MAX(0,(F93-F$11)*Variabelen!$K$9) -> 0 | G96: =MAX(0,(G93-G$11)*Variabelen!$K$9) -> 0 | H96: =MAX(0,(H93-H$11)*Variabelen!$K$9) -> 0 | I96: =MAX(0,(I93-I$11)*Variabelen!$K$9) -> 0 | J96: =MAX(0,(J93-J$11)*Variabelen!$K$9) -> 0 | K96: =MAX(0,(K93-K$11)*Variabelen!$K$9) -> 0 | L96: =MAX(0,(L93-L$11)*Variabelen!$K$9) -> 0 | M96: =MAX(0,(M93-M$11)*Variabelen!$K$9) -> 0 | N96: =MAX(0,(N93-N$11)*Variabelen!$K$9) -> 836.1490323 | O96: =MAX(0,(O93-O$11)*Variabelen!$K$9) -> 817.2831621 | P96: =MAX(0,(P93-P$11)*Variabelen!$K$9) -> 798.556615 | Q96: =MAX(0,(Q93-Q$11)*Variabelen!$K$9) -> 779.9684886 | R96: =MAX(0,(R93-R$11)*Variabelen!$K$9) -> 761.5178871 | S96: =MAX(0,(S93-S$11)*Variabelen!$K$9) -> 0 | T96: =MAX(0,(T93-T$11)*Variabelen!$K$9) -> 1134.995632 | U96: =MAX(0,(U93-U$11)*Variabelen!$K$9) -> 1127.821553 | V96: =MAX(0,(V93-V$11)*Variabelen!$K$9) -> 1120.7054 | W96: =MAX(0,(W93-W$11)*Variabelen!$K$9) -> 1113.646847 | X96: =MAX(0,(X93-X$11)*Variabelen!$K$9) -> 1106.645568 | Y96: =MAX(0,(Y93-Y$11)*Variabelen!$K$9) -> 1099.70124 | Z96: =MAX(0,(Z93-Z$11)*Variabelen!$K$9) -> 1092.813544 | AA96: =MAX(0,(AA93-AA$11)*Variabelen!$K$9) -> 1085.982164 | AB96: =MAX(0,(AB93-AB$11)*Variabelen!$K$9) -> 1079.206787 | AJ96: E | AX96: x | AY96: x | AZ96: x | BA96: x | BB96: 83 | BC96: x | BD96: x | BE96: x | BF96: x | BG96: x | BH96: x | BI96: x | BJ96: x | BK96: x | BL96: x | BM96: x | BN96: x
A97: =IFERROR(IRR(C97:W97),0) -> -0.01153818713 | B97: Balans | C97: =C93-C96+C94+C95 -> -114820.3413 | D97: =D93-D96+D94+D95 -> 6003.339894 | E97: =E93-E96+E94+E95 -> 5901.788252 | F97: 5800.980343 | G97: 5700.91129 | H97: 5601.576253 | I97: 5502.970428 | J97: 5405.08905 | K97: 5307.927391 | L97: 5211.480756 | M97: 5115.744491 | N97: 13158.19613 | O97: 13082.73265 | P97: 13007.82646 | Q97: 12933.47395 | R97: 12859.67155 | S97: -35094.59699 | T97: 4539.982529 | U97: 4511.286211 | V97: 4482.821602 | W97: 4454.587389 | X97: 4426.582271 | Y97: 4398.804959 | Z97: 4371.254175 | AA97: 4343.928656 | AB97: 4316.827148 | AJ97: E | AX97: x | AY97: x | AZ97: x | BA97: x | BB97: 84 | BC97: x | BD97: x | BE97: x | BF97: x | BG97: x | BH97: x | BI97: x | BJ97: x | BK97: x | BL97: x | BM97: x | BN97: x
AX98: x | AY98: x | AZ98: x | BA98: x | BB98: x | BC98: x | BD98: x | BE98: x | BF98: x | BG98: x | BH98: x | BI98: x | BJ98: x | BK98: x | BL98: x | BM98: x | BN98: x
A99: Fase 6 | B99: Saldo | C99: =MIN((-C5+SUM($C$59:C59)),0)+SUM(C15,C18,C19,C20,C21,C22)-SUM(C53,C54,C55,C56,C57,C58,C59)-SUM(C62:C63) -> -114820.3413 | D99: =MIN((-D5+SUM($C$59:D59)),0)+SUM(D15,D18,D19,D20,D21,D22)-SUM(D53,D54,D55,D56,D57,D58,D59)-SUM(D62:D63) -> 9051.506694 | E99: =MIN((-E5+SUM($C$59:E59)),0)+SUM(E15,E18,E19,E20,E21,E22)-SUM(E53,E54,E55,E56,E57,E58,E59)-SUM(E62:E63) -> 8928.617884 | F99: =MIN((-F5+SUM($C$59:F59)),0)+SUM(F15,F18,F19,F20,F21,F22)-SUM(F53,F54,F55,F56,F57,F58,F59)-SUM(F62:F63) -> 8806.622168 | G99: =MIN((-G5+SUM($C$59:G59)),0)+SUM(G15,G18,G19,G20,G21,G22)-SUM(G53,G54,G55,G56,G57,G58,G59)-SUM(G62:G63) -> 8685.513622 | H99: =MIN((-H5+SUM($C$59:H59)),0)+SUM(H15,H18,H19,H20,H21,H22)-SUM(H53,H54,H55,H56,H57,H58,H59)-SUM(H62:H63) -> 8565.286368 | I99: =MIN((-I5+SUM($C$59:I59)),0)+SUM(I15,I18,I19,I20,I21,I22)-SUM(I53,I54,I55,I56,I57,I58,I59)-SUM(I62:I63) -> 8445.934573 | J99: =MIN((-J5+SUM($C$59:J59)),0)+SUM(J15,J18,J19,J20,J21,J22)-SUM(J53,J54,J55,J56,J57,J58,J59)-SUM(J62:J63) -> 8327.452446 | K99: =MIN((-K5+SUM($C$59:K59)),0)+SUM(K15,K18,K19,K20,K21,K22)-SUM(K53,K54,K55,K56,K57,K58,K59)-SUM(K62:K63) -> 8209.834243 | L99: =MIN((-L5+SUM($C$59:L59)),0)+SUM(L15,L18,L19,L20,L21,L22)-SUM(L53,L54,L55,L56,L57,L58,L59)-SUM(L62:L63) -> 8093.074261 | M99: =MIN((-M5+SUM($C$59:M59)),0)+SUM(M15,M18,M19,M20,M21,M22)-SUM(M53,M54,M55,M56,M57,M58,M59)-SUM(M62:M63) -> 7977.166841 | N99: =MIN((-N5+SUM($C$59:N59)),0)+SUM(N15,N18,N19,N20,N21,N22)-SUM(N53,N54,N55,N56,N57,N58,N59)-SUM(N62:N63) -> 16835.73755 | O99: =MIN((-O5+SUM($C$59:O59)),0)+SUM(O15,O18,O19,O20,O21,O22)-SUM(O53,O54,O55,O56,O57,O58,O59)-SUM(O62:O63) -> 16721.51846 | P99: =MIN((-P5+SUM($C$59:P59)),0)+SUM(P15,P18,P19,P20,P21,P22)-SUM(P53,P54,P55,P56,P57,P58,P59)-SUM(P62:P63) -> 16608.1352 | Q99: =MIN((-Q5+SUM($C$59:Q59)),0)+SUM(Q15,Q18,Q19,Q20,Q21,Q22)-SUM(Q53,Q54,Q55,Q56,Q57,Q58,Q59)-SUM(Q62:Q63) -> 16495.58231 | R99: =MIN((-R5+SUM($C$59:R59)),0)+SUM(R15,R18,R19,R20,R21,R22)-SUM(R53,R54,R55,R56,R57,R58,R59)-SUM(R62:R63) -> 16383.85432 | S99: =MIN((-S5+SUM($C$59:S59)),0)+SUM(S15,S18,S19,S20,S21,S22)-SUM(S53,S54,S55,S56,S57,S58,S59)-SUM(S62:S63) -> -35094.59699 | T99: =MIN((-T5+SUM($C$59:T59)),0)+SUM(T15,T18,T19,T20,T21,T22)-SUM(T53,T54,T55,T56,T57,T58,T59)-SUM(T62:T63) -> 5674.978162 | U99: =MIN((-U5+SUM($C$59:U59)),0)+SUM(U15,U18,U19,U20,U21,U22)-SUM(U53,U54,U55,U56,U57,U58,U59)-SUM(U62:U63) -> 5639.107763 | V99: =MIN((-V5+SUM($C$59:V59)),0)+SUM(V15,V18,V19,V20,V21,V22)-SUM(V53,V54,V55,V56,V57,V58,V59)-SUM(V62:V63) -> 5603.527002 | W99: =MIN((-W5+SUM($C$59:W59)),0)+SUM(W15,W18,W19,W20,W21,W22)-SUM(W53,W54,W55,W56,W57,W58,W59)-SUM(W62:W63) -> 5568.234236 | X99: =MIN((-X5+SUM($C$59:X59)),0)+SUM(X15,X18,X19,X20,X21,X22)-SUM(X53,X54,X55,X56,X57,X58,X59)-SUM(X62:X63) -> 5533.227839 | Y99: =MIN((-Y5+SUM($C$59:Y59)),0)+SUM(Y15,Y18,Y19,Y20,Y21,Y22)-SUM(Y53,Y54,Y55,Y56,Y57,Y58,Y59)-SUM(Y62:Y63) -> 5498.506198 | Z99: =MIN((-Z5+SUM($C$59:Z59)),0)+SUM(Z15,Z18,Z19,Z20,Z21,Z22)-SUM(Z53,Z54,Z55,Z56,Z57,Z58,Z59)-SUM(Z62:Z63) -> 5464.067719 | AA99: =MIN((-AA5+SUM($C$59:AA59)),0)+SUM(AA15,AA18,AA19,AA20,AA21,AA22)-SUM(AA53,AA54,AA55,AA56,AA57,AA58,AA59)-SUM(AA62:AA63) -> 5429.91082 | AB99: =MIN((-AB5+SUM($C$59:AB59)),0)+SUM(AB15,AB18,AB19,AB20,AB21,AB22)-SUM(AB53,AB54,AB55,AB56,AB57,AB58,AB59)-SUM(AB62:AB63) -> 5396.033935 | AK99: F | AX99: =IF(AF99=AX$12,ROW(AF99)-13,"x") -> x | AY99: =IF(AG99=AY$12,ROW(AG99)-13,"x") -> x | AZ99: =IF(AH99=AZ$12,ROW(AH99)-13,"x") -> x | BA99: =IF(AI99=BA$12,ROW(AI99)-13,"x") -> x | BB99: =IF(AJ99=BB$12,ROW(AJ99)-13,"x") -> x | BC99: =IF(AK99=BC$12,ROW(AK99)-13,"x") -> 86 | BD99: =IF(AL99=BD$12,ROW(AL99)-13,"x") -> x | BE99: =IF(AM99=BE$12,ROW(AM99)-13,"x") -> x | BF99: =IF(AN99=BF$12,ROW(AN99)-13,"x") -> x | BG99: =IF(AO99=BG$12,ROW(AO99)-13,"x") -> x | BH99: =IF(AP99=BH$12,ROW(AP99)-13,"x") -> x | BI99: =IF(AQ99=BI$12,ROW(AQ99)-13,"x") -> x | BJ99: =IF(AR99=BJ$12,ROW(AR99)-13,"x") -> x | BK99: =IF(AS99=BK$12,ROW(AS99)-13,"x") -> x | BL99: =IF(AT99=BL$12,ROW(AT99)-13,"x") -> x | BM99: =IF(AU99=BM$12,ROW(AU99)-13,"x") -> x | BN99: =IF(AV99=BN$12,ROW(AV99)-13,"x") -> x
B100: KIA | C100: =IF(C$2=1,0,0) -> 0 | D100: =IF(D$2=1,0,0) -> 0 | E100: 0 | F100: 0 | G100: 0 | H100: 0 | I100: 0 | J100: 0 | K100: 0 | L100: 0 | M100: 0 | N100: 0 | O100: 0 | P100: 0 | Q100: 0 | R100: 0 | S100: 0 | T100: =IF(T$2=1,0,0) -> 0 | U100: 0 | V100: 0 | W100: 0 | X100: 0 | Y100: 0 | Z100: 0 | AA100: 0 | AB100: 0 | AK100: F | AX100: x | AY100: x | AZ100: x | BA100: x | BB100: x | BC100: 87 | BD100: x | BE100: x | BF100: x | BG100: x | BH100: x | BI100: x | BJ100: x | BK100: x | BL100: x | BM100: x | BN100: x
A101: =IFERROR(IRR(C103:M103),0) -> -0.05206085575 | B101: EIA | C101: =IF(C$2=1,0,0) -> 0 | D101: 0 | E101: 0 | F101: 0 | G101: 0 | H101: 0 | I101: 0 | J101: 0 | K101: 0 | L101: 0 | M101: 0 | N101: 0 | O101: 0 | P101: 0 | Q101: 0 | R101: 0 | S101: 0 | T101: 0 | U101: 0 | V101: 0 | W101: 0 | X101: 0 | Y101: 0 | Z101: 0 | AA101: 0 | AB101: 0 | AK101: F | AX101: x | AY101: x | AZ101: x | BA101: x | BB101: x | BC101: 88 | BD101: x | BE101: x | BF101: x | BG101: x | BH101: x | BI101: x | BJ101: x | BK101: x | BL101: x | BM101: x | BN101: x
A102: =IFERROR(IRR(C103:R103),0) -> 0.04043533929 | B102: VPB | C102: 0 | D102: =MAX(0,(D99-D$11)*Variabelen!$K$9) -> 0 | E102: =MAX(0,(E99-E$11)*Variabelen!$K$9) -> 0 | F102: =MAX(0,(F99-F$11)*Variabelen!$K$9) -> 0 | G102: =MAX(0,(G99-G$11)*Variabelen!$K$9) -> 0 | H102: =MAX(0,(H99-H$11)*Variabelen!$K$9) -> 0 | I102: =MAX(0,(I99-I$11)*Variabelen!$K$9) -> 0 | J102: =MAX(0,(J99-J$11)*Variabelen!$K$9) -> 0 | K102: =MAX(0,(K99-K$11)*Variabelen!$K$9) -> 0 | L102: =MAX(0,(L99-L$11)*Variabelen!$K$9) -> 0 | M102: =MAX(0,(M99-M$11)*Variabelen!$K$9) -> 0 | N102: =MAX(0,(N99-N$11)*Variabelen!$K$9) -> 1404.427511 | O102: =MAX(0,(O99-O$11)*Variabelen!$K$9) -> 1381.583691 | P102: =MAX(0,(P99-P$11)*Variabelen!$K$9) -> 1358.907041 | Q102: =MAX(0,(Q99-Q$11)*Variabelen!$K$9) -> 1336.396461 | R102: =MAX(0,(R99-R$11)*Variabelen!$K$9) -> 1314.050864 | S102: =MAX(0,(S99-S$11)*Variabelen!$K$9) -> 0 | T102: =MAX(0,(T99-T$11)*Variabelen!$K$9) -> 1134.995632 | U102: =MAX(0,(U99-U$11)*Variabelen!$K$9) -> 1127.821553 | V102: =MAX(0,(V99-V$11)*Variabelen!$K$9) -> 1120.7054 | W102: =MAX(0,(W99-W$11)*Variabelen!$K$9) -> 1113.646847 | X102: =MAX(0,(X99-X$11)*Variabelen!$K$9) -> 1106.645568 | Y102: =MAX(0,(Y99-Y$11)*Variabelen!$K$9) -> 1099.70124 | Z102: =MAX(0,(Z99-Z$11)*Variabelen!$K$9) -> 1092.813544 | AA102: =MAX(0,(AA99-AA$11)*Variabelen!$K$9) -> 1085.982164 | AB102: =MAX(0,(AB99-AB$11)*Variabelen!$K$9) -> 1079.206787 | AK102: F | AX102: x | AY102: x | AZ102: x | BA102: x | BB102: x | BC102: 89 | BD102: x | BE102: x | BF102: x | BG102: x | BH102: x | BI102: x | BJ102: x | BK102: x | BL102: x | BM102: x | BN102: x
A103: =IFERROR(IRR(C103:W103),0) -> 0.02833269915 | B103: Balans | C103: =C99-C102+C100+C101 -> -114820.3413 | D103: =D99-D102+D100+D101 -> 9051.506694 | E103: =E99-E102+E100+E101 -> 8928.617884 | F103: 8806.622168 | G103: 8685.513622 | H103: 8565.286368 | I103: 8445.934573 | J103: 8327.452446 | K103: 8209.834243 | L103: 8093.074261 | M103: 7977.166841 | N103: 15431.31004 | O103: 15339.93477 | P103: 15249.22816 | Q103: 15159.18584 | R103: 15069.80346 | S103: -35094.59699 | T103: 4539.982529 | U103: 4511.286211 | V103: 4482.821602 | W103: 4454.587389 | X103: 4426.582271 | Y103: 4398.804959 | Z103: 4371.254175 | AA103: 4343.928656 | AB103: 4316.827148 | AK103: F | AX103: x | AY103: x | AZ103: x | BA103: x | BB103: x | BC103: 90 | BD103: x | BE103: x | BF103: x | BG103: x | BH103: x | BI103: x | BJ103: x | BK103: x | BL103: x | BM103: x | BN103: x
AX104: x | AY104: x | AZ104: x | BA104: x | BB104: x | BC104: x | BD104: x | BE104: x | BF104: x | BG104: x | BH104: x | BI104: x | BJ104: x | BK104: x | BL104: x | BM104: x | BN104: x
A105: Fase 7 | B105: Saldo | C105: =MIN((-C5+SUM($C$59:C59)),0)+SUM(C16,C18,C19,C20,C21,C22)-SUM(C53,C54,C55,C56,C57,C58,C59)-SUM(C62:C63) -> -114820.3413 | D105: =MIN((-D5+SUM($C$59:D59)),0)+SUM(D16,D18,D19,D20,D21,D22)-SUM(D53,D54,D55,D56,D57,D58,D59)-SUM(D62:D63) -> 11337.63179 | E105: =MIN((-E5+SUM($C$59:E59)),0)+SUM(E16,E18,E19,E20,E21,E22)-SUM(E53,E54,E55,E56,E57,E58,E59)-SUM(E62:E63) -> 11198.74011 | F105: =MIN((-F5+SUM($C$59:F59)),0)+SUM(F16,F18,F19,F20,F21,F22)-SUM(F53,F54,F55,F56,F57,F58,F59)-SUM(F62:F63) -> 11060.85354 | G105: =MIN((-G5+SUM($C$59:G59)),0)+SUM(G16,G18,G19,G20,G21,G22)-SUM(G53,G54,G55,G56,G57,G58,G59)-SUM(G62:G63) -> 10923.96537 | H105: =MIN((-H5+SUM($C$59:H59)),0)+SUM(H16,H18,H19,H20,H21,H22)-SUM(H53,H54,H55,H56,H57,H58,H59)-SUM(H62:H63) -> 10788.06896 | I105: =MIN((-I5+SUM($C$59:I59)),0)+SUM(I16,I18,I19,I20,I21,I22)-SUM(I53,I54,I55,I56,I57,I58,I59)-SUM(I62:I63) -> 10653.15768 | J105: =MIN((-J5+SUM($C$59:J59)),0)+SUM(J16,J18,J19,J20,J21,J22)-SUM(J53,J54,J55,J56,J57,J58,J59)-SUM(J62:J63) -> 10519.22499 | K105: =MIN((-K5+SUM($C$59:K59)),0)+SUM(K16,K18,K19,K20,K21,K22)-SUM(K53,K54,K55,K56,K57,K58,K59)-SUM(K62:K63) -> 10386.26438 | L105: =MIN((-L5+SUM($C$59:L59)),0)+SUM(L16,L18,L19,L20,L21,L22)-SUM(L53,L54,L55,L56,L57,L58,L59)-SUM(L62:L63) -> 10254.26939 | M105: =MIN((-M5+SUM($C$59:M59)),0)+SUM(M16,M18,M19,M20,M21,M22)-SUM(M53,M54,M55,M56,M57,M58,M59)-SUM(M62:M63) -> 10123.2336 | N105: =MIN((-N5+SUM($C$59:N59)),0)+SUM(N16,N18,N19,N20,N21,N22)-SUM(N53,N54,N55,N56,N57,N58,N59)-SUM(N62:N63) -> 18966.78185 | O105: =MIN((-O5+SUM($C$59:O59)),0)+SUM(O16,O18,O19,O20,O21,O22)-SUM(O53,O54,O55,O56,O57,O58,O59)-SUM(O62:O63) -> 18837.64544 | P105: =MIN((-P5+SUM($C$59:P59)),0)+SUM(P16,P18,P19,P20,P21,P22)-SUM(P53,P54,P55,P56,P57,P58,P59)-SUM(P62:P63) -> 18709.4493 | Q105: =MIN((-Q5+SUM($C$59:Q59)),0)+SUM(Q16,Q18,Q19,Q20,Q21,Q22)-SUM(Q53,Q54,Q55,Q56,Q57,Q58,Q59)-SUM(Q62:Q63) -> 18582.1872 | R105: =MIN((-R5+SUM($C$59:R59)),0)+SUM(R16,R18,R19,R20,R21,R22)-SUM(R53,R54,R55,R56,R57,R58,R59)-SUM(R62:R63) -> 18455.85298 | S105: =MIN((-S5+SUM($C$59:S59)),0)+SUM(S16,S18,S19,S20,S21,S22)-SUM(S53,S54,S55,S56,S57,S58,S59)-SUM(S62:S63) -> -35094.59699 | T105: =MIN((-T5+SUM($C$59:T59)),0)+SUM(T16,T18,T19,T20,T21,T22)-SUM(T53,T54,T55,T56,T57,T58,T59)-SUM(T62:T63) -> 5674.978162 | U105: =MIN((-U5+SUM($C$59:U59)),0)+SUM(U16,U18,U19,U20,U21,U22)-SUM(U53,U54,U55,U56,U57,U58,U59)-SUM(U62:U63) -> 5639.107763 | V105: =MIN((-V5+SUM($C$59:V59)),0)+SUM(V16,V18,V19,V20,V21,V22)-SUM(V53,V54,V55,V56,V57,V58,V59)-SUM(V62:V63) -> 5603.527002 | W105: =MIN((-W5+SUM($C$59:W59)),0)+SUM(W16,W18,W19,W20,W21,W22)-SUM(W53,W54,W55,W56,W57,W58,W59)-SUM(W62:W63) -> 5568.234236 | X105: =MIN((-X5+SUM($C$59:X59)),0)+SUM(X16,X18,X19,X20,X21,X22)-SUM(X53,X54,X55,X56,X57,X58,X59)-SUM(X62:X63) -> 5533.227839 | Y105: =MIN((-Y5+SUM($C$59:Y59)),0)+SUM(Y16,Y18,Y19,Y20,Y21,Y22)-SUM(Y53,Y54,Y55,Y56,Y57,Y58,Y59)-SUM(Y62:Y63) -> 5498.506198 | Z105: =MIN((-Z5+SUM($C$59:Z59)),0)+SUM(Z16,Z18,Z19,Z20,Z21,Z22)-SUM(Z53,Z54,Z55,Z56,Z57,Z58,Z59)-SUM(Z62:Z63) -> 5464.067719 | AA105: =MIN((-AA5+SUM($C$59:AA59)),0)+SUM(AA16,AA18,AA19,AA20,AA21,AA22)-SUM(AA53,AA54,AA55,AA56,AA57,AA58,AA59)-SUM(AA62:AA63) -> 5429.91082 | AB105: =MIN((-AB5+SUM($C$59:AB59)),0)+SUM(AB16,AB18,AB19,AB20,AB21,AB22)-SUM(AB53,AB54,AB55,AB56,AB57,AB58,AB59)-SUM(AB62:AB63) -> 5396.033935 | AL105: G | AX105: x | AY105: x | AZ105: x | BA105: x | BB105: x | BC105: x | BD105: 92 | BE105: x | BF105: x | BG105: x | BH105: x | BI105: x | BJ105: x | BK105: x | BL105: x | BM105: x | BN105: x
B106: KIA | C106: =IF(C$2=1,0,0) -> 0 | D106: =IF(D$2=1,0,0) -> 0 | E106: 0 | F106: 0 | G106: 0 | H106: 0 | I106: 0 | J106: 0 | K106: 0 | L106: 0 | M106: 0 | N106: 0 | O106: 0 | P106: 0 | Q106: 0 | R106: 0 | S106: 0 | T106: =IF(T$2=1,0,0) -> 0 | U106: 0 | V106: 0 | W106: 0 | X106: 0 | Y106: 0 | Z106: 0 | AA106: 0 | AB106: 0 | AL106: G | AX106: x | AY106: x | AZ106: x | BA106: x | BB106: x | BC106: x | BD106: 93 | BE106: x | BF106: x | BG106: x | BH106: x | BI106: x | BJ106: x | BK106: x | BL106: x | BM106: x | BN106: x
A107: =IFERROR(IRR(C109:M109),0) -> -0.01546065889 | B107: EIA | C107: =IF(C$2=1,0,0) -> 0 | D107: 0 | E107: 0 | F107: 0 | G107: 0 | H107: 0 | I107: 0 | J107: 0 | K107: 0 | L107: 0 | M107: 0 | N107: 0 | O107: 0 | P107: 0 | Q107: 0 | R107: 0 | S107: 0 | T107: 0 | U107: 0 | V107: 0 | W107: 0 | X107: 0 | Y107: 0 | Z107: 0 | AA107: 0 | AB107: 0 | AL107: G | AX107: x | AY107: x | AZ107: x | BA107: x | BB107: x | BC107: x | BD107: 94 | BE107: x | BF107: x | BG107: x | BH107: x | BI107: x | BJ107: x | BK107: x | BL107: x | BM107: x | BN107: x
A108: =IFERROR(IRR(C109:R109),0) -> 0.0636148218 | B108: VPB | C108: 0 | D108: =MAX(0,(D105-D$11)*Variabelen!$K$9) -> 304.8063588 | E108: =MAX(0,(E105-E$11)*Variabelen!$K$9) -> 277.0280217 | F108: =MAX(0,(F105-F$11)*Variabelen!$K$9) -> 249.4507074 | G108: =MAX(0,(G105-G$11)*Variabelen!$K$9) -> 222.0730743 | H108: =MAX(0,(H105-H$11)*Variabelen!$K$9) -> 194.8937911 | I108: =MAX(0,(I105-I$11)*Variabelen!$K$9) -> 167.9115363 | J108: =MAX(0,(J105-J$11)*Variabelen!$K$9) -> 141.1249987 | K108: =MAX(0,(K105-K$11)*Variabelen!$K$9) -> 114.5328764 | L108: =MAX(0,(L105-L$11)*Variabelen!$K$9) -> 88.13387778 | M108: =MAX(0,(M105-M$11)*Variabelen!$K$9) -> 61.9267207 | N108: =MAX(0,(N105-N$11)*Variabelen!$K$9) -> 1830.63637 | O108: =MAX(0,(O105-O$11)*Variabelen!$K$9) -> 1804.809088 | P108: =MAX(0,(P105-P$11)*Variabelen!$K$9) -> 1779.16986 | Q108: =MAX(0,(Q105-Q$11)*Variabelen!$K$9) -> 1753.717441 | R108: =MAX(0,(R105-R$11)*Variabelen!$K$9) -> 1728.450597 | S108: =MAX(0,(S105-S$11)*Variabelen!$K$9) -> 0 | T108: =MAX(0,(T105-T$11)*Variabelen!$K$9) -> 1134.995632 | U108: =MAX(0,(U105-U$11)*Variabelen!$K$9) -> 1127.821553 | V108: =MAX(0,(V105-V$11)*Variabelen!$K$9) -> 1120.7054 | W108: =MAX(0,(W105-W$11)*Variabelen!$K$9) -> 1113.646847 | X108: =MAX(0,(X105-X$11)*Variabelen!$K$9) -> 1106.645568 | Y108: =MAX(0,(Y105-Y$11)*Variabelen!$K$9) -> 1099.70124 | Z108: =MAX(0,(Z105-Z$11)*Variabelen!$K$9) -> 1092.813544 | AA108: =MAX(0,(AA105-AA$11)*Variabelen!$K$9) -> 1085.982164 | AB108: =MAX(0,(AB105-AB$11)*Variabelen!$K$9) -> 1079.206787 | AL108: G | AX108: x | AY108: x | AZ108: x | BA108: x | BB108: x | BC108: x | BD108: 95 | BE108: x | BF108: x | BG108: x | BH108: x | BI108: x | BJ108: x | BK108: x | BL108: x | BM108: x | BN108: x
A109: =IFERROR(IRR(C109:W109),0) -> 0.05392416017 | B109: Balans | C109: =C105-C108+C106+C107 -> -114820.3413 | D109: =D105-D108+D106+D107 -> 11032.82544 | E109: =E105-E108+E106+E107 -> 10921.71209 | F109: 10811.40283 | G109: 10701.8923 | H109: 10593.17516 | I109: 10485.24615 | J109: 10378.09999 | K109: 10271.73151 | L109: 10166.13551 | M109: 10061.30688 | N109: =N105-N108+N106+N107 -> 17136.14548 | O109: 17032.83635 | P109: 16930.27944 | Q109: 16828.46976 | R109: 16727.40239 | S109: -35094.59699 | T109: 4539.982529 | U109: 4511.286211 | V109: 4482.821602 | W109: 4454.587389 | X109: 4426.582271 | Y109: 4398.804959 | Z109: 4371.254175 | AA109: 4343.928656 | AB109: 4316.827148 | AL109: G | AX109: x | AY109: x | AZ109: x | BA109: x | BB109: x | BC109: x | BD109: 96 | BE109: x | BF109: x | BG109: x | BH109: x | BI109: x | BJ109: x | BK109: x | BL109: x | BM109: x | BN109: x
AX110: x | AY110: x | AZ110: x | BA110: x | BB110: x | BC110: x | BD110: x | BE110: x | BF110: x | BG110: x | BH110: x | BI110: x | BJ110: x | BK110: x | BL110: x | BM110: x | BN110: x
A111: Fase 8 | B111: Saldo | C111: =MIN((-C5+SUM($C$59:C59)),0)+SUM(C17,C18,C19,C20,C21,C22)-SUM(C53,C54,C55,C56,C57,C58,C59)-SUM(C62:C63) -> -114820.3413 | D111: =MIN((-D5+SUM($C$59:D59)),0)+SUM(D17,D18,D19,D20,D21,D22)-SUM(D53,D54,D55,D56,D57,D58,D59)-SUM(D62:D63) -> 11337.63179 | E111: =MIN((-E5+SUM($C$59:E59)),0)+SUM(E17,E18,E19,E20,E21,E22)-SUM(E53,E54,E55,E56,E57,E58,E59)-SUM(E62:E63) -> 11198.74011 | F111: =MIN((-F5+SUM($C$59:F59)),0)+SUM(F17,F18,F19,F20,F21,F22)-SUM(F53,F54,F55,F56,F57,F58,F59)-SUM(F62:F63) -> 11060.85354 | G111: =MIN((-G5+SUM($C$59:G59)),0)+SUM(G17,G18,G19,G20,G21,G22)-SUM(G53,G54,G55,G56,G57,G58,G59)-SUM(G62:G63) -> 10923.96537 | H111: =MIN((-H5+SUM($C$59:H59)),0)+SUM(H17,H18,H19,H20,H21,H22)-SUM(H53,H54,H55,H56,H57,H58,H59)-SUM(H62:H63) -> 10788.06896 | I111: =MIN((-I5+SUM($C$59:I59)),0)+SUM(I17,I18,I19,I20,I21,I22)-SUM(I53,I54,I55,I56,I57,I58,I59)-SUM(I62:I63) -> 10653.15768 | J111: =MIN((-J5+SUM($C$59:J59)),0)+SUM(J17,J18,J19,J20,J21,J22)-SUM(J53,J54,J55,J56,J57,J58,J59)-SUM(J62:J63) -> 10519.22499 | K111: =MIN((-K5+SUM($C$59:K59)),0)+SUM(K17,K18,K19,K20,K21,K22)-SUM(K53,K54,K55,K56,K57,K58,K59)-SUM(K62:K63) -> 10386.26438 | L111: =MIN((-L5+SUM($C$59:L59)),0)+SUM(L17,L18,L19,L20,L21,L22)-SUM(L53,L54,L55,L56,L57,L58,L59)-SUM(L62:L63) -> 10254.26939 | M111: =MIN((-M5+SUM($C$59:M59)),0)+SUM(M17,M18,M19,M20,M21,M22)-SUM(M53,M54,M55,M56,M57,M58,M59)-SUM(M62:M63) -> 10123.2336 | N111: =MIN((-N5+SUM($C$59:N59)),0)+SUM(N17,N18,N19,N20,N21,N22)-SUM(N53,N54,N55,N56,N57,N58,N59)-SUM(N62:N63) -> 18966.78185 | O111: =MIN((-O5+SUM($C$59:O59)),0)+SUM(O17,O18,O19,O20,O21,O22)-SUM(O53,O54,O55,O56,O57,O58,O59)-SUM(O62:O63) -> 18837.64544 | P111: =MIN((-P5+SUM($C$59:P59)),0)+SUM(P17,P18,P19,P20,P21,P22)-SUM(P53,P54,P55,P56,P57,P58,P59)-SUM(P62:P63) -> 18709.4493 | Q111: =MIN((-Q5+SUM($C$59:Q59)),0)+SUM(Q17,Q18,Q19,Q20,Q21,Q22)-SUM(Q53,Q54,Q55,Q56,Q57,Q58,Q59)-SUM(Q62:Q63) -> 18582.1872 | R111: =MIN((-R5+SUM($C$59:R59)),0)+SUM(R17,R18,R19,R20,R21,R22)-SUM(R53,R54,R55,R56,R57,R58,R59)-SUM(R62:R63) -> 18455.85298 | S111: =MIN((-S5+SUM($C$59:S59)),0)+SUM(S17,S18,S19,S20,S21,S22)-SUM(S53,S54,S55,S56,S57,S58,S59)-SUM(S62:S63) -> -35094.59699 | T111: =MIN((-T5+SUM($C$59:T59)),0)+SUM(T17,T18,T19,T20,T21,T22)-SUM(T53,T54,T55,T56,T57,T58,T59)-SUM(T62:T63) -> 5674.978162 | U111: =MIN((-U5+SUM($C$59:U59)),0)+SUM(U17,U18,U19,U20,U21,U22)-SUM(U53,U54,U55,U56,U57,U58,U59)-SUM(U62:U63) -> 5639.107763 | V111: =MIN((-V5+SUM($C$59:V59)),0)+SUM(V17,V18,V19,V20,V21,V22)-SUM(V53,V54,V55,V56,V57,V58,V59)-SUM(V62:V63) -> 5603.527002 | W111: =MIN((-W5+SUM($C$59:W59)),0)+SUM(W17,W18,W19,W20,W21,W22)-SUM(W53,W54,W55,W56,W57,W58,W59)-SUM(W62:W63) -> 5568.234236 | X111: =MIN((-X5+SUM($C$59:X59)),0)+SUM(X17,X18,X19,X20,X21,X22)-SUM(X53,X54,X55,X56,X57,X58,X59)-SUM(X62:X63) -> 5533.227839 | Y111: =MIN((-Y5+SUM($C$59:Y59)),0)+SUM(Y17,Y18,Y19,Y20,Y21,Y22)-SUM(Y53,Y54,Y55,Y56,Y57,Y58,Y59)-SUM(Y62:Y63) -> 5498.506198 | Z111: =MIN((-Z5+SUM($C$59:Z59)),0)+SUM(Z17,Z18,Z19,Z20,Z21,Z22)-SUM(Z53,Z54,Z55,Z56,Z57,Z58,Z59)-SUM(Z62:Z63) -> 5464.067719 | AA111: =MIN((-AA5+SUM($C$59:AA59)),0)+SUM(AA17,AA18,AA19,AA20,AA21,AA22)-SUM(AA53,AA54,AA55,AA56,AA57,AA58,AA59)-SUM(AA62:AA63) -> 5429.91082 | AB111: =MIN((-AB5+SUM($C$59:AB59)),0)+SUM(AB17,AB18,AB19,AB20,AB21,AB22)-SUM(AB53,AB54,AB55,AB56,AB57,AB58,AB59)-SUM(AB62:AB63) -> 5396.033935 | AM111: H | AX111: x | AY111: x | AZ111: x | BA111: x | BB111: x | BC111: x | BD111: x | BE111: 98 | BF111: x | BG111: x | BH111: x | BI111: x | BJ111: x | BK111: x | BL111: x | BM111: x | BN111: x
B112: KIA | C112: =IF(C$2=1,0,0) -> 0 | D112: =IF(D$2=1,0,0) -> 0 | E112: 0 | F112: 0 | G112: 0 | H112: 0 | I112: 0 | J112: 0 | K112: 0 | L112: 0 | M112: 0 | N112: 0 | O112: 0 | P112: 0 | Q112: 0 | R112: 0 | S112: 0 | T112: =IF(T$2=1,0,0) -> 0 | U112: 0 | V112: 0 | W112: 0 | X112: 0 | Y112: 0 | Z112: 0 | AA112: 0 | AB112: 0 | AM112: H | AX112: x | AY112: x | AZ112: x | BA112: x | BB112: x | BC112: x | BD112: x | BE112: 99 | BF112: x | BG112: x | BH112: x | BI112: x | BJ112: x | BK112: x | BL112: x | BM112: x | BN112: x
A113: =IFERROR(IRR(C115:M115),0) -> -0.01546065889 | B113: EIA | C113: =IF(C$2=1,0,0) -> 0 | D113: 0 | E113: 0 | F113: 0 | G113: 0 | H113: 0 | I113: 0 | J113: 0 | K113: 0 | L113: 0 | M113: 0 | N113: 0 | O113: 0 | P113: 0 | Q113: 0 | R113: 0 | S113: 0 | T113: 0 | U113: 0 | V113: 0 | W113: 0 | X113: 0 | Y113: 0 | Z113: 0 | AA113: 0 | AB113: 0 | AM113: H | AX113: x | AY113: x | AZ113: x | BA113: x | BB113: x | BC113: x | BD113: x | BE113: 100 | BF113: x | BG113: x | BH113: x | BI113: x | BJ113: x | BK113: x | BL113: x | BM113: x | BN113: x
A114: =IFERROR(IRR(C115:R115),0) -> 0.0636148218 | B114: VPB | C114: 0 | D114: =MAX(0,(D111-D$11)*Variabelen!$K$9) -> 304.8063588 | E114: =MAX(0,(E111-E$11)*Variabelen!$K$9) -> 277.0280217 | F114: =MAX(0,(F111-F$11)*Variabelen!$K$9) -> 249.4507074 | G114: =MAX(0,(G111-G$11)*Variabelen!$K$9) -> 222.0730743 | H114: =MAX(0,(H111-H$11)*Variabelen!$K$9) -> 194.8937911 | I114: =MAX(0,(I111-I$11)*Variabelen!$K$9) -> 167.9115363 | J114: =MAX(0,(J111-J$11)*Variabelen!$K$9) -> 141.1249987 | K114: =MAX(0,(K111-K$11)*Variabelen!$K$9) -> 114.5328764 | L114: =MAX(0,(L111-L$11)*Variabelen!$K$9) -> 88.13387778 | M114: =MAX(0,(M111-M$11)*Variabelen!$K$9) -> 61.9267207 | N114: =MAX(0,(N111-N$11)*Variabelen!$K$9) -> 1830.63637 | O114: =MAX(0,(O111-O$11)*Variabelen!$K$9) -> 1804.809088 | P114: =MAX(0,(P111-P$11)*Variabelen!$K$9) -> 1779.16986 | Q114: =MAX(0,(Q111-Q$11)*Variabelen!$K$9) -> 1753.717441 | R114: =MAX(0,(R111-R$11)*Variabelen!$K$9) -> 1728.450597 | S114: =MAX(0,(S111-S$11)*Variabelen!$K$9) -> 0 | T114: =MAX(0,(T111-T$11)*Variabelen!$K$9) -> 1134.995632 | U114: =MAX(0,(U111-U$11)*Variabelen!$K$9) -> 1127.821553 | V114: =MAX(0,(V111-V$11)*Variabelen!$K$9) -> 1120.7054 | W114: =MAX(0,(W111-W$11)*Variabelen!$K$9) -> 1113.646847 | X114: =MAX(0,(X111-X$11)*Variabelen!$K$9) -> 1106.645568 | Y114: =MAX(0,(Y111-Y$11)*Variabelen!$K$9) -> 1099.70124 | Z114: =MAX(0,(Z111-Z$11)*Variabelen!$K$9) -> 1092.813544 | AA114: =MAX(0,(AA111-AA$11)*Variabelen!$K$9) -> 1085.982164 | AB114: =MAX(0,(AB111-AB$11)*Variabelen!$K$9) -> 1079.206787 | AM114: H | AX114: x | AY114: x | AZ114: x | BA114: x | BB114: x | BC114: x | BD114: x | BE114: 101 | BF114: x | BG114: x | BH114: x | BI114: x | BJ114: x | BK114: x | BL114: x | BM114: x | BN114: x
A115: =IFERROR(IRR(C115:W115),0) -> 0.05392416017 | B115: Balans | C115: =C111-C114+C112+C113 -> -114820.3413 | D115: =D111-D114+D112+D113 -> 11032.82544 | E115: =E111-E114+E112+E113 -> 10921.71209 | F115: 10811.40283 | G115: 10701.8923 | H115: 10593.17516 | I115: 10485.24615 | J115: 10378.09999 | K115: 10271.73151 | L115: 10166.13551 | M115: 10061.30688 | N115: 17136.14548 | O115: 17032.83635 | P115: 16930.27944 | Q115: 16828.46976 | R115: 16727.40239 | S115: -35094.59699 | T115: 4539.982529 | U115: 4511.286211 | V115: 4482.821602 | W115: 4454.587389 | X115: 4426.582271 | Y115: 4398.804959 | Z115: 4371.254175 | AA115: 4343.928656 | AB115: 4316.827148 | AM115: H | AX115: x | AY115: x | AZ115: x | BA115: x | BB115: x | BC115: x | BD115: x | BE115: 102 | BF115: x | BG115: x | BH115: x | BI115: x | BJ115: x | BK115: x | BL115: x | BM115: x | BN115: x
AX116: x | AY116: x | AZ116: x | BA116: x | BB116: x | BC116: x | BD116: x | BE116: x | BF116: x | BG116: x | BH116: x | BI116: x | BJ116: x | BK116: x | BL116: x | BM116: x | BN116: x
A117: SDE Verkoop systeem | AX117: x | AY117: x | AZ117: x | BA117: x | BB117: x | BC117: x | BD117: x | BE117: x | BF117: x | BG117: x | BH117: x | BI117: x | BJ117: x | BK117: x | BL117: x | BM117: x | BN117: x
A118: Fase 5 | B118: Saldo | C118: =IF(C2<=Variabelen!$E$25,-C5+SUM(C13,C14,C18,C22,C23,IF(C2=Variabelen!$E$25,SUM(D14:$AB$14)*0.1,0))-SUM(C53,C54,C55,C56,C57,C58,C59)-SUM(C62:C63),-SUM(C62:C63)) -> -114820.3413 | D118: =IF(D2<=Variabelen!$E$25,-D5+SUM(D13,D14,D18,D22,D23,IF(D2=Variabelen!$E$25,SUM(E14:$AB$14)*0.1,0))-SUM(D53,D54,D55,D56,D57,D58,D59)-SUM(D62:D63),-SUM(D62:D63)) -> 6003.339894 | E118: =IF(E2<=Variabelen!$E$25,-E5+SUM(E13,E14,E18,E22,E23,IF(E2=Variabelen!$E$25,SUM(F14:$AB$14)*0.1,0))-SUM(E53,E54,E55,E56,E57,E58,E59)-SUM(E62:E63),-SUM(E62:E63)) -> 5901.788252 | F118: =IF(F2<=Variabelen!$E$25,-F5+SUM(F13,F14,F18,F22,F23,IF(F2=Variabelen!$E$25,SUM(G14:$AB$14)*0.1,0))-SUM(F53,F54,F55,F56,F57,F58,F59)-SUM(F62:F63),-SUM(F62:F63)) -> 5800.980343 | G118: =IF(G2<=Variabelen!$E$25,-G5+SUM(G13,G14,G18,G22,G23,IF(G2=Variabelen!$E$25,SUM(H14:$AB$14)*0.1,0))-SUM(G53,G54,G55,G56,G57,G58,G59)-SUM(G62:G63),-SUM(G62:G63)) -> 5700.91129 | H118: =IF(H2<=Variabelen!$E$25,-H5+SUM(H13,H14,H18,H22,H23,IF(H2=Variabelen!$E$25,SUM(I14:$AB$14)*0.1,0))-SUM(H53,H54,H55,H56,H57,H58,H59)-SUM(H62:H63),-SUM(H62:H63)) -> 5601.576253 | I118: =IF(I2<=Variabelen!$E$25,-I5+SUM(I13,I14,I18,I22,I23,IF(I2=Variabelen!$E$25,SUM(J14:$AB$14)*0.1,0))-SUM(I53,I54,I55,I56,I57,I58,I59)-SUM(I62:I63),-SUM(I62:I63)) -> 5502.970428 | J118: =IF(J2<=Variabelen!$E$25,-J5+SUM(J13,J14,J18,J22,J23,IF(J2=Variabelen!$E$25,SUM(K14:$AB$14)*0.1,0))-SUM(J53,J54,J55,J56,J57,J58,J59)-SUM(J62:J63),-SUM(J62:J63)) -> 5405.08905 | K118: =IF(K2<=Variabelen!$E$25,-K5+SUM(K13,K14,K18,K22,K23,IF(K2=Variabelen!$E$25,SUM(L14:$AB$14)*0.1,0))-SUM(K53,K54,K55,K56,K57,K58,K59)-SUM(K62:K63),-SUM(K62:K63)) -> 5307.927391 | L118: =IF(L2<=Variabelen!$E$25,-L5+SUM(L13,L14,L18,L22,L23,IF(L2=Variabelen!$E$25,SUM(M14:$AB$14)*0.1,0))-SUM(L53,L54,L55,L56,L57,L58,L59)-SUM(L62:L63),-SUM(L62:L63)) -> 5211.480756 | M118: =IF(M2<=Variabelen!$E$25,-M5+SUM(M13,M14,M18,M22,M23,IF(M2=Variabelen!$E$25,SUM(N14:$AB$14)*0.1,0))-SUM(M53,M54,M55,M56,M57,M58,M59)-SUM(M62:M63),-SUM(M62:M63)) -> 74532.43829 | N118: =IF(N2<=Variabelen!$E$25,-N5+SUM(N13,N14,N18,N22,N23,IF(N2=Variabelen!$E$25,SUM(O14:$AB$14)*0.1,0))-SUM(N53,N54,N55,N56,N57,N58,N59)-SUM(N62:N63),-SUM(N62:N63)) -> 0 | O118: =IF(O2<=Variabelen!$E$25,-O5+SUM(O13,O14,O18,O22,O23,IF(O2=Variabelen!$E$25,SUM(P14:$AB$14)*0.1,0))-SUM(O53,O54,O55,O56,O57,O58,O59)-SUM(O62:O63),-SUM(O62:O63)) -> 0 | P118: =IF(P2<=Variabelen!$E$25,-P5+SUM(P13,P14,P18,P22,P23,IF(P2=Variabelen!$E$25,SUM(Q14:$AB$14)*0.1,0))-SUM(P53,P54,P55,P56,P57,P58,P59)-SUM(P62:P63),-SUM(P62:P63)) -> 0 | Q118: =IF(Q2<=Variabelen!$E$25,-Q5+SUM(Q13,Q14,Q18,Q22,Q23,IF(Q2=Variabelen!$E$25,SUM(R14:$AB$14)*0.1,0))-SUM(Q53,Q54,Q55,Q56,Q57,Q58,Q59)-SUM(Q62:Q63),-SUM(Q62:Q63)) -> 0 | R118: =IF(R2<=Variabelen!$E$25,-R5+SUM(R13,R14,R18,R22,R23,IF(R2=Variabelen!$E$25,SUM(S14:$AB$14)*0.1,0))-SUM(R53,R54,R55,R56,R57,R58,R59)-SUM(R62:R63),-SUM(R62:R63)) -> 0 | S118: =IF(S2<=Variabelen!$E$25,-S5+SUM(S13,S14,S18,S22,S23,IF(S2=Variabelen!$E$25,SUM(T14:$AB$14)*0.1,0))-SUM(S53,S54,S55,S56,S57,S58,S59)-SUM(S62:S63),-SUM(S62:S63)) -> 0 | T118: =IF(T2<=Variabelen!$E$25,-T5+SUM(T13,T14,T18,T22,T23,IF(T2=Variabelen!$E$25,SUM(U14:$AB$14)*0.1,0))-SUM(T53,T54,T55,T56,T57,T58,T59)-SUM(T62:T63),-SUM(T62:T63)) -> 0 | U118: =IF(U2<=Variabelen!$E$25,-U5+SUM(U13,U14,U18,U22,U23,IF(U2=Variabelen!$E$25,SUM(V14:$AB$14)*0.1,0))-SUM(U53,U54,U55,U56,U57,U58,U59)-SUM(U62:U63),-SUM(U62:U63)) -> 0 | V118: =IF(V2<=Variabelen!$E$25,-V5+SUM(V13,V14,V18,V22,V23,IF(V2=Variabelen!$E$25,SUM(W14:$AB$14)*0.1,0))-SUM(V53,V54,V55,V56,V57,V58,V59)-SUM(V62:V63),-SUM(V62:V63)) -> 0 | W118: =IF(W2<=Variabelen!$E$25,-W5+SUM(W13,W14,W18,W22,W23,IF(W2=Variabelen!$E$25,SUM(X14:$AB$14)*0.1,0))-SUM(W53,W54,W55,W56,W57,W58,W59)-SUM(W62:W63),-SUM(W62:W63)) -> 0 | X118: =IF(X2<=Variabelen!$E$25,-X5+SUM(X13,X14,X18,X22,X23,IF(X2=Variabelen!$E$25,SUM(Y14:$AB$14)*0.1,0))-SUM(X53,X54,X55,X56,X57,X58,X59)-SUM(X62:X63),-SUM(X62:X63)) -> 0 | Y118: =IF(Y2<=Variabelen!$E$25,-Y5+SUM(Y13,Y14,Y18,Y22,Y23,IF(Y2=Variabelen!$E$25,SUM(Z14:$AB$14)*0.1,0))-SUM(Y53,Y54,Y55,Y56,Y57,Y58,Y59)-SUM(Y62:Y63),-SUM(Y62:Y63)) -> 0 | Z118: =IF(Z2<=Variabelen!$E$25,-Z5+SUM(Z13,Z14,Z18,Z22,Z23,IF(Z2=Variabelen!$E$25,SUM(AA14:$AB$14)*0.1,0))-SUM(Z53,Z54,Z55,Z56,Z57,Z58,Z59)-SUM(Z62:Z63),-SUM(Z62:Z63)) -> 0 | AA118: =IF(AA2<=Variabelen!$E$25,-AA5+SUM(AA13,AA14,AA18,AA22,AA23,IF(AA2=Variabelen!$E$25,SUM(AB14:$AB$14)*0.1,0))-SUM(AA53,AA54,AA55,AA56,AA57,AA58,AA59)-SUM(AA62:AA63),-SUM(AA62:AA63)) -> 0 | AB118: =IF(AB2<=Variabelen!$E$25,-AB5+SUM(AB13,AB14,AB18,AB22,AB23,IF(AB2=Variabelen!$E$25,SUM($AB14:AC$14)*0.1,0))-SUM(AB53,AB54,AB55,AB56,AB57,AB58,AB59)-SUM(AB62:AB63),-SUM(AB62:AB63)) -> 0 | AN118: I | AX118: x | AY118: x | AZ118: x | BA118: x | BB118: x | BC118: x | BD118: x | BE118: x | BF118: 105 | BG118: x | BH118: x | BI118: x | BJ118: x | BK118: x | BL118: x | BM118: x | BN118: x
B119: KIA | C119: =IF(C$2=1,Totaal_KIA*VPB,0) -> 0 | D119: 1826.714599 | E119: 0 | F119: 0 | G119: 0 | H119: 0 | I119: 0 | J119: 0 | K119: 0 | L119: 0 | M119: 0 | N119: 0 | O119: 0 | P119: 0 | Q119: 0 | R119: 0 | S119: 0 | T119: 0 | U119: 0 | V119: 0 | W119: 0 | X119: 0 | Y119: 0 | Z119: 0 | AA119: 0 | AB119: 0 | AN119: I | AX119: x | AY119: x | AZ119: x | BA119: x | BB119: x | BC119: x | BD119: x | BE119: x | BF119: 106 | BG119: x | BH119: x | BI119: x | BJ119: x | BK119: x | BL119: x | BM119: x | BN119: x
A120: =IFERROR(IRR(C122:M122),0) -> -0.001115271852 | B120: EIA | C120: =IF(C$2=1,0,0) -> 0 | D120: =IF(D$2=1,0,0) -> 0 | E120: 0 | F120: 0 | G120: 0 | H120: 0 | I120: 0 | J120: 0 | K120: 0 | L120: 0 | M120: 0 | N120: 0 | O120: 0 | P120: 0 | Q120: 0 | R120: 0 | S120: 0 | T120: 0 | U120: 0 | V120: 0 | W120: 0 | X120: 0 | Y120: 0 | Z120: 0 | AA120: 0 | AB120: 0 | AN120: I | AX120: x | AY120: x | AZ120: x | BA120: x | BB120: x | BC120: x | BD120: x | BE120: x | BF120: 107 | BG120: x | BH120: x | BI120: x | BJ120: x | BK120: x | BL120: x | BM120: x | BN120: x
A121: =IFERROR(IRR(C122:R122),0) -> -0.001115271852 | B121: VPB | C121: 0 | D121: =MAX(0,(D118-D$11)*Variabelen!$K$9) -> 0 | E121: =MAX(0,(E118-E$11)*Variabelen!$K$9) -> 0 | F121: =MAX(0,(F118-F$11)*Variabelen!$K$9) -> 0 | G121: =MAX(0,(G118-G$11)*Variabelen!$K$9) -> 0 | H121: =MAX(0,(H118-H$11)*Variabelen!$K$9) -> 0 | I121: =MAX(0,(I118-I$11)*Variabelen!$K$9) -> 0 | J121: =MAX(0,(J118-J$11)*Variabelen!$K$9) -> 0 | K121: =MAX(0,(K118-K$11)*Variabelen!$K$9) -> 0 | L121: =MAX(0,(L118-L$11)*Variabelen!$K$9) -> 0 | M121: =MAX(0,(M118-M$11)*Variabelen!$K$9) -> 12943.76766 | N121: =MAX(0,(N118-N$11)*Variabelen!$K$9) -> 0 | O121: =MAX(0,(O118-O$11)*Variabelen!$K$9) -> 0 | P121: =MAX(0,(P118-P$11)*Variabelen!$K$9) -> 0 | Q121: =MAX(0,(Q118-Q$11)*Variabelen!$K$9) -> 0 | R121: =MAX(0,(R118-R$11)*Variabelen!$K$9) -> 0 | S121: =MAX(0,(S118-S$11)*Variabelen!$K$9) -> 0 | T121: =MAX(0,(T118-T$11)*Variabelen!$K$9) -> 0 | U121: =MAX(0,(U118-U$11)*Variabelen!$K$9) -> 0 | V121: =MAX(0,(V118-V$11)*Variabelen!$K$9) -> 0 | W121: =MAX(0,(W118-W$11)*Variabelen!$K$9) -> 0 | X121: =MAX(0,(X118-X$11)*Variabelen!$K$9) -> 0 | Y121: =MAX(0,(Y118-Y$11)*Variabelen!$K$9) -> 0 | Z121: =MAX(0,(Z118-Z$11)*Variabelen!$K$9) -> 0 | AA121: =MAX(0,(AA118-AA$11)*Variabelen!$K$9) -> 0 | AB121: =MAX(0,(AB118-AB$11)*Variabelen!$K$9) -> 0 | AN121: I | AX121: x | AY121: x | AZ121: x | BA121: x | BB121: x | BC121: x | BD121: x | BE121: x | BF121: 108 | BG121: x | BH121: x | BI121: x | BJ121: x | BK121: x | BL121: x | BM121: x | BN121: x
A122: =IFERROR(IRR(C122:W122),0) -> -0.001115271852 | B122: Balans | C122: =C118-C121+C119+C120 -> -114820.3413 | D122: =D118-D121+D119+D120 -> 7830.054493 | E122: =E118-E121+E119+E120 -> 5901.788252 | F122: 5800.980343 | G122: 5700.91129 | H122: 5601.576253 | I122: 5502.970428 | J122: 5405.08905 | K122: 5307.927391 | L122: 5211.480756 | M122: 61588.67063 | N122: 0 | O122: 0 | P122: 0 | Q122: 0 | R122: 0 | S122: 0 | T122: 0 | U122: 0 | V122: 0 | W122: 0 | X122: 0 | Y122: 0 | Z122: 0 | AA122: 0 | AB122: 0 | AN122: I | AX122: x | AY122: x | AZ122: x | BA122: x | BB122: x | BC122: x | BD122: x | BE122: x | BF122: 109 | BG122: x | BH122: x | BI122: x | BJ122: x | BK122: x | BL122: x | BM122: x | BN122: x
AX123: x | AY123: x | AZ123: x | BA123: x | BB123: x | BC123: x | BD123: x | BE123: x | BF123: x | BG123: x | BH123: x | BI123: x | BJ123: x | BK123: x | BL123: x | BM123: x | BN123: x
A124: Fase 6 | B124: Saldo | C124: =IF(C2<=Variabelen!$E$25,-C5+SUM(C13,C15,C18,C22,C23,IF(C2=Variabelen!$E$25,SUM(D15:$AB$15)*0.1,0))-SUM(C53,C54,C55,C56,C57,C58,C59)-SUM(C62:C63),-SUM(C62:C63)) -> -114820.3413 | D124: =IF(D2<=Variabelen!$E$25,-D5+SUM(D13,D15,D18,D22,D23,IF(D2=Variabelen!$E$25,SUM(E15:$AB$15)*0.1,0))-SUM(D53,D54,D55,D56,D57,D58,D59)-SUM(D62:D63),-SUM(D62:D63)) -> 9051.506694 | E124: =IF(E2<=Variabelen!$E$25,-E5+SUM(E13,E15,E18,E22,E23,IF(E2=Variabelen!$E$25,SUM(F15:$AB$15)*0.1,0))-SUM(E53,E54,E55,E56,E57,E58,E59)-SUM(E62:E63),-SUM(E62:E63)) -> 8928.617884 | F124: =IF(F2<=Variabelen!$E$25,-F5+SUM(F13,F15,F18,F22,F23,IF(F2=Variabelen!$E$25,SUM(G15:$AB$15)*0.1,0))-SUM(F53,F54,F55,F56,F57,F58,F59)-SUM(F62:F63),-SUM(F62:F63)) -> 8806.622168 | G124: =IF(G2<=Variabelen!$E$25,-G5+SUM(G13,G15,G18,G22,G23,IF(G2=Variabelen!$E$25,SUM(H15:$AB$15)*0.1,0))-SUM(G53,G54,G55,G56,G57,G58,G59)-SUM(G62:G63),-SUM(G62:G63)) -> 8685.513622 | H124: =IF(H2<=Variabelen!$E$25,-H5+SUM(H13,H15,H18,H22,H23,IF(H2=Variabelen!$E$25,SUM(I15:$AB$15)*0.1,0))-SUM(H53,H54,H55,H56,H57,H58,H59)-SUM(H62:H63),-SUM(H62:H63)) -> 8565.286368 | I124: =IF(I2<=Variabelen!$E$25,-I5+SUM(I13,I15,I18,I22,I23,IF(I2=Variabelen!$E$25,SUM(J15:$AB$15)*0.1,0))-SUM(I53,I54,I55,I56,I57,I58,I59)-SUM(I62:I63),-SUM(I62:I63)) -> 8445.934573 | J124: =IF(J2<=Variabelen!$E$25,-J5+SUM(J13,J15,J18,J22,J23,IF(J2=Variabelen!$E$25,SUM(K15:$AB$15)*0.1,0))-SUM(J53,J54,J55,J56,J57,J58,J59)-SUM(J62:J63),-SUM(J62:J63)) -> 8327.452446 | K124: =IF(K2<=Variabelen!$E$25,-K5+SUM(K13,K15,K18,K22,K23,IF(K2=Variabelen!$E$25,SUM(L15:$AB$15)*0.1,0))-SUM(K53,K54,K55,K56,K57,K58,K59)-SUM(K62:K63),-SUM(K62:K63)) -> 8209.834243 | L124: =IF(L2<=Variabelen!$E$25,-L5+SUM(L13,L15,L18,L22,L23,IF(L2=Variabelen!$E$25,SUM(M15:$AB$15)*0.1,0))-SUM(L53,L54,L55,L56,L57,L58,L59)-SUM(L62:L63),-SUM(L62:L63)) -> 8093.074261 | M124: =IF(M2<=Variabelen!$E$25,-M5+SUM(M13,M15,M18,M22,M23,IF(M2=Variabelen!$E$25,SUM(N15:$AB$15)*0.1,0))-SUM(M53,M54,M55,M56,M57,M58,M59)-SUM(M62:M63),-SUM(M62:M63)) -> 78794.80583 | N124: =IF(N2<=Variabelen!$E$25,-N5+SUM(N13,N15,N18,N22,N23,IF(N2=Variabelen!$E$25,SUM(O15:$AB$15)*0.1,0))-SUM(N53,N54,N55,N56,N57,N58,N59)-SUM(N62:N63),-SUM(N62:N63)) -> 0 | O124: =IF(O2<=Variabelen!$E$25,-O5+SUM(O13,O15,O18,O22,O23,IF(O2=Variabelen!$E$25,SUM(P15:$AB$15)*0.1,0))-SUM(O53,O54,O55,O56,O57,O58,O59)-SUM(O62:O63),-SUM(O62:O63)) -> 0 | P124: =IF(P2<=Variabelen!$E$25,-P5+SUM(P13,P15,P18,P22,P23,IF(P2=Variabelen!$E$25,SUM(Q15:$AB$15)*0.1,0))-SUM(P53,P54,P55,P56,P57,P58,P59)-SUM(P62:P63),-SUM(P62:P63)) -> 0 | Q124: =IF(Q2<=Variabelen!$E$25,-Q5+SUM(Q13,Q15,Q18,Q22,Q23,IF(Q2=Variabelen!$E$25,SUM(R15:$AB$15)*0.1,0))-SUM(Q53,Q54,Q55,Q56,Q57,Q58,Q59)-SUM(Q62:Q63),-SUM(Q62:Q63)) -> 0 | R124: =IF(R2<=Variabelen!$E$25,-R5+SUM(R13,R15,R18,R22,R23,IF(R2=Variabelen!$E$25,SUM(S15:$AB$15)*0.1,0))-SUM(R53,R54,R55,R56,R57,R58,R59)-SUM(R62:R63),-SUM(R62:R63)) -> 0 | S124: =IF(S2<=Variabelen!$E$25,-S5+SUM(S13,S15,S18,S22,S23,IF(S2=Variabelen!$E$25,SUM(T15:$AB$15)*0.1,0))-SUM(S53,S54,S55,S56,S57,S58,S59)-SUM(S62:S63),-SUM(S62:S63)) -> 0 | T124: =IF(T2<=Variabelen!$E$25,-T5+SUM(T13,T15,T18,T22,T23,IF(T2=Variabelen!$E$25,SUM(U15:$AB$15)*0.1,0))-SUM(T53,T54,T55,T56,T57,T58,T59)-SUM(T62:T63),-SUM(T62:T63)) -> 0 | U124: =IF(U2<=Variabelen!$E$25,-U5+SUM(U13,U15,U18,U22,U23,IF(U2=Variabelen!$E$25,SUM(V15:$AB$15)*0.1,0))-SUM(U53,U54,U55,U56,U57,U58,U59)-SUM(U62:U63),-SUM(U62:U63)) -> 0 | V124: =IF(V2<=Variabelen!$E$25,-V5+SUM(V13,V15,V18,V22,V23,IF(V2=Variabelen!$E$25,SUM(W15:$AB$15)*0.1,0))-SUM(V53,V54,V55,V56,V57,V58,V59)-SUM(V62:V63),-SUM(V62:V63)) -> 0 | W124: =IF(W2<=Variabelen!$E$25,-W5+SUM(W13,W15,W18,W22,W23,IF(W2=Variabelen!$E$25,SUM(X15:$AB$15)*0.1,0))-SUM(W53,W54,W55,W56,W57,W58,W59)-SUM(W62:W63),-SUM(W62:W63)) -> 0 | X124: =IF(X2<=Variabelen!$E$25,-X5+SUM(X13,X15,X18,X22,X23,IF(X2=Variabelen!$E$25,SUM(Y15:$AB$15)*0.1,0))-SUM(X53,X54,X55,X56,X57,X58,X59)-SUM(X62:X63),-SUM(X62:X63)) -> 0 | Y124: =IF(Y2<=Variabelen!$E$25,-Y5+SUM(Y13,Y15,Y18,Y22,Y23,IF(Y2=Variabelen!$E$25,SUM(Z15:$AB$15)*0.1,0))-SUM(Y53,Y54,Y55,Y56,Y57,Y58,Y59)-SUM(Y62:Y63),-SUM(Y62:Y63)) -> 0 | Z124: =IF(Z2<=Variabelen!$E$25,-Z5+SUM(Z13,Z15,Z18,Z22,Z23,IF(Z2=Variabelen!$E$25,SUM(AA15:$AB$15)*0.1,0))-SUM(Z53,Z54,Z55,Z56,Z57,Z58,Z59)-SUM(Z62:Z63),-SUM(Z62:Z63)) -> 0 | AA124: =IF(AA2<=Variabelen!$E$25,-AA5+SUM(AA13,AA15,AA18,AA22,AA23,IF(AA2=Variabelen!$E$25,SUM(AB15:$AB$15)*0.1,0))-SUM(AA53,AA54,AA55,AA56,AA57,AA58,AA59)-SUM(AA62:AA63),-SUM(AA62:AA63)) -> 0 | AB124: =IF(AB2<=Variabelen!$E$25,-AB5+SUM(AB13,AB15,AB18,AB22,AB23,IF(AB2=Variabelen!$E$25,SUM($AB15:AC$15)*0.1,0))-SUM(AB53,AB54,AB55,AB56,AB57,AB58,AB59)-SUM(AB62:AB63),-SUM(AB62:AB63)) -> 0 | AO124: J | AX124: x | AY124: x | AZ124: x | BA124: x | BB124: x | BC124: x | BD124: x | BE124: x | BF124: x | BG124: 111 | BH124: x | BI124: x | BJ124: x | BK124: x | BL124: x | BM124: x | BN124: x
B125: KIA | C125: =IF(C$2=1,Totaal_KIA*VPB,0) -> 0 | D125: 1826.714599 | E125: 0 | F125: 0 | G125: 0 | H125: 0 | I125: 0 | J125: 0 | K125: 0 | L125: 0 | M125: 0 | N125: 0 | O125: 0 | P125: 0 | Q125: 0 | R125: 0 | S125: 0 | T125: 0 | U125: 0 | V125: 0 | W125: 0 | X125: 0 | Y125: 0 | Z125: 0 | AA125: 0 | AB125: 0 | AO125: J | AX125: x | AY125: x | AZ125: x | BA125: x | BB125: x | BC125: x | BD125: x | BE125: x | BF125: x | BG125: 112 | BH125: x | BI125: x | BJ125: x | BK125: x | BL125: x | BM125: x | BN125: x
A126: =IFERROR(IRR(C128:M128),0) -> 0.03288751852 | B126: EIA | C126: =IF(C$2=1,0,0) -> 0 | D126: =IF(D$2=1,0,0) -> 0 | E126: 0 | F126: 0 | G126: 0 | H126: 0 | I126: 0 | J126: 0 | K126: 0 | L126: 0 | M126: 0 | N126: 0 | O126: 0 | P126: 0 | Q126: 0 | R126: 0 | S126: 0 | T126: 0 | U126: 0 | V126: 0 | W126: 0 | X126: 0 | Y126: 0 | Z126: 0 | AA126: 0 | AB126: 0 | AO126: J | AX126: x | AY126: x | AZ126: x | BA126: x | BB126: x | BC126: x | BD126: x | BE126: x | BF126: x | BG126: 113 | BH126: x | BI126: x | BJ126: x | BK126: x | BL126: x | BM126: x | BN126: x
A127: =IFERROR(IRR(C128:R128),0) -> 0.03288751852 | B127: VPB | C127: 0 | D127: =MAX(0,(D124-D$11)*Variabelen!$K$9) -> 0 | E127: =MAX(0,(E124-E$11)*Variabelen!$K$9) -> 0 | F127: =MAX(0,(F124-F$11)*Variabelen!$K$9) -> 0 | G127: =MAX(0,(G124-G$11)*Variabelen!$K$9) -> 0 | H127: =MAX(0,(H124-H$11)*Variabelen!$K$9) -> 0 | I127: =MAX(0,(I124-I$11)*Variabelen!$K$9) -> 0 | J127: =MAX(0,(J124-J$11)*Variabelen!$K$9) -> 0 | K127: =MAX(0,(K124-K$11)*Variabelen!$K$9) -> 0 | L127: =MAX(0,(L124-L$11)*Variabelen!$K$9) -> 0 | M127: =MAX(0,(M124-M$11)*Variabelen!$K$9) -> 13796.24117 | N127: =MAX(0,(N124-N$11)*Variabelen!$K$9) -> 0 | O127: =MAX(0,(O124-O$11)*Variabelen!$K$9) -> 0 | P127: =MAX(0,(P124-P$11)*Variabelen!$K$9) -> 0 | Q127: =MAX(0,(Q124-Q$11)*Variabelen!$K$9) -> 0 | R127: =MAX(0,(R124-R$11)*Variabelen!$K$9) -> 0 | S127: =MAX(0,(S124-S$11)*Variabelen!$K$9) -> 0 | T127: =MAX(0,(T124-T$11)*Variabelen!$K$9) -> 0 | U127: =MAX(0,(U124-U$11)*Variabelen!$K$9) -> 0 | V127: =MAX(0,(V124-V$11)*Variabelen!$K$9) -> 0 | W127: =MAX(0,(W124-W$11)*Variabelen!$K$9) -> 0 | X127: =MAX(0,(X124-X$11)*Variabelen!$K$9) -> 0 | Y127: =MAX(0,(Y124-Y$11)*Variabelen!$K$9) -> 0 | Z127: =MAX(0,(Z124-Z$11)*Variabelen!$K$9) -> 0 | AA127: =MAX(0,(AA124-AA$11)*Variabelen!$K$9) -> 0 | AB127: =MAX(0,(AB124-AB$11)*Variabelen!$K$9) -> 0 | AO127: J | AX127: x | AY127: x | AZ127: x | BA127: x | BB127: x | BC127: x | BD127: x | BE127: x | BF127: x | BG127: 114 | BH127: x | BI127: x | BJ127: x | BK127: x | BL127: x | BM127: x | BN127: x
A128: =IFERROR(IRR(C128:W128),0) -> 0.03288751852 | B128: Balans | C128: =C124-C127+C125+C126 -> -114820.3413 | D128: =D124-D127+D125+D126 -> 10878.22129 | E128: =E124-E127+E125+E126 -> 8928.617884 | F128: 8806.622168 | G128: 8685.513622 | H128: 8565.286368 | I128: 8445.934573 | J128: 8327.452446 | K128: 8209.834243 | L128: 8093.074261 | M128: 64998.56466 | N128: 0 | O128: 0 | P128: 0 | Q128: 0 | R128: 0 | S128: 0 | T128: 0 | U128: 0 | V128: 0 | W128: 0 | X128: 0 | Y128: 0 | Z128: 0 | AA128: 0 | AB128: 0 | AO128: J | AX128: x | AY128: x | AZ128: x | BA128: x | BB128: x | BC128: x | BD128: x | BE128: x | BF128: x | BG128: 115 | BH128: x | BI128: x | BJ128: x | BK128: x | BL128: x | BM128: x | BN128: x
AX129: x | AY129: x | AZ129: x | BA129: x | BB129: x | BC129: x | BD129: x | BE129: x | BF129: x | BG129: x | BH129: x | BI129: x | BJ129: x | BK129: x | BL129: x | BM129: x | BN129: x
A130: Fase 7 | B130: Saldo | C130: =IF(C2<=Variabelen!$E$25,-C5+SUM(C13,C16,C18,C22,C23,IF(C2=Variabelen!$E$25,SUM(D16:$AB$16)*0.1,0))-SUM(C53,C54,C55,C56,C57,C58,C59)-SUM(C62:C63),-SUM(C62:C63)) -> -114820.3413 | D130: =IF(D2<=Variabelen!$E$25,-D5+SUM(D13,D16,D18,D22,D23,IF(D2=Variabelen!$E$25,SUM(E16:$AB$16)*0.1,0))-SUM(D53,D54,D55,D56,D57,D58,D59)-SUM(D62:D63),-SUM(D62:D63)) -> 11337.63179 | E130: =IF(E2<=Variabelen!$E$25,-E5+SUM(E13,E16,E18,E22,E23,IF(E2=Variabelen!$E$25,SUM(F16:$AB$16)*0.1,0))-SUM(E53,E54,E55,E56,E57,E58,E59)-SUM(E62:E63),-SUM(E62:E63)) -> 11198.74011 | F130: =IF(F2<=Variabelen!$E$25,-F5+SUM(F13,F16,F18,F22,F23,IF(F2=Variabelen!$E$25,SUM(G16:$AB$16)*0.1,0))-SUM(F53,F54,F55,F56,F57,F58,F59)-SUM(F62:F63),-SUM(F62:F63)) -> 11060.85354 | G130: =IF(G2<=Variabelen!$E$25,-G5+SUM(G13,G16,G18,G22,G23,IF(G2=Variabelen!$E$25,SUM(H16:$AB$16)*0.1,0))-SUM(G53,G54,G55,G56,G57,G58,G59)-SUM(G62:G63),-SUM(G62:G63)) -> 10923.96537 | H130: =IF(H2<=Variabelen!$E$25,-H5+SUM(H13,H16,H18,H22,H23,IF(H2=Variabelen!$E$25,SUM(I16:$AB$16)*0.1,0))-SUM(H53,H54,H55,H56,H57,H58,H59)-SUM(H62:H63),-SUM(H62:H63)) -> 10788.06896 | I130: =IF(I2<=Variabelen!$E$25,-I5+SUM(I13,I16,I18,I22,I23,IF(I2=Variabelen!$E$25,SUM(J16:$AB$16)*0.1,0))-SUM(I53,I54,I55,I56,I57,I58,I59)-SUM(I62:I63),-SUM(I62:I63)) -> 10653.15768 | J130: =IF(J2<=Variabelen!$E$25,-J5+SUM(J13,J16,J18,J22,J23,IF(J2=Variabelen!$E$25,SUM(K16:$AB$16)*0.1,0))-SUM(J53,J54,J55,J56,J57,J58,J59)-SUM(J62:J63),-SUM(J62:J63)) -> 10519.22499 | K130: =IF(K2<=Variabelen!$E$25,-K5+SUM(K13,K16,K18,K22,K23,IF(K2=Variabelen!$E$25,SUM(L16:$AB$16)*0.1,0))-SUM(K53,K54,K55,K56,K57,K58,K59)-SUM(K62:K63),-SUM(K62:K63)) -> 10386.26438 | L130: =IF(L2<=Variabelen!$E$25,-L5+SUM(L13,L16,L18,L22,L23,IF(L2=Variabelen!$E$25,SUM(M16:$AB$16)*0.1,0))-SUM(L53,L54,L55,L56,L57,L58,L59)-SUM(L62:L63),-SUM(L62:L63)) -> 10254.26939 | M130: =IF(M2<=Variabelen!$E$25,-M5+SUM(M13,M16,M18,M22,M23,IF(M2=Variabelen!$E$25,SUM(N16:$AB$16)*0.1,0))-SUM(M53,M54,M55,M56,M57,M58,M59)-SUM(M62:M63),-SUM(M62:M63)) -> 81991.58148 | N130: =IF(N2<=Variabelen!$E$25,-N5+SUM(N13,N16,N18,N22,N23,IF(N2=Variabelen!$E$25,SUM(O16:$AB$16)*0.1,0))-SUM(N53,N54,N55,N56,N57,N58,N59)-SUM(N62:N63),-SUM(N62:N63)) -> 0 | O130: =IF(O2<=Variabelen!$E$25,-O5+SUM(O13,O16,O18,O22,O23,IF(O2=Variabelen!$E$25,SUM(P16:$AB$16)*0.1,0))-SUM(O53,O54,O55,O56,O57,O58,O59)-SUM(O62:O63),-SUM(O62:O63)) -> 0 | P130: =IF(P2<=Variabelen!$E$25,-P5+SUM(P13,P16,P18,P22,P23,IF(P2=Variabelen!$E$25,SUM(Q16:$AB$16)*0.1,0))-SUM(P53,P54,P55,P56,P57,P58,P59)-SUM(P62:P63),-SUM(P62:P63)) -> 0 | Q130: =IF(Q2<=Variabelen!$E$25,-Q5+SUM(Q13,Q16,Q18,Q22,Q23,IF(Q2=Variabelen!$E$25,SUM(R16:$AB$16)*0.1,0))-SUM(Q53,Q54,Q55,Q56,Q57,Q58,Q59)-SUM(Q62:Q63),-SUM(Q62:Q63)) -> 0 | R130: =IF(R2<=Variabelen!$E$25,-R5+SUM(R13,R16,R18,R22,R23,IF(R2=Variabelen!$E$25,SUM(S16:$AB$16)*0.1,0))-SUM(R53,R54,R55,R56,R57,R58,R59)-SUM(R62:R63),-SUM(R62:R63)) -> 0 | S130: =IF(S2<=Variabelen!$E$25,-S5+SUM(S13,S16,S18,S22,S23,IF(S2=Variabelen!$E$25,SUM(T16:$AB$16)*0.1,0))-SUM(S53,S54,S55,S56,S57,S58,S59)-SUM(S62:S63),-SUM(S62:S63)) -> 0 | T130: =IF(T2<=Variabelen!$E$25,-T5+SUM(T13,T16,T18,T22,T23,IF(T2=Variabelen!$E$25,SUM(U16:$AB$16)*0.1,0))-SUM(T53,T54,T55,T56,T57,T58,T59)-SUM(T62:T63),-SUM(T62:T63)) -> 0 | U130: =IF(U2<=Variabelen!$E$25,-U5+SUM(U13,U16,U18,U22,U23,IF(U2=Variabelen!$E$25,SUM(V16:$AB$16)*0.1,0))-SUM(U53,U54,U55,U56,U57,U58,U59)-SUM(U62:U63),-SUM(U62:U63)) -> 0 | V130: =IF(V2<=Variabelen!$E$25,-V5+SUM(V13,V16,V18,V22,V23,IF(V2=Variabelen!$E$25,SUM(W16:$AB$16)*0.1,0))-SUM(V53,V54,V55,V56,V57,V58,V59)-SUM(V62:V63),-SUM(V62:V63)) -> 0 | W130: =IF(W2<=Variabelen!$E$25,-W5+SUM(W13,W16,W18,W22,W23,IF(W2=Variabelen!$E$25,SUM(X16:$AB$16)*0.1,0))-SUM(W53,W54,W55,W56,W57,W58,W59)-SUM(W62:W63),-SUM(W62:W63)) -> 0 | X130: =IF(X2<=Variabelen!$E$25,-X5+SUM(X13,X16,X18,X22,X23,IF(X2=Variabelen!$E$25,SUM(Y16:$AB$16)*0.1,0))-SUM(X53,X54,X55,X56,X57,X58,X59)-SUM(X62:X63),-SUM(X62:X63)) -> 0 | Y130: =IF(Y2<=Variabelen!$E$25,-Y5+SUM(Y13,Y16,Y18,Y22,Y23,IF(Y2=Variabelen!$E$25,SUM(Z16:$AB$16)*0.1,0))-SUM(Y53,Y54,Y55,Y56,Y57,Y58,Y59)-SUM(Y62:Y63),-SUM(Y62:Y63)) -> 0 | Z130: =IF(Z2<=Variabelen!$E$25,-Z5+SUM(Z13,Z16,Z18,Z22,Z23,IF(Z2=Variabelen!$E$25,SUM(AA16:$AB$16)*0.1,0))-SUM(Z53,Z54,Z55,Z56,Z57,Z58,Z59)-SUM(Z62:Z63),-SUM(Z62:Z63)) -> 0 | AA130: =IF(AA2<=Variabelen!$E$25,-AA5+SUM(AA13,AA16,AA18,AA22,AA23,IF(AA2=Variabelen!$E$25,SUM(AB16:$AB$16)*0.1,0))-SUM(AA53,AA54,AA55,AA56,AA57,AA58,AA59)-SUM(AA62:AA63),-SUM(AA62:AA63)) -> 0 | AB130: =IF(AB2<=Variabelen!$E$25,-AB5+SUM(AB13,AB16,AB18,AB22,AB23,IF(AB2=Variabelen!$E$25,SUM($AB16:AC$16)*0.1,0))-SUM(AB53,AB54,AB55,AB56,AB57,AB58,AB59)-SUM(AB62:AB63),-SUM(AB62:AB63)) -> 0 | AP130: K | AX130: x | AY130: x | AZ130: x | BA130: x | BB130: x | BC130: x | BD130: x | BE130: x | BF130: x | BG130: x | BH130: 117 | BI130: x | BJ130: x | BK130: x | BL130: x | BM130: x | BN130: x
B131: KIA | C131: =IF(C$2=1,Totaal_KIA*VPB,0) -> 0 | D131: 1826.714599 | E131: 0 | F131: 0 | G131: 0 | H131: 0 | I131: 0 | J131: 0 | K131: 0 | L131: 0 | M131: 0 | N131: 0 | O131: 0 | P131: 0 | Q131: 0 | R131: 0 | S131: 0 | T131: 0 | U131: 0 | V131: 0 | W131: 0 | X131: 0 | Y131: 0 | Z131: 0 | AA131: 0 | AB131: 0 | AP131: K | AX131: x | AY131: x | AZ131: x | BA131: x | BB131: x | BC131: x | BD131: x | BE131: x | BF131: x | BG131: x | BH131: 118 | BI131: x | BJ131: x | BK131: x | BL131: x | BM131: x | BN131: x
A132: =IFERROR(IRR(C134:M134),0) -> 0.05556425225 | B132: EIA | C132: =IF(C$2=1,0,0) -> 0 | D132: =IF(D$2=1,0,0) -> 0 | E132: 0 | F132: 0 | G132: 0 | H132: 0 | I132: 0 | J132: 0 | K132: 0 | L132: 0 | M132: 0 | N132: 0 | O132: 0 | P132: 0 | Q132: 0 | R132: 0 | S132: 0 | T132: 0 | U132: 0 | V132: 0 | W132: 0 | X132: 0 | Y132: 0 | Z132: 0 | AA132: 0 | AB132: 0 | AP132: K | AX132: x | AY132: x | AZ132: x | BA132: x | BB132: x | BC132: x | BD132: x | BE132: x | BF132: x | BG132: x | BH132: 119 | BI132: x | BJ132: x | BK132: x | BL132: x | BM132: x | BN132: x
A133: =IFERROR(IRR(C134:R134),0) -> 0.05556425225 | B133: VPB | C133: 0 | D133: =MAX(0,(D130-D$11)*Variabelen!$K$9) -> 304.8063588 | E133: =MAX(0,(E130-E$11)*Variabelen!$K$9) -> 277.0280217 | F133: =MAX(0,(F130-F$11)*Variabelen!$K$9) -> 249.4507074 | G133: =MAX(0,(G130-G$11)*Variabelen!$K$9) -> 222.0730743 | H133: =MAX(0,(H130-H$11)*Variabelen!$K$9) -> 194.8937911 | I133: =MAX(0,(I130-I$11)*Variabelen!$K$9) -> 167.9115363 | J133: =MAX(0,(J130-J$11)*Variabelen!$K$9) -> 141.1249987 | K133: =MAX(0,(K130-K$11)*Variabelen!$K$9) -> 114.5328764 | L133: =MAX(0,(L130-L$11)*Variabelen!$K$9) -> 88.13387778 | M133: =MAX(0,(M130-M$11)*Variabelen!$K$9) -> 14435.5963 | N133: =MAX(0,(N130-N$11)*Variabelen!$K$9) -> 0 | O133: =MAX(0,(O130-O$11)*Variabelen!$K$9) -> 0 | P133: =MAX(0,(P130-P$11)*Variabelen!$K$9) -> 0 | Q133: =MAX(0,(Q130-Q$11)*Variabelen!$K$9) -> 0 | R133: =MAX(0,(R130-R$11)*Variabelen!$K$9) -> 0 | S133: =MAX(0,(S130-S$11)*Variabelen!$K$9) -> 0 | T133: =MAX(0,(T130-T$11)*Variabelen!$K$9) -> 0 | U133: =MAX(0,(U130-U$11)*Variabelen!$K$9) -> 0 | V133: =MAX(0,(V130-V$11)*Variabelen!$K$9) -> 0 | W133: =MAX(0,(W130-W$11)*Variabelen!$K$9) -> 0 | X133: =MAX(0,(X130-X$11)*Variabelen!$K$9) -> 0 | Y133: =MAX(0,(Y130-Y$11)*Variabelen!$K$9) -> 0 | Z133: =MAX(0,(Z130-Z$11)*Variabelen!$K$9) -> 0 | AA133: =MAX(0,(AA130-AA$11)*Variabelen!$K$9) -> 0 | AB133: =MAX(0,(AB130-AB$11)*Variabelen!$K$9) -> 0 | AP133: K | AX133: x | AY133: x | AZ133: x | BA133: x | BB133: x | BC133: x | BD133: x | BE133: x | BF133: x | BG133: x | BH133: 120 | BI133: x | BJ133: x | BK133: x | BL133: x | BM133: x | BN133: x
A134: =IFERROR(IRR(C134:W134),0) -> 0.05556425225 | B134: Balans | C134: =C130-C133+C131+C132 -> -114820.3413 | D134: =D130-D133+D131+D132 -> 12859.54003 | E134: =E130-E133+E131+E132 -> 10921.71209 | F134: 10811.40283 | G134: 10701.8923 | H134: 10593.17516 | I134: 10485.24615 | J134: 10378.09999 | K134: 10271.73151 | L134: 10166.13551 | M134: 67555.98519 | N134: 0 | O134: 0 | P134: 0 | Q134: 0 | R134: 0 | S134: 0 | T134: 0 | U134: 0 | V134: 0 | W134: 0 | X134: 0 | Y134: 0 | Z134: 0 | AA134: 0 | AB134: 0 | AX134: x | AY134: x | AZ134: x | BA134: x | BB134: x | BC134: x | BD134: x | BE134: x | BF134: x | BG134: x | BH134: x | BI134: x | BJ134: x | BK134: x | BL134: x | BM134: x | BN134: x
AX135: x | AY135: x | AZ135: x | BA135: x | BB135: x | BC135: x | BD135: x | BE135: x | BF135: x | BG135: x | BH135: x | BI135: x | BJ135: x | BK135: x | BL135: x | BM135: x | BN135: x
A136: Fase 8 | B136: Saldo | C136: =IF(C2<=Variabelen!$E$25,-C5+SUM(C13,C17,C18,C22,C23,IF(C2=Variabelen!$E$25,SUM(D17:$AB$17)*0.1,0))-SUM(C53,C54,C55,C56,C57,C58,C59)-SUM(C62:C63),-SUM(C62:C63)) -> -114820.3413 | D136: =IF(D2<=Variabelen!$E$25,-D5+SUM(D13,D17,D18,D22,D23,IF(D2=Variabelen!$E$25,SUM(E17:$AB$17)*0.1,0))-SUM(D53,D54,D55,D56,D57,D58,D59)-SUM(D62:D63),-SUM(D62:D63)) -> 11337.63179 | E136: =IF(E2<=Variabelen!$E$25,-E5+SUM(E13,E17,E18,E22,E23,IF(E2=Variabelen!$E$25,SUM(F17:$AB$17)*0.1,0))-SUM(E53,E54,E55,E56,E57,E58,E59)-SUM(E62:E63),-SUM(E62:E63)) -> 11198.74011 | F136: =IF(F2<=Variabelen!$E$25,-F5+SUM(F13,F17,F18,F22,F23,IF(F2=Variabelen!$E$25,SUM(G17:$AB$17)*0.1,0))-SUM(F53,F54,F55,F56,F57,F58,F59)-SUM(F62:F63),-SUM(F62:F63)) -> 11060.85354 | G136: =IF(G2<=Variabelen!$E$25,-G5+SUM(G13,G17,G18,G22,G23,IF(G2=Variabelen!$E$25,SUM(H17:$AB$17)*0.1,0))-SUM(G53,G54,G55,G56,G57,G58,G59)-SUM(G62:G63),-SUM(G62:G63)) -> 10923.96537 | H136: =IF(H2<=Variabelen!$E$25,-H5+SUM(H13,H17,H18,H22,H23,IF(H2=Variabelen!$E$25,SUM(I17:$AB$17)*0.1,0))-SUM(H53,H54,H55,H56,H57,H58,H59)-SUM(H62:H63),-SUM(H62:H63)) -> 10788.06896 | I136: =IF(I2<=Variabelen!$E$25,-I5+SUM(I13,I17,I18,I22,I23,IF(I2=Variabelen!$E$25,SUM(J17:$AB$17)*0.1,0))-SUM(I53,I54,I55,I56,I57,I58,I59)-SUM(I62:I63),-SUM(I62:I63)) -> 10653.15768 | J136: =IF(J2<=Variabelen!$E$25,-J5+SUM(J13,J17,J18,J22,J23,IF(J2=Variabelen!$E$25,SUM(K17:$AB$17)*0.1,0))-SUM(J53,J54,J55,J56,J57,J58,J59)-SUM(J62:J63),-SUM(J62:J63)) -> 10519.22499 | K136: =IF(K2<=Variabelen!$E$25,-K5+SUM(K13,K17,K18,K22,K23,IF(K2=Variabelen!$E$25,SUM(L17:$AB$17)*0.1,0))-SUM(K53,K54,K55,K56,K57,K58,K59)-SUM(K62:K63),-SUM(K62:K63)) -> 10386.26438 | L136: =IF(L2<=Variabelen!$E$25,-L5+SUM(L13,L17,L18,L22,L23,IF(L2=Variabelen!$E$25,SUM(M17:$AB$17)*0.1,0))-SUM(L53,L54,L55,L56,L57,L58,L59)-SUM(L62:L63),-SUM(L62:L63)) -> 10254.26939 | M136: =IF(M2<=Variabelen!$E$25,-M5+SUM(M13,M17,M18,M22,M23,IF(M2=Variabelen!$E$25,SUM(N17:$AB$17)*0.1,0))-SUM(M53,M54,M55,M56,M57,M58,M59)-SUM(M62:M63),-SUM(M62:M63)) -> 81991.58148 | N136: =IF(N2<=Variabelen!$E$25,-N5+SUM(N13,N17,N18,N22,N23,IF(N2=Variabelen!$E$25,SUM(O17:$AB$17)*0.1,0))-SUM(N53,N54,N55,N56,N57,N58,N59)-SUM(N62:N63),-SUM(N62:N63)) -> 0 | O136: =IF(O2<=Variabelen!$E$25,-O5+SUM(O13,O17,O18,O22,O23,IF(O2=Variabelen!$E$25,SUM(P17:$AB$17)*0.1,0))-SUM(O53,O54,O55,O56,O57,O58,O59)-SUM(O62:O63),-SUM(O62:O63)) -> 0 | P136: =IF(P2<=Variabelen!$E$25,-P5+SUM(P13,P17,P18,P22,P23,IF(P2=Variabelen!$E$25,SUM(Q17:$AB$17)*0.1,0))-SUM(P53,P54,P55,P56,P57,P58,P59)-SUM(P62:P63),-SUM(P62:P63)) -> 0 | Q136: =IF(Q2<=Variabelen!$E$25,-Q5+SUM(Q13,Q17,Q18,Q22,Q23,IF(Q2=Variabelen!$E$25,SUM(R17:$AB$17)*0.1,0))-SUM(Q53,Q54,Q55,Q56,Q57,Q58,Q59)-SUM(Q62:Q63),-SUM(Q62:Q63)) -> 0 | R136: =IF(R2<=Variabelen!$E$25,-R5+SUM(R13,R17,R18,R22,R23,IF(R2=Variabelen!$E$25,SUM(S17:$AB$17)*0.1,0))-SUM(R53,R54,R55,R56,R57,R58,R59)-SUM(R62:R63),-SUM(R62:R63)) -> 0 | S136: =IF(S2<=Variabelen!$E$25,-S5+SUM(S13,S17,S18,S22,S23,IF(S2=Variabelen!$E$25,SUM(T17:$AB$17)*0.1,0))-SUM(S53,S54,S55,S56,S57,S58,S59)-SUM(S62:S63),-SUM(S62:S63)) -> 0 | T136: =IF(T2<=Variabelen!$E$25,-T5+SUM(T13,T17,T18,T22,T23,IF(T2=Variabelen!$E$25,SUM(U17:$AB$17)*0.1,0))-SUM(T53,T54,T55,T56,T57,T58,T59)-SUM(T62:T63),-SUM(T62:T63)) -> 0 | U136: =IF(U2<=Variabelen!$E$25,-U5+SUM(U13,U17,U18,U22,U23,IF(U2=Variabelen!$E$25,SUM(V17:$AB$17)*0.1,0))-SUM(U53,U54,U55,U56,U57,U58,U59)-SUM(U62:U63),-SUM(U62:U63)) -> 0 | V136: =IF(V2<=Variabelen!$E$25,-V5+SUM(V13,V17,V18,V22,V23,IF(V2=Variabelen!$E$25,SUM(W17:$AB$17)*0.1,0))-SUM(V53,V54,V55,V56,V57,V58,V59)-SUM(V62:V63),-SUM(V62:V63)) -> 0 | W136: =IF(W2<=Variabelen!$E$25,-W5+SUM(W13,W17,W18,W22,W23,IF(W2=Variabelen!$E$25,SUM(X17:$AB$17)*0.1,0))-SUM(W53,W54,W55,W56,W57,W58,W59)-SUM(W62:W63),-SUM(W62:W63)) -> 0 | X136: =IF(X2<=Variabelen!$E$25,-X5+SUM(X13,X17,X18,X22,X23,IF(X2=Variabelen!$E$25,SUM(Y17:$AB$17)*0.1,0))-SUM(X53,X54,X55,X56,X57,X58,X59)-SUM(X62:X63),-SUM(X62:X63)) -> 0 | Y136: =IF(Y2<=Variabelen!$E$25,-Y5+SUM(Y13,Y17,Y18,Y22,Y23,IF(Y2=Variabelen!$E$25,SUM(Z17:$AB$17)*0.1,0))-SUM(Y53,Y54,Y55,Y56,Y57,Y58,Y59)-SUM(Y62:Y63),-SUM(Y62:Y63)) -> 0 | Z136: =IF(Z2<=Variabelen!$E$25,-Z5+SUM(Z13,Z17,Z18,Z22,Z23,IF(Z2=Variabelen!$E$25,SUM(AA17:$AB$17)*0.1,0))-SUM(Z53,Z54,Z55,Z56,Z57,Z58,Z59)-SUM(Z62:Z63),-SUM(Z62:Z63)) -> 0 | AA136: =IF(AA2<=Variabelen!$E$25,-AA5+SUM(AA13,AA17,AA18,AA22,AA23,IF(AA2=Variabelen!$E$25,SUM(AB17:$AB$17)*0.1,0))-SUM(AA53,AA54,AA55,AA56,AA57,AA58,AA59)-SUM(AA62:AA63),-SUM(AA62:AA63)) -> 0 | AB136: =IF(AB2<=Variabelen!$E$25,-AB5+SUM(AB13,AB17,AB18,AB22,AB23,IF(AB2=Variabelen!$E$25,SUM($AB17:AC$17)*0.1,0))-SUM(AB53,AB54,AB55,AB56,AB57,AB58,AB59)-SUM(AB62:AB63),-SUM(AB62:AB63)) -> 0 | AQ136: L | AX136: x | AY136: x | AZ136: x | BA136: x | BB136: x | BC136: x | BD136: x | BE136: x | BF136: x | BG136: x | BH136: x | BI136: 123 | BJ136: x | BK136: x | BL136: x | BM136: x | BN136: x
B137: KIA | C137: =IF(C$2=1,Totaal_KIA*VPB,0) -> 0 | D137: 1826.714599 | E137: 0 | F137: 0 | G137: 0 | H137: 0 | I137: 0 | J137: 0 | K137: 0 | L137: 0 | M137: 0 | N137: 0 | O137: 0 | P137: 0 | Q137: 0 | R137: 0 | S137: 0 | T137: 0 | U137: 0 | V137: 0 | W137: 0 | X137: 0 | Y137: 0 | Z137: 0 | AA137: 0 | AB137: 0 | AQ137: L | AX137: x | AY137: x | AZ137: x | BA137: x | BB137: x | BC137: x | BD137: x | BE137: x | BF137: x | BG137: x | BH137: x | BI137: 124 | BJ137: x | BK137: x | BL137: x | BM137: x | BN137: x
A138: =IFERROR(IRR(C140:M140),0) -> 0.05556425225 | B138: EIA | C138: =IF(C$2=1,0,0) -> 0 | D138: =IF(D$2=1,0,0) -> 0 | E138: 0 | F138: 0 | G138: 0 | H138: 0 | I138: 0 | J138: 0 | K138: 0 | L138: 0 | M138: 0 | N138: 0 | O138: 0 | P138: 0 | Q138: 0 | R138: 0 | S138: 0 | T138: 0 | U138: 0 | V138: 0 | W138: 0 | X138: 0 | Y138: 0 | Z138: 0 | AA138: 0 | AB138: 0 | AQ138: L | AX138: x | AY138: x | AZ138: x | BA138: x | BB138: x | BC138: x | BD138: x | BE138: x | BF138: x | BG138: x | BH138: x | BI138: 125 | BJ138: x | BK138: x | BL138: x | BM138: x | BN138: x
A139: =IFERROR(IRR(C140:R140),0) -> 0.05556425225 | B139: VPB | C139: 0 | D139: =MAX(0,(D136-D$11)*Variabelen!$K$9) -> 304.8063588 | E139: =MAX(0,(E136-E$11)*Variabelen!$K$9) -> 277.0280217 | F139: =MAX(0,(F136-F$11)*Variabelen!$K$9) -> 249.4507074 | G139: =MAX(0,(G136-G$11)*Variabelen!$K$9) -> 222.0730743 | H139: =MAX(0,(H136-H$11)*Variabelen!$K$9) -> 194.8937911 | I139: =MAX(0,(I136-I$11)*Variabelen!$K$9) -> 167.9115363 | J139: =MAX(0,(J136-J$11)*Variabelen!$K$9) -> 141.1249987 | K139: =MAX(0,(K136-K$11)*Variabelen!$K$9) -> 114.5328764 | L139: =MAX(0,(L136-L$11)*Variabelen!$K$9) -> 88.13387778 | M139: =MAX(0,(M136-M$11)*Variabelen!$K$9) -> 14435.5963 | N139: =MAX(0,(N136-N$11)*Variabelen!$K$9) -> 0 | O139: =MAX(0,(O136-O$11)*Variabelen!$K$9) -> 0 | P139: =MAX(0,(P136-P$11)*Variabelen!$K$9) -> 0 | Q139: =MAX(0,(Q136-Q$11)*Variabelen!$K$9) -> 0 | R139: =MAX(0,(R136-R$11)*Variabelen!$K$9) -> 0 | S139: =MAX(0,(S136-S$11)*Variabelen!$K$9) -> 0 | T139: =MAX(0,(T136-T$11)*Variabelen!$K$9) -> 0 | U139: =MAX(0,(U136-U$11)*Variabelen!$K$9) -> 0 | V139: =MAX(0,(V136-V$11)*Variabelen!$K$9) -> 0 | W139: =MAX(0,(W136-W$11)*Variabelen!$K$9) -> 0 | X139: =MAX(0,(X136-X$11)*Variabelen!$K$9) -> 0 | Y139: =MAX(0,(Y136-Y$11)*Variabelen!$K$9) -> 0 | Z139: =MAX(0,(Z136-Z$11)*Variabelen!$K$9) -> 0 | AA139: =MAX(0,(AA136-AA$11)*Variabelen!$K$9) -> 0 | AB139: =MAX(0,(AB136-AB$11)*Variabelen!$K$9) -> 0 | AQ139: L | AX139: x | AY139: x | AZ139: x | BA139: x | BB139: x | BC139: x | BD139: x | BE139: x | BF139: x | BG139: x | BH139: x | BI139: 126 | BJ139: x | BK139: x | BL139: x | BM139: x | BN139: x
A140: =IFERROR(IRR(C140:W140),0) -> 0.05556425225 | B140: Balans | C140: =C136-C139+C137+C138 -> -114820.3413 | D140: =D136-D139+D137+D138 -> 12859.54003 | E140: =E136-E139+E137+E138 -> 10921.71209 | F140: 10811.40283 | G140: 10701.8923 | H140: 10593.17516 | I140: 10485.24615 | J140: 10378.09999 | K140: 10271.73151 | L140: 10166.13551 | M140: 67555.98519 | N140: 0 | O140: 0 | P140: 0 | Q140: 0 | R140: 0 | S140: 0 | T140: 0 | U140: 0 | V140: 0 | W140: 0 | X140: 0 | Y140: 0 | Z140: 0 | AA140: 0 | AB140: 0 | AQ140: L | AX140: x | AY140: x | AZ140: x | BA140: x | BB140: x | BC140: x | BD140: x | BE140: x | BF140: x | BG140: x | BH140: x | BI140: 127 | BJ140: x | BK140: x | BL140: x | BM140: x | BN140: x
AX141: x | AY141: x | AZ141: x | BA141: x | BB141: x | BC141: x | BD141: x | BE141: x | BF141: x | BG141: x | BH141: x | BI141: x | BJ141: x | BK141: x | BL141: x | BM141: x | BN141: x
A142: PCR Normaal | AX142: x | AY142: x | AZ142: x | BA142: x | BB142: x | BC142: x | BD142: x | BE142: x | BF142: x | BG142: x | BH142: x | BI142: x | BJ142: x | BK142: x | BL142: x | BM142: x | BN142: x
B143: Saldo | C143: =MIN((-C5+SUM($C$59:C59)),0)+SUM(C13,C18,C25,C27)-SUM(C53,C54,C55,C56,C57,C58,C59)-SUM(C62:C63) -> -114820.3413 | D143: =MIN((-D5+SUM($C$59:D59)),0)+SUM(D13,D18,D25,D27)-SUM(D53,D54,D55,D56,D57,D58,D59)-SUM(D62:D63) -> 12517.21197 | E143: =MIN((-E5+SUM($C$59:E59)),0)+SUM(E13,E18,E25,E27)-SUM(E53,E54,E55,E56,E57,E58,E59)-SUM(E62:E63) -> 12310.90323 | F143: =MIN((-F5+SUM($C$59:F59)),0)+SUM(F13,F18,F25,F27)-SUM(F53,F54,F55,F56,F57,F58,F59)-SUM(F62:F63) -> 12105.47991 | G143: =MIN((-G5+SUM($C$59:G59)),0)+SUM(G13,G18,G25,G27)-SUM(G53,G54,G55,G56,G57,G58,G59)-SUM(G62:G63) -> 11900.93025 | H143: =MIN((-H5+SUM($C$59:H59)),0)+SUM(H13,H18,H25,H27)-SUM(H53,H54,H55,H56,H57,H58,H59)-SUM(H62:H63) -> 11697.24247 | I143: =MIN((-I5+SUM($C$59:I59)),0)+SUM(I13,I18,I25,I27)-SUM(I53,I54,I55,I56,I57,I58,I59)-SUM(I62:I63) -> 11494.40485 | J143: =MIN((-J5+SUM($C$59:J59)),0)+SUM(J13,J18,J25,J27)-SUM(J53,J54,J55,J56,J57,J58,J59)-SUM(J62:J63) -> 11292.40567 | K143: =MIN((-K5+SUM($C$59:K59)),0)+SUM(K13,K18,K25,K27)-SUM(K53,K54,K55,K56,K57,K58,K59)-SUM(K62:K63) -> 11091.23327 | L143: =MIN((-L5+SUM($C$59:L59)),0)+SUM(L13,L18,L25,L27)-SUM(L53,L54,L55,L56,L57,L58,L59)-SUM(L62:L63) -> 10890.87596 | M143: =MIN((-M5+SUM($C$59:M59)),0)+SUM(M13,M18,M25,M27)-SUM(M53,M54,M55,M56,M57,M58,M59)-SUM(M62:M63) -> 10691.32213 | N143: =MIN((-N5+SUM($C$59:N59)),0)+SUM(N13,N18,N25,N27)-SUM(N53,N54,N55,N56,N57,N58,N59)-SUM(N62:N63) -> 19466.19134 | O143: =MIN((-O5+SUM($C$59:O59)),0)+SUM(O13,O18,O25,O27)-SUM(O53,O54,O55,O56,O57,O58,O59)-SUM(O62:O63) -> 19268.20962 | P143: =MIN((-P5+SUM($C$59:P59)),0)+SUM(P13,P18,P25,P27)-SUM(P53,P54,P55,P56,P57,P58,P59)-SUM(P62:P63) -> 19070.99658 | Q143: =MIN((-Q5+SUM($C$59:Q59)),0)+SUM(Q13,Q18,Q25,Q27)-SUM(Q53,Q54,Q55,Q56,Q57,Q58,Q59)-SUM(Q62:Q63) -> 18874.54069 | R143: =MIN((-R5+SUM($C$59:R59)),0)+SUM(R13,R18,R25,R27)-SUM(R53,R54,R55,R56,R57,R58,R59)-SUM(R62:R63) -> 18678.8304 | S143: =MIN((-S5+SUM($C$59:S59)),0)+SUM(S13,S18,S25,S27)-SUM(S53,S54,S55,S56,S57,S58,S59)-SUM(S62:S63) -> -39134.76895 | T143: =MIN((-T5+SUM($C$59:T59)),0)+SUM(T13,T18,T25,T27)-SUM(T53,T54,T55,T56,T57,T58,T59)-SUM(T62:T63) -> 1594.404477 | U143: =MIN((-U5+SUM($C$59:U59)),0)+SUM(U13,U18,U25,U27)-SUM(U53,U54,U55,U56,U57,U58,U59)-SUM(U62:U63) -> 1517.728342 | V143: =MIN((-V5+SUM($C$59:V59)),0)+SUM(V13,V18,V25,V27)-SUM(V53,V54,V55,V56,V57,V58,V59)-SUM(V62:V63) -> 1440.933787 | W143: =MIN((-W5+SUM($C$59:W59)),0)+SUM(W13,W18,W25,W27)-SUM(W53,W54,W55,W56,W57,W58,W59)-SUM(W62:W63) -> 1364.015088 | X143: =MIN((-X5+SUM($C$59:X59)),0)+SUM(X13,X18,X25,X27)-SUM(X53,X54,X55,X56,X57,X58,X59)-SUM(X62:X63) -> 1286.9665 | Y143: =MIN((-Y5+SUM($C$59:Y59)),0)+SUM(Y13,Y18,Y25,Y27)-SUM(Y53,Y54,Y55,Y56,Y57,Y58,Y59)-SUM(Y62:Y63) -> 1209.782246 | Z143: =MIN((-Z5+SUM($C$59:Z59)),0)+SUM(Z13,Z18,Z25,Z27)-SUM(Z53,Z54,Z55,Z56,Z57,Z58,Z59)-SUM(Z62:Z63) -> 1132.456527 | AA143: =MIN((-AA5+SUM($C$59:AA59)),0)+SUM(AA13,AA18,AA25,AA27)-SUM(AA53,AA54,AA55,AA56,AA57,AA58,AA59)-SUM(AA62:AA63) -> 1054.983516 | AB143: =MIN((-AB5+SUM($C$59:AB59)),0)+SUM(AB13,AB18,AB25,AB27)-SUM(AB53,AB54,AB55,AB56,AB57,AB58,AB59)-SUM(AB62:AB63) -> 977.3573579 | AR143: M | AX143: x | AY143: x | AZ143: x | BA143: x | BB143: x | BC143: x | BD143: x | BE143: x | BF143: x | BG143: x | BH143: x | BI143: x | BJ143: 130 | BK143: x | BL143: x | BM143: x | BN143: x
B144: Correctie BTW PCR | C144: =C143*Variabelen!K8 -> -24112.27167 | D144: 0 | E144: 0 | F144: 0 | G144: 0 | H144: 0 | I144: 0 | J144: 0 | K144: 0 | L144: 0 | M144: 0 | N144: 0 | O144: 0 | P144: 0 | Q144: 0 | R144: 0 | S144: 0 | T144: 0 | U144: 0 | V144: 0 | W144: 0 | X144: 0 | Y144: 0 | Z144: 0 | AA144: 0 | AB144: 0 | AR144: M | AX144: =IF(AF144=AX$12,ROW(AF144)-13,"x") -> x | AY144: =IF(AG144=AY$12,ROW(AG144)-13,"x") -> x | AZ144: =IF(AH144=AZ$12,ROW(AH144)-13,"x") -> x | BA144: =IF(AI144=BA$12,ROW(AI144)-13,"x") -> x | BB144: =IF(AJ144=BB$12,ROW(AJ144)-13,"x") -> x | BC144: =IF(AK144=BC$12,ROW(AK144)-13,"x") -> x | BD144: =IF(AL144=BD$12,ROW(AL144)-13,"x") -> x | BE144: =IF(AM144=BE$12,ROW(AM144)-13,"x") -> x | BF144: =IF(AN144=BF$12,ROW(AN144)-13,"x") -> x | BG144: =IF(AO144=BG$12,ROW(AO144)-13,"x") -> x | BH144: =IF(AP144=BH$12,ROW(AP144)-13,"x") -> x | BI144: =IF(AQ144=BI$12,ROW(AQ144)-13,"x") -> x | BJ144: =IF(AR144=BJ$12,ROW(AR144)-13,"x") -> 131 | BK144: =IF(AS144=BK$12,ROW(AS144)-13,"x") -> x | BL144: =IF(AT144=BL$12,ROW(AT144)-13,"x") -> x | BM144: =IF(AU144=BM$12,ROW(AU144)-13,"x") -> x | BN144: =IF(AV144=BN$12,ROW(AV144)-13,"x") -> x
B145: Saldo Coop | C145: =MIN((-C5+SUM($C$59:C59)),0)+SUM(C13,C18,C22)-SUM(C53,C54,C55,C56,C57,C58,C59)-SUM(C62:C63) -> -114820.3413 | D145: =MIN((-D5+SUM($C$59:D59)),0)+SUM(D13,D18,D22)-SUM(D53,D54,D55,D56,D57,D58,D59)-SUM(D62:D63) -> -2683.935486 | E145: =MIN((-E5+SUM($C$59:E59)),0)+SUM(E13,E18,E22)-SUM(E53,E54,E55,E56,E57,E58,E59)-SUM(E62:E63) -> -2724.6762 | F145: =MIN((-F5+SUM($C$59:F59)),0)+SUM(F13,F18,F22)-SUM(F53,F54,F55,F56,F57,F58,F59)-SUM(F62:F63) -> -2765.098858 | G145: =MIN((-G5+SUM($C$59:G59)),0)+SUM(G13,G18,G22)-SUM(G53,G54,G55,G56,G57,G58,G59)-SUM(G62:G63) -> -2805.205357 | H145: =MIN((-H5+SUM($C$59:H59)),0)+SUM(H13,H18,H22)-SUM(H53,H54,H55,H56,H57,H58,H59)-SUM(H62:H63) -> -2844.997578 | I145: =MIN((-I5+SUM($C$59:I59)),0)+SUM(I13,I18,I22)-SUM(I53,I54,I55,I56,I57,I58,I59)-SUM(I62:I63) -> -2884.477386 | J145: =MIN((-J5+SUM($C$59:J59)),0)+SUM(J13,J18,J22)-SUM(J53,J54,J55,J56,J57,J58,J59)-SUM(J62:J63) -> -2923.646629 | K145: =MIN((-K5+SUM($C$59:K59)),0)+SUM(K13,K18,K22)-SUM(K53,K54,K55,K56,K57,K58,K59)-SUM(K62:K63) -> -2962.507138 | L145: =MIN((-L5+SUM($C$59:L59)),0)+SUM(L13,L18,L22)-SUM(L53,L54,L55,L56,L57,L58,L59)-SUM(L62:L63) -> -3001.060731 | M145: =MIN((-M5+SUM($C$59:M59)),0)+SUM(M13,M18,M22)-SUM(M53,M54,M55,M56,M57,M58,M59)-SUM(M62:M63) -> -3039.309205 | N145: =MIN((-N5+SUM($C$59:N59)),0)+SUM(N13,N18,N22)-SUM(N53,N54,N55,N56,N57,N58,N59)-SUM(N62:N63) -> 5896.376841 | O145: =MIN((-O5+SUM($C$59:O59)),0)+SUM(O13,O18,O22)-SUM(O53,O54,O55,O56,O57,O58,O59)-SUM(O62:O63) -> 5858.733268 | P145: =MIN((-P5+SUM($C$59:P59)),0)+SUM(P13,P18,P22)-SUM(P53,P54,P55,P56,P57,P58,P59)-SUM(P62:P63) -> 5821.38951 | Q145: =MIN((-Q5+SUM($C$59:Q59)),0)+SUM(Q13,Q18,Q22)-SUM(Q53,Q54,Q55,Q56,Q57,Q58,Q59)-SUM(Q62:Q63) -> 5784.343833 | R145: =MIN((-R5+SUM($C$59:R59)),0)+SUM(R13,R18,R22)-SUM(R53,R54,R55,R56,R57,R58,R59)-SUM(R62:R63) -> 5747.594516 | S145: =MIN((-S5+SUM($C$59:S59)),0)+SUM(S13,S18,S22)-SUM(S53,S54,S55,S56,S57,S58,S59)-SUM(S62:S63) -> -35094.59699 | T145: =MIN((-T5+SUM($C$59:T59)),0)+SUM(T13,T18,T22)-SUM(T53,T54,T55,T56,T57,T58,T59)-SUM(T62:T63) -> 5674.978162 | U145: =MIN((-U5+SUM($C$59:U59)),0)+SUM(U13,U18,U22)-SUM(U53,U54,U55,U56,U57,U58,U59)-SUM(U62:U63) -> 5639.107763 | V145: =MIN((-V5+SUM($C$59:V59)),0)+SUM(V13,V18,V22)-SUM(V53,V54,V55,V56,V57,V58,V59)-SUM(V62:V63) -> 5603.527002 | W145: =MIN((-W5+SUM($C$59:W59)),0)+SUM(W13,W18,W22)-SUM(W53,W54,W55,W56,W57,W58,W59)-SUM(W62:W63) -> 5568.234236 | X145: =MIN((-X5+SUM($C$59:X59)),0)+SUM(X13,X18,X22)-SUM(X53,X54,X55,X56,X57,X58,X59)-SUM(X62:X63) -> 5533.227839 | Y145: =MIN((-Y5+SUM($C$59:Y59)),0)+SUM(Y13,Y18,Y22)-SUM(Y53,Y54,Y55,Y56,Y57,Y58,Y59)-SUM(Y62:Y63) -> 5498.506198 | Z145: =MIN((-Z5+SUM($C$59:Z59)),0)+SUM(Z13,Z18,Z22)-SUM(Z53,Z54,Z55,Z56,Z57,Z58,Z59)-SUM(Z62:Z63) -> 5464.067719 | AA145: =MIN((-AA5+SUM($C$59:AA59)),0)+SUM(AA13,AA18,AA22)-SUM(AA53,AA54,AA55,AA56,AA57,AA58,AA59)-SUM(AA62:AA63) -> 5429.91082 | AB145: =MIN((-AB5+SUM($C$59:AB59)),0)+SUM(AB13,AB18,AB22)-SUM(AB53,AB54,AB55,AB56,AB57,AB58,AB59)-SUM(AB62:AB63) -> 5396.033935 | AR145: M | AX145: x | AY145: x | AZ145: x | BA145: x | BB145: x | BC145: x | BD145: x | BE145: x | BF145: x | BG145: x | BH145: x | BI145: x | BJ145: 132 | BK145: x | BL145: x | BM145: x | BN145: x
B146: KIA | C146: =IF(C$2=1,Totaal_KIA*VPB,0) -> 0 | D146: =IF(D$2=1,Totaal_KIA*VPB,0) -> 1826.714599 | E146: 0 | F146: 0 | G146: 0 | H146: 0 | I146: 0 | J146: 0 | K146: 0 | L146: 0 | M146: 0 | N146: 0 | O146: 0 | P146: 0 | Q146: 0 | R146: 0 | S146: 0 | T146: 0 | U146: 0 | V146: 0 | W146: 0 | X146: 0 | Y146: 0 | Z146: 0 | AA146: 0 | AB146: 0 | AR146: M | AX146: x | AY146: x | AZ146: x | BA146: x | BB146: x | BC146: x | BD146: x | BE146: x | BF146: x | BG146: x | BH146: x | BI146: x | BJ146: 133 | BK146: x | BL146: x | BM146: x | BN146: x
A147: =IFERROR(IRR(C149:M149),0) -> -0.02997710227 | B147: EIA | C147: =IF(C$2=1,0,0) -> 0 | D147: =IF(D$2=1,0,0) -> 0 | E147: 0 | F147: 0 | G147: 0 | H147: 0 | I147: 0 | J147: 0 | K147: 0 | L147: 0 | M147: 0 | N147: 0 | O147: 0 | P147: 0 | Q147: 0 | R147: 0 | S147: 0 | T147: 0 | U147: 0 | V147: 0 | W147: 0 | X147: 0 | Y147: 0 | Z147: 0 | AA147: 0 | AB147: 0 | AR147: M | AX147: x | AY147: x | AZ147: x | BA147: x | BB147: x | BC147: x | BD147: x | BE147: x | BF147: x | BG147: x | BH147: x | BI147: x | BJ147: 134 | BK147: x | BL147: x | BM147: x | BN147: x
A148: =IFERROR(IRR(C149:R149),0) -> 0.05363584923 | B148: VPB | C148: 0 | D148: =MAX(0,(D145-D$11)*Variabelen!$K$9) -> 0 | E148: =MAX(0,(E145-E$11)*Variabelen!$K$9) -> 0 | F148: =MAX(0,(F145-F$11)*Variabelen!$K$9) -> 0 | G148: =MAX(0,(G145-G$11)*Variabelen!$K$9) -> 0 | H148: =MAX(0,(H145-H$11)*Variabelen!$K$9) -> 0 | I148: =MAX(0,(I145-I$11)*Variabelen!$K$9) -> 0 | J148: =MAX(0,(J145-J$11)*Variabelen!$K$9) -> 0 | K148: =MAX(0,(K145-K$11)*Variabelen!$K$9) -> 0 | L148: =MAX(0,(L145-L$11)*Variabelen!$K$9) -> 0 | M148: =MAX(0,(M145-M$11)*Variabelen!$K$9) -> 0 | N148: =MAX(0,(N145-N$11)*Variabelen!$K$9) -> 0 | O148: =MAX(0,(O145-O$11)*Variabelen!$K$9) -> 0 | P148: =MAX(0,(P145-P$11)*Variabelen!$K$9) -> 0 | Q148: =MAX(0,(Q145-Q$11)*Variabelen!$K$9) -> 0 | R148: =MAX(0,(R145-R$11)*Variabelen!$K$9) -> 0 | S148: =MAX(0,(S145-S$11)*Variabelen!$K$9) -> 0 | T148: =MAX(0,(T145-T$11)*Variabelen!$K$9) -> 1134.995632 | U148: =MAX(0,(U145-U$11)*Variabelen!$K$9) -> 1127.821553 | V148: =MAX(0,(V145-V$11)*Variabelen!$K$9) -> 1120.7054 | W148: =MAX(0,(W145-W$11)*Variabelen!$K$9) -> 1113.646847 | X148: =MAX(0,(X145-X$11)*Variabelen!$K$9) -> 1106.645568 | Y148: =MAX(0,(Y145-Y$11)*Variabelen!$K$9) -> 1099.70124 | Z148: =MAX(0,(Z145-Z$11)*Variabelen!$K$9) -> 1092.813544 | AA148: =MAX(0,(AA145-AA$11)*Variabelen!$K$9) -> 1085.982164 | AB148: =MAX(0,(AB145-AB$11)*Variabelen!$K$9) -> 1079.206787 | AR148: M | AX148: x | AY148: x | AZ148: x | BA148: x | BB148: x | BC148: x | BD148: x | BE148: x | BF148: x | BG148: x | BH148: x | BI148: x | BJ148: 135 | BK148: x | BL148: x | BM148: x | BN148: x
A149: =IFERROR(IRR(C149:W149),0) -> 0.03395754913 | B149: Balans | C149: =C143-C148+C146+C147+C144 -> -138932.613 | D149: =D143-D148+D146+D147+D144 -> 14343.92657 | E149: 12310.90323 | F149: 12105.47991 | G149: 11900.93025 | H149: 11697.24247 | I149: 11494.40485 | J149: 11292.40567 | K149: 11091.23327 | L149: 10890.87596 | M149: 10691.32213 | N149: 19466.19134 | O149: 19268.20962 | P149: 19070.99658 | Q149: 18874.54069 | R149: 18678.8304 | S149: -39134.76895 | T149: 459.4088451 | U149: 389.9067894 | V149: 320.2283862 | W149: 250.3682412 | X149: 180.3209318 | Y149: 110.0810062 | Z149: 39.64298336 | AA149: -30.99864792 | AB149: -101.8494291 | AR149: M | AX149: x | AY149: x | AZ149: x | BA149: x | BB149: x | BC149: x | BD149: x | BE149: x | BF149: x | BG149: x | BH149: x | BI149: x | BJ149: 136 | BK149: x | BL149: x | BM149: x | BN149: x
AX150: x | AY150: x | AZ150: x | BA150: x | BB150: x | BC150: x | BD150: x | BE150: x | BF150: x | BG150: x | BH150: x | BI150: x | BJ150: x | BK150: x | BL150: x | BM150: x | BN150: x
A151: PCR Saldering | AX151: x | AY151: x | AZ151: x | BA151: x | BB151: x | BC151: x | BD151: x | BE151: x | BF151: x | BG151: x | BH151: x | BI151: x | BJ151: x | BK151: x | BL151: x | BM151: x | BN151: x
B152: Saldo | C152: =MIN((-C5+SUM($C$59:C59)),0)+IF(C2<=Variabelen!$E$14,SUM(C18,C24,C25,C26,C27),SUM(C13,C18))-SUM(C53,C54,C55,C56,C57,C58,C59)-SUM(C62:C63) -> -114820.3413 | D152: =MIN((-D5+SUM($C$59:D59)),0)+IF(D2<=Variabelen!$E$14,SUM(D18,D24,D25,D26,D27),SUM(D13,D18))-SUM(D53,D54,D55,D56,D57,D58,D59)-SUM(D62:D63) -> 16403.62464 | E152: =MIN((-E5+SUM($C$59:E59)),0)+IF(E2<=Variabelen!$E$14,SUM(E18,E24,E25,E26,E27),SUM(E13,E18))-SUM(E53,E54,E55,E56,E57,E58,E59)-SUM(E62:E63) -> 16170.11101 | F152: =MIN((-F5+SUM($C$59:F59)),0)+IF(F2<=Variabelen!$E$14,SUM(F18,F24,F25,F26,F27),SUM(F13,F18))-SUM(F53,F54,F55,F56,F57,F58,F59)-SUM(F62:F63) -> 15937.67324 | G152: =MIN((-G5+SUM($C$59:G59)),0)+IF(G2<=Variabelen!$E$14,SUM(G18,G24,G25,G26,G27),SUM(G13,G18))-SUM(G53,G54,G55,G56,G57,G58,G59)-SUM(G62:G63) -> 15706.29822 | H152: =MIN((-H5+SUM($C$59:H59)),0)+IF(H2<=Variabelen!$E$14,SUM(H18,H24,H25,H26,H27),SUM(H13,H18))-SUM(H53,H54,H55,H56,H57,H58,H59)-SUM(H62:H63) -> 15475.97287 | I152: =MIN((-I5+SUM($C$59:I59)),0)+IF(I2<=Variabelen!$E$14,SUM(I18,I24,I25,I26,I27),SUM(I13,I18))-SUM(I53,I54,I55,I56,I57,I58,I59)-SUM(I62:I63) -> 15246.68413 | J152: =MIN((-J5+SUM($C$59:J59)),0)+IF(J2<=Variabelen!$E$14,SUM(J18,J24,J25,J26,J27),SUM(J13,J18))-SUM(J53,J54,J55,J56,J57,J58,J59)-SUM(J62:J63) -> 15018.419 | K152: =MIN((-K5+SUM($C$59:K59)),0)+IF(K2<=Variabelen!$E$14,SUM(K18,K24,K25,K26,K27),SUM(K13,K18))-SUM(K53,K54,K55,K56,K57,K58,K59)-SUM(K62:K63) -> 14791.1645 | L152: =MIN((-L5+SUM($C$59:L59)),0)+IF(L2<=Variabelen!$E$14,SUM(L18,L24,L25,L26,L27),SUM(L13,L18))-SUM(L53,L54,L55,L56,L57,L58,L59)-SUM(L62:L63) -> 14564.90768 | M152: =MIN((-M5+SUM($C$59:M59)),0)+IF(M2<=Variabelen!$E$14,SUM(M18,M24,M25,M26,M27),SUM(M13,M18))-SUM(M53,M54,M55,M56,M57,M58,M59)-SUM(M62:M63) -> 14339.63563 | N152: =MIN((-N5+SUM($C$59:N59)),0)+IF(N2<=Variabelen!$E$14,SUM(N18,N24,N25,N26,N27),SUM(N13,N18))-SUM(N53,N54,N55,N56,N57,N58,N59)-SUM(N62:N63) -> 23088.96664 | O152: =MIN((-O5+SUM($C$59:O59)),0)+IF(O2<=Variabelen!$E$14,SUM(O18,O24,O25,O26,O27),SUM(O13,O18))-SUM(O53,O54,O55,O56,O57,O58,O59)-SUM(O62:O63) -> 22865.62549 | P152: =MIN((-P5+SUM($C$59:P59)),0)+IF(P2<=Variabelen!$E$14,SUM(P18,P24,P25,P26,P27),SUM(P13,P18))-SUM(P53,P54,P55,P56,P57,P58,P59)-SUM(P62:P63) -> 22643.23055 | Q152: =MIN((-Q5+SUM($C$59:Q59)),0)+IF(Q2<=Variabelen!$E$14,SUM(Q18,Q24,Q25,Q26,Q27),SUM(Q13,Q18))-SUM(Q53,Q54,Q55,Q56,Q57,Q58,Q59)-SUM(Q62:Q63) -> 22421.76901 | R152: =MIN((-R5+SUM($C$59:R59)),0)+IF(R2<=Variabelen!$E$14,SUM(R18,R24,R25,R26,R27),SUM(R13,R18))-SUM(R53,R54,R55,R56,R57,R58,R59)-SUM(R62:R63) -> 22201.22812 | S152: =MIN((-S5+SUM($C$59:S59)),0)+IF(S2<=Variabelen!$E$14,SUM(S18,S24,S25,S26,S27),SUM(S13,S18))-SUM(S53,S54,S55,S56,S57,S58,S59)-SUM(S62:S63) -> -39134.76895 | T152: =MIN((-T5+SUM($C$59:T59)),0)+IF(T2<=Variabelen!$E$14,SUM(T18,T24,T25,T26,T27),SUM(T13,T18))-SUM(T53,T54,T55,T56,T57,T58,T59)-SUM(T62:T63) -> 1594.404477 | U152: =MIN((-U5+SUM($C$59:U59)),0)+IF(U2<=Variabelen!$E$14,SUM(U18,U24,U25,U26,U27),SUM(U13,U18))-SUM(U53,U54,U55,U56,U57,U58,U59)-SUM(U62:U63) -> 1517.728342 | V152: =MIN((-V5+SUM($C$59:V59)),0)+IF(V2<=Variabelen!$E$14,SUM(V18,V24,V25,V26,V27),SUM(V13,V18))-SUM(V53,V54,V55,V56,V57,V58,V59)-SUM(V62:V63) -> 1440.933787 | W152: =MIN((-W5+SUM($C$59:W59)),0)+IF(W2<=Variabelen!$E$14,SUM(W18,W24,W25,W26,W27),SUM(W13,W18))-SUM(W53,W54,W55,W56,W57,W58,W59)-SUM(W62:W63) -> 1364.015088 | X152: =MIN((-X5+SUM($C$59:X59)),0)+IF(X2<=Variabelen!$E$14,SUM(X18,X24,X25,X26,X27),SUM(X13,X18))-SUM(X53,X54,X55,X56,X57,X58,X59)-SUM(X62:X63) -> 1286.9665 | Y152: =MIN((-Y5+SUM($C$59:Y59)),0)+IF(Y2<=Variabelen!$E$14,SUM(Y18,Y24,Y25,Y26,Y27),SUM(Y13,Y18))-SUM(Y53,Y54,Y55,Y56,Y57,Y58,Y59)-SUM(Y62:Y63) -> 1209.782246 | Z152: =MIN((-Z5+SUM($C$59:Z59)),0)+IF(Z2<=Variabelen!$E$14,SUM(Z18,Z24,Z25,Z26,Z27),SUM(Z13,Z18))-SUM(Z53,Z54,Z55,Z56,Z57,Z58,Z59)-SUM(Z62:Z63) -> 1132.456527 | AA152: =MIN((-AA5+SUM($C$59:AA59)),0)+IF(AA2<=Variabelen!$E$14,SUM(AA18,AA24,AA25,AA26,AA27),SUM(AA13,AA18))-SUM(AA53,AA54,AA55,AA56,AA57,AA58,AA59)-SUM(AA62:AA63) -> 1054.983516 | AB152: =MIN((-AB5+SUM($C$59:AB59)),0)+IF(AB2<=Variabelen!$E$14,SUM(AB18,AB24,AB25,AB26,AB27),SUM(AB13,AB18))-SUM(AB53,AB54,AB55,AB56,AB57,AB58,AB59)-SUM(AB62:AB63) -> 977.3573579 | AS152: N | AX152: x | AY152: x | AZ152: x | BA152: x | BB152: x | BC152: x | BD152: x | BE152: x | BF152: x | BG152: x | BH152: x | BI152: x | BJ152: x | BK152: 139 | BL152: x | BM152: x | BN152: x
B153: Correctie BTW PCR | C153: =C152*Variabelen!K8 -> -24112.27167 | D153: 0 | E153: 0 | F153: 0 | G153: 0 | H153: 0 | I153: 0 | J153: 0 | K153: 0 | L153: 0 | M153: 0 | N153: 0 | O153: 0 | P153: 0 | Q153: 0 | R153: 0 | S153: 0 | T153: 0 | U153: 0 | V153: 0 | W153: 0 | X153: 0 | Y153: 0 | Z153: 0 | AA153: 0 | AB153: 0 | AS153: N | AX153: x | AY153: x | AZ153: x | BA153: x | BB153: x | BC153: x | BD153: x | BE153: x | BF153: x | BG153: x | BH153: x | BI153: x | BJ153: x | BK153: 140 | BL153: x | BM153: x | BN153: x
B154: Saldo Coop | C154: =MIN((-C5+SUM($C$59:C59)),0)+IF(C2<=Variabelen!$E$14,SUM(C18,C22),SUM(C13,C18,C22))-SUM(C53,C54,C55,C56,C57,C58,C59)-SUM(C62:C63) -> -114820.3413 | D154: =MIN((-D5+SUM($C$59:D59)),0)+IF(D2<=Variabelen!$E$14,SUM(D18,D22),SUM(D13,D18,D22))-SUM(D53,D54,D55,D56,D57,D58,D59)-SUM(D62:D63) -> -8018.227386 | E154: =MIN((-E5+SUM($C$59:E59)),0)+IF(E2<=Variabelen!$E$14,SUM(E18,E22),SUM(E13,E18,E22))-SUM(E53,E54,E55,E56,E57,E58,E59)-SUM(E62:E63) -> -8021.628057 | F154: =MIN((-F5+SUM($C$59:F59)),0)+IF(F2<=Variabelen!$E$14,SUM(F18,F22),SUM(F13,F18,F22))-SUM(F53,F54,F55,F56,F57,F58,F59)-SUM(F62:F63) -> -8024.972052 | G154: =MIN((-G5+SUM($C$59:G59)),0)+IF(G2<=Variabelen!$E$14,SUM(G18,G22),SUM(G13,G18,G22))-SUM(G53,G54,G55,G56,G57,G58,G59)-SUM(G62:G63) -> -8028.259438 | H154: =MIN((-H5+SUM($C$59:H59)),0)+IF(H2<=Variabelen!$E$14,SUM(H18,H22),SUM(H13,H18,H22))-SUM(H53,H54,H55,H56,H57,H58,H59)-SUM(H62:H63) -> -8031.490281 | I154: =MIN((-I5+SUM($C$59:I59)),0)+IF(I2<=Variabelen!$E$14,SUM(I18,I22),SUM(I13,I18,I22))-SUM(I53,I54,I55,I56,I57,I58,I59)-SUM(I62:I63) -> -8034.664639 | J154: =MIN((-J5+SUM($C$59:J59)),0)+IF(J2<=Variabelen!$E$14,SUM(J18,J22),SUM(J13,J18,J22))-SUM(J53,J54,J55,J56,J57,J58,J59)-SUM(J62:J63) -> -8037.782572 | K154: =MIN((-K5+SUM($C$59:K59)),0)+IF(K2<=Variabelen!$E$14,SUM(K18,K22),SUM(K13,K18,K22))-SUM(K53,K54,K55,K56,K57,K58,K59)-SUM(K62:K63) -> -8040.84413 | L154: =MIN((-L5+SUM($C$59:L59)),0)+IF(L2<=Variabelen!$E$14,SUM(L18,L22),SUM(L13,L18,L22))-SUM(L53,L54,L55,L56,L57,L58,L59)-SUM(L62:L63) -> -8043.849363 | M154: =MIN((-M5+SUM($C$59:M59)),0)+IF(M2<=Variabelen!$E$14,SUM(M18,M22),SUM(M13,M18,M22))-SUM(M53,M54,M55,M56,M57,M58,M59)-SUM(M62:M63) -> -8046.798318 | N154: =MIN((-N5+SUM($C$59:N59)),0)+IF(N2<=Variabelen!$E$14,SUM(N18,N22),SUM(N13,N18,N22))-SUM(N53,N54,N55,N56,N57,N58,N59)-SUM(N62:N63) -> 923.9401522 | O154: =MIN((-O5+SUM($C$59:O59)),0)+IF(O2<=Variabelen!$E$14,SUM(O18,O22),SUM(O13,O18,O22))-SUM(O53,O54,O55,O56,O57,O58,O59)-SUM(O62:O63) -> 921.1036361 | P154: =MIN((-P5+SUM($C$59:P59)),0)+IF(P2<=Variabelen!$E$14,SUM(P18,P22),SUM(P13,P18,P22))-SUM(P53,P54,P55,P56,P57,P58,P59)-SUM(P62:P63) -> 918.3232862 | Q154: =MIN((-Q5+SUM($C$59:Q59)),0)+IF(Q2<=Variabelen!$E$14,SUM(Q18,Q22),SUM(Q13,Q18,Q22))-SUM(Q53,Q54,Q55,Q56,Q57,Q58,Q59)-SUM(Q62:Q63) -> 915.5990725 | R154: =MIN((-R5+SUM($C$59:R59)),0)+IF(R2<=Variabelen!$E$14,SUM(R18,R22),SUM(R13,R18,R22))-SUM(R53,R54,R55,R56,R57,R58,R59)-SUM(R62:R63) -> 912.9309688 | S154: =MIN((-S5+SUM($C$59:S59)),0)+IF(S2<=Variabelen!$E$14,SUM(S18,S22),SUM(S13,S18,S22))-SUM(S53,S54,S55,S56,S57,S58,S59)-SUM(S62:S63) -> -35094.59699 | T154: =MIN((-T5+SUM($C$59:T59)),0)+IF(T2<=Variabelen!$E$14,SUM(T18,T22),SUM(T13,T18,T22))-SUM(T53,T54,T55,T56,T57,T58,T59)-SUM(T62:T63) -> 5674.978162 | U154: =MIN((-U5+SUM($C$59:U59)),0)+IF(U2<=Variabelen!$E$14,SUM(U18,U22),SUM(U13,U18,U22))-SUM(U53,U54,U55,U56,U57,U58,U59)-SUM(U62:U63) -> 5639.107763 | V154: =MIN((-V5+SUM($C$59:V59)),0)+IF(V2<=Variabelen!$E$14,SUM(V18,V22),SUM(V13,V18,V22))-SUM(V53,V54,V55,V56,V57,V58,V59)-SUM(V62:V63) -> 5603.527002 | W154: =MIN((-W5+SUM($C$59:W59)),0)+IF(W2<=Variabelen!$E$14,SUM(W18,W22),SUM(W13,W18,W22))-SUM(W53,W54,W55,W56,W57,W58,W59)-SUM(W62:W63) -> 5568.234236 | X154: =MIN((-X5+SUM($C$59:X59)),0)+IF(X2<=Variabelen!$E$14,SUM(X18,X22),SUM(X13,X18,X22))-SUM(X53,X54,X55,X56,X57,X58,X59)-SUM(X62:X63) -> 5533.227839 | Y154: =MIN((-Y5+SUM($C$59:Y59)),0)+IF(Y2<=Variabelen!$E$14,SUM(Y18,Y22),SUM(Y13,Y18,Y22))-SUM(Y53,Y54,Y55,Y56,Y57,Y58,Y59)-SUM(Y62:Y63) -> 5498.506198 | Z154: =MIN((-Z5+SUM($C$59:Z59)),0)+IF(Z2<=Variabelen!$E$14,SUM(Z18,Z22),SUM(Z13,Z18,Z22))-SUM(Z53,Z54,Z55,Z56,Z57,Z58,Z59)-SUM(Z62:Z63) -> 5464.067719 | AA154: =MIN((-AA5+SUM($C$59:AA59)),0)+IF(AA2<=Variabelen!$E$14,SUM(AA18,AA22),SUM(AA13,AA18,AA22))-SUM(AA53,AA54,AA55,AA56,AA57,AA58,AA59)-SUM(AA62:AA63) -> 5429.91082 | AB154: =MIN((-AB5+SUM($C$59:AB59)),0)+IF(AB2<=Variabelen!$E$14,SUM(AB18,AB22),SUM(AB13,AB18,AB22))-SUM(AB53,AB54,AB55,AB56,AB57,AB58,AB59)-SUM(AB62:AB63) -> 5396.033935 | AS154: N | AX154: x | AY154: x | AZ154: x | BA154: x | BB154: x | BC154: x | BD154: x | BE154: x | BF154: x | BG154: x | BH154: x | BI154: x | BJ154: x | BK154: 141 | BL154: x | BM154: x | BN154: x
B155: KIA | C155: =IF(C$2=1,Totaal_KIA*VPB,0) -> 0 | D155: 1826.714599 | E155: 0 | F155: 0 | G155: 0 | H155: 0 | I155: 0 | J155: 0 | K155: 0 | L155: 0 | M155: 0 | N155: 0 | O155: 0 | P155: 0 | Q155: 0 | R155: 0 | S155: 0 | T155: 0 | U155: 0 | V155: 0 | W155: 0 | X155: 0 | Y155: 0 | Z155: 0 | AA155: 0 | AB155: 0 | AS155: N | AX155: x | AY155: x | AZ155: x | BA155: x | BB155: x | BC155: x | BD155: x | BE155: x | BF155: x | BG155: x | BH155: x | BI155: x | BJ155: x | BK155: 142 | BL155: x | BM155: x | BN155: x
A156: =IFERROR(IRR(C158:M158),0) -> 0.02172645306 | B156: EIA | C156: =IF(C$2=1,0,0) -> 0 | D156: =IF(D$2=1,0,0) -> 0 | E156: 0 | F156: 0 | G156: 0 | H156: 0 | I156: 0 | J156: 0 | K156: 0 | L156: 0 | M156: 0 | N156: 0 | O156: 0 | P156: 0 | Q156: 0 | R156: 0 | S156: 0 | T156: 0 | U156: 0 | V156: 0 | W156: 0 | X156: 0 | Y156: 0 | Z156: 0 | AA156: 0 | AB156: 0 | AS156: N | AX156: x | AY156: x | AZ156: x | BA156: x | BB156: x | BC156: x | BD156: x | BE156: x | BF156: x | BG156: x | BH156: x | BI156: x | BJ156: x | BK156: 143 | BL156: x | BM156: x | BN156: x
